Workbook

Sheet Cumulative Volumes Imperial
A1: 1 | B1: ='Version History'!D2 -> Version 1.1 | BN1: =COUNTA(Q20:Q100) -> 5
A2: 2 | B2: Project:
A3: 3
A4: 4 | D4: Layers - | I4: 1 | J4: Layers
A5: 5 | D5: =IF(Imperial_Layers=0.5,"Number of Half Modules -","Number of Full Modules -") -> Number of Full Modules - | I5: 100 | J5: Modules
A6: 6 | D6: Number of Cube Modules - | I6: 10 | J6: Modules
A7: 7 | D7: Number of Stacks - | I7: =(I5+I6/IF(Imperial_Layers=0.5,1,2))/IF(Imperial_Layers=0.5,1,I4) -> 105 | J7: Stacks
A8: 8 | D8: Amount of Stone Above Modules - | I8: 6 | J8: in | BC8: NOTE: If the software program being used allows for Stage Volume data, it is recommended to use the stage volume data from this spreadsheet. Software programs typically use linear interpolation to take stage area data and estimate stage volume data. Due to rounding differences over the total number of stages provided in this spreadsheet, the accuracy of the estimated volume could be off as much as 1%. It is recommended that the user check the software estimated volume and compare it to the volume listed in this spreadsheet to ensure the accuracy is within acceptable levels.
A9: 9 | D9: Amount of Stone Below Modules - | I9: 6 | J9: in
A10: 10 | D10: Voids in stone (porosity) - | I10: 40%
A11: 11 | D11: Base of Stone Elevation - | I11: 100 | Z11: =1/Z12 -> 0.08333333333 | AA11: =Z11 -> 0.08333333333
A12: 12 | D12: Area of system - | I12: 700 | J12: ="sf - Minimum Area "&ROUNDUP(_xlfn.XLOOKUP(I4,CrateData[Layer],CrateData[Surface Area (sf)])*'Cumulative Volumes Imperial'!I7,0)&"sf" -> sf - Minimum Area 636sf | W12: System Depth | Y12: =B18/Z12 -> 3.625 | Z12: 12
A13: 13
A14: 14 | AC14: =IF(AND(AU17=TRUE, AU23=TRUE), "Stage Area Data and WWHM Stage Data should NOT be selected at the same time", "") -> 
A15: 15 | AC15: =IF($AU$17,"Stage Area Data",IF($AU$23,"WWHM Stage Data","")) ->  | AH15: =IF($AU$17,BC8,"") ->  | BG15: =IF($AN$17,"Stage Area Data","") -> Stage Area Data | BL15: WWMH Stage Data
A16: =IF(B18<>"",A15+1,"") -> 16 | B16: Height of System | C16: Incremental Single Module | D16: Incremental Module Total | E16: Total volume of module | F16: Incremental Stone per Module | G16: Incremental Stone within module perimeter | H16: Perimeter Stone Volume | I16: Incremental Stone | J16: Incremental Module & Stone | K16: Cumulative Volume | L16: Elevation | U16: Elevation | W16: Depth | X16: Depth | Y16: Area | AA16: Sum | AC16: =IF($AU$17,"Depth",IF($AU$23,"Stage","")) ->  | AD16: =IF($AU$17,"Elevation",IF($AU$23,"Area","")) ->  | AE16: =IF($AU$17,"Area",IF($AU$23,"Storage","")) ->  | AF16: =IF($AU$17,"Area","") ->  | AU16: Stage Area | AW16: Perimeter Stone | BG16: =IF($AN$17,"Depth","") -> Depth | BH16: =IF($AN$17,"Elevation","") -> Elevation | BI16: =IF($AN$17,"Area","") -> Area | BJ16: =IF($AN$17,"Area","") -> Area | BL16: =IF($AN$23,"Stage","") ->  | BM16: =IF($AN$23,"Area","") ->  | BN16: =IF($AN$23,"Storage","") ->  | BP16: WWMH Data
A17: 17 | B17: (inches) | C17: (cubic feet) | D17: (cubic feet) | E17: (cubic feet) | F17: (cubic feet) | G17: (cubic feet) | H17: (cubic feet) | I17: (cubic feet) | J17: (cubic feet) | K17: (cubic feet) | L17: (feet) | U17: (feet) | W17: (feet) | X17: (feet) | Y17: (ft2) | AA17: =SUM(AA18:AA227) -> 45 | AC17: =IF($AU$17,"(feet)",IF($AU$23,("(feet)"),"")) ->  | AD17: =IF($AU$17,"(feet)",IF($AU$23,"(acres)","")) ->  | AE17: =IF($AU$17,"(ft²)",IF($AU$23,"(acre-ft)","")) ->  | AF17: =IF($AU$17,"(acres)","") ->  | AM17: Toggle Printout | AN17: TRUE | AP17: TRUE | AU17: FALSE | AW17: TRUE | BG17: =IF($AN$17,"(feet)","") -> (feet) | BH17: =IF($AN$17,"(feet)","") -> (feet) | BI17: =IF($AN$17,"(ft²)","") -> (ft²) | BJ17: =IF($AN$17,"(acres)","") -> (acres) | BL17: =IF($AN$23,"(feet)","") ->  | BM17: =IF($AN$23,"(acres)","") ->  | BN17: =IF($AN$23,"(acre-ft)","") ->  | BP17: Storage | BQ17: Inv Storage | BS17: AREA
A18: 18 | B18: =I8+I9+_xlfn.XLOOKUP(Imperial_Layers,CrateData[Layer],CrateData[Height]) -> 43.50 | C18: =IF(B18="","",IFERROR(_xlfn.XLOOKUP(B18,ImperialIncrementalData[System Increment],_xlfn.XLOOKUP('Imperial Incremental Crate'!$R$3,ImperialIncrementalData[#Headers],ImperialIncrementalData[]),,1),0)) -> 0.00 | D18: =IFERROR(C18*Imperial_Number_Of_Stacks,"") -> 0.00 | E18: =IF(B18="","",IFERROR(_xlfn.XLOOKUP(B18,ImperialIncrementalData[System Increment],_xlfn.XLOOKUP(Imperial_Incremental_Data_Target_Column,ImperialIncrementalData[#Headers],ImperialIncrementalData[]),,1),0)) -> 0.00 | F18: =IF(B18="","",IF(B19="",((((1)/12)*Imperial_Module_Square_Foot_Area)-'Cumulative Volumes Imperial'!E18)*Imperial_Stone_Void_Percentage,((((B18-B19)/12)*Imperial_Module_Square_Foot_Area)-'Cumulative Volumes Imperial'!E18)*Imperial_Stone_Void_Percentage)) -> 0.10 | G18: =IFERROR(F18*Imperial_Number_Of_Stacks,"") -> 10.60 | H18: =((Imperial_System_Area_Input-Imperial_Number_Of_Stacks*_xlfn.XLOOKUP(Imperial_Layers,CrateData[Layer],CrateData[Surface Area (sf)]))*((B18-B19)/12))*Imperial_Stone_Void_Percentage -> 1.07 | I18: =IFERROR(IF($AW$17, H18+G18, G18), "") -> 11.67 | J18: =IFERROR(I18+D18,"") -> 11.67 | K18: =IF(B18="","",SUM(J18:$J$233)) -> 1949.54 | L18: =IFERROR($I$11+B18/12,"") -> 103.63 | P18: Volume above | Q18: =Interpolation!C2 ->  | R18: cf | U18: =IF(L19="",IF(L18="","",$I$11),L18) -> 103.625 | W18: =Y12 -> 3.63 | X18: =IF(AND(B18="",B16=1),0,IF(B18="","",IF(OR(W18=0,W18>0),W18,""))) -> 3.625 | Y18: =IF(X18="","",IF(X18=0,K16/$AA$11,IF(ISNUMBER(U19),(K18-K19)/(L18-L19),Y17))) -> 280.000 | AA18: =IF(X18="","",1) -> 1 | AC18: =IF(AU17=TRUE, BG18, IF(AU23=TRUE, BL18, "")) ->  | AD18: =IF($AU$17=TRUE, BH18, IF($AU$23=TRUE, BM18, "")) ->  | AE18: =IF(AU17=TRUE, BI18, IF(AU23=TRUE, BN18, "")) ->  | AF18: =IF($AU$17=TRUE, BJ18, IF($AU$23=TRUE, "", "")) ->  | AN18: Top of Storage Elevation | AU18: Invet Stage Area | BG18: =IF(AU21="TYP",0,IF(AU21="INVERT",X18,"")) ->  | BH18: =IF(AC18="","",$I$11+AC18) ->  | BI18: =IF(AU21="TYP",IF(Y17="","",INDEX($Y$18:$Y$227,$AA$17-ROWS(Y17:$Y$18))),IF(AU21="INVERT",Y18,"")) ->  | BJ18: =IF(AE18="","",AE18/43560) ->  | BL18: =IF(AU23=TRUE,0,IF(AU23=FALSE,0)) -> 0.00 | BM18: =IF(BS18="","",BS18/43560) -> 0.0064 | BN18: 0 | BS18: =IF(Y17="","",INDEX($Y$17:$Y$227,$AA$17-ROWS($Y$17:$Y17))) -> 280
A19: 19 | B19: =IF(B18-ROUNDDOWN(B18,0)=0,B18-1,ROUNDDOWN(B18,0)) -> 43.00 | C19: =IF(B19="","",IFERROR(_xlfn.XLOOKUP(B19,ImperialIncrementalData[System Increment],_xlfn.XLOOKUP('Imperial Incremental Crate'!$R$3,ImperialIncrementalData[#Headers],ImperialIncrementalData[]),,1),0)) -> 0.00 | D19: 0.00 | E19: =IF(B19="","",IFERROR(_xlfn.XLOOKUP(B19,ImperialIncrementalData[System Increment],_xlfn.XLOOKUP(Imperial_Incremental_Data_Target_Column,ImperialIncrementalData[#Headers],ImperialIncrementalData[]),,1),0)) -> 0.00 | F19: =IF(B19="","",IF(B20="",((((1)/12)*Imperial_Module_Square_Foot_Area)-'Cumulative Volumes Imperial'!E19)*Imperial_Stone_Void_Percentage,((((B19-B20)/12)*Imperial_Module_Square_Foot_Area)-'Cumulative Volumes Imperial'!E19)*Imperial_Stone_Void_Percentage)) -> 0.20 | G19: 21.19 | H19: =IF(B19="","",((Imperial_System_Area_Input-Imperial_Number_Of_Stacks*_xlfn.XLOOKUP(Imperial_Layers,CrateData[Layer],CrateData[Surface Area (sf)]))/12)*Imperial_Stone_Void_Percentage) -> 2.14 | I19: 23.33 | J19: 23.33 | K19: =IF(B19="","",SUM(J19:$J$233)) -> 1937.88 | L19: 103.58 | P19: Top of storage elevation | R19: ft | U19: 103.5833333 | W19: =W18-($AA$11) -> 3.54 | X19: =IF(AND(B19="",B18=1),0,IF(B19="","",IF(OR(W19=0,W19>0),W19,""))) -> 3.541666667 | Y19: =IF(X19="","",IF(X19=0,K18/$AA$11,IF(ISNUMBER(U20),(K19-K20)/(L19-L20),Y18))) -> 280.000 | AA19: =IF(X19="","",1) -> 1 | AC19: =IF($AU$21="INVERT",X19,IF(AC18>=$Y$12,"",IF(X18="","",INDEX($X$18:$X$227,$AA$17-ROWS($X$18:$X18))))) ->  | AD19: =IF($AN$17=TRUE, BH19, IF($AN$23=TRUE, BM19, "")) ->  | AE19: =IF($AU$17=TRUE, BI19, IF($AU$23=TRUE, BN19, "")) ->  | AM19: FALSE | AN19: FALSE | AU19: FALSE | BG19: =IF($AU$21="INVERT",X19,IF(AC18>=$Y$12,"",IF(X18="","",INDEX($X$18:$X$227,$AA$17-ROWS($X$18:$X18))))) ->  | BI19: =IF(AE18="","", IF($AU$21="TYP", IF(Y18="","", INDEX($Y$18:$Y$227, $AA$17-ROWS($Y$18:$Y18))), IF($AU$21="INVERT",Y19, "") ) ) ->  | BL19: =IF(BL18>=$Y$12,"",IF(X18="","",INDEX($X$18:$X$227,$AA$17-ROWS($X$18:$X18)))) -> 0.04 | BM19: =IF(BS19="","",BS19/43560) -> 0.0064 | BN19: =BQ19 -> 0 | BP19: 0.0011617943 | BR19: =IFERROR(INDEX(_xlfn._xlws.SORT(_xlfn._xlws.FILTER(BP19:BP267, BP19:BP267 <> "")), ROWS(BR$19:BR267)), "") ->  | BS19: =IF(Y18="","",INDEX($Y$17:$Y$227,$AA$17-ROWS($Y$17:$Y18))) -> 280
A20: 20 | B20: =IFERROR(IF(B19-1<1,"",B19-1),"") -> 42.00 | C20: =IF(B20="","",IFERROR(_xlfn.XLOOKUP(B20,ImperialIncrementalData[System Increment],_xlfn.XLOOKUP('Imperial Incremental Crate'!$R$3,ImperialIncrementalData[#Headers],ImperialIncrementalData[]),,1),0)) -> 0.00 | D20: 0.00 | E20: =IF(B20="","",IFERROR(_xlfn.XLOOKUP(B20,ImperialIncrementalData[System Increment],_xlfn.XLOOKUP(Imperial_Incremental_Data_Target_Column,ImperialIncrementalData[#Headers],ImperialIncrementalData[]),,1),0)) -> 0.00 | F20: =IF(B20="","",IF(B21="",((((1)/12)*Imperial_Module_Square_Foot_Area)-'Cumulative Volumes Imperial'!E20)*Imperial_Stone_Void_Percentage,((((B20-B21)/12)*Imperial_Module_Square_Foot_Area)-'Cumulative Volumes Imperial'!E20)*Imperial_Stone_Void_Percentage)) -> 0.20 | G20: 21.19 | H20: =IF(B20="","",((Imperial_System_Area_Input-Imperial_Number_Of_Stacks*_xlfn.XLOOKUP(Imperial_Layers,CrateData[Layer],CrateData[Surface Area (sf)]))/12)*Imperial_Stone_Void_Percentage) -> 2.14 | I20: 23.33 | J20: 23.33 | K20: =IF(B20="","",SUM(J20:$J$233)) -> 1914.54 | L20: 103.50 | P20: Volume Below | Q20: =Interpolation!C4 ->  | R20: cf | U20: 103.5 | W20: =W19-($AA$11) -> 3.46 | X20: 3.458333333 | Y20: 280.000 | AA20: 1 | AC20: =IF($AU$21="INVERT",X20,IF(AC19>=$Y$12,"",IF(X19="","",INDEX($X$18:$X$227,$AA$17-ROWS($X$18:$X19))))) ->  | AM20: FALSE | AN20: Volume below Top of Storage Elevation | AU20: Both True | AW20: End Cap Data Validation | BG20: =IF($AU$21="INVERT",X20,IF(AC19>=$Y$12,"",IF(X19="","",INDEX($X$18:$X$227,$AA$17-ROWS($X$18:$X19))))) ->  | BI20: =IF(AE19="","", IF($AU$21="TYP", IF(Y19="","", INDEX($Y$18:$Y$227, $AA$17-ROWS($Y$18:$Y19))), IF($AU$21="INVERT",Y20, "") ) ) ->  | BL20: =IF(BL19>=$Y$12,"",IF(X19="","",INDEX($X$18:$X$227,$AA$17-ROWS($X$18:$X19)))) -> 0.12 | BM20: =IF(BS20="","",BS20/43560) -> 0.0064 | BN20: =BQ20 -> 0 | BP20: 0.0011617943 | BR20: =IFERROR(INDEX(_xlfn._xlws.SORT(_xlfn._xlws.FILTER(BP20:BP268, BP20:BP268 <> "")), ROWS(BR$19:BR268)), "") ->  | BS20: =IF(Y19="","",INDEX($Y$17:$Y$227,$AA$17-ROWS($Y$17:$Y19))) -> 280
A21: 21 | B21: 41.00 | C21: =IF(B21="","",IFERROR(_xlfn.XLOOKUP(B21,ImperialIncrementalData[System Increment],_xlfn.XLOOKUP('Imperial Incremental Crate'!$R$3,ImperialIncrementalData[#Headers],ImperialIncrementalData[]),,1),0)) -> 0.00 | D21: 0.00 | E21: =IF(B21="","",IFERROR(_xlfn.XLOOKUP(B21,ImperialIncrementalData[System Increment],_xlfn.XLOOKUP(Imperial_Incremental_Data_Target_Column,ImperialIncrementalData[#Headers],ImperialIncrementalData[]),,1),0)) -> 0.00 | F21: =IF(B21="","",IF(B22="",((((1)/12)*Imperial_Module_Square_Foot_Area)-'Cumulative Volumes Imperial'!E21)*Imperial_Stone_Void_Percentage,((((B21-B22)/12)*Imperial_Module_Square_Foot_Area)-'Cumulative Volumes Imperial'!E21)*Imperial_Stone_Void_Percentage)) -> 0.20 | G21: 21.19 | H21: =IF(B21="","",((Imperial_System_Area_Input-Imperial_Number_Of_Stacks*_xlfn.XLOOKUP(Imperial_Layers,CrateData[Layer],CrateData[Surface Area (sf)]))/12)*Imperial_Stone_Void_Percentage) -> 2.14 | I21: 23.33 | J21: 23.33 | K21: =IF(B21="","",SUM(J21:$J$233)) -> 1891.21 | L21: 103.42 | U21: 103.4166667 | W21: 3.38 | X21: 3.375 | Y21: 280.000 | AA21: 1 | AC21: =IF($AU$21="INVERT",X21,IF(AC20>=$Y$12,"",IF(X20="","",INDEX($X$18:$X$227,$AA$17-ROWS($X$18:$X20))))) ->  | AU21: =IF(AND(AU17,AU19=FALSE),"TYP",IF(AND(AU17,AU19),"INVERT","")) ->  | AW21: =IF(J7="Number of End Caps -",ISEVEN(M7),TRUE) -> TRUE | BG21: =IF($AU$21="INVERT",X21,IF(AC20>=$Y$12,"",IF(X20="","",INDEX($X$18:$X$227,$AA$17-ROWS($X$18:$X20))))) ->  | BI21: =IF(AE20="","", IF($AU$21="TYP", IF(Y20="","", INDEX($Y$18:$Y$227, $AA$17-ROWS($Y$18:$Y20))), IF($AU$21="INVERT",Y21, "") ) ) ->  | BL21: =IF(BL20>=$Y$12,"",IF(X20="","",INDEX($X$18:$X$227,$AA$17-ROWS($X$18:$X20)))) -> 0.21 | BM21: 0.0064 | BN21: 0 | BP21: 0.0011617943 | BR21: =IFERROR(INDEX(_xlfn._xlws.SORT(_xlfn._xlws.FILTER(BP21:BP269, BP21:BP269 <> "")), ROWS(BR$19:BR269)), "") ->  | BS21: =IF(Y20="","",INDEX($Y$17:$Y$227,$AA$17-ROWS($Y$17:$Y20))) -> 280
A22: 22 | B22: 40.00 | C22: =IF(B22="","",IFERROR(_xlfn.XLOOKUP(B22,ImperialIncrementalData[System Increment],_xlfn.XLOOKUP('Imperial Incremental Crate'!$R$3,ImperialIncrementalData[#Headers],ImperialIncrementalData[]),,1),0)) -> 0.00 | D22: 0.00 | E22: =IF(B22="","",IFERROR(_xlfn.XLOOKUP(B22,ImperialIncrementalData[System Increment],_xlfn.XLOOKUP(Imperial_Incremental_Data_Target_Column,ImperialIncrementalData[#Headers],ImperialIncrementalData[]),,1),0)) -> 0.00 | F22: =IF(B22="","",IF(B23="",((((1)/12)*Imperial_Module_Square_Foot_Area)-'Cumulative Volumes Imperial'!E22)*Imperial_Stone_Void_Percentage,((((B22-B23)/12)*Imperial_Module_Square_Foot_Area)-'Cumulative Volumes Imperial'!E22)*Imperial_Stone_Void_Percentage)) -> 0.20 | G22: 21.19 | H22: =IF(B22="","",((Imperial_System_Area_Input-Imperial_Number_Of_Stacks*_xlfn.XLOOKUP(Imperial_Layers,CrateData[Layer],CrateData[Surface Area (sf)]))/12)*Imperial_Stone_Void_Percentage) -> 2.14 | I22: 23.33 | J22: 23.33 | K22: =IF(B22="","",SUM(J22:$J$233)) -> 1867.88 | L22: 103.33 | P22: Volume above | Q22: =Interpolation!C6 ->  | R22: cf | U22: 103.3333333 | W22: 3.29 | X22: 3.291666667 | Y22: 280.000 | AA22: 1 | AC22: =IF($AU$21="INVERT",X22,IF(AC21>=$Y$12,"",IF(X21="","",INDEX($X$18:$X$227,$AA$17-ROWS($X$18:$X21))))) ->  | AM22: FALSE | AN22: Volume between Top and Bottom of Storage | AU22: WWMH | BG22: =IF($AU$21="INVERT",X22,IF(AC21>=$Y$12,"",IF(X21="","",INDEX($X$18:$X$227,$AA$17-ROWS($X$18:$X21))))) ->  | BI22: =IF(AE21="","", IF($AU$21="TYP", IF(Y21="","", INDEX($Y$18:$Y$227, $AA$17-ROWS($Y$18:$Y21))), IF($AU$21="INVERT",Y22, "") ) ) ->  | BL22: =IF(BL21>=$Y$12,"",IF(X21="","",INDEX($X$18:$X$227,$AA$17-ROWS($X$18:$X21)))) -> 0.29 | BM22: 0.0064 | BN22: 0 | BP22: 0.0011617943 | BR22: =IFERROR(INDEX(_xlfn._xlws.SORT(_xlfn._xlws.FILTER(BP22:BP270, BP22:BP270 <> "")), ROWS(BR$19:BR270)), "") ->  | BS22: =IF(Y21="","",INDEX($Y$17:$Y$227,$AA$17-ROWS($Y$17:$Y21))) -> 280
A23: 23 | B23: 39.00 | C23: =IF(B23="","",IFERROR(_xlfn.XLOOKUP(B23,ImperialIncrementalData[System Increment],_xlfn.XLOOKUP('Imperial Incremental Crate'!$R$3,ImperialIncrementalData[#Headers],ImperialIncrementalData[]),,1),0)) -> 0.00 | D23: 0.00 | E23: =IF(B23="","",IFERROR(_xlfn.XLOOKUP(B23,ImperialIncrementalData[System Increment],_xlfn.XLOOKUP(Imperial_Incremental_Data_Target_Column,ImperialIncrementalData[#Headers],ImperialIncrementalData[]),,1),0)) -> 0.00 | F23: =IF(B23="","",IF(B24="",((((1)/12)*Imperial_Module_Square_Foot_Area)-'Cumulative Volumes Imperial'!E23)*Imperial_Stone_Void_Percentage,((((B23-B24)/12)*Imperial_Module_Square_Foot_Area)-'Cumulative Volumes Imperial'!E23)*Imperial_Stone_Void_Percentage)) -> 0.20 | G23: 21.19 | H23: =IF(B23="","",((Imperial_System_Area_Input-Imperial_Number_Of_Stacks*_xlfn.XLOOKUP(Imperial_Layers,CrateData[Layer],CrateData[Surface Area (sf)]))/12)*Imperial_Stone_Void_Percentage) -> 2.14 | I23: 23.33 | J23: 23.33 | K23: =IF(B23="","",SUM(J23:$J$233)) -> 1844.54 | L23: 103.25 | P23: Bottom of storage elevation | R23: ft | U23: 103.25 | W23: 3.21 | X23: 3.208333333 | Y23: 280.000 | AA23: 1 | AC23: =IF($AU$21="INVERT",X23,IF(AC22>=$Y$12,"",IF(X22="","",INDEX($X$18:$X$227,$AA$17-ROWS($X$18:$X22))))) ->  | AU23: FALSE | AW23: Used in conditional formatting to Highlight target elevation | BG23: =IF($AU$21="INVERT",X23,IF(AC22>=$Y$12,"",IF(X22="","",INDEX($X$18:$X$227,$AA$17-ROWS($X$18:$X22))))) ->  | BI23: =IF(AE22="","", IF($AU$21="TYP", IF(Y22="","", INDEX($Y$18:$Y$227, $AA$17-ROWS($Y$18:$Y22))), IF($AU$21="INVERT",Y23, "") ) ) ->  | BL23: =IF(BL22>=$Y$12,"",IF(X22="","",INDEX($X$18:$X$227,$AA$17-ROWS($X$18:$X22)))) -> 0.37 | BM23: 0.0146 | BN23: 0 | BP23: 0.0011617943 | BS23: =IF(Y22="","",INDEX($Y$17:$Y$227,$AA$17-ROWS($Y$17:$Y22))) -> 636.016337
A24: 24 | B24: 38.00 | C24: =IF(B24="","",IFERROR(_xlfn.XLOOKUP(B24,ImperialIncrementalData[System Increment],_xlfn.XLOOKUP('Imperial Incremental Crate'!$R$3,ImperialIncrementalData[#Headers],ImperialIncrementalData[]),,1),0)) -> 0.24 | D24: 25.43 | E24: =IF(B24="","",IFERROR(_xlfn.XLOOKUP(B24,ImperialIncrementalData[System Increment],_xlfn.XLOOKUP(Imperial_Incremental_Data_Target_Column,ImperialIncrementalData[#Headers],ImperialIncrementalData[]),,1),0)) -> 0.25 | F24: =IF(B24="","",IF(B25="",((((1)/12)*Imperial_Module_Square_Foot_Area)-'Cumulative Volumes Imperial'!E24)*Imperial_Stone_Void_Percentage,((((B24-B25)/12)*Imperial_Module_Square_Foot_Area)-'Cumulative Volumes Imperial'!E24)*Imperial_Stone_Void_Percentage)) -> 0.10 | G24: 10.60 | H24: =IF(B24="","",((Imperial_System_Area_Input-Imperial_Number_Of_Stacks*_xlfn.XLOOKUP(Imperial_Layers,CrateData[Layer],CrateData[Surface Area (sf)]))/12)*Imperial_Stone_Void_Percentage) -> 2.14 | I24: 12.74 | J24: 38.17 | K24: =IF(B24="","",SUM(J24:$J$233)) -> 1821.21 | L24: 103.17 | P24: Volume Below | Q24: =Interpolation!C8 ->  | R24: cf | U24: 103.1666667 | W24: 3.13 | X24: 3.125 | Y24: 458.008 | AA24: 1 | AC24: =IF($AU$21="INVERT",X24,IF(AC23>=$Y$12,"",IF(X23="","",INDEX($X$18:$X$227,$AA$17-ROWS($X$18:$X23))))) ->  | AN24: Bottom of Storage Elevation | AW24: =ROUND(1/12,2)-0.001 -> 0.079 | BG24: =IF($AU$21="INVERT",X24,IF(AC23>=$Y$12,"",IF(X23="","",INDEX($X$18:$X$227,$AA$17-ROWS($X$18:$X23))))) ->  | BI24: =IF(AE23="","", IF($AU$21="TYP", IF(Y23="","", INDEX($Y$18:$Y$227, $AA$17-ROWS($Y$18:$Y23))), IF($AU$21="INVERT",Y24, "") ) ) ->  | BL24: =IF(BL23>=$Y$12,"",IF(X23="","",INDEX($X$18:$X$227,$AA$17-ROWS($X$18:$X23)))) -> 0.46 | BM24: 0.0146 | BN24: 0 | BP24: 0.0011617943 | BS24: =IF(Y23="","",INDEX($Y$17:$Y$227,$AA$17-ROWS($Y$17:$Y23))) -> 636.016337
A25: 25 | B25: 37.00 | C25: =IF(B25="","",IFERROR(_xlfn.XLOOKUP(B25,ImperialIncrementalData[System Increment],_xlfn.XLOOKUP('Imperial Incremental Crate'!$R$3,ImperialIncrementalData[#Headers],ImperialIncrementalData[]),,1),0)) -> 0.48 | D25: 50.86 | E25: =IF(B25="","",IFERROR(_xlfn.XLOOKUP(B25,ImperialIncrementalData[System Increment],_xlfn.XLOOKUP(Imperial_Incremental_Data_Target_Column,ImperialIncrementalData[#Headers],ImperialIncrementalData[]),,1),0)) -> 0.50 | F25: =IF(B25="","",IF(B26="",((((1)/12)*Imperial_Module_Square_Foot_Area)-'Cumulative Volumes Imperial'!E25)*Imperial_Stone_Void_Percentage,((((B25-B26)/12)*Imperial_Module_Square_Foot_Area)-'Cumulative Volumes Imperial'!E25)*Imperial_Stone_Void_Percentage)) -> 0.00 | G25: 0.00 | H25: =IF(B25="","",((Imperial_System_Area_Input-Imperial_Number_Of_Stacks*_xlfn.XLOOKUP(Imperial_Layers,CrateData[Layer],CrateData[Surface Area (sf)]))/12)*Imperial_Stone_Void_Percentage) -> 2.14 | I25: 2.14 | J25: 53.00 | K25: =IF(B25="","",SUM(J25:$J$233)) -> 1783.04 | L25: 103.08 | U25: 103.0833333 | W25: 3.04 | X25: 3.041666667 | Y25: 636.016 | AA25: 1 | AC25: =IF($AU$21="INVERT",X25,IF(AC24>=$Y$12,"",IF(X24="","",INDEX($X$18:$X$227,$AA$17-ROWS($X$18:$X24))))) ->  | AM25: FALSE | AN25: Volume above Bottom of Storage | BG25: =IF($AU$21="INVERT",X25,IF(AC24>=$Y$12,"",IF(X24="","",INDEX($X$18:$X$227,$AA$17-ROWS($X$18:$X24))))) ->  | BI25: =IF(AE24="","", IF($AU$21="TYP", IF(Y24="","", INDEX($Y$18:$Y$227, $AA$17-ROWS($Y$18:$Y24))), IF($AU$21="INVERT",Y25, "") ) ) ->  | BL25: =IF(BL24>=$Y$12,"",IF(X24="","",INDEX($X$18:$X$227,$AA$17-ROWS($X$18:$X24)))) -> 0.54 | BM25: 0.0146 | BN25: 0 | BP25: 0.0011617943 | BS25: =IF(Y24="","",INDEX($Y$17:$Y$227,$AA$17-ROWS($Y$17:$Y24))) -> 636.016337
A26: 26 | B26: 36.00 | C26: =IF(B26="","",IFERROR(_xlfn.XLOOKUP(B26,ImperialIncrementalData[System Increment],_xlfn.XLOOKUP('Imperial Incremental Crate'!$R$3,ImperialIncrementalData[#Headers],ImperialIncrementalData[]),,1),0)) -> 0.48 | D26: 50.86 | E26: =IF(B26="","",IFERROR(_xlfn.XLOOKUP(B26,ImperialIncrementalData[System Increment],_xlfn.XLOOKUP(Imperial_Incremental_Data_Target_Column,ImperialIncrementalData[#Headers],ImperialIncrementalData[]),,1),0)) -> 0.50 | F26: =IF(B26="","",IF(B27="",((((1)/12)*Imperial_Module_Square_Foot_Area)-'Cumulative Volumes Imperial'!E26)*Imperial_Stone_Void_Percentage,((((B26-B27)/12)*Imperial_Module_Square_Foot_Area)-'Cumulative Volumes Imperial'!E26)*Imperial_Stone_Void_Percentage)) -> 0.00 | G26: 0.00 | H26: =IF(B26="","",((Imperial_System_Area_Input-Imperial_Number_Of_Stacks*_xlfn.XLOOKUP(Imperial_Layers,CrateData[Layer],CrateData[Surface Area (sf)]))/12)*Imperial_Stone_Void_Percentage) -> 2.14 | I26: 2.14 | J26: 53.00 | K26: =IF(B26="","",SUM(J26:$J$233)) -> 1730.04 | L26: 103.00 | P26: Volume Between Top & Bottom | Q26: =IFERROR(Q20-Q24,"") ->  | R26: cf | U26: 103 | W26: 2.96 | X26: 2.958333333 | Y26: 636.016 | AA26: 1 | AC26: =IF($AU$21="INVERT",X26,IF(AC25>=$Y$12,"",IF(X25="","",INDEX($X$18:$X$227,$AA$17-ROWS($X$18:$X25))))) ->  | AM26: FALSE | AN26: Volume below Bottom of Storage | BG26: =IF($AU$21="INVERT",X26,IF(AC25>=$Y$12,"",IF(X25="","",INDEX($X$18:$X$227,$AA$17-ROWS($X$18:$X25))))) ->  | BI26: =IF(AE25="","", IF($AU$21="TYP", IF(Y25="","", INDEX($Y$18:$Y$227, $AA$17-ROWS($Y$18:$Y25))), IF($AU$21="INVERT",Y26, "") ) ) ->  | BL26: =IF(BL25>=$Y$12,"",IF(X25="","",INDEX($X$18:$X$227,$AA$17-ROWS($X$18:$X25)))) -> 0.62 | BM26: 0.0146 | BN26: 0 | BP26: 0.0011617943 | BS26: =IF(Y25="","",INDEX($Y$17:$Y$227,$AA$17-ROWS($Y$17:$Y25))) -> 636.016337
A27: 27 | B27: 35.00 | C27: =IF(B27="","",IFERROR(_xlfn.XLOOKUP(B27,ImperialIncrementalData[System Increment],_xlfn.XLOOKUP('Imperial Incremental Crate'!$R$3,ImperialIncrementalData[#Headers],ImperialIncrementalData[]),,1),0)) -> 0.48 | D27: 50.86 | E27: =IF(B27="","",IFERROR(_xlfn.XLOOKUP(B27,ImperialIncrementalData[System Increment],_xlfn.XLOOKUP(Imperial_Incremental_Data_Target_Column,ImperialIncrementalData[#Headers],ImperialIncrementalData[]),,1),0)) -> 0.50 | F27: =IF(B27="","",IF(B28="",((((1)/12)*Imperial_Module_Square_Foot_Area)-'Cumulative Volumes Imperial'!E27)*Imperial_Stone_Void_Percentage,((((B27-B28)/12)*Imperial_Module_Square_Foot_Area)-'Cumulative Volumes Imperial'!E27)*Imperial_Stone_Void_Percentage)) -> 0.00 | G27: 0.00 | H27: =IF(B27="","",((Imperial_System_Area_Input-Imperial_Number_Of_Stacks*_xlfn.XLOOKUP(Imperial_Layers,CrateData[Layer],CrateData[Surface Area (sf)]))/12)*Imperial_Stone_Void_Percentage) -> 2.14 | I27: 2.14 | J27: 53.00 | K27: =IF(B27="","",SUM(J27:$J$233)) -> 1677.04 | L27: 102.92 | U27: 102.9166667 | W27: 2.88 | X27: 2.875 | Y27: 636.016 | AA27: 1 | AC27: =IF($AU$21="INVERT",X27,IF(AC26>=$Y$12,"",IF(X26="","",INDEX($X$18:$X$227,$AA$17-ROWS($X$18:$X26))))) ->  | BG27: =IF($AU$21="INVERT",X27,IF(AC26>=$Y$12,"",IF(X26="","",INDEX($X$18:$X$227,$AA$17-ROWS($X$18:$X26))))) ->  | BI27: =IF(AE26="","", IF($AU$21="TYP", IF(Y26="","", INDEX($Y$18:$Y$227, $AA$17-ROWS($Y$18:$Y26))), IF($AU$21="INVERT",Y27, "") ) ) ->  | BL27: =IF(BL26>=$Y$12,"",IF(X26="","",INDEX($X$18:$X$227,$AA$17-ROWS($X$18:$X26)))) -> 0.71 | BM27: 0.0146 | BN27: 0 | BP27: 0.0011617943 | BS27: =IF(Y26="","",INDEX($Y$17:$Y$227,$AA$17-ROWS($Y$17:$Y26))) -> 636.016337
A28: 28 | B28: 34.00 | C28: =IF(B28="","",IFERROR(_xlfn.XLOOKUP(B28,ImperialIncrementalData[System Increment],_xlfn.XLOOKUP('Imperial Incremental Crate'!$R$3,ImperialIncrementalData[#Headers],ImperialIncrementalData[]),,1),0)) -> 0.48 | D28: 50.86 | E28: =IF(B28="","",IFERROR(_xlfn.XLOOKUP(B28,ImperialIncrementalData[System Increment],_xlfn.XLOOKUP(Imperial_Incremental_Data_Target_Column,ImperialIncrementalData[#Headers],ImperialIncrementalData[]),,1),0)) -> 0.50 | F28: =IF(B28="","",IF(B29="",((((1)/12)*Imperial_Module_Square_Foot_Area)-'Cumulative Volumes Imperial'!E28)*Imperial_Stone_Void_Percentage,((((B28-B29)/12)*Imperial_Module_Square_Foot_Area)-'Cumulative Volumes Imperial'!E28)*Imperial_Stone_Void_Percentage)) -> 0.00 | G28: 0.00 | H28: =IF(B28="","",((Imperial_System_Area_Input-Imperial_Number_Of_Stacks*_xlfn.XLOOKUP(Imperial_Layers,CrateData[Layer],CrateData[Surface Area (sf)]))/12)*Imperial_Stone_Void_Percentage) -> 2.14 | I28: 2.14 | J28: 53.00 | K28: =IF(B28="","",SUM(J28:$J$233)) -> 1624.04 | L28: 102.83 | P28: Target Volume | R28: cf | U28: 102.8333333 | W28: 2.79 | X28: 2.791666667 | Y28: 636.016 | AA28: 1 | AC28: =IF($AU$21="INVERT",X28,IF(AC27>=$Y$12,"",IF(X27="","",INDEX($X$18:$X$227,$AA$17-ROWS($X$18:$X27))))) ->  | BG28: =IF($AU$21="INVERT",X28,IF(AC27>=$Y$12,"",IF(X27="","",INDEX($X$18:$X$227,$AA$17-ROWS($X$18:$X27))))) ->  | BI28: =IF(AE27="","", IF($AU$21="TYP", IF(Y27="","", INDEX($Y$18:$Y$227, $AA$17-ROWS($Y$18:$Y27))), IF($AU$21="INVERT",Y28, "") ) ) ->  | BL28: =IF(BL27>=$Y$12,"",IF(X27="","",INDEX($X$18:$X$227,$AA$17-ROWS($X$18:$X27)))) -> 0.79 | BM28: 0.0146 | BN28: 0 | BP28: 0.0011617943 | BS28: =IF(Y27="","",INDEX($Y$17:$Y$227,$AA$17-ROWS($Y$17:$Y27))) -> 636.016337
A29: 29 | B29: 33.00 | C29: =IF(B29="","",IFERROR(_xlfn.XLOOKUP(B29,ImperialIncrementalData[System Increment],_xlfn.XLOOKUP('Imperial Incremental Crate'!$R$3,ImperialIncrementalData[#Headers],ImperialIncrementalData[]),,1),0)) -> 0.48 | D29: 50.86 | E29: =IF(B29="","",IFERROR(_xlfn.XLOOKUP(B29,ImperialIncrementalData[System Increment],_xlfn.XLOOKUP(Imperial_Incremental_Data_Target_Column,ImperialIncrementalData[#Headers],ImperialIncrementalData[]),,1),0)) -> 0.50 | F29: =IF(B29="","",IF(B30="",((((1)/12)*Imperial_Module_Square_Foot_Area)-'Cumulative Volumes Imperial'!E29)*Imperial_Stone_Void_Percentage,((((B29-B30)/12)*Imperial_Module_Square_Foot_Area)-'Cumulative Volumes Imperial'!E29)*Imperial_Stone_Void_Percentage)) -> 0.00 | G29: 0.00 | H29: =IF(B29="","",((Imperial_System_Area_Input-Imperial_Number_Of_Stacks*_xlfn.XLOOKUP(Imperial_Layers,CrateData[Layer],CrateData[Surface Area (sf)]))/12)*Imperial_Stone_Void_Percentage) -> 2.14 | I29: 2.14 | J29: 53.00 | K29: =IF(B29="","",SUM(J29:$J$233)) -> 1571.04 | L29: 102.75 | P29: Target Volume Elevation | Q29: =Interpolation!C11 ->  | R29: ft | U29: 102.75 | W29: 2.71 | X29: 2.708333333 | Y29: 636.016 | AA29: 1 | AC29: =IF($AU$21="INVERT",X29,IF(AC28>=$Y$12,"",IF(X28="","",INDEX($X$18:$X$227,$AA$17-ROWS($X$18:$X28))))) ->  | AM29: Toggle Printout | BG29: =IF($AU$21="INVERT",X29,IF(AC28>=$Y$12,"",IF(X28="","",INDEX($X$18:$X$227,$AA$17-ROWS($X$18:$X28))))) ->  | BI29: =IF(AE28="","", IF($AU$21="TYP", IF(Y28="","", INDEX($Y$18:$Y$227, $AA$17-ROWS($Y$18:$Y28))), IF($AU$21="INVERT",Y29, "") ) ) ->  | BL29: =IF(BL28>=$Y$12,"",IF(X28="","",INDEX($X$18:$X$227,$AA$17-ROWS($X$18:$X28)))) -> 0.87 | BM29: 0.0146 | BN29: 0 | BP29: 0.0011617943 | BS29: =IF(Y28="","",INDEX($Y$17:$Y$227,$AA$17-ROWS($Y$17:$Y28))) -> 636.016337
A30: 30 | B30: 32.00 | C30: =IF(B30="","",IFERROR(_xlfn.XLOOKUP(B30,ImperialIncrementalData[System Increment],_xlfn.XLOOKUP('Imperial Incremental Crate'!$R$3,ImperialIncrementalData[#Headers],ImperialIncrementalData[]),,1),0)) -> 0.48 | D30: 50.86 | E30: =IF(B30="","",IFERROR(_xlfn.XLOOKUP(B30,ImperialIncrementalData[System Increment],_xlfn.XLOOKUP(Imperial_Incremental_Data_Target_Column,ImperialIncrementalData[#Headers],ImperialIncrementalData[]),,1),0)) -> 0.50 | F30: =IF(B30="","",IF(B31="",((((1)/12)*Imperial_Module_Square_Foot_Area)-'Cumulative Volumes Imperial'!E30)*Imperial_Stone_Void_Percentage,((((B30-B31)/12)*Imperial_Module_Square_Foot_Area)-'Cumulative Volumes Imperial'!E30)*Imperial_Stone_Void_Percentage)) -> 0.00 | G30: 0.00 | H30: =IF(B30="","",((Imperial_System_Area_Input-Imperial_Number_Of_Stacks*_xlfn.XLOOKUP(Imperial_Layers,CrateData[Layer],CrateData[Surface Area (sf)]))/12)*Imperial_Stone_Void_Percentage) -> 2.14 | I30: 2.14 | J30: 53.00 | K30: =IF(B30="","",SUM(J30:$J$233)) -> 1518.04 | L30: 102.67 | U30: 102.6666667 | W30: 2.63 | X30: 2.625 | Y30: 636.016 | AA30: 1 | AC30: =IF($AU$21="INVERT",X30,IF(AC29>=$Y$12,"",IF(X29="","",INDEX($X$18:$X$227,$AA$17-ROWS($X$18:$X29))))) ->  | AN30: Target Volume | AT30: =NOT(AND(AU17=TRUE, AU23=TRUE)) -> TRUE | BG30: =IF($AU$21="INVERT",X30,IF(AC29>=$Y$12,"",IF(X29="","",INDEX($X$18:$X$227,$AA$17-ROWS($X$18:$X29))))) ->  | BI30: =IF(AE29="","", IF($AU$21="TYP", IF(Y29="","", INDEX($Y$18:$Y$227, $AA$17-ROWS($Y$18:$Y29))), IF($AU$21="INVERT",Y30, "") ) ) ->  | BL30: =IF(BL29>=$Y$12,"",IF(X29="","",INDEX($X$18:$X$227,$AA$17-ROWS($X$18:$X29)))) -> 0.96 | BM30: 0.0146 | BN30: 0 | BP30: 0.0011617943 | BS30: =IF(Y29="","",INDEX($Y$17:$Y$227,$AA$17-ROWS($Y$17:$Y29))) -> 636.016337
A31: 31 | B31: 31.00 | C31: =IF(B31="","",IFERROR(_xlfn.XLOOKUP(B31,ImperialIncrementalData[System Increment],_xlfn.XLOOKUP('Imperial Incremental Crate'!$R$3,ImperialIncrementalData[#Headers],ImperialIncrementalData[]),,1),0)) -> 0.48 | D31: 50.86 | E31: =IF(B31="","",IFERROR(_xlfn.XLOOKUP(B31,ImperialIncrementalData[System Increment],_xlfn.XLOOKUP(Imperial_Incremental_Data_Target_Column,ImperialIncrementalData[#Headers],ImperialIncrementalData[]),,1),0)) -> 0.50 | F31: =IF(B31="","",IF(B32="",((((1)/12)*Imperial_Module_Square_Foot_Area)-'Cumulative Volumes Imperial'!E31)*Imperial_Stone_Void_Percentage,((((B31-B32)/12)*Imperial_Module_Square_Foot_Area)-'Cumulative Volumes Imperial'!E31)*Imperial_Stone_Void_Percentage)) -> 0.00 | G31: 0.00 | H31: =IF(B31="","",((Imperial_System_Area_Input-Imperial_Number_Of_Stacks*_xlfn.XLOOKUP(Imperial_Layers,CrateData[Layer],CrateData[Surface Area (sf)]))/12)*Imperial_Stone_Void_Percentage) -> 2.14 | I31: 2.14 | J31: 53.00 | K31: =IF(B31="","",SUM(J31:$J$233)) -> 1465.03 | L31: 102.58 | U31: 102.5833333 | W31: 2.54 | X31: 2.541666667 | Y31: 636.016 | AA31: 1 | AC31: =IF($AU$21="INVERT",X31,IF(AC30>=$Y$12,"",IF(X30="","",INDEX($X$18:$X$227,$AA$17-ROWS($X$18:$X30))))) ->  | AN31: Reference Elevation | BG31: =IF($AU$21="INVERT",X31,IF(AC30>=$Y$12,"",IF(X30="","",INDEX($X$18:$X$227,$AA$17-ROWS($X$18:$X30))))) ->  | BI31: =IF(AE30="","", IF($AU$21="TYP", IF(Y30="","", INDEX($Y$18:$Y$227, $AA$17-ROWS($Y$18:$Y30))), IF($AU$21="INVERT",Y31, "") ) ) ->  | BL31: =IF(BL30>=$Y$12,"",IF(X30="","",INDEX($X$18:$X$227,$AA$17-ROWS($X$18:$X30)))) -> 1.04 | BM31: 0.0146 | BN31: 0 | BP31: 0.0011617943 | BS31: =IF(Y30="","",INDEX($Y$17:$Y$227,$AA$17-ROWS($Y$17:$Y30))) -> 636.016337
A32: 32 | B32: 30.00 | C32: =IF(B32="","",IFERROR(_xlfn.XLOOKUP(B32,ImperialIncrementalData[System Increment],_xlfn.XLOOKUP('Imperial Incremental Crate'!$R$3,ImperialIncrementalData[#Headers],ImperialIncrementalData[]),,1),0)) -> 0.48 | D32: 50.86 | E32: =IF(B32="","",IFERROR(_xlfn.XLOOKUP(B32,ImperialIncrementalData[System Increment],_xlfn.XLOOKUP(Imperial_Incremental_Data_Target_Column,ImperialIncrementalData[#Headers],ImperialIncrementalData[]),,1),0)) -> 0.50 | F32: =IF(B32="","",IF(B33="",((((1)/12)*Imperial_Module_Square_Foot_Area)-'Cumulative Volumes Imperial'!E32)*Imperial_Stone_Void_Percentage,((((B32-B33)/12)*Imperial_Module_Square_Foot_Area)-'Cumulative Volumes Imperial'!E32)*Imperial_Stone_Void_Percentage)) -> 0.00 | G32: 0.00 | H32: =IF(B32="","",((Imperial_System_Area_Input-Imperial_Number_Of_Stacks*_xlfn.XLOOKUP(Imperial_Layers,CrateData[Layer],CrateData[Surface Area (sf)]))/12)*Imperial_Stone_Void_Percentage) -> 2.14 | I32: 2.14 | J32: 53.00 | K32: =IF(B32="","",SUM(J32:$J$233)) -> 1412.03 | L32: 102.50 | U32: 102.5 | W32: 2.46 | X32: 2.458333333 | Y32: 636.016 | AA32: 1 | AC32: =IF($AU$21="INVERT",X32,IF(AC31>=$Y$12,"",IF(X31="","",INDEX($X$18:$X$227,$AA$17-ROWS($X$18:$X31))))) ->  | AN32: Volume below Reference Elevation | BG32: =IF($AU$21="INVERT",X32,IF(AC31>=$Y$12,"",IF(X31="","",INDEX($X$18:$X$227,$AA$17-ROWS($X$18:$X31))))) ->  | BI32: =IF(AE31="","", IF($AU$21="TYP", IF(Y31="","", INDEX($Y$18:$Y$227, $AA$17-ROWS($Y$18:$Y31))), IF($AU$21="INVERT",Y32, "") ) ) ->  | BL32: =IF(BL31>=$Y$12,"",IF(X31="","",INDEX($X$18:$X$227,$AA$17-ROWS($X$18:$X31)))) -> 1.13 | BM32: 0.0146 | BN32: 0 | BP32: 0.001160085409 | BS32: =IF(Y31="","",INDEX($Y$17:$Y$227,$AA$17-ROWS($Y$17:$Y31))) -> 636.016337
A33: 33 | B33: 29.00 | C33: =IF(B33="","",IFERROR(_xlfn.XLOOKUP(B33,ImperialIncrementalData[System Increment],_xlfn.XLOOKUP('Imperial Incremental Crate'!$R$3,ImperialIncrementalData[#Headers],ImperialIncrementalData[]),,1),0)) -> 0.48 | D33: 50.86 | E33: =IF(B33="","",IFERROR(_xlfn.XLOOKUP(B33,ImperialIncrementalData[System Increment],_xlfn.XLOOKUP(Imperial_Incremental_Data_Target_Column,ImperialIncrementalData[#Headers],ImperialIncrementalData[]),,1),0)) -> 0.50 | F33: =IF(B33="","",IF(B34="",((((1)/12)*Imperial_Module_Square_Foot_Area)-'Cumulative Volumes Imperial'!E33)*Imperial_Stone_Void_Percentage,((((B33-B34)/12)*Imperial_Module_Square_Foot_Area)-'Cumulative Volumes Imperial'!E33)*Imperial_Stone_Void_Percentage)) -> 0.00 | G33: 0.00 | H33: =IF(B33="","",((Imperial_System_Area_Input-Imperial_Number_Of_Stacks*_xlfn.XLOOKUP(Imperial_Layers,CrateData[Layer],CrateData[Surface Area (sf)]))/12)*Imperial_Stone_Void_Percentage) -> 2.14 | I33: 2.14 | J33: 53.00 | K33: =IF(B33="","",SUM(J33:$J$233)) -> 1359.03 | L33: 102.42 | U33: 102.4166667 | W33: 2.38 | X33: 2.375 | Y33: 636.016 | AA33: 1 | AC33: =IF($AU$21="INVERT",X33,IF(AC32>=$Y$12,"",IF(X32="","",INDEX($X$18:$X$227,$AA$17-ROWS($X$18:$X32))))) ->  | AN33: Target Volume + Volume Below Reference Elevation | AO33: =IFERROR(AO32+AO30,"") ->  | BG33: =IF($AU$21="INVERT",X33,IF(AC32>=$Y$12,"",IF(X32="","",INDEX($X$18:$X$227,$AA$17-ROWS($X$18:$X32))))) ->  | BI33: =IF(AE32="","", IF($AU$21="TYP", IF(Y32="","", INDEX($Y$18:$Y$227, $AA$17-ROWS($Y$18:$Y32))), IF($AU$21="INVERT",Y33, "") ) ) ->  | BL33: =IF(BL32>=$Y$12,"",IF(X32="","",INDEX($X$18:$X$227,$AA$17-ROWS($X$18:$X32)))) -> 1.21 | BM33: 0.0146 | BN33: 0 | BP33: 0.001155569989 | BS33: =IF(Y32="","",INDEX($Y$17:$Y$227,$AA$17-ROWS($Y$17:$Y32))) -> 636.016337
A34: 34 | B34: 28.00 | C34: =IF(B34="","",IFERROR(_xlfn.XLOOKUP(B34,ImperialIncrementalData[System Increment],_xlfn.XLOOKUP('Imperial Incremental Crate'!$R$3,ImperialIncrementalData[#Headers],ImperialIncrementalData[]),,1),0)) -> 0.48 | D34: 50.86 | E34: =IF(B34="","",IFERROR(_xlfn.XLOOKUP(B34,ImperialIncrementalData[System Increment],_xlfn.XLOOKUP(Imperial_Incremental_Data_Target_Column,ImperialIncrementalData[#Headers],ImperialIncrementalData[]),,1),0)) -> 0.50 | F34: =IF(B34="","",IF(B35="",((((1)/12)*Imperial_Module_Square_Foot_Area)-'Cumulative Volumes Imperial'!E34)*Imperial_Stone_Void_Percentage,((((B34-B35)/12)*Imperial_Module_Square_Foot_Area)-'Cumulative Volumes Imperial'!E34)*Imperial_Stone_Void_Percentage)) -> 0.00 | G34: 0.00 | H34: =IF(B34="","",((Imperial_System_Area_Input-Imperial_Number_Of_Stacks*_xlfn.XLOOKUP(Imperial_Layers,CrateData[Layer],CrateData[Surface Area (sf)]))/12)*Imperial_Stone_Void_Percentage) -> 2.14 | I34: 2.14 | J34: 53.00 | K34: =IF(B34="","",SUM(J34:$J$233)) -> 1306.03 | L34: 102.33 | U34: 102.3333333 | W34: 2.29 | X34: 2.291666667 | Y34: 636.016 | AA34: 1 | AC34: =IF($AU$21="INVERT",X34,IF(AC33>=$Y$12,"",IF(X33="","",INDEX($X$18:$X$227,$AA$17-ROWS($X$18:$X33))))) ->  | AM34: FALSE | AN34: Target Volume achieved at Elevation | BG34: =IF($AU$21="INVERT",X34,IF(AC33>=$Y$12,"",IF(X33="","",INDEX($X$18:$X$227,$AA$17-ROWS($X$18:$X33))))) ->  | BI34: =IF(AE33="","", IF($AU$21="TYP", IF(Y33="","", INDEX($Y$18:$Y$227, $AA$17-ROWS($Y$18:$Y33))), IF($AU$21="INVERT",Y34, "") ) ) ->  | BL34: =IF(BL33>=$Y$12,"",IF(X33="","",INDEX($X$18:$X$227,$AA$17-ROWS($X$18:$X33)))) -> 1.29 | BM34: 0.0146 | BN34: 0 | BP34: 0.001149021025 | BS34: =IF(Y33="","",INDEX($Y$17:$Y$227,$AA$17-ROWS($Y$17:$Y33))) -> 636.016337
A35: 35 | B35: 27.00 | C35: =IF(B35="","",IFERROR(_xlfn.XLOOKUP(B35,ImperialIncrementalData[System Increment],_xlfn.XLOOKUP('Imperial Incremental Crate'!$R$3,ImperialIncrementalData[#Headers],ImperialIncrementalData[]),,1),0)) -> 0.48 | D35: 50.86 | E35: =IF(B35="","",IFERROR(_xlfn.XLOOKUP(B35,ImperialIncrementalData[System Increment],_xlfn.XLOOKUP(Imperial_Incremental_Data_Target_Column,ImperialIncrementalData[#Headers],ImperialIncrementalData[]),,1),0)) -> 0.50 | F35: =IF(B35="","",IF(B36="",((((1)/12)*Imperial_Module_Square_Foot_Area)-'Cumulative Volumes Imperial'!E35)*Imperial_Stone_Void_Percentage,((((B35-B36)/12)*Imperial_Module_Square_Foot_Area)-'Cumulative Volumes Imperial'!E35)*Imperial_Stone_Void_Percentage)) -> 0.00 | G35: 0.00 | H35: =IF(B35="","",((Imperial_System_Area_Input-Imperial_Number_Of_Stacks*_xlfn.XLOOKUP(Imperial_Layers,CrateData[Layer],CrateData[Surface Area (sf)]))/12)*Imperial_Stone_Void_Percentage) -> 2.14 | I35: 2.14 | J35: 53.00 | K35: =IF(B35="","",SUM(J35:$J$233)) -> 1253.03 | L35: 102.25 | U35: 102.25 | W35: 2.21 | X35: 2.208333333 | Y35: 636.016 | AA35: 1 | AC35: =IF($AU$21="INVERT",X35,IF(AC34>=$Y$12,"",IF(X34="","",INDEX($X$18:$X$227,$AA$17-ROWS($X$18:$X34))))) ->  | AN35: (Optional) Apply % Credit toward Target Volume | AO35: FALSE | BG35: =IF($AU$21="INVERT",X35,IF(AC34>=$Y$12,"",IF(X34="","",INDEX($X$18:$X$227,$AA$17-ROWS($X$18:$X34))))) ->  | BI35: =IF(AE34="","", IF($AU$21="TYP", IF(Y34="","", INDEX($Y$18:$Y$227, $AA$17-ROWS($Y$18:$Y34))), IF($AU$21="INVERT",Y35, "") ) ) ->  | BL35: =IF(BL34>=$Y$12,"",IF(X34="","",INDEX($X$18:$X$227,$AA$17-ROWS($X$18:$X34)))) -> 1.38 | BM35: 0.0146 | BN35: 0 | BP35: 0.001137430525 | BS35: =IF(Y34="","",INDEX($Y$17:$Y$227,$AA$17-ROWS($Y$17:$Y34))) -> 636.016337
A36: 36 | B36: 26.00 | C36: =IF(B36="","",IFERROR(_xlfn.XLOOKUP(B36,ImperialIncrementalData[System Increment],_xlfn.XLOOKUP('Imperial Incremental Crate'!$R$3,ImperialIncrementalData[#Headers],ImperialIncrementalData[]),,1),0)) -> 0.48 | D36: 50.86 | E36: =IF(B36="","",IFERROR(_xlfn.XLOOKUP(B36,ImperialIncrementalData[System Increment],_xlfn.XLOOKUP(Imperial_Incremental_Data_Target_Column,ImperialIncrementalData[#Headers],ImperialIncrementalData[]),,1),0)) -> 0.50 | F36: =IF(B36="","",IF(B37="",((((1)/12)*Imperial_Module_Square_Foot_Area)-'Cumulative Volumes Imperial'!E36)*Imperial_Stone_Void_Percentage,((((B36-B37)/12)*Imperial_Module_Square_Foot_Area)-'Cumulative Volumes Imperial'!E36)*Imperial_Stone_Void_Percentage)) -> 0.00 | G36: 0.00 | H36: =IF(B36="","",((Imperial_System_Area_Input-Imperial_Number_Of_Stacks*_xlfn.XLOOKUP(Imperial_Layers,CrateData[Layer],CrateData[Surface Area (sf)]))/12)*Imperial_Stone_Void_Percentage) -> 2.14 | I36: 2.14 | J36: 53.00 | K36: =IF(B36="","",SUM(J36:$J$233)) -> 1200.03 | L36: 102.17 | U36: 102.1666667 | W36: 2.13 | X36: 2.125 | Y36: 636.016 | AA36: 1 | AC36: =IF($AU$21="INVERT",X36,IF(AC35>=$Y$12,"",IF(X35="","",INDEX($X$18:$X$227,$AA$17-ROWS($X$18:$X35))))) ->  | AN36: % Credited toward Target Volume below Reference Elevation | AO36: 100% | BG36: =IF($AU$21="INVERT",X36,IF(AC35>=$Y$12,"",IF(X35="","",INDEX($X$18:$X$227,$AA$17-ROWS($X$18:$X35))))) ->  | BI36: =IF(AE35="","", IF($AU$21="TYP", IF(Y35="","", INDEX($Y$18:$Y$227, $AA$17-ROWS($Y$18:$Y35))), IF($AU$21="INVERT",Y36, "") ) ) ->  | BL36: =IF(BL35>=$Y$12,"",IF(X35="","",INDEX($X$18:$X$227,$AA$17-ROWS($X$18:$X35)))) -> 1.46 | BM36: 0.0146 | BN36: 0 | BP36: 0.001120433153 | BS36: =IF(Y35="","",INDEX($Y$17:$Y$227,$AA$17-ROWS($Y$17:$Y35))) -> 636.016337
A37: 37 | B37: 25.00 | C37: =IF(B37="","",IFERROR(_xlfn.XLOOKUP(B37,ImperialIncrementalData[System Increment],_xlfn.XLOOKUP('Imperial Incremental Crate'!$R$3,ImperialIncrementalData[#Headers],ImperialIncrementalData[]),,1),0)) -> 0.48 | D37: 50.86 | E37: =IF(B37="","",IFERROR(_xlfn.XLOOKUP(B37,ImperialIncrementalData[System Increment],_xlfn.XLOOKUP(Imperial_Incremental_Data_Target_Column,ImperialIncrementalData[#Headers],ImperialIncrementalData[]),,1),0)) -> 0.50 | F37: =IF(B37="","",IF(B38="",((((1)/12)*Imperial_Module_Square_Foot_Area)-'Cumulative Volumes Imperial'!E37)*Imperial_Stone_Void_Percentage,((((B37-B38)/12)*Imperial_Module_Square_Foot_Area)-'Cumulative Volumes Imperial'!E37)*Imperial_Stone_Void_Percentage)) -> 0.00 | G37: 0.00 | H37: =IF(B37="","",((Imperial_System_Area_Input-Imperial_Number_Of_Stacks*_xlfn.XLOOKUP(Imperial_Layers,CrateData[Layer],CrateData[Surface Area (sf)]))/12)*Imperial_Stone_Void_Percentage) -> 2.14 | I37: 2.14 | J37: 53.00 | K37: =IF(B37="","",SUM(J37:$J$233)) -> 1147.03 | L37: 102.08 | U37: 102.0833333 | W37: 2.04 | X37: 2.041666667 | Y37: 636.016 | AA37: 1 | AC37: =IF($AU$21="INVERT",X37,IF(AC36>=$Y$12,"",IF(X36="","",INDEX($X$18:$X$227,$AA$17-ROWS($X$18:$X36))))) ->  | AN37: Volume Credited below Reference Elevation | AO37: =IFERROR(MIN(AO36*AO32,AO30),"") ->  | BG37: =IF($AU$21="INVERT",X37,IF(AC36>=$Y$12,"",IF(X36="","",INDEX($X$18:$X$227,$AA$17-ROWS($X$18:$X36))))) ->  | BI37: =IF(AE36="","", IF($AU$21="TYP", IF(Y36="","", INDEX($Y$18:$Y$227, $AA$17-ROWS($Y$18:$Y36))), IF($AU$21="INVERT",Y37, "") ) ) ->  | BL37: =IF(BL36>=$Y$12,"",IF(X36="","",INDEX($X$18:$X$227,$AA$17-ROWS($X$18:$X36)))) -> 1.54 | BM37: 0.0146 | BN37: 0 | BP37: 0.00109995542 | BS37: =IF(Y36="","",INDEX($Y$17:$Y$227,$AA$17-ROWS($Y$17:$Y36))) -> 636.016337
A38: 38 | B38: 24.00 | C38: =IF(B38="","",IFERROR(_xlfn.XLOOKUP(B38,ImperialIncrementalData[System Increment],_xlfn.XLOOKUP('Imperial Incremental Crate'!$R$3,ImperialIncrementalData[#Headers],ImperialIncrementalData[]),,1),0)) -> 0.48 | D38: 50.86 | E38: =IF(B38="","",IFERROR(_xlfn.XLOOKUP(B38,ImperialIncrementalData[System Increment],_xlfn.XLOOKUP(Imperial_Incremental_Data_Target_Column,ImperialIncrementalData[#Headers],ImperialIncrementalData[]),,1),0)) -> 0.50 | F38: =IF(B38="","",IF(B39="",((((1)/12)*Imperial_Module_Square_Foot_Area)-'Cumulative Volumes Imperial'!E38)*Imperial_Stone_Void_Percentage,((((B38-B39)/12)*Imperial_Module_Square_Foot_Area)-'Cumulative Volumes Imperial'!E38)*Imperial_Stone_Void_Percentage)) -> 0.00 | G38: 0.00 | H38: =IF(B38="","",((Imperial_System_Area_Input-Imperial_Number_Of_Stacks*_xlfn.XLOOKUP(Imperial_Layers,CrateData[Layer],CrateData[Surface Area (sf)]))/12)*Imperial_Stone_Void_Percentage) -> 2.14 | I38: 2.14 | J38: 53.00 | K38: =IF(B38="","",SUM(J38:$J$233)) -> 1094.02 | L38: 102.00 | U38: 102 | W38: 1.96 | X38: 1.958333333 | Y38: 636.016 | AA38: 1 | AC38: =IF($AU$21="INVERT",X38,IF(AC37>=$Y$12,"",IF(X37="","",INDEX($X$18:$X$227,$AA$17-ROWS($X$18:$X37))))) ->  | AN38: Volume Discredited below Reference Elevation | AO38: =IFERROR(IF(AO37=0,0,(AO37/AO36)*(1-AO36)),"") ->  | BG38: =IF($AU$21="INVERT",X38,IF(AC37>=$Y$12,"",IF(X37="","",INDEX($X$18:$X$227,$AA$17-ROWS($X$18:$X37))))) ->  | BI38: =IF(AE37="","", IF($AU$21="TYP", IF(Y37="","", INDEX($Y$18:$Y$227, $AA$17-ROWS($Y$18:$Y37))), IF($AU$21="INVERT",Y38, "") ) ) ->  | BL38: =IF(BL37>=$Y$12,"",IF(X37="","",INDEX($X$18:$X$227,$AA$17-ROWS($X$18:$X37)))) -> 1.63 | BM38: 0.0146 | BN38: 0 | BP38: 0.001076664226 | BS38: =IF(Y37="","",INDEX($Y$17:$Y$227,$AA$17-ROWS($Y$17:$Y37))) -> 636.016337
A39: 39 | B39: 23.00 | C39: =IF(B39="","",IFERROR(_xlfn.XLOOKUP(B39,ImperialIncrementalData[System Increment],_xlfn.XLOOKUP('Imperial Incremental Crate'!$R$3,ImperialIncrementalData[#Headers],ImperialIncrementalData[]),,1),0)) -> 0.48 | D39: 50.86 | E39: =IF(B39="","",IFERROR(_xlfn.XLOOKUP(B39,ImperialIncrementalData[System Increment],_xlfn.XLOOKUP(Imperial_Incremental_Data_Target_Column,ImperialIncrementalData[#Headers],ImperialIncrementalData[]),,1),0)) -> 0.50 | F39: =IF(B39="","",IF(B40="",((((1)/12)*Imperial_Module_Square_Foot_Area)-'Cumulative Volumes Imperial'!E39)*Imperial_Stone_Void_Percentage,((((B39-B40)/12)*Imperial_Module_Square_Foot_Area)-'Cumulative Volumes Imperial'!E39)*Imperial_Stone_Void_Percentage)) -> 0.00 | G39: 0.00 | H39: =IF(B39="","",((Imperial_System_Area_Input-Imperial_Number_Of_Stacks*_xlfn.XLOOKUP(Imperial_Layers,CrateData[Layer],CrateData[Surface Area (sf)]))/12)*Imperial_Stone_Void_Percentage) -> 2.14 | I39: 2.14 | J39: 53.00 | K39: =IF(B39="","",SUM(J39:$J$233)) -> 1041.02 | L39: 101.92 | U39: 101.9166667 | W39: 1.88 | X39: 1.875 | Y39: 636.016 | AA39: 1 | AC39: =IF($AU$21="INVERT",X39,IF(AC38>=$Y$12,"",IF(X38="","",INDEX($X$18:$X$227,$AA$17-ROWS($X$18:$X38))))) ->  | AO39: =SUM(AO37:AO38) -> 0 | BG39: =IF($AU$21="INVERT",X39,IF(AC38>=$Y$12,"",IF(X38="","",INDEX($X$18:$X$227,$AA$17-ROWS($X$18:$X38))))) ->  | BI39: =IF(AE38="","", IF($AU$21="TYP", IF(Y38="","", INDEX($Y$18:$Y$227, $AA$17-ROWS($Y$18:$Y38))), IF($AU$21="INVERT",Y39, "") ) ) ->  | BL39: =IF(BL38>=$Y$12,"",IF(X38="","",INDEX($X$18:$X$227,$AA$17-ROWS($X$18:$X38)))) -> 1.71 | BM39: 0.0146 | BN39: 0 | BP39: 0.001050957697 | BS39: =IF(Y38="","",INDEX($Y$17:$Y$227,$AA$17-ROWS($Y$17:$Y38))) -> 636.016337
A40: 40 | B40: 22.00 | C40: =IF(B40="","",IFERROR(_xlfn.XLOOKUP(B40,ImperialIncrementalData[System Increment],_xlfn.XLOOKUP('Imperial Incremental Crate'!$R$3,ImperialIncrementalData[#Headers],ImperialIncrementalData[]),,1),0)) -> 0.48 | D40: 50.86 | E40: =IF(B40="","",IFERROR(_xlfn.XLOOKUP(B40,ImperialIncrementalData[System Increment],_xlfn.XLOOKUP(Imperial_Incremental_Data_Target_Column,ImperialIncrementalData[#Headers],ImperialIncrementalData[]),,1),0)) -> 0.50 | F40: =IF(B40="","",IF(B41="",((((1)/12)*Imperial_Module_Square_Foot_Area)-'Cumulative Volumes Imperial'!E40)*Imperial_Stone_Void_Percentage,((((B40-B41)/12)*Imperial_Module_Square_Foot_Area)-'Cumulative Volumes Imperial'!E40)*Imperial_Stone_Void_Percentage)) -> 0.00 | G40: 0.00 | H40: =IF(B40="","",((Imperial_System_Area_Input-Imperial_Number_Of_Stacks*_xlfn.XLOOKUP(Imperial_Layers,CrateData[Layer],CrateData[Surface Area (sf)]))/12)*Imperial_Stone_Void_Percentage) -> 2.14 | I40: 2.14 | J40: 53.00 | K40: =IF(B40="","",SUM(J40:$J$233)) -> 988.02 | L40: 101.83 | U40: 101.8333333 | W40: 1.79 | X40: 1.791666667 | Y40: 636.016 | AA40: 1 | AC40: =IF($AU$21="INVERT",X40,IF(AC39>=$Y$12,"",IF(X39="","",INDEX($X$18:$X$227,$AA$17-ROWS($X$18:$X39))))) ->  | AN40: % Credited toward Target Volume above Reference Elevation | AO40: 50% | BG40: =IF($AU$21="INVERT",X40,IF(AC39>=$Y$12,"",IF(X39="","",INDEX($X$18:$X$227,$AA$17-ROWS($X$18:$X39))))) ->  | BI40: =IF(AE39="","", IF($AU$21="TYP", IF(Y39="","", INDEX($Y$18:$Y$227, $AA$17-ROWS($Y$18:$Y39))), IF($AU$21="INVERT",Y40, "") ) ) ->  | BL40: =IF(BL39>=$Y$12,"",IF(X39="","",INDEX($X$18:$X$227,$AA$17-ROWS($X$18:$X39)))) -> 1.79 | BM40: 0.0146 | BN40: 0 | BP40: 0.001023125231 | BS40: =IF(Y39="","",INDEX($Y$17:$Y$227,$AA$17-ROWS($Y$17:$Y39))) -> 636.016337
A41: 41 | B41: 21.00 | C41: =IF(B41="","",IFERROR(_xlfn.XLOOKUP(B41,ImperialIncrementalData[System Increment],_xlfn.XLOOKUP('Imperial Incremental Crate'!$R$3,ImperialIncrementalData[#Headers],ImperialIncrementalData[]),,1),0)) -> 0.48 | D41: 50.86 | E41: =IF(B41="","",IFERROR(_xlfn.XLOOKUP(B41,ImperialIncrementalData[System Increment],_xlfn.XLOOKUP(Imperial_Incremental_Data_Target_Column,ImperialIncrementalData[#Headers],ImperialIncrementalData[]),,1),0)) -> 0.50 | F41: =IF(B41="","",IF(B42="",((((1)/12)*Imperial_Module_Square_Foot_Area)-'Cumulative Volumes Imperial'!E41)*Imperial_Stone_Void_Percentage,((((B41-B42)/12)*Imperial_Module_Square_Foot_Area)-'Cumulative Volumes Imperial'!E41)*Imperial_Stone_Void_Percentage)) -> 0.00 | G41: 0.00 | H41: =IF(B41="","",((Imperial_System_Area_Input-Imperial_Number_Of_Stacks*_xlfn.XLOOKUP(Imperial_Layers,CrateData[Layer],CrateData[Surface Area (sf)]))/12)*Imperial_Stone_Void_Percentage) -> 2.14 | I41: 2.14 | J41: 53.00 | K41: =IF(B41="","",SUM(J41:$J$233)) -> 935.02 | L41: 101.75 | U41: 101.75 | W41: 1.71 | X41: 1.708333333 | Y41: 636.016 | AA41: 1 | AC41: =IF($AU$21="INVERT",X41,IF(AC40>=$Y$12,"",IF(X40="","",INDEX($X$18:$X$227,$AA$17-ROWS($X$18:$X40))))) ->  | AN41: Volume Credited above Reference Elevation | AO41: =IFERROR(AO30-AO37,"") ->  | BG41: =IF($AU$21="INVERT",X41,IF(AC40>=$Y$12,"",IF(X40="","",INDEX($X$18:$X$227,$AA$17-ROWS($X$18:$X40))))) ->  | BI41: =IF(AE40="","", IF($AU$21="TYP", IF(Y40="","", INDEX($Y$18:$Y$227, $AA$17-ROWS($Y$18:$Y40))), IF($AU$21="INVERT",Y41, "") ) ) ->  | BL41: =IF(BL40>=$Y$12,"",IF(X40="","",INDEX($X$18:$X$227,$AA$17-ROWS($X$18:$X40)))) -> 1.88 | BM41: 0.0146 | BN41: 0 | BP41: 0.0009933742988 | BS41: =IF(Y40="","",INDEX($Y$17:$Y$227,$AA$17-ROWS($Y$17:$Y40))) -> 636.016337
A42: 42 | B42: 20.00 | C42: =IF(B42="","",IFERROR(_xlfn.XLOOKUP(B42,ImperialIncrementalData[System Increment],_xlfn.XLOOKUP('Imperial Incremental Crate'!$R$3,ImperialIncrementalData[#Headers],ImperialIncrementalData[]),,1),0)) -> 0.48 | D42: 50.86 | E42: =IF(B42="","",IFERROR(_xlfn.XLOOKUP(B42,ImperialIncrementalData[System Increment],_xlfn.XLOOKUP(Imperial_Incremental_Data_Target_Column,ImperialIncrementalData[#Headers],ImperialIncrementalData[]),,1),0)) -> 0.50 | F42: =IF(B42="","",IF(B43="",((((1)/12)*Imperial_Module_Square_Foot_Area)-'Cumulative Volumes Imperial'!E42)*Imperial_Stone_Void_Percentage,((((B42-B43)/12)*Imperial_Module_Square_Foot_Area)-'Cumulative Volumes Imperial'!E42)*Imperial_Stone_Void_Percentage)) -> 0.00 | G42: 0.00 | H42: =IF(B42="","",((Imperial_System_Area_Input-Imperial_Number_Of_Stacks*_xlfn.XLOOKUP(Imperial_Layers,CrateData[Layer],CrateData[Surface Area (sf)]))/12)*Imperial_Stone_Void_Percentage) -> 2.14 | I42: 2.14 | J42: 53.00 | K42: =IF(B42="","",SUM(J42:$J$233)) -> 882.02 | L42: 101.67 | U42: 101.6666667 | W42: 1.63 | X42: 1.625 | Y42: 636.016 | AA42: 1 | AC42: =IF($AU$21="INVERT",X42,IF(AC41>=$Y$12,"",IF(X41="","",INDEX($X$18:$X$227,$AA$17-ROWS($X$18:$X41))))) ->  | AN42: Volume Discredited above Reference Elevation | AO42: =IFERROR((AO41/AO40)*(1-AO40),"") ->  | BG42: =IF($AU$21="INVERT",X42,IF(AC41>=$Y$12,"",IF(X41="","",INDEX($X$18:$X$227,$AA$17-ROWS($X$18:$X41))))) ->  | BI42: =IF(AE41="","", IF($AU$21="TYP", IF(Y41="","", INDEX($Y$18:$Y$227, $AA$17-ROWS($Y$18:$Y41))), IF($AU$21="INVERT",Y42, "") ) ) ->  | BL42: =IF(BL41>=$Y$12,"",IF(X41="","",INDEX($X$18:$X$227,$AA$17-ROWS($X$18:$X41)))) -> 1.96 | BM42: 0.0146 | BN42: 0 | BP42: 0.0009618813751 | BS42: =IF(Y41="","",INDEX($Y$17:$Y$227,$AA$17-ROWS($Y$17:$Y41))) -> 636.016337
A43: 43 | B43: 19.00 | C43: =IF(B43="","",IFERROR(_xlfn.XLOOKUP(B43,ImperialIncrementalData[System Increment],_xlfn.XLOOKUP('Imperial Incremental Crate'!$R$3,ImperialIncrementalData[#Headers],ImperialIncrementalData[]),,1),0)) -> 0.48 | D43: 50.86 | E43: =IF(B43="","",IFERROR(_xlfn.XLOOKUP(B43,ImperialIncrementalData[System Increment],_xlfn.XLOOKUP(Imperial_Incremental_Data_Target_Column,ImperialIncrementalData[#Headers],ImperialIncrementalData[]),,1),0)) -> 0.50 | F43: =IF(B43="","",IF(B44="",((((1)/12)*Imperial_Module_Square_Foot_Area)-'Cumulative Volumes Imperial'!E43)*Imperial_Stone_Void_Percentage,((((B43-B44)/12)*Imperial_Module_Square_Foot_Area)-'Cumulative Volumes Imperial'!E43)*Imperial_Stone_Void_Percentage)) -> 0.00 | G43: 0.00 | H43: =IF(B43="","",((Imperial_System_Area_Input-Imperial_Number_Of_Stacks*_xlfn.XLOOKUP(Imperial_Layers,CrateData[Layer],CrateData[Surface Area (sf)]))/12)*Imperial_Stone_Void_Percentage) -> 2.14 | I43: 2.14 | J43: 53.00 | K43: =IF(B43="","",SUM(J43:$J$233)) -> 829.02 | L43: 101.58 | U43: 101.5833333 | W43: 1.54 | X43: 1.541666667 | Y43: 636.016 | AA43: 1 | AC43: =IF($AU$21="INVERT",X43,IF(AC42>=$Y$12,"",IF(X42="","",INDEX($X$18:$X$227,$AA$17-ROWS($X$18:$X42))))) ->  | AO43: =IFERROR(AO37+AO38+AO41+AO42,"") ->  | BG43: =IF($AU$21="INVERT",X43,IF(AC42>=$Y$12,"",IF(X42="","",INDEX($X$18:$X$227,$AA$17-ROWS($X$18:$X42))))) ->  | BI43: =IF(AE42="","", IF($AU$21="TYP", IF(Y42="","", INDEX($Y$18:$Y$227, $AA$17-ROWS($Y$18:$Y42))), IF($AU$21="INVERT",Y43, "") ) ) ->  | BL43: =IF(BL42>=$Y$12,"",IF(X42="","",INDEX($X$18:$X$227,$AA$17-ROWS($X$18:$X42)))) -> 2.04 | BM43: 0.0146 | BN43: 0 | BP43: 0.0009287967189 | BS43: =IF(Y42="","",INDEX($Y$17:$Y$227,$AA$17-ROWS($Y$17:$Y42))) -> 636.016337
A44: 44 | B44: 18.00 | C44: =IF(B44="","",IFERROR(_xlfn.XLOOKUP(B44,ImperialIncrementalData[System Increment],_xlfn.XLOOKUP('Imperial Incremental Crate'!$R$3,ImperialIncrementalData[#Headers],ImperialIncrementalData[]),,1),0)) -> 0.48 | D44: 50.86 | E44: =IF(B44="","",IFERROR(_xlfn.XLOOKUP(B44,ImperialIncrementalData[System Increment],_xlfn.XLOOKUP(Imperial_Incremental_Data_Target_Column,ImperialIncrementalData[#Headers],ImperialIncrementalData[]),,1),0)) -> 0.50 | F44: =IF(B44="","",IF(B45="",((((1)/12)*Imperial_Module_Square_Foot_Area)-'Cumulative Volumes Imperial'!E44)*Imperial_Stone_Void_Percentage,((((B44-B45)/12)*Imperial_Module_Square_Foot_Area)-'Cumulative Volumes Imperial'!E44)*Imperial_Stone_Void_Percentage)) -> 0.00 | G44: 0.00 | H44: =IF(B44="","",((Imperial_System_Area_Input-Imperial_Number_Of_Stacks*_xlfn.XLOOKUP(Imperial_Layers,CrateData[Layer],CrateData[Surface Area (sf)]))/12)*Imperial_Stone_Void_Percentage) -> 2.14 | I44: 2.14 | J44: 53.00 | K44: =IF(B44="","",SUM(J44:$J$233)) -> 776.02 | L44: 101.50 | U44: 101.5 | W44: 1.46 | X44: 1.458333333 | Y44: 636.016 | AA44: 1 | AC44: =IF($AU$21="INVERT",X44,IF(AC43>=$Y$12,"",IF(X43="","",INDEX($X$18:$X$227,$AA$17-ROWS($X$18:$X43))))) ->  | AM44: FALSE | AN44: Target Volume achieved at Elevation | BG44: =IF($AU$21="INVERT",X44,IF(AC43>=$Y$12,"",IF(X43="","",INDEX($X$18:$X$227,$AA$17-ROWS($X$18:$X43))))) ->  | BI44: =IF(AE43="","", IF($AU$21="TYP", IF(Y43="","", INDEX($Y$18:$Y$227, $AA$17-ROWS($Y$18:$Y43))), IF($AU$21="INVERT",Y44, "") ) ) ->  | BL44: =IF(BL43>=$Y$12,"",IF(X43="","",INDEX($X$18:$X$227,$AA$17-ROWS($X$18:$X43)))) -> 2.13 | BM44: 0.0146 | BN44: 0 | BP44: 0.0008942417871 | BS44: =IF(Y43="","",INDEX($Y$17:$Y$227,$AA$17-ROWS($Y$17:$Y43))) -> 636.016337
A45: 45 | B45: 17.00 | C45: =IF(B45="","",IFERROR(_xlfn.XLOOKUP(B45,ImperialIncrementalData[System Increment],_xlfn.XLOOKUP('Imperial Incremental Crate'!$R$3,ImperialIncrementalData[#Headers],ImperialIncrementalData[]),,1),0)) -> 0.48 | D45: 50.86 | E45: =IF(B45="","",IFERROR(_xlfn.XLOOKUP(B45,ImperialIncrementalData[System Increment],_xlfn.XLOOKUP(Imperial_Incremental_Data_Target_Column,ImperialIncrementalData[#Headers],ImperialIncrementalData[]),,1),0)) -> 0.50 | F45: =IF(B45="","",IF(B46="",((((1)/12)*Imperial_Module_Square_Foot_Area)-'Cumulative Volumes Imperial'!E45)*Imperial_Stone_Void_Percentage,((((B45-B46)/12)*Imperial_Module_Square_Foot_Area)-'Cumulative Volumes Imperial'!E45)*Imperial_Stone_Void_Percentage)) -> 0.00 | G45: 0.00 | H45: =IF(B45="","",((Imperial_System_Area_Input-Imperial_Number_Of_Stacks*_xlfn.XLOOKUP(Imperial_Layers,CrateData[Layer],CrateData[Surface Area (sf)]))/12)*Imperial_Stone_Void_Percentage) -> 2.14 | I45: 2.14 | J45: 53.00 | K45: =IF(B45="","",SUM(J45:$J$233)) -> 723.01 | L45: 101.42 | U45: 101.4166667 | W45: 1.38 | X45: 1.375 | Y45: 636.016 | AA45: 1 | AC45: =IF($AU$21="INVERT",X45,IF(AC44>=$Y$12,"",IF(X44="","",INDEX($X$18:$X$227,$AA$17-ROWS($X$18:$X44))))) ->  | AN45: ="Remaining Volume above "&AO44&" =" -> Remaining Volume above = | BG45: =IF($AU$21="INVERT",X45,IF(AC44>=$Y$12,"",IF(X44="","",INDEX($X$18:$X$227,$AA$17-ROWS($X$18:$X44))))) ->  | BI45: =IF(AE44="","", IF($AU$21="TYP", IF(Y44="","", INDEX($Y$18:$Y$227, $AA$17-ROWS($Y$18:$Y44))), IF($AU$21="INVERT",Y45, "") ) ) ->  | BL45: =IF(BL44>=$Y$12,"",IF(X44="","",INDEX($X$18:$X$227,$AA$17-ROWS($X$18:$X44)))) -> 2.21 | BM45: 0.0146 | BN45: 0 | BP45: 0.0008583160074 | BS45: =IF(Y44="","",INDEX($Y$17:$Y$227,$AA$17-ROWS($Y$17:$Y44))) -> 636.016337
A46: 46 | B46: 16.00 | C46: =IF(B46="","",IFERROR(_xlfn.XLOOKUP(B46,ImperialIncrementalData[System Increment],_xlfn.XLOOKUP('Imperial Incremental Crate'!$R$3,ImperialIncrementalData[#Headers],ImperialIncrementalData[]),,1),0)) -> 0.48 | D46: 50.86 | E46: =IF(B46="","",IFERROR(_xlfn.XLOOKUP(B46,ImperialIncrementalData[System Increment],_xlfn.XLOOKUP(Imperial_Incremental_Data_Target_Column,ImperialIncrementalData[#Headers],ImperialIncrementalData[]),,1),0)) -> 0.50 | F46: =IF(B46="","",IF(B47="",((((1)/12)*Imperial_Module_Square_Foot_Area)-'Cumulative Volumes Imperial'!E46)*Imperial_Stone_Void_Percentage,((((B46-B47)/12)*Imperial_Module_Square_Foot_Area)-'Cumulative Volumes Imperial'!E46)*Imperial_Stone_Void_Percentage)) -> 0.00 | G46: 0.00 | H46: =IF(B46="","",((Imperial_System_Area_Input-Imperial_Number_Of_Stacks*_xlfn.XLOOKUP(Imperial_Layers,CrateData[Layer],CrateData[Surface Area (sf)]))/12)*Imperial_Stone_Void_Percentage) -> 2.14 | I46: 2.14 | J46: 53.00 | K46: =IF(B46="","",SUM(J46:$J$233)) -> 670.01 | L46: 101.33 | U46: 101.3333333 | W46: 1.29 | X46: 1.291666667 | Y46: 636.016 | AA46: 1 | AC46: =IF($AU$21="INVERT",X46,IF(AC45>=$Y$12,"",IF(X45="","",INDEX($X$18:$X$227,$AA$17-ROWS($X$18:$X45))))) ->  | BG46: =IF($AU$21="INVERT",X46,IF(AC45>=$Y$12,"",IF(X45="","",INDEX($X$18:$X$227,$AA$17-ROWS($X$18:$X45))))) ->  | BI46: =IF(AE45="","", IF($AU$21="TYP", IF(Y45="","", INDEX($Y$18:$Y$227, $AA$17-ROWS($Y$18:$Y45))), IF($AU$21="INVERT",Y46, "") ) ) ->  | BL46: =IF(BL45>=$Y$12,"",IF(X45="","",INDEX($X$18:$X$227,$AA$17-ROWS($X$18:$X45)))) -> 2.29 | BM46: 0.0146 | BN46: 0 | BP46: 0.0008211108625 | BS46: =IF(Y45="","",INDEX($Y$17:$Y$227,$AA$17-ROWS($Y$17:$Y45))) -> 636.016337
A47: 47 | B47: 15.00 | C47: =IF(B47="","",IFERROR(_xlfn.XLOOKUP(B47,ImperialIncrementalData[System Increment],_xlfn.XLOOKUP('Imperial Incremental Crate'!$R$3,ImperialIncrementalData[#Headers],ImperialIncrementalData[]),,1),0)) -> 0.48 | D47: 50.86 | E47: =IF(B47="","",IFERROR(_xlfn.XLOOKUP(B47,ImperialIncrementalData[System Increment],_xlfn.XLOOKUP(Imperial_Incremental_Data_Target_Column,ImperialIncrementalData[#Headers],ImperialIncrementalData[]),,1),0)) -> 0.50 | F47: =IF(B47="","",IF(B48="",((((1)/12)*Imperial_Module_Square_Foot_Area)-'Cumulative Volumes Imperial'!E47)*Imperial_Stone_Void_Percentage,((((B47-B48)/12)*Imperial_Module_Square_Foot_Area)-'Cumulative Volumes Imperial'!E47)*Imperial_Stone_Void_Percentage)) -> 0.00 | G47: 0.00 | H47: =IF(B47="","",((Imperial_System_Area_Input-Imperial_Number_Of_Stacks*_xlfn.XLOOKUP(Imperial_Layers,CrateData[Layer],CrateData[Surface Area (sf)]))/12)*Imperial_Stone_Void_Percentage) -> 2.14 | I47: 2.14 | J47: 53.00 | K47: =IF(B47="","",SUM(J47:$J$233)) -> 617.01 | L47: 101.25 | U47: 101.25 | W47: 1.21 | X47: 1.208333333 | Y47: 636.016 | AA47: 1 | AC47: =IF($AU$21="INVERT",X47,IF(AC46>=$Y$12,"",IF(X46="","",INDEX($X$18:$X$227,$AA$17-ROWS($X$18:$X46))))) ->  | BG47: =IF($AU$21="INVERT",X47,IF(AC46>=$Y$12,"",IF(X46="","",INDEX($X$18:$X$227,$AA$17-ROWS($X$18:$X46))))) ->  | BI47: =IF(AE46="","", IF($AU$21="TYP", IF(Y46="","", INDEX($Y$18:$Y$227, $AA$17-ROWS($Y$18:$Y46))), IF($AU$21="INVERT",Y47, "") ) ) ->  | BL47: =IF(BL46>=$Y$12,"",IF(X46="","",INDEX($X$18:$X$227,$AA$17-ROWS($X$18:$X46)))) -> 2.38 | BM47: 0.0146 | BN47: 0 | BP47: 0.0007827074605 | BS47: =IF(Y46="","",INDEX($Y$17:$Y$227,$AA$17-ROWS($Y$17:$Y46))) -> 636.016337
A48: 48 | B48: 14.00 | C48: =IF(B48="","",IFERROR(_xlfn.XLOOKUP(B48,ImperialIncrementalData[System Increment],_xlfn.XLOOKUP('Imperial Incremental Crate'!$R$3,ImperialIncrementalData[#Headers],ImperialIncrementalData[]),,1),0)) -> 0.48 | D48: 50.86 | E48: =IF(B48="","",IFERROR(_xlfn.XLOOKUP(B48,ImperialIncrementalData[System Increment],_xlfn.XLOOKUP(Imperial_Incremental_Data_Target_Column,ImperialIncrementalData[#Headers],ImperialIncrementalData[]),,1),0)) -> 0.50 | F48: =IF(B48="","",IF(B49="",((((1)/12)*Imperial_Module_Square_Foot_Area)-'Cumulative Volumes Imperial'!E48)*Imperial_Stone_Void_Percentage,((((B48-B49)/12)*Imperial_Module_Square_Foot_Area)-'Cumulative Volumes Imperial'!E48)*Imperial_Stone_Void_Percentage)) -> 0.00 | G48: 0.00 | H48: =IF(B48="","",((Imperial_System_Area_Input-Imperial_Number_Of_Stacks*_xlfn.XLOOKUP(Imperial_Layers,CrateData[Layer],CrateData[Surface Area (sf)]))/12)*Imperial_Stone_Void_Percentage) -> 2.14 | I48: 2.14 | J48: 53.00 | K48: =IF(B48="","",SUM(J48:$J$233)) -> 564.01 | L48: 101.17 | U48: 101.1666667 | W48: 1.13 | X48: 1.125 | Y48: 636.016 | AA48: 1 | AC48: =IF($AU$21="INVERT",X48,IF(AC47>=$Y$12,"",IF(X47="","",INDEX($X$18:$X$227,$AA$17-ROWS($X$18:$X47))))) ->  | BG48: =IF($AU$21="INVERT",X48,IF(AC47>=$Y$12,"",IF(X47="","",INDEX($X$18:$X$227,$AA$17-ROWS($X$18:$X47))))) ->  | BI48: =IF(AE47="","", IF($AU$21="TYP", IF(Y47="","", INDEX($Y$18:$Y$227, $AA$17-ROWS($Y$18:$Y47))), IF($AU$21="INVERT",Y48, "") ) ) ->  | BL48: =IF(BL47>=$Y$12,"",IF(X47="","",INDEX($X$18:$X$227,$AA$17-ROWS($X$18:$X47)))) -> 2.46 | BM48: 0.0146 | BN48: 0 | BP48: 0.0007431782522 | BS48: =IF(Y47="","",INDEX($Y$17:$Y$227,$AA$17-ROWS($Y$17:$Y47))) -> 636.016337
A49: 49 | B49: 13.00 | C49: =IF(B49="","",IFERROR(_xlfn.XLOOKUP(B49,ImperialIncrementalData[System Increment],_xlfn.XLOOKUP('Imperial Incremental Crate'!$R$3,ImperialIncrementalData[#Headers],ImperialIncrementalData[]),,1),0)) -> 0.48 | D49: 50.86 | E49: =IF(B49="","",IFERROR(_xlfn.XLOOKUP(B49,ImperialIncrementalData[System Increment],_xlfn.XLOOKUP(Imperial_Incremental_Data_Target_Column,ImperialIncrementalData[#Headers],ImperialIncrementalData[]),,1),0)) -> 0.50 | F49: =IF(B49="","",IF(B50="",((((1)/12)*Imperial_Module_Square_Foot_Area)-'Cumulative Volumes Imperial'!E49)*Imperial_Stone_Void_Percentage,((((B49-B50)/12)*Imperial_Module_Square_Foot_Area)-'Cumulative Volumes Imperial'!E49)*Imperial_Stone_Void_Percentage)) -> 0.00 | G49: 0.00 | H49: =IF(B49="","",((Imperial_System_Area_Input-Imperial_Number_Of_Stacks*_xlfn.XLOOKUP(Imperial_Layers,CrateData[Layer],CrateData[Surface Area (sf)]))/12)*Imperial_Stone_Void_Percentage) -> 2.14 | I49: 2.14 | J49: 53.00 | K49: =IF(B49="","",SUM(J49:$J$233)) -> 511.01 | L49: 101.08 | U49: 101.0833333 | W49: 1.04 | X49: 1.041666667 | Y49: 636.016 | AA49: 1 | AC49: =IF($AU$21="INVERT",X49,IF(AC48>=$Y$12,"",IF(X48="","",INDEX($X$18:$X$227,$AA$17-ROWS($X$18:$X48))))) ->  | BG49: =IF($AU$21="INVERT",X49,IF(AC48>=$Y$12,"",IF(X48="","",INDEX($X$18:$X$227,$AA$17-ROWS($X$18:$X48))))) ->  | BI49: =IF(AE48="","", IF($AU$21="TYP", IF(Y48="","", INDEX($Y$18:$Y$227, $AA$17-ROWS($Y$18:$Y48))), IF($AU$21="INVERT",Y49, "") ) ) ->  | BL49: =IF(BL48>=$Y$12,"",IF(X48="","",INDEX($X$18:$X$227,$AA$17-ROWS($X$18:$X48)))) -> 2.54 | BM49: 0.0146 | BN49: 0 | BP49: 0.0007025897665 | BS49: =IF(Y48="","",INDEX($Y$17:$Y$227,$AA$17-ROWS($Y$17:$Y48))) -> 636.016337
A50: 50 | B50: 12.00 | C50: =IF(B50="","",IFERROR(_xlfn.XLOOKUP(B50,ImperialIncrementalData[System Increment],_xlfn.XLOOKUP('Imperial Incremental Crate'!$R$3,ImperialIncrementalData[#Headers],ImperialIncrementalData[]),,1),0)) -> 0.48 | D50: 50.86 | E50: =IF(B50="","",IFERROR(_xlfn.XLOOKUP(B50,ImperialIncrementalData[System Increment],_xlfn.XLOOKUP(Imperial_Incremental_Data_Target_Column,ImperialIncrementalData[#Headers],ImperialIncrementalData[]),,1),0)) -> 0.50 | F50: =IF(B50="","",IF(B51="",((((1)/12)*Imperial_Module_Square_Foot_Area)-'Cumulative Volumes Imperial'!E50)*Imperial_Stone_Void_Percentage,((((B50-B51)/12)*Imperial_Module_Square_Foot_Area)-'Cumulative Volumes Imperial'!E50)*Imperial_Stone_Void_Percentage)) -> 0.00 | G50: 0.00 | H50: =IF(B50="","",((Imperial_System_Area_Input-Imperial_Number_Of_Stacks*_xlfn.XLOOKUP(Imperial_Layers,CrateData[Layer],CrateData[Surface Area (sf)]))/12)*Imperial_Stone_Void_Percentage) -> 2.14 | I50: 2.14 | J50: 53.00 | K50: =IF(B50="","",SUM(J50:$J$233)) -> 458.01 | L50: 101.00 | U50: 101 | W50: 0.96 | X50: 0.9583333333 | Y50: 636.016 | AA50: 1 | AC50: =IF($AU$21="INVERT",X50,IF(AC49>=$Y$12,"",IF(X49="","",INDEX($X$18:$X$227,$AA$17-ROWS($X$18:$X49))))) ->  | BG50: =IF($AU$21="INVERT",X50,IF(AC49>=$Y$12,"",IF(X49="","",INDEX($X$18:$X$227,$AA$17-ROWS($X$18:$X49))))) ->  | BI50: =IF(AE49="","", IF($AU$21="TYP", IF(Y49="","", INDEX($Y$18:$Y$227, $AA$17-ROWS($Y$18:$Y49))), IF($AU$21="INVERT",Y50, "") ) ) ->  | BL50: =IF(BL49>=$Y$12,"",IF(X49="","",INDEX($X$18:$X$227,$AA$17-ROWS($X$18:$X49)))) -> 2.63 | BM50: 0.0146 | BN50: 0 | BP50: 0.000661003499 | BS50: =IF(Y49="","",INDEX($Y$17:$Y$227,$AA$17-ROWS($Y$17:$Y49))) -> 636.016337
A51: 51 | B51: 11.00 | C51: =IF(B51="","",IFERROR(_xlfn.XLOOKUP(B51,ImperialIncrementalData[System Increment],_xlfn.XLOOKUP('Imperial Incremental Crate'!$R$3,ImperialIncrementalData[#Headers],ImperialIncrementalData[]),,1),0)) -> 0.48 | D51: 50.86 | E51: =IF(B51="","",IFERROR(_xlfn.XLOOKUP(B51,ImperialIncrementalData[System Increment],_xlfn.XLOOKUP(Imperial_Incremental_Data_Target_Column,ImperialIncrementalData[#Headers],ImperialIncrementalData[]),,1),0)) -> 0.50 | F51: =IF(B51="","",IF(B52="",((((1)/12)*Imperial_Module_Square_Foot_Area)-'Cumulative Volumes Imperial'!E51)*Imperial_Stone_Void_Percentage,((((B51-B52)/12)*Imperial_Module_Square_Foot_Area)-'Cumulative Volumes Imperial'!E51)*Imperial_Stone_Void_Percentage)) -> 0.00 | G51: 0.00 | H51: =IF(B51="","",((Imperial_System_Area_Input-Imperial_Number_Of_Stacks*_xlfn.XLOOKUP(Imperial_Layers,CrateData[Layer],CrateData[Surface Area (sf)]))/12)*Imperial_Stone_Void_Percentage) -> 2.14 | I51: 2.14 | J51: 53.00 | K51: =IF(B51="","",SUM(J51:$J$233)) -> 405.01 | L51: 100.92 | U51: 100.9166667 | W51: 0.87 | X51: 0.875 | Y51: 636.016 | AA51: 1 | AC51: =IF($AU$21="INVERT",X51,IF(AC50>=$Y$12,"",IF(X50="","",INDEX($X$18:$X$227,$AA$17-ROWS($X$18:$X50))))) ->  | BG51: =IF($AU$21="INVERT",X51,IF(AC50>=$Y$12,"",IF(X50="","",INDEX($X$18:$X$227,$AA$17-ROWS($X$18:$X50))))) ->  | BI51: =IF(AE50="","", IF($AU$21="TYP", IF(Y50="","", INDEX($Y$18:$Y$227, $AA$17-ROWS($Y$18:$Y50))), IF($AU$21="INVERT",Y51, "") ) ) ->  | BL51: =IF(BL50>=$Y$12,"",IF(X50="","",INDEX($X$18:$X$227,$AA$17-ROWS($X$18:$X50)))) -> 2.71 | BM51: 0.0146 | BN51: 0 | BP51: 0.0006184757986 | BS51: =IF(Y50="","",INDEX($Y$17:$Y$227,$AA$17-ROWS($Y$17:$Y50))) -> 636.016337
A52: 52 | B52: 10.00 | C52: =IF(B52="","",IFERROR(_xlfn.XLOOKUP(B52,ImperialIncrementalData[System Increment],_xlfn.XLOOKUP('Imperial Incremental Crate'!$R$3,ImperialIncrementalData[#Headers],ImperialIncrementalData[]),,1),0)) -> 0.48 | D52: 50.86 | E52: =IF(B52="","",IFERROR(_xlfn.XLOOKUP(B52,ImperialIncrementalData[System Increment],_xlfn.XLOOKUP(Imperial_Incremental_Data_Target_Column,ImperialIncrementalData[#Headers],ImperialIncrementalData[]),,1),0)) -> 0.50 | F52: =IF(B52="","",IF(B53="",((((1)/12)*Imperial_Module_Square_Foot_Area)-'Cumulative Volumes Imperial'!E52)*Imperial_Stone_Void_Percentage,((((B52-B53)/12)*Imperial_Module_Square_Foot_Area)-'Cumulative Volumes Imperial'!E52)*Imperial_Stone_Void_Percentage)) -> 0.00 | G52: 0.00 | H52: =IF(B52="","",((Imperial_System_Area_Input-Imperial_Number_Of_Stacks*_xlfn.XLOOKUP(Imperial_Layers,CrateData[Layer],CrateData[Surface Area (sf)]))/12)*Imperial_Stone_Void_Percentage) -> 2.14 | I52: 2.14 | J52: 53.00 | K52: =IF(B52="","",SUM(J52:$J$233)) -> 352.01 | L52: 100.83 | U52: 100.8333333 | W52: 0.79 | X52: 0.7916666667 | Y52: 636.016 | AA52: 1 | AC52: =IF($AU$21="INVERT",X52,IF(AC51>=$Y$12,"",IF(X51="","",INDEX($X$18:$X$227,$AA$17-ROWS($X$18:$X51))))) ->  | BG52: =IF($AU$21="INVERT",X52,IF(AC51>=$Y$12,"",IF(X51="","",INDEX($X$18:$X$227,$AA$17-ROWS($X$18:$X51))))) ->  | BI52: =IF(AE51="","", IF($AU$21="TYP", IF(Y51="","", INDEX($Y$18:$Y$227, $AA$17-ROWS($Y$18:$Y51))), IF($AU$21="INVERT",Y52, "") ) ) ->  | BL52: =IF(BL51>=$Y$12,"",IF(X51="","",INDEX($X$18:$X$227,$AA$17-ROWS($X$18:$X51)))) -> 2.79 | BM52: 0.0146 | BN52: 0 | BP52: 0.0005750593081 | BS52: =IF(Y51="","",INDEX($Y$17:$Y$227,$AA$17-ROWS($Y$17:$Y51))) -> 636.016337
A53: 53 | B53: 9.00 | C53: =IF(B53="","",IFERROR(_xlfn.XLOOKUP(B53,ImperialIncrementalData[System Increment],_xlfn.XLOOKUP('Imperial Incremental Crate'!$R$3,ImperialIncrementalData[#Headers],ImperialIncrementalData[]),,1),0)) -> 0.48 | D53: 50.86 | E53: =IF(B53="","",IFERROR(_xlfn.XLOOKUP(B53,ImperialIncrementalData[System Increment],_xlfn.XLOOKUP(Imperial_Incremental_Data_Target_Column,ImperialIncrementalData[#Headers],ImperialIncrementalData[]),,1),0)) -> 0.50 | F53: =IF(B53="","",IF(B54="",((((1)/12)*Imperial_Module_Square_Foot_Area)-'Cumulative Volumes Imperial'!E53)*Imperial_Stone_Void_Percentage,((((B53-B54)/12)*Imperial_Module_Square_Foot_Area)-'Cumulative Volumes Imperial'!E53)*Imperial_Stone_Void_Percentage)) -> 0.00 | G53: 0.00 | H53: =IF(B53="","",((Imperial_System_Area_Input-Imperial_Number_Of_Stacks*_xlfn.XLOOKUP(Imperial_Layers,CrateData[Layer],CrateData[Surface Area (sf)]))/12)*Imperial_Stone_Void_Percentage) -> 2.14 | I53: 2.14 | J53: 53.00 | K53: =IF(B53="","",SUM(J53:$J$233)) -> 299.00 | L53: 100.75 | U53: 100.75 | W53: 0.71 | X53: 0.7083333333 | Y53: 636.016 | AA53: 1 | AC53: =IF($AU$21="INVERT",X53,IF(AC52>=$Y$12,"",IF(X52="","",INDEX($X$18:$X$227,$AA$17-ROWS($X$18:$X52))))) ->  | BG53: =IF($AU$21="INVERT",X53,IF(AC52>=$Y$12,"",IF(X52="","",INDEX($X$18:$X$227,$AA$17-ROWS($X$18:$X52))))) ->  | BI53: =IF(AE52="","", IF($AU$21="TYP", IF(Y52="","", INDEX($Y$18:$Y$227, $AA$17-ROWS($Y$18:$Y52))), IF($AU$21="INVERT",Y53, "") ) ) ->  | BL53: =IF(BL52>=$Y$12,"",IF(X52="","",INDEX($X$18:$X$227,$AA$17-ROWS($X$18:$X52)))) -> 2.88 | BM53: 0.0146 | BN53: 0 | BP53: 0.0005308032416 | BS53: =IF(Y52="","",INDEX($Y$17:$Y$227,$AA$17-ROWS($Y$17:$Y52))) -> 636.016337
A54: 54 | B54: 8.00 | C54: =IF(B54="","",IFERROR(_xlfn.XLOOKUP(B54,ImperialIncrementalData[System Increment],_xlfn.XLOOKUP('Imperial Incremental Crate'!$R$3,ImperialIncrementalData[#Headers],ImperialIncrementalData[]),,1),0)) -> 0.48 | D54: 50.86 | E54: =IF(B54="","",IFERROR(_xlfn.XLOOKUP(B54,ImperialIncrementalData[System Increment],_xlfn.XLOOKUP(Imperial_Incremental_Data_Target_Column,ImperialIncrementalData[#Headers],ImperialIncrementalData[]),,1),0)) -> 0.50 | F54: =IF(B54="","",IF(B55="",((((1)/12)*Imperial_Module_Square_Foot_Area)-'Cumulative Volumes Imperial'!E54)*Imperial_Stone_Void_Percentage,((((B54-B55)/12)*Imperial_Module_Square_Foot_Area)-'Cumulative Volumes Imperial'!E54)*Imperial_Stone_Void_Percentage)) -> 0.00 | G54: 0.00 | H54: =IF(B54="","",((Imperial_System_Area_Input-Imperial_Number_Of_Stacks*_xlfn.XLOOKUP(Imperial_Layers,CrateData[Layer],CrateData[Surface Area (sf)]))/12)*Imperial_Stone_Void_Percentage) -> 2.14 | I54: 2.14 | J54: 53.00 | K54: =IF(B54="","",SUM(J54:$J$233)) -> 246.00 | L54: 100.67 | U54: 100.6666667 | W54: 0.62 | X54: 0.625 | Y54: 636.016 | AA54: 1 | AC54: =IF($AU$21="INVERT",X54,IF(AC53>=$Y$12,"",IF(X53="","",INDEX($X$18:$X$227,$AA$17-ROWS($X$18:$X53))))) ->  | BG54: =IF($AU$21="INVERT",X54,IF(AC53>=$Y$12,"",IF(X53="","",INDEX($X$18:$X$227,$AA$17-ROWS($X$18:$X53))))) ->  | BI54: =IF(AE53="","", IF($AU$21="TYP", IF(Y53="","", INDEX($Y$18:$Y$227, $AA$17-ROWS($Y$18:$Y53))), IF($AU$21="INVERT",Y54, "") ) ) ->  | BL54: =IF(BL53>=$Y$12,"",IF(X53="","",INDEX($X$18:$X$227,$AA$17-ROWS($X$18:$X53)))) -> 2.96 | BM54: 0.0105 | BN54: 0 | BP54: 0.0004857531732 | BS54: =IF(Y53="","",INDEX($Y$17:$Y$227,$AA$17-ROWS($Y$17:$Y53))) -> 458.0081685
A55: 55 | B55: 7.00 | C55: =IF(B55="","",IFERROR(_xlfn.XLOOKUP(B55,ImperialIncrementalData[System Increment],_xlfn.XLOOKUP('Imperial Incremental Crate'!$R$3,ImperialIncrementalData[#Headers],ImperialIncrementalData[]),,1),0)) -> 0.48 | D55: 50.86 | E55: =IF(B55="","",IFERROR(_xlfn.XLOOKUP(B55,ImperialIncrementalData[System Increment],_xlfn.XLOOKUP(Imperial_Incremental_Data_Target_Column,ImperialIncrementalData[#Headers],ImperialIncrementalData[]),,1),0)) -> 0.50 | F55: =IF(B55="","",IF(B56="",((((1)/12)*Imperial_Module_Square_Foot_Area)-'Cumulative Volumes Imperial'!E55)*Imperial_Stone_Void_Percentage,((((B55-B56)/12)*Imperial_Module_Square_Foot_Area)-'Cumulative Volumes Imperial'!E55)*Imperial_Stone_Void_Percentage)) -> 0.00 | G55: 0.00 | H55: =IF(B55="","",((Imperial_System_Area_Input-Imperial_Number_Of_Stacks*_xlfn.XLOOKUP(Imperial_Layers,CrateData[Layer],CrateData[Surface Area (sf)]))/12)*Imperial_Stone_Void_Percentage) -> 2.14 | I55: 2.14 | J55: 53.00 | K55: =IF(B55="","",SUM(J55:$J$233)) -> 193.00 | L55: 100.58 | U55: 100.5833333 | W55: 0.54 | X55: 0.5416666667 | Y55: 636.016 | AA55: 1 | AC55: =IF($AU$21="INVERT",X55,IF(AC54>=$Y$12,"",IF(X54="","",INDEX($X$18:$X$227,$AA$17-ROWS($X$18:$X54))))) ->  | BG55: =IF($AU$21="INVERT",X55,IF(AC54>=$Y$12,"",IF(X54="","",INDEX($X$18:$X$227,$AA$17-ROWS($X$18:$X54))))) ->  | BI55: =IF(AE54="","", IF($AU$21="TYP", IF(Y54="","", INDEX($Y$18:$Y$227, $AA$17-ROWS($Y$18:$Y54))), IF($AU$21="INVERT",Y55, "") ) ) ->  | BL55: =IF(BL54>=$Y$12,"",IF(X54="","",INDEX($X$18:$X$227,$AA$17-ROWS($X$18:$X54)))) -> 3.04 | BM55: 0.0064 | BN55: 0 | BP55: 0.0004399524527 | BS55: =IF(Y54="","",INDEX($Y$17:$Y$227,$AA$17-ROWS($Y$17:$Y54))) -> 280
A56: 56 | B56: 6.00 | C56: =IF(B56="","",IFERROR(_xlfn.XLOOKUP(B56,ImperialIncrementalData[System Increment],_xlfn.XLOOKUP('Imperial Incremental Crate'!$R$3,ImperialIncrementalData[#Headers],ImperialIncrementalData[]),,1),0)) -> 0.00 | D56: 0.00 | E56: =IF(B56="","",IFERROR(_xlfn.XLOOKUP(B56,ImperialIncrementalData[System Increment],_xlfn.XLOOKUP(Imperial_Incremental_Data_Target_Column,ImperialIncrementalData[#Headers],ImperialIncrementalData[]),,1),0)) -> 0.00 | F56: =IF(B56="","",IF(B57="",((((1)/12)*Imperial_Module_Square_Foot_Area)-'Cumulative Volumes Imperial'!E56)*Imperial_Stone_Void_Percentage,((((B56-B57)/12)*Imperial_Module_Square_Foot_Area)-'Cumulative Volumes Imperial'!E56)*Imperial_Stone_Void_Percentage)) -> 0.20 | G56: 21.19 | H56: =IF(B56="","",((Imperial_System_Area_Input-Imperial_Number_Of_Stacks*_xlfn.XLOOKUP(Imperial_Layers,CrateData[Layer],CrateData[Surface Area (sf)]))/12)*Imperial_Stone_Void_Percentage) -> 2.14 | I56: 23.33 | J56: 23.33 | K56: =IF(B56="","",SUM(J56:$J$233)) -> 140.00 | L56: 100.50 | U56: 100.5 | W56: 0.46 | X56: 0.4583333333 | Y56: 280.000 | AA56: 1 | AC56: =IF($AU$21="INVERT",X56,IF(AC55>=$Y$12,"",IF(X55="","",INDEX($X$18:$X$227,$AA$17-ROWS($X$18:$X55))))) ->  | BG56: =IF($AU$21="INVERT",X56,IF(AC55>=$Y$12,"",IF(X55="","",INDEX($X$18:$X$227,$AA$17-ROWS($X$18:$X55))))) ->  | BI56: =IF(AE55="","", IF($AU$21="TYP", IF(Y55="","", INDEX($Y$18:$Y$227, $AA$17-ROWS($Y$18:$Y55))), IF($AU$21="INVERT",Y56, "") ) ) ->  | BL56: =IF(BL55>=$Y$12,"",IF(X55="","",INDEX($X$18:$X$227,$AA$17-ROWS($X$18:$X55)))) -> 3.13 | BM56: 0.0064 | BN56: 0 | BP56: 0.0003934416522 | BS56: =IF(Y55="","",INDEX($Y$17:$Y$227,$AA$17-ROWS($Y$17:$Y55))) -> 280
A57: 57 | B57: 5.00 | C57: =IF(B57="","",IFERROR(_xlfn.XLOOKUP(B57,ImperialIncrementalData[System Increment],_xlfn.XLOOKUP('Imperial Incremental Crate'!$R$3,ImperialIncrementalData[#Headers],ImperialIncrementalData[]),,1),0)) -> 0.00 | D57: 0.00 | E57: =IF(B57="","",IFERROR(_xlfn.XLOOKUP(B57,ImperialIncrementalData[System Increment],_xlfn.XLOOKUP(Imperial_Incremental_Data_Target_Column,ImperialIncrementalData[#Headers],ImperialIncrementalData[]),,1),0)) -> 0.00 | F57: =IF(B57="","",IF(B58="",((((1)/12)*Imperial_Module_Square_Foot_Area)-'Cumulative Volumes Imperial'!E57)*Imperial_Stone_Void_Percentage,((((B57-B58)/12)*Imperial_Module_Square_Foot_Area)-'Cumulative Volumes Imperial'!E57)*Imperial_Stone_Void_Percentage)) -> 0.20 | G57: 21.19 | H57: =IF(B57="","",((Imperial_System_Area_Input-Imperial_Number_Of_Stacks*_xlfn.XLOOKUP(Imperial_Layers,CrateData[Layer],CrateData[Surface Area (sf)]))/12)*Imperial_Stone_Void_Percentage) -> 2.14 | I57: 23.33 | J57: 23.33 | K57: =IF(B57="","",SUM(J57:$J$233)) -> 116.67 | L57: 100.42 | U57: 100.4166667 | W57: 0.37 | X57: 0.375 | Y57: 280.000 | AA57: 1 | AC57: =IF($AU$21="INVERT",X57,IF(AC56>=$Y$12,"",IF(X56="","",INDEX($X$18:$X$227,$AA$17-ROWS($X$18:$X56))))) ->  | BG57: =IF($AU$21="INVERT",X57,IF(AC56>=$Y$12,"",IF(X56="","",INDEX($X$18:$X$227,$AA$17-ROWS($X$18:$X56))))) ->  | BI57: =IF(AE56="","", IF($AU$21="TYP", IF(Y56="","", INDEX($Y$18:$Y$227, $AA$17-ROWS($Y$18:$Y56))), IF($AU$21="INVERT",Y57, "") ) ) ->  | BL57: =IF(BL56>=$Y$12,"",IF(X56="","",INDEX($X$18:$X$227,$AA$17-ROWS($X$18:$X56)))) -> 3.21 | BM57: 0.0064 | BN57: 0 | BP57: 0.0003462594887 | BS57: =IF(Y56="","",INDEX($Y$17:$Y$227,$AA$17-ROWS($Y$17:$Y56))) -> 280
A58: 58 | B58: 4.00 | C58: =IF(B58="","",IFERROR(_xlfn.XLOOKUP(B58,ImperialIncrementalData[System Increment],_xlfn.XLOOKUP('Imperial Incremental Crate'!$R$3,ImperialIncrementalData[#Headers],ImperialIncrementalData[]),,1),0)) -> 0.00 | D58: 0.00 | E58: =IF(B58="","",IFERROR(_xlfn.XLOOKUP(B58,ImperialIncrementalData[System Increment],_xlfn.XLOOKUP(Imperial_Incremental_Data_Target_Column,ImperialIncrementalData[#Headers],ImperialIncrementalData[]),,1),0)) -> 0.00 | F58: =IF(B58="","",IF(B59="",((((1)/12)*Imperial_Module_Square_Foot_Area)-'Cumulative Volumes Imperial'!E58)*Imperial_Stone_Void_Percentage,((((B58-B59)/12)*Imperial_Module_Square_Foot_Area)-'Cumulative Volumes Imperial'!E58)*Imperial_Stone_Void_Percentage)) -> 0.20 | G58: 21.19 | H58: =IF(B58="","",((Imperial_System_Area_Input-Imperial_Number_Of_Stacks*_xlfn.XLOOKUP(Imperial_Layers,CrateData[Layer],CrateData[Surface Area (sf)]))/12)*Imperial_Stone_Void_Percentage) -> 2.14 | I58: 23.33 | J58: 23.33 | K58: =IF(B58="","",SUM(J58:$J$233)) -> 93.33 | L58: 100.33 | U58: 100.3333333 | W58: 0.29 | X58: 0.2916666667 | Y58: 280.000 | AA58: 1 | AC58: =IF($AU$21="INVERT",X58,IF(AC57>=$Y$12,"",IF(X57="","",INDEX($X$18:$X$227,$AA$17-ROWS($X$18:$X57))))) ->  | BG58: =IF($AU$21="INVERT",X58,IF(AC57>=$Y$12,"",IF(X57="","",INDEX($X$18:$X$227,$AA$17-ROWS($X$18:$X57))))) ->  | BI58: =IF(AE57="","", IF($AU$21="TYP", IF(Y57="","", INDEX($Y$18:$Y$227, $AA$17-ROWS($Y$18:$Y57))), IF($AU$21="INVERT",Y58, "") ) ) ->  | BL58: =IF(BL57>=$Y$12,"",IF(X57="","",INDEX($X$18:$X$227,$AA$17-ROWS($X$18:$X57)))) -> 3.29 | BM58: 0.0064 | BN58: 0 | BP58: 0.0002984429099 | BS58: =IF(Y57="","",INDEX($Y$17:$Y$227,$AA$17-ROWS($Y$17:$Y57))) -> 280
A59: 59 | B59: 3.00 | C59: =IF(B59="","",IFERROR(_xlfn.XLOOKUP(B59,ImperialIncrementalData[System Increment],_xlfn.XLOOKUP('Imperial Incremental Crate'!$R$3,ImperialIncrementalData[#Headers],ImperialIncrementalData[]),,1),0)) -> 0.00 | D59: 0.00 | E59: =IF(B59="","",IFERROR(_xlfn.XLOOKUP(B59,ImperialIncrementalData[System Increment],_xlfn.XLOOKUP(Imperial_Incremental_Data_Target_Column,ImperialIncrementalData[#Headers],ImperialIncrementalData[]),,1),0)) -> 0.00 | F59: =IF(B59="","",IF(B60="",((((1)/12)*Imperial_Module_Square_Foot_Area)-'Cumulative Volumes Imperial'!E59)*Imperial_Stone_Void_Percentage,((((B59-B60)/12)*Imperial_Module_Square_Foot_Area)-'Cumulative Volumes Imperial'!E59)*Imperial_Stone_Void_Percentage)) -> 0.20 | G59: 21.19 | H59: =IF(B59="","",((Imperial_System_Area_Input-Imperial_Number_Of_Stacks*_xlfn.XLOOKUP(Imperial_Layers,CrateData[Layer],CrateData[Surface Area (sf)]))/12)*Imperial_Stone_Void_Percentage) -> 2.14 | I59: 23.33 | J59: 23.33 | K59: =IF(B59="","",SUM(J59:$J$233)) -> 70.00 | L59: 100.25 | U59: 100.25 | W59: 0.21 | X59: 0.2083333333 | Y59: 280.000 | AA59: 1 | AC59: =IF($AU$21="INVERT",X59,IF(AC58>=$Y$12,"",IF(X58="","",INDEX($X$18:$X$227,$AA$17-ROWS($X$18:$X58))))) ->  | BG59: =IF($AU$21="INVERT",X59,IF(AC58>=$Y$12,"",IF(X58="","",INDEX($X$18:$X$227,$AA$17-ROWS($X$18:$X58))))) ->  | BI59: =IF(AE58="","", IF($AU$21="TYP", IF(Y58="","", INDEX($Y$18:$Y$227, $AA$17-ROWS($Y$18:$Y58))), IF($AU$21="INVERT",Y59, "") ) ) ->  | BL59: =IF(BL58>=$Y$12,"",IF(X58="","",INDEX($X$18:$X$227,$AA$17-ROWS($X$18:$X58)))) -> 3.38 | BM59: 0.0064 | BN59: 0 | BP59: 0.0002500265305 | BS59: =IF(Y58="","",INDEX($Y$17:$Y$227,$AA$17-ROWS($Y$17:$Y58))) -> 280
B60: 2.00 | C60: =IF(B60="","",IFERROR(_xlfn.XLOOKUP(B60,ImperialIncrementalData[System Increment],_xlfn.XLOOKUP('Imperial Incremental Crate'!$R$3,ImperialIncrementalData[#Headers],ImperialIncrementalData[]),,1),0)) -> 0.00 | D60: 0.00 | E60: =IF(B60="","",IFERROR(_xlfn.XLOOKUP(B60,ImperialIncrementalData[System Increment],_xlfn.XLOOKUP(Imperial_Incremental_Data_Target_Column,ImperialIncrementalData[#Headers],ImperialIncrementalData[]),,1),0)) -> 0.00 | F60: =IF(B60="","",IF(B61="",((((1)/12)*Imperial_Module_Square_Foot_Area)-'Cumulative Volumes Imperial'!E60)*Imperial_Stone_Void_Percentage,((((B60-B61)/12)*Imperial_Module_Square_Foot_Area)-'Cumulative Volumes Imperial'!E60)*Imperial_Stone_Void_Percentage)) -> 0.20 | G60: 21.19 | H60: =IF(B60="","",((Imperial_System_Area_Input-Imperial_Number_Of_Stacks*_xlfn.XLOOKUP(Imperial_Layers,CrateData[Layer],CrateData[Surface Area (sf)]))/12)*Imperial_Stone_Void_Percentage) -> 2.14 | I60: 23.33 | J60: 23.33 | K60: =IF(B60="","",SUM(J60:$J$233)) -> 46.67 | L60: 100.17 | U60: 100.1666667 | W60: 0.12 | X60: 0.125 | Y60: 280.000 | AA60: 1 | AC60: =IF($AU$21="INVERT",X60,IF(AC59>=$Y$12,"",IF(X59="","",INDEX($X$18:$X$227,$AA$17-ROWS($X$18:$X59))))) ->  | BG60: =IF($AU$21="INVERT",X60,IF(AC59>=$Y$12,"",IF(X59="","",INDEX($X$18:$X$227,$AA$17-ROWS($X$18:$X59))))) ->  | BI60: =IF(AE59="","", IF($AU$21="TYP", IF(Y59="","", INDEX($Y$18:$Y$227, $AA$17-ROWS($Y$18:$Y59))), IF($AU$21="INVERT",Y60, "") ) ) ->  | BL60: =IF(BL59>=$Y$12,"",IF(X59="","",INDEX($X$18:$X$227,$AA$17-ROWS($X$18:$X59)))) -> 3.46 | BM60: 0.0064 | BN60: 0 | BP60: 0.0002010439664 | BS60: =IF(Y59="","",INDEX($Y$17:$Y$227,$AA$17-ROWS($Y$17:$Y59))) -> 280
B61: 1.00 | C61: =IF(B61="","",IFERROR(_xlfn.XLOOKUP(B61,ImperialIncrementalData[System Increment],_xlfn.XLOOKUP('Imperial Incremental Crate'!$R$3,ImperialIncrementalData[#Headers],ImperialIncrementalData[]),,1),0)) -> 0.00 | D61: 0.00 | E61: =IF(B61="","",IFERROR(_xlfn.XLOOKUP(B61,ImperialIncrementalData[System Increment],_xlfn.XLOOKUP(Imperial_Incremental_Data_Target_Column,ImperialIncrementalData[#Headers],ImperialIncrementalData[]),,1),0)) -> 0.00 | F61: =IF(B61="","",IF(B62="",((((1)/12)*Imperial_Module_Square_Foot_Area)-'Cumulative Volumes Imperial'!E61)*Imperial_Stone_Void_Percentage,((((B61-B62)/12)*Imperial_Module_Square_Foot_Area)-'Cumulative Volumes Imperial'!E61)*Imperial_Stone_Void_Percentage)) -> 0.20 | G61: 21.19 | H61: =IF(B61="","",((Imperial_System_Area_Input-Imperial_Number_Of_Stacks*_xlfn.XLOOKUP(Imperial_Layers,CrateData[Layer],CrateData[Surface Area (sf)]))/12)*Imperial_Stone_Void_Percentage) -> 2.14 | I61: 23.33 | J61: 23.33 | K61: =IF(B61="","",SUM(J61:$J$233)) -> 23.33 | L61: 100.08 | U61: 100 | W61: 0.04 | X61: 0.04166666667 | Y61: 280.000 | AA61: 1 | AC61: =IF($AU$21="INVERT",X61,IF(AC60>=$Y$12,"",IF(X60="","",INDEX($X$18:$X$227,$AA$17-ROWS($X$18:$X60))))) ->  | BG61: =IF($AU$21="INVERT",X61,IF(AC60>=$Y$12,"",IF(X60="","",INDEX($X$18:$X$227,$AA$17-ROWS($X$18:$X60))))) ->  | BI61: =IF(AE60="","", IF($AU$21="TYP", IF(Y60="","", INDEX($Y$18:$Y$227, $AA$17-ROWS($Y$18:$Y60))), IF($AU$21="INVERT",Y61, "") ) ) ->  | BL61: =IF(BL60>=$Y$12,"",IF(X60="","",INDEX($X$18:$X$227,$AA$17-ROWS($X$18:$X60)))) -> 3.54 | BN61: 0 | BP61: 0.0001515272336 | BS61: =IF(Y60="","",INDEX($Y$17:$Y$227,$AA$17-ROWS($Y$17:$Y60))) -> (ft2)
C62: =IF(B62="","",IFERROR(_xlfn.XLOOKUP(B62,ImperialIncrementalData[System Increment],_xlfn.XLOOKUP('Imperial Incremental Crate'!$R$3,ImperialIncrementalData[#Headers],ImperialIncrementalData[]),,1),0)) ->  | E62: =IF(B62="","",IFERROR(_xlfn.XLOOKUP(B62,ImperialIncrementalData[System Increment],_xlfn.XLOOKUP(Imperial_Incremental_Data_Target_Column,ImperialIncrementalData[#Headers],ImperialIncrementalData[]),,1),0)) ->  | F62: =IF(B62="","",IF(B63="",((((1)/12)*Imperial_Module_Square_Foot_Area)-'Cumulative Volumes Imperial'!E62)*Imperial_Stone_Void_Percentage,((((B62-B63)/12)*Imperial_Module_Square_Foot_Area)-'Cumulative Volumes Imperial'!E62)*Imperial_Stone_Void_Percentage)) ->  | H62: =IF(B62="","",((Imperial_System_Area_Input-Imperial_Number_Of_Stacks*_xlfn.XLOOKUP(Imperial_Layers,CrateData[Layer],CrateData[Surface Area (sf)]))/12)*Imperial_Stone_Void_Percentage) ->  | K62: =IF(B62="","",SUM(J62:$J$233)) ->  | W62: -0.04 | X62: 0 | Y62: 280.000 | AA62: 1 | AC62: =IF($AU$21="INVERT",X62,IF(AC61>=$Y$12,"",IF(X61="","",INDEX($X$18:$X$227,$AA$17-ROWS($X$18:$X61))))) ->  | BG62: =IF($AU$21="INVERT",X62,IF(AC61>=$Y$12,"",IF(X61="","",INDEX($X$18:$X$227,$AA$17-ROWS($X$18:$X61))))) ->  | BI62: =IF(AE61="","", IF($AU$21="TYP", IF(Y61="","", INDEX($Y$18:$Y$227, $AA$17-ROWS($Y$18:$Y61))), IF($AU$21="INVERT",Y62, "") ) ) ->  | BL62: =IF(BL61>=$Y$12,"",IF(X61="","",INDEX($X$18:$X$227,$AA$17-ROWS($X$18:$X61)))) -> 3.63 | BN62: 0 | BP62: 0.0001015070277 | BS62: =IF(Y61="","",INDEX($Y$17:$Y$227,$AA$17-ROWS($Y$17:$Y61))) -> 
C63: =IF(B63="","",IFERROR(_xlfn.XLOOKUP(B63,ImperialIncrementalData[System Increment],_xlfn.XLOOKUP('Imperial Incremental Crate'!$R$3,ImperialIncrementalData[#Headers],ImperialIncrementalData[]),,1),0)) ->  | E63: =IF(B63="","",IFERROR(_xlfn.XLOOKUP(B63,ImperialIncrementalData[System Increment],_xlfn.XLOOKUP(Imperial_Incremental_Data_Target_Column,ImperialIncrementalData[#Headers],ImperialIncrementalData[]),,1),0)) ->  | F63: =IF(B63="","",IF(B64="",((((1)/12)*Imperial_Module_Square_Foot_Area)-'Cumulative Volumes Imperial'!E63)*Imperial_Stone_Void_Percentage,((((B63-B64)/12)*Imperial_Module_Square_Foot_Area)-'Cumulative Volumes Imperial'!E63)*Imperial_Stone_Void_Percentage)) ->  | H63: =IF(B63="","",((Imperial_System_Area_Input-Imperial_Number_Of_Stacks*_xlfn.XLOOKUP(Imperial_Layers,CrateData[Layer],CrateData[Surface Area (sf)]))/12)*Imperial_Stone_Void_Percentage) ->  | K63: =IF(B63="","",SUM(J63:$J$233)) ->  | W63: -0.13 | AC63: =IF($AU$21="INVERT",X63,IF(AC62>=$Y$12,"",IF(X62="","",INDEX($X$18:$X$227,$AA$17-ROWS($X$18:$X62))))) ->  | BG63: =IF($AU$21="INVERT",X63,IF(AC62>=$Y$12,"",IF(X62="","",INDEX($X$18:$X$227,$AA$17-ROWS($X$18:$X62))))) ->  | BI63: =IF(AE62="","", IF($AU$21="TYP", IF(Y62="","", INDEX($Y$18:$Y$227, $AA$17-ROWS($Y$18:$Y62))), IF($AU$21="INVERT",Y63, "") ) ) ->  | BL63: =IF(BL62>=$Y$12,"",IF(X62="","",INDEX($X$18:$X$227,$AA$17-ROWS($X$18:$X62)))) ->  | BN63: 0 | BP63: 5.101265596e-05 | BS63: =IF(Y62="","",INDEX($Y$17:$Y$227,$AA$17-ROWS($Y$17:$Y62))) -> 
C64: =IF(B64="","",IFERROR(_xlfn.XLOOKUP(B64,ImperialIncrementalData[System Increment],_xlfn.XLOOKUP('Imperial Incremental Crate'!$R$3,ImperialIncrementalData[#Headers],ImperialIncrementalData[]),,1),0)) ->  | E64: =IF(B64="","",IFERROR(_xlfn.XLOOKUP(B64,ImperialIncrementalData[System Increment],_xlfn.XLOOKUP(Imperial_Incremental_Data_Target_Column,ImperialIncrementalData[#Headers],ImperialIncrementalData[]),,1),0)) ->  | F64: =IF(B64="","",IF(B65="",((((1)/12)*Imperial_Module_Square_Foot_Area)-'Cumulative Volumes Imperial'!E64)*Imperial_Stone_Void_Percentage,((((B64-B65)/12)*Imperial_Module_Square_Foot_Area)-'Cumulative Volumes Imperial'!E64)*Imperial_Stone_Void_Percentage)) ->  | H64: =IF(B64="","",((Imperial_System_Area_Input-Imperial_Number_Of_Stacks*_xlfn.XLOOKUP(Imperial_Layers,CrateData[Layer],CrateData[Surface Area (sf)]))/12)*Imperial_Stone_Void_Percentage) ->  | K64: =IF(B64="","",SUM(J64:$J$233)) ->  | W64: -0.21 | AC64: =IF($AU$21="INVERT",X64,IF(AC63>=$Y$12,"",IF(X63="","",INDEX($X$18:$X$227,$AA$17-ROWS($X$18:$X63))))) ->  | BG64: =IF($AU$21="INVERT",X64,IF(AC63>=$Y$12,"",IF(X63="","",INDEX($X$18:$X$227,$AA$17-ROWS($X$18:$X63))))) ->  | BI64: =IF(AE63="","", IF($AU$21="TYP", IF(Y63="","", INDEX($Y$18:$Y$227, $AA$17-ROWS($Y$18:$Y63))), IF($AU$21="INVERT",Y64, "") ) ) ->  | BL64: =IF(BL63>=$Y$12,"",IF(X63="","",INDEX($X$18:$X$227,$AA$17-ROWS($X$18:$X63)))) ->  | BN64: 0 | BP64: 0 | BS64: =IF(Y63="","",INDEX($Y$17:$Y$227,$AA$17-ROWS($Y$17:$Y63))) -> 
C65: =IF(B65="","",IFERROR(_xlfn.XLOOKUP(B65,ImperialIncrementalData[System Increment],_xlfn.XLOOKUP('Imperial Incremental Crate'!$R$3,ImperialIncrementalData[#Headers],ImperialIncrementalData[]),,1),0)) ->  | E65: =IF(B65="","",IFERROR(_xlfn.XLOOKUP(B65,ImperialIncrementalData[System Increment],_xlfn.XLOOKUP(Imperial_Incremental_Data_Target_Column,ImperialIncrementalData[#Headers],ImperialIncrementalData[]),,1),0)) ->  | F65: =IF(B65="","",IF(B66="",((((1)/12)*Imperial_Module_Square_Foot_Area)-'Cumulative Volumes Imperial'!E65)*Imperial_Stone_Void_Percentage,((((B65-B66)/12)*Imperial_Module_Square_Foot_Area)-'Cumulative Volumes Imperial'!E65)*Imperial_Stone_Void_Percentage)) ->  | H65: =IF(B65="","",((Imperial_System_Area_Input-Imperial_Number_Of_Stacks*_xlfn.XLOOKUP(Imperial_Layers,CrateData[Layer],CrateData[Surface Area (sf)]))/12)*Imperial_Stone_Void_Percentage) ->  | K65: =IF(B65="","",SUM(J65:$J$233)) ->  | W65: -0.29 | AC65: =IF($AU$21="INVERT",X65,IF(AC64>=$Y$12,"",IF(X64="","",INDEX($X$18:$X$227,$AA$17-ROWS($X$18:$X64))))) ->  | BG65: =IF($AU$21="INVERT",X65,IF(AC64>=$Y$12,"",IF(X64="","",INDEX($X$18:$X$227,$AA$17-ROWS($X$18:$X64))))) ->  | BI65: =IF(AE64="","", IF($AU$21="TYP", IF(Y64="","", INDEX($Y$18:$Y$227, $AA$17-ROWS($Y$18:$Y64))), IF($AU$21="INVERT",Y65, "") ) ) ->  | BL65: =IF(BL64>=$Y$12,"",IF(X64="","",INDEX($X$18:$X$227,$AA$17-ROWS($X$18:$X64)))) ->  | BN65: 0 | BP65: 0 | BS65: =IF(Y64="","",INDEX($Y$17:$Y$227,$AA$17-ROWS($Y$17:$Y64))) -> 
C66: =IF(B66="","",IFERROR(_xlfn.XLOOKUP(B66,ImperialIncrementalData[System Increment],_xlfn.XLOOKUP('Imperial Incremental Crate'!$R$3,ImperialIncrementalData[#Headers],ImperialIncrementalData[]),,1),0)) ->  | E66: =IF(B66="","",IFERROR(_xlfn.XLOOKUP(B66,ImperialIncrementalData[System Increment],_xlfn.XLOOKUP(Imperial_Incremental_Data_Target_Column,ImperialIncrementalData[#Headers],ImperialIncrementalData[]),,1),0)) ->  | F66: =IF(B66="","",IF(B67="",((((1)/12)*Imperial_Module_Square_Foot_Area)-'Cumulative Volumes Imperial'!E66)*Imperial_Stone_Void_Percentage,((((B66-B67)/12)*Imperial_Module_Square_Foot_Area)-'Cumulative Volumes Imperial'!E66)*Imperial_Stone_Void_Percentage)) ->  | H66: =IF(B66="","",((Imperial_System_Area_Input-Imperial_Number_Of_Stacks*_xlfn.XLOOKUP(Imperial_Layers,CrateData[Layer],CrateData[Surface Area (sf)]))/12)*Imperial_Stone_Void_Percentage) ->  | K66: =IF(B66="","",SUM(J66:$J$233)) ->  | W66: -0.38 | AC66: =IF($AU$21="INVERT",X66,IF(AC65>=$Y$12,"",IF(X65="","",INDEX($X$18:$X$227,$AA$17-ROWS($X$18:$X65))))) ->  | BG66: =IF($AU$21="INVERT",X66,IF(AC65>=$Y$12,"",IF(X65="","",INDEX($X$18:$X$227,$AA$17-ROWS($X$18:$X65))))) ->  | BI66: =IF(AE65="","", IF($AU$21="TYP", IF(Y65="","", INDEX($Y$18:$Y$227, $AA$17-ROWS($Y$18:$Y65))), IF($AU$21="INVERT",Y66, "") ) ) ->  | BL66: =IF(BL65>=$Y$12,"",IF(X65="","",INDEX($X$18:$X$227,$AA$17-ROWS($X$18:$X65)))) ->  | BN66: 0 | BP66: 0 | BS66: =IF(Y65="","",INDEX($Y$17:$Y$227,$AA$17-ROWS($Y$17:$Y65))) -> 
C67: =IF(B67="","",IFERROR(_xlfn.XLOOKUP(B67,ImperialIncrementalData[System Increment],_xlfn.XLOOKUP('Imperial Incremental Crate'!$R$3,ImperialIncrementalData[#Headers],ImperialIncrementalData[]),,1),0)) ->  | E67: =IF(B67="","",IFERROR(_xlfn.XLOOKUP(B67,ImperialIncrementalData[System Increment],_xlfn.XLOOKUP(Imperial_Incremental_Data_Target_Column,ImperialIncrementalData[#Headers],ImperialIncrementalData[]),,1),0)) ->  | F67: =IF(B67="","",IF(B68="",((((1)/12)*Imperial_Module_Square_Foot_Area)-'Cumulative Volumes Imperial'!E67)*Imperial_Stone_Void_Percentage,((((B67-B68)/12)*Imperial_Module_Square_Foot_Area)-'Cumulative Volumes Imperial'!E67)*Imperial_Stone_Void_Percentage)) ->  | H67: =IF(B67="","",((Imperial_System_Area_Input-Imperial_Number_Of_Stacks*_xlfn.XLOOKUP(Imperial_Layers,CrateData[Layer],CrateData[Surface Area (sf)]))/12)*Imperial_Stone_Void_Percentage) ->  | K67: =IF(B67="","",SUM(J67:$J$233)) ->  | W67: -0.46 | AC67: =IF($AU$21="INVERT",X67,IF(AC66>=$Y$12,"",IF(X66="","",INDEX($X$18:$X$227,$AA$17-ROWS($X$18:$X66))))) ->  | BG67: =IF($AU$21="INVERT",X67,IF(AC66>=$Y$12,"",IF(X66="","",INDEX($X$18:$X$227,$AA$17-ROWS($X$18:$X66))))) ->  | BI67: =IF(AE66="","", IF($AU$21="TYP", IF(Y66="","", INDEX($Y$18:$Y$227, $AA$17-ROWS($Y$18:$Y66))), IF($AU$21="INVERT",Y67, "") ) ) ->  | BL67: =IF(BL66>=$Y$12,"",IF(X66="","",INDEX($X$18:$X$227,$AA$17-ROWS($X$18:$X66)))) ->  | BN67: 0 | BP67: 0 | BS67: =IF(Y66="","",INDEX($Y$17:$Y$227,$AA$17-ROWS($Y$17:$Y66))) -> 
C68: =IF(B68="","",IFERROR(_xlfn.XLOOKUP(B68,ImperialIncrementalData[System Increment],_xlfn.XLOOKUP('Imperial Incremental Crate'!$R$3,ImperialIncrementalData[#Headers],ImperialIncrementalData[]),,1),0)) ->  | E68: =IF(B68="","",IFERROR(_xlfn.XLOOKUP(B68,ImperialIncrementalData[System Increment],_xlfn.XLOOKUP(Imperial_Incremental_Data_Target_Column,ImperialIncrementalData[#Headers],ImperialIncrementalData[]),,1),0)) ->  | F68: =IF(B68="","",IF(B69="",((((1)/12)*Imperial_Module_Square_Foot_Area)-'Cumulative Volumes Imperial'!E68)*Imperial_Stone_Void_Percentage,((((B68-B69)/12)*Imperial_Module_Square_Foot_Area)-'Cumulative Volumes Imperial'!E68)*Imperial_Stone_Void_Percentage)) ->  | H68: =IF(B68="","",((Imperial_System_Area_Input-Imperial_Number_Of_Stacks*_xlfn.XLOOKUP(Imperial_Layers,CrateData[Layer],CrateData[Surface Area (sf)]))/12)*Imperial_Stone_Void_Percentage) ->  | K68: =IF(B68="","",SUM(J68:$J$233)) ->  | W68: -0.54 | AC68: =IF($AU$21="INVERT",X68,IF(AC67>=$Y$12,"",IF(X67="","",INDEX($X$18:$X$227,$AA$17-ROWS($X$18:$X67))))) ->  | BG68: =IF($AU$21="INVERT",X68,IF(AC67>=$Y$12,"",IF(X67="","",INDEX($X$18:$X$227,$AA$17-ROWS($X$18:$X67))))) ->  | BI68: =IF(AE67="","", IF($AU$21="TYP", IF(Y67="","", INDEX($Y$18:$Y$227, $AA$17-ROWS($Y$18:$Y67))), IF($AU$21="INVERT",Y68, "") ) ) ->  | BL68: =IF(BL67>=$Y$12,"",IF(X67="","",INDEX($X$18:$X$227,$AA$17-ROWS($X$18:$X67)))) ->  | BN68: 0 | BP68: 0 | BS68: =IF(Y67="","",INDEX($Y$17:$Y$227,$AA$17-ROWS($Y$17:$Y67))) -> 
C69: =IF(B69="","",IFERROR(_xlfn.XLOOKUP(B69,ImperialIncrementalData[System Increment],_xlfn.XLOOKUP('Imperial Incremental Crate'!$R$3,ImperialIncrementalData[#Headers],ImperialIncrementalData[]),,1),0)) ->  | E69: =IF(B69="","",IFERROR(_xlfn.XLOOKUP(B69,ImperialIncrementalData[System Increment],_xlfn.XLOOKUP(Imperial_Incremental_Data_Target_Column,ImperialIncrementalData[#Headers],ImperialIncrementalData[]),,1),0)) ->  | F69: =IF(B69="","",IF(B70="",((((1)/12)*Imperial_Module_Square_Foot_Area)-'Cumulative Volumes Imperial'!E69)*Imperial_Stone_Void_Percentage,((((B69-B70)/12)*Imperial_Module_Square_Foot_Area)-'Cumulative Volumes Imperial'!E69)*Imperial_Stone_Void_Percentage)) ->  | H69: =IF(B69="","",((Imperial_System_Area_Input-Imperial_Number_Of_Stacks*_xlfn.XLOOKUP(Imperial_Layers,CrateData[Layer],CrateData[Surface Area (sf)]))/12)*Imperial_Stone_Void_Percentage) ->  | K69: =IF(B69="","",SUM(J69:$J$233)) ->  | W69: -0.63 | AC69: =IF($AU$21="INVERT",X69,IF(AC68>=$Y$12,"",IF(X68="","",INDEX($X$18:$X$227,$AA$17-ROWS($X$18:$X68))))) ->  | BG69: =IF($AU$21="INVERT",X69,IF(AC68>=$Y$12,"",IF(X68="","",INDEX($X$18:$X$227,$AA$17-ROWS($X$18:$X68))))) ->  | BI69: =IF(AE68="","", IF($AU$21="TYP", IF(Y68="","", INDEX($Y$18:$Y$227, $AA$17-ROWS($Y$18:$Y68))), IF($AU$21="INVERT",Y69, "") ) ) ->  | BL69: =IF(BL68>=$Y$12,"",IF(X68="","",INDEX($X$18:$X$227,$AA$17-ROWS($X$18:$X68)))) ->  | BN69: 0 | BP69: 0 | BS69: =IF(Y68="","",INDEX($Y$17:$Y$227,$AA$17-ROWS($Y$17:$Y68))) -> 
C70: =IF(B70="","",IFERROR(_xlfn.XLOOKUP(B70,ImperialIncrementalData[System Increment],_xlfn.XLOOKUP('Imperial Incremental Crate'!$R$3,ImperialIncrementalData[#Headers],ImperialIncrementalData[]),,1),0)) ->  | E70: =IF(B70="","",IFERROR(_xlfn.XLOOKUP(B70,ImperialIncrementalData[System Increment],_xlfn.XLOOKUP(Imperial_Incremental_Data_Target_Column,ImperialIncrementalData[#Headers],ImperialIncrementalData[]),,1),0)) ->  | F70: =IF(B70="","",IF(B71="",((((1)/12)*Imperial_Module_Square_Foot_Area)-'Cumulative Volumes Imperial'!E70)*Imperial_Stone_Void_Percentage,((((B70-B71)/12)*Imperial_Module_Square_Foot_Area)-'Cumulative Volumes Imperial'!E70)*Imperial_Stone_Void_Percentage)) ->  | H70: =IF(B70="","",((Imperial_System_Area_Input-Imperial_Number_Of_Stacks*_xlfn.XLOOKUP(Imperial_Layers,CrateData[Layer],CrateData[Surface Area (sf)]))/12)*Imperial_Stone_Void_Percentage) ->  | K70: =IF(B70="","",SUM(J70:$J$233)) ->  | W70: -0.71 | AC70: =IF($AU$21="INVERT",X70,IF(AC69>=$Y$12,"",IF(X69="","",INDEX($X$18:$X$227,$AA$17-ROWS($X$18:$X69))))) ->  | BG70: =IF($AU$21="INVERT",X70,IF(AC69>=$Y$12,"",IF(X69="","",INDEX($X$18:$X$227,$AA$17-ROWS($X$18:$X69))))) ->  | BI70: =IF(AE69="","", IF($AU$21="TYP", IF(Y69="","", INDEX($Y$18:$Y$227, $AA$17-ROWS($Y$18:$Y69))), IF($AU$21="INVERT",Y70, "") ) ) ->  | BL70: =IF(BL69>=$Y$12,"",IF(X69="","",INDEX($X$18:$X$227,$AA$17-ROWS($X$18:$X69)))) ->  | BN70: 0 | BP70: 0 | BS70: =IF(Y69="","",INDEX($Y$17:$Y$227,$AA$17-ROWS($Y$17:$Y69))) -> 
C71: =IF(B71="","",IFERROR(_xlfn.XLOOKUP(B71,ImperialIncrementalData[System Increment],_xlfn.XLOOKUP('Imperial Incremental Crate'!$R$3,ImperialIncrementalData[#Headers],ImperialIncrementalData[]),,1),0)) ->  | E71: =IF(B71="","",IFERROR(_xlfn.XLOOKUP(B71,ImperialIncrementalData[System Increment],_xlfn.XLOOKUP(Imperial_Incremental_Data_Target_Column,ImperialIncrementalData[#Headers],ImperialIncrementalData[]),,1),0)) ->  | F71: =IF(B71="","",IF(B72="",((((1)/12)*Imperial_Module_Square_Foot_Area)-'Cumulative Volumes Imperial'!E71)*Imperial_Stone_Void_Percentage,((((B71-B72)/12)*Imperial_Module_Square_Foot_Area)-'Cumulative Volumes Imperial'!E71)*Imperial_Stone_Void_Percentage)) ->  | H71: =IF(B71="","",((Imperial_System_Area_Input-Imperial_Number_Of_Stacks*_xlfn.XLOOKUP(Imperial_Layers,CrateData[Layer],CrateData[Surface Area (sf)]))/12)*Imperial_Stone_Void_Percentage) ->  | K71: =IF(B71="","",SUM(J71:$J$233)) ->  | W71: -0.79 | AC71: =IF($AU$21="INVERT",X71,IF(AC70>=$Y$12,"",IF(X70="","",INDEX($X$18:$X$227,$AA$17-ROWS($X$18:$X70))))) ->  | BG71: =IF($AU$21="INVERT",X71,IF(AC70>=$Y$12,"",IF(X70="","",INDEX($X$18:$X$227,$AA$17-ROWS($X$18:$X70))))) ->  | BI71: =IF(AE70="","", IF($AU$21="TYP", IF(Y70="","", INDEX($Y$18:$Y$227, $AA$17-ROWS($Y$18:$Y70))), IF($AU$21="INVERT",Y71, "") ) ) ->  | BL71: =IF(BL70>=$Y$12,"",IF(X70="","",INDEX($X$18:$X$227,$AA$17-ROWS($X$18:$X70)))) ->  | BN71: 0 | BP71: 0 | BS71: =IF(Y70="","",INDEX($Y$17:$Y$227,$AA$17-ROWS($Y$17:$Y70))) -> 
C72: =IF(B72="","",IFERROR(_xlfn.XLOOKUP(B72,ImperialIncrementalData[System Increment],_xlfn.XLOOKUP('Imperial Incremental Crate'!$R$3,ImperialIncrementalData[#Headers],ImperialIncrementalData[]),,1),0)) ->  | E72: =IF(B72="","",IFERROR(_xlfn.XLOOKUP(B72,ImperialIncrementalData[System Increment],_xlfn.XLOOKUP(Imperial_Incremental_Data_Target_Column,ImperialIncrementalData[#Headers],ImperialIncrementalData[]),,1),0)) ->  | F72: =IF(B72="","",IF(B73="",((((1)/12)*Imperial_Module_Square_Foot_Area)-'Cumulative Volumes Imperial'!E72)*Imperial_Stone_Void_Percentage,((((B72-B73)/12)*Imperial_Module_Square_Foot_Area)-'Cumulative Volumes Imperial'!E72)*Imperial_Stone_Void_Percentage)) ->  | H72: =IF(B72="","",((Imperial_System_Area_Input-Imperial_Number_Of_Stacks*_xlfn.XLOOKUP(Imperial_Layers,CrateData[Layer],CrateData[Surface Area (sf)]))/12)*Imperial_Stone_Void_Percentage) ->  | K72: =IF(B72="","",SUM(J72:$J$233)) ->  | W72: -0.88 | AC72: =IF($AU$21="INVERT",X72,IF(AC71>=$Y$12,"",IF(X71="","",INDEX($X$18:$X$227,$AA$17-ROWS($X$18:$X71))))) ->  | BG72: =IF($AU$21="INVERT",X72,IF(AC71>=$Y$12,"",IF(X71="","",INDEX($X$18:$X$227,$AA$17-ROWS($X$18:$X71))))) ->  | BI72: =IF(AE71="","", IF($AU$21="TYP", IF(Y71="","", INDEX($Y$18:$Y$227, $AA$17-ROWS($Y$18:$Y71))), IF($AU$21="INVERT",Y72, "") ) ) ->  | BL72: =IF(BL71>=$Y$12,"",IF(X71="","",INDEX($X$18:$X$227,$AA$17-ROWS($X$18:$X71)))) ->  | BN72: 0 | BP72: 0 | BS72: =IF(Y71="","",INDEX($Y$17:$Y$227,$AA$17-ROWS($Y$17:$Y71))) -> 
C73: =IF(B73="","",IFERROR(_xlfn.XLOOKUP(B73,ImperialIncrementalData[System Increment],_xlfn.XLOOKUP('Imperial Incremental Crate'!$R$3,ImperialIncrementalData[#Headers],ImperialIncrementalData[]),,1),0)) ->  | E73: =IF(B73="","",IFERROR(_xlfn.XLOOKUP(B73,ImperialIncrementalData[System Increment],_xlfn.XLOOKUP(Imperial_Incremental_Data_Target_Column,ImperialIncrementalData[#Headers],ImperialIncrementalData[]),,1),0)) ->  | F73: =IF(B73="","",IF(B74="",((((1)/12)*Imperial_Module_Square_Foot_Area)-'Cumulative Volumes Imperial'!E73)*Imperial_Stone_Void_Percentage,((((B73-B74)/12)*Imperial_Module_Square_Foot_Area)-'Cumulative Volumes Imperial'!E73)*Imperial_Stone_Void_Percentage)) ->  | H73: =IF(B73="","",((Imperial_System_Area_Input-Imperial_Number_Of_Stacks*_xlfn.XLOOKUP(Imperial_Layers,CrateData[Layer],CrateData[Surface Area (sf)]))/12)*Imperial_Stone_Void_Percentage) ->  | K73: =IF(B73="","",SUM(J73:$J$233)) ->  | W73: -0.96 | AC73: =IF($AU$21="INVERT",X73,IF(AC72>=$Y$12,"",IF(X72="","",INDEX($X$18:$X$227,$AA$17-ROWS($X$18:$X72))))) ->  | BG73: =IF($AU$21="INVERT",X73,IF(AC72>=$Y$12,"",IF(X72="","",INDEX($X$18:$X$227,$AA$17-ROWS($X$18:$X72))))) ->  | BI73: =IF(AE72="","", IF($AU$21="TYP", IF(Y72="","", INDEX($Y$18:$Y$227, $AA$17-ROWS($Y$18:$Y72))), IF($AU$21="INVERT",Y73, "") ) ) ->  | BL73: =IF(BL72>=$Y$12,"",IF(X72="","",INDEX($X$18:$X$227,$AA$17-ROWS($X$18:$X72)))) ->  | BN73: 0 | BS73: =IF(Y72="","",INDEX($Y$17:$Y$227,$AA$17-ROWS($Y$17:$Y72))) -> 
C74: =IF(B74="","",IFERROR(_xlfn.XLOOKUP(B74,ImperialIncrementalData[System Increment],_xlfn.XLOOKUP('Imperial Incremental Crate'!$R$3,ImperialIncrementalData[#Headers],ImperialIncrementalData[]),,1),0)) ->  | E74: =IF(B74="","",IFERROR(_xlfn.XLOOKUP(B74,ImperialIncrementalData[System Increment],_xlfn.XLOOKUP(Imperial_Incremental_Data_Target_Column,ImperialIncrementalData[#Headers],ImperialIncrementalData[]),,1),0)) ->  | F74: =IF(B74="","",IF(B75="",((((1)/12)*Imperial_Module_Square_Foot_Area)-'Cumulative Volumes Imperial'!E74)*Imperial_Stone_Void_Percentage,((((B74-B75)/12)*Imperial_Module_Square_Foot_Area)-'Cumulative Volumes Imperial'!E74)*Imperial_Stone_Void_Percentage)) ->  | H74: =IF(B74="","",((Imperial_System_Area_Input-Imperial_Number_Of_Stacks*_xlfn.XLOOKUP(Imperial_Layers,CrateData[Layer],CrateData[Surface Area (sf)]))/12)*Imperial_Stone_Void_Percentage) ->  | K74: =IF(B74="","",SUM(J74:$J$233)) ->  | W74: -1.04 | AC74: =IF($AU$21="INVERT",X74,IF(AC73>=$Y$12,"",IF(X73="","",INDEX($X$18:$X$227,$AA$17-ROWS($X$18:$X73))))) ->  | BG74: =IF($AU$21="INVERT",X74,IF(AC73>=$Y$12,"",IF(X73="","",INDEX($X$18:$X$227,$AA$17-ROWS($X$18:$X73))))) ->  | BI74: =IF(AE73="","", IF($AU$21="TYP", IF(Y73="","", INDEX($Y$18:$Y$227, $AA$17-ROWS($Y$18:$Y73))), IF($AU$21="INVERT",Y74, "") ) ) ->  | BL74: =IF(BL73>=$Y$12,"",IF(X73="","",INDEX($X$18:$X$227,$AA$17-ROWS($X$18:$X73)))) ->  | BN74: 0 | BS74: =IF(Y73="","",INDEX($Y$17:$Y$227,$AA$17-ROWS($Y$17:$Y73))) -> 
C75: =IF(B75="","",IFERROR(_xlfn.XLOOKUP(B75,ImperialIncrementalData[System Increment],_xlfn.XLOOKUP('Imperial Incremental Crate'!$R$3,ImperialIncrementalData[#Headers],ImperialIncrementalData[]),,1),0)) ->  | E75: =IF(B75="","",IFERROR(_xlfn.XLOOKUP(B75,ImperialIncrementalData[System Increment],_xlfn.XLOOKUP(Imperial_Incremental_Data_Target_Column,ImperialIncrementalData[#Headers],ImperialIncrementalData[]),,1),0)) ->  | F75: =IF(B75="","",IF(B76="",((((1)/12)*Imperial_Module_Square_Foot_Area)-'Cumulative Volumes Imperial'!E75)*Imperial_Stone_Void_Percentage,((((B75-B76)/12)*Imperial_Module_Square_Foot_Area)-'Cumulative Volumes Imperial'!E75)*Imperial_Stone_Void_Percentage)) ->  | H75: =IF(B75="","",((Imperial_System_Area_Input-Imperial_Number_Of_Stacks*_xlfn.XLOOKUP(Imperial_Layers,CrateData[Layer],CrateData[Surface Area (sf)]))/12)*Imperial_Stone_Void_Percentage) ->  | K75: =IF(B75="","",SUM(J75:$J$233)) ->  | W75: -1.13 | AC75: =IF($AU$21="INVERT",X75,IF(AC74>=$Y$12,"",IF(X74="","",INDEX($X$18:$X$227,$AA$17-ROWS($X$18:$X74))))) ->  | BG75: =IF($AU$21="INVERT",X75,IF(AC74>=$Y$12,"",IF(X74="","",INDEX($X$18:$X$227,$AA$17-ROWS($X$18:$X74))))) ->  | BI75: =IF(AE74="","", IF($AU$21="TYP", IF(Y74="","", INDEX($Y$18:$Y$227, $AA$17-ROWS($Y$18:$Y74))), IF($AU$21="INVERT",Y75, "") ) ) ->  | BL75: =IF(BL74>=$Y$12,"",IF(X74="","",INDEX($X$18:$X$227,$AA$17-ROWS($X$18:$X74)))) ->  | BN75: 0 | BS75: =IF(Y74="","",INDEX($Y$17:$Y$227,$AA$17-ROWS($Y$17:$Y74))) -> 
C76: =IF(B76="","",IFERROR(_xlfn.XLOOKUP(B76,ImperialIncrementalData[System Increment],_xlfn.XLOOKUP('Imperial Incremental Crate'!$R$3,ImperialIncrementalData[#Headers],ImperialIncrementalData[]),,1),0)) ->  | E76: =IF(B76="","",IFERROR(_xlfn.XLOOKUP(B76,ImperialIncrementalData[System Increment],_xlfn.XLOOKUP(Imperial_Incremental_Data_Target_Column,ImperialIncrementalData[#Headers],ImperialIncrementalData[]),,1),0)) ->  | F76: =IF(B76="","",IF(B77="",((((1)/12)*Imperial_Module_Square_Foot_Area)-'Cumulative Volumes Imperial'!E76)*Imperial_Stone_Void_Percentage,((((B76-B77)/12)*Imperial_Module_Square_Foot_Area)-'Cumulative Volumes Imperial'!E76)*Imperial_Stone_Void_Percentage)) ->  | H76: =IF(B76="","",((Imperial_System_Area_Input-Imperial_Number_Of_Stacks*_xlfn.XLOOKUP(Imperial_Layers,CrateData[Layer],CrateData[Surface Area (sf)]))/12)*Imperial_Stone_Void_Percentage) ->  | K76: =IF(B76="","",SUM(J76:$J$233)) ->  | W76: -1.21 | AC76: =IF($AU$21="INVERT",X76,IF(AC75>=$Y$12,"",IF(X75="","",INDEX($X$18:$X$227,$AA$17-ROWS($X$18:$X75))))) ->  | BG76: =IF($AU$21="INVERT",X76,IF(AC75>=$Y$12,"",IF(X75="","",INDEX($X$18:$X$227,$AA$17-ROWS($X$18:$X75))))) ->  | BI76: =IF(AE75="","", IF($AU$21="TYP", IF(Y75="","", INDEX($Y$18:$Y$227, $AA$17-ROWS($Y$18:$Y75))), IF($AU$21="INVERT",Y76, "") ) ) ->  | BL76: =IF(BL75>=$Y$12,"",IF(X75="","",INDEX($X$18:$X$227,$AA$17-ROWS($X$18:$X75)))) ->  | BN76: 0 | BS76: =IF(Y75="","",INDEX($Y$17:$Y$227,$AA$17-ROWS($Y$17:$Y75))) -> 
C77: =IF(B77="","",IFERROR(_xlfn.XLOOKUP(B77,ImperialIncrementalData[System Increment],_xlfn.XLOOKUP('Imperial Incremental Crate'!$R$3,ImperialIncrementalData[#Headers],ImperialIncrementalData[]),,1),0)) ->  | E77: =IF(B77="","",IFERROR(_xlfn.XLOOKUP(B77,ImperialIncrementalData[System Increment],_xlfn.XLOOKUP(Imperial_Incremental_Data_Target_Column,ImperialIncrementalData[#Headers],ImperialIncrementalData[]),,1),0)) ->  | F77: =IF(B77="","",IF(B78="",((((1)/12)*Imperial_Module_Square_Foot_Area)-'Cumulative Volumes Imperial'!E77)*Imperial_Stone_Void_Percentage,((((B77-B78)/12)*Imperial_Module_Square_Foot_Area)-'Cumulative Volumes Imperial'!E77)*Imperial_Stone_Void_Percentage)) ->  | H77: =IF(B77="","",((Imperial_System_Area_Input-Imperial_Number_Of_Stacks*_xlfn.XLOOKUP(Imperial_Layers,CrateData[Layer],CrateData[Surface Area (sf)]))/12)*Imperial_Stone_Void_Percentage) ->  | K77: =IF(B77="","",SUM(J77:$J$233)) ->  | W77: -1.29 | AC77: =IF($AU$21="INVERT",X77,IF(AC76>=$Y$12,"",IF(X76="","",INDEX($X$18:$X$227,$AA$17-ROWS($X$18:$X76))))) ->  | BG77: =IF($AU$21="INVERT",X77,IF(AC76>=$Y$12,"",IF(X76="","",INDEX($X$18:$X$227,$AA$17-ROWS($X$18:$X76))))) ->  | BI77: =IF(AE76="","", IF($AU$21="TYP", IF(Y76="","", INDEX($Y$18:$Y$227, $AA$17-ROWS($Y$18:$Y76))), IF($AU$21="INVERT",Y77, "") ) ) ->  | BL77: =IF(BL76>=$Y$12,"",IF(X76="","",INDEX($X$18:$X$227,$AA$17-ROWS($X$18:$X76)))) ->  | BN77: 0 | BS77: =IF(Y76="","",INDEX($Y$17:$Y$227,$AA$17-ROWS($Y$17:$Y76))) -> 
C78: =IF(B78="","",IFERROR(_xlfn.XLOOKUP(B78,ImperialIncrementalData[System Increment],_xlfn.XLOOKUP('Imperial Incremental Crate'!$R$3,ImperialIncrementalData[#Headers],ImperialIncrementalData[]),,1),0)) ->  | E78: =IF(B78="","",IFERROR(_xlfn.XLOOKUP(B78,ImperialIncrementalData[System Increment],_xlfn.XLOOKUP(Imperial_Incremental_Data_Target_Column,ImperialIncrementalData[#Headers],ImperialIncrementalData[]),,1),0)) ->  | F78: =IF(B78="","",IF(B79="",((((1)/12)*Imperial_Module_Square_Foot_Area)-'Cumulative Volumes Imperial'!E78)*Imperial_Stone_Void_Percentage,((((B78-B79)/12)*Imperial_Module_Square_Foot_Area)-'Cumulative Volumes Imperial'!E78)*Imperial_Stone_Void_Percentage)) ->  | H78: =IF(B78="","",((Imperial_System_Area_Input-Imperial_Number_Of_Stacks*_xlfn.XLOOKUP(Imperial_Layers,CrateData[Layer],CrateData[Surface Area (sf)]))/12)*Imperial_Stone_Void_Percentage) ->  | K78: =IF(B78="","",SUM(J78:$J$233)) ->  | W78: -1.38 | AC78: =IF($AU$21="INVERT",X78,IF(AC77>=$Y$12,"",IF(X77="","",INDEX($X$18:$X$227,$AA$17-ROWS($X$18:$X77))))) ->  | BG78: =IF($AU$21="INVERT",X78,IF(AC77>=$Y$12,"",IF(X77="","",INDEX($X$18:$X$227,$AA$17-ROWS($X$18:$X77))))) ->  | BI78: =IF(AE77="","", IF($AU$21="TYP", IF(Y77="","", INDEX($Y$18:$Y$227, $AA$17-ROWS($Y$18:$Y77))), IF($AU$21="INVERT",Y78, "") ) ) ->  | BL78: =IF(BL77>=$Y$12,"",IF(X77="","",INDEX($X$18:$X$227,$AA$17-ROWS($X$18:$X77)))) ->  | BN78: 0 | BS78: =IF(Y77="","",INDEX($Y$17:$Y$227,$AA$17-ROWS($Y$17:$Y77))) -> 
C79: =IF(B79="","",IFERROR(_xlfn.XLOOKUP(B79,ImperialIncrementalData[System Increment],_xlfn.XLOOKUP('Imperial Incremental Crate'!$R$3,ImperialIncrementalData[#Headers],ImperialIncrementalData[]),,1),0)) ->  | E79: =IF(B79="","",IFERROR(_xlfn.XLOOKUP(B79,ImperialIncrementalData[System Increment],_xlfn.XLOOKUP(Imperial_Incremental_Data_Target_Column,ImperialIncrementalData[#Headers],ImperialIncrementalData[]),,1),0)) ->  | F79: =IF(B79="","",IF(B80="",((((1)/12)*Imperial_Module_Square_Foot_Area)-'Cumulative Volumes Imperial'!E79)*Imperial_Stone_Void_Percentage,((((B79-B80)/12)*Imperial_Module_Square_Foot_Area)-'Cumulative Volumes Imperial'!E79)*Imperial_Stone_Void_Percentage)) ->  | H79: =IF(B79="","",((Imperial_System_Area_Input-Imperial_Number_Of_Stacks*_xlfn.XLOOKUP(Imperial_Layers,CrateData[Layer],CrateData[Surface Area (sf)]))/12)*Imperial_Stone_Void_Percentage) ->  | K79: =IF(B79="","",SUM(J79:$J$233)) ->  | W79: -1.46 | AC79: =IF($AU$21="INVERT",X79,IF(AC78>=$Y$12,"",IF(X78="","",INDEX($X$18:$X$227,$AA$17-ROWS($X$18:$X78))))) ->  | BG79: =IF($AU$21="INVERT",X79,IF(AC78>=$Y$12,"",IF(X78="","",INDEX($X$18:$X$227,$AA$17-ROWS($X$18:$X78))))) ->  | BI79: =IF(AE78="","", IF($AU$21="TYP", IF(Y78="","", INDEX($Y$18:$Y$227, $AA$17-ROWS($Y$18:$Y78))), IF($AU$21="INVERT",Y79, "") ) ) ->  | BL79: =IF(BL78>=$Y$12,"",IF(X78="","",INDEX($X$18:$X$227,$AA$17-ROWS($X$18:$X78)))) ->  | BN79: 0 | BS79: =IF(Y78="","",INDEX($Y$17:$Y$227,$AA$17-ROWS($Y$17:$Y78))) -> 
A80: =IF(B82<>"",A79+1,"") ->  | C80: =IF(B80="","",IFERROR(_xlfn.XLOOKUP(B80,ImperialIncrementalData[System Increment],_xlfn.XLOOKUP('Imperial Incremental Crate'!$R$3,ImperialIncrementalData[#Headers],ImperialIncrementalData[]),,1),0)) ->  | E80: =IF(B80="","",IFERROR(_xlfn.XLOOKUP(B80,ImperialIncrementalData[System Increment],_xlfn.XLOOKUP(Imperial_Incremental_Data_Target_Column,ImperialIncrementalData[#Headers],ImperialIncrementalData[]),,1),0)) ->  | F80: =IF(B80="","",IF(B81="",((((1)/12)*Imperial_Module_Square_Foot_Area)-'Cumulative Volumes Imperial'!E80)*Imperial_Stone_Void_Percentage,((((B80-B81)/12)*Imperial_Module_Square_Foot_Area)-'Cumulative Volumes Imperial'!E80)*Imperial_Stone_Void_Percentage)) ->  | H80: =IF(B80="","",((Imperial_System_Area_Input-Imperial_Number_Of_Stacks*_xlfn.XLOOKUP(Imperial_Layers,CrateData[Layer],CrateData[Surface Area (sf)]))/12)*Imperial_Stone_Void_Percentage) ->  | K80: =IF(B80="","",SUM(J80:$J$233)) ->  | W80: -1.54 | AC80: =IF($AU$21="INVERT",X80,IF(AC79>=$Y$12,"",IF(X79="","",INDEX($X$18:$X$227,$AA$17-ROWS($X$18:$X79))))) ->  | BG80: =IF($AU$21="INVERT",X80,IF(AC79>=$Y$12,"",IF(X79="","",INDEX($X$18:$X$227,$AA$17-ROWS($X$18:$X79))))) ->  | BI80: =IF(AE79="","", IF($AU$21="TYP", IF(Y79="","", INDEX($Y$18:$Y$227, $AA$17-ROWS($Y$18:$Y79))), IF($AU$21="INVERT",Y80, "") ) ) ->  | BL80: =IF(BL79>=$Y$12,"",IF(X79="","",INDEX($X$18:$X$227,$AA$17-ROWS($X$18:$X79)))) ->  | BN80: 0 | BS80: =IF(Y79="","",INDEX($Y$17:$Y$227,$AA$17-ROWS($Y$17:$Y79))) -> 
C81: =IF(B81="","",IFERROR(_xlfn.XLOOKUP(B81,ImperialIncrementalData[System Increment],_xlfn.XLOOKUP('Imperial Incremental Crate'!$R$3,ImperialIncrementalData[#Headers],ImperialIncrementalData[]),,1),0)) ->  | E81: =IF(B81="","",IFERROR(_xlfn.XLOOKUP(B81,ImperialIncrementalData[System Increment],_xlfn.XLOOKUP(Imperial_Incremental_Data_Target_Column,ImperialIncrementalData[#Headers],ImperialIncrementalData[]),,1),0)) ->  | F81: =IF(B81="","",IF(B82="",((((1)/12)*Imperial_Module_Square_Foot_Area)-'Cumulative Volumes Imperial'!E81)*Imperial_Stone_Void_Percentage,((((B81-B82)/12)*Imperial_Module_Square_Foot_Area)-'Cumulative Volumes Imperial'!E81)*Imperial_Stone_Void_Percentage)) ->  | H81: =IF(B81="","",((Imperial_System_Area_Input-Imperial_Number_Of_Stacks*_xlfn.XLOOKUP(Imperial_Layers,CrateData[Layer],CrateData[Surface Area (sf)]))/12)*Imperial_Stone_Void_Percentage) ->  | K81: =IF(B81="","",SUM(J81:$J$233)) ->  | W81: -1.63 | AC81: =IF($AU$21="INVERT",X81,IF(AC80>=$Y$12,"",IF(X80="","",INDEX($X$18:$X$227,$AA$17-ROWS($X$18:$X80))))) ->  | BG81: =IF($AU$21="INVERT",X81,IF(AC80>=$Y$12,"",IF(X80="","",INDEX($X$18:$X$227,$AA$17-ROWS($X$18:$X80))))) ->  | BI81: =IF(AE80="","", IF($AU$21="TYP", IF(Y80="","", INDEX($Y$18:$Y$227, $AA$17-ROWS($Y$18:$Y80))), IF($AU$21="INVERT",Y81, "") ) ) ->  | BL81: =IF(BL80>=$Y$12,"",IF(X80="","",INDEX($X$18:$X$227,$AA$17-ROWS($X$18:$X80)))) ->  | BN81: 0 | BS81: =IF(Y80="","",INDEX($Y$17:$Y$227,$AA$17-ROWS($Y$17:$Y80))) -> 
C82: =IF(B82="","",IFERROR(_xlfn.XLOOKUP(B82,ImperialIncrementalData[System Increment],_xlfn.XLOOKUP('Imperial Incremental Crate'!$R$3,ImperialIncrementalData[#Headers],ImperialIncrementalData[]),,1),0)) ->  | D82: =IFERROR(C82*Imperial_Number_Of_Stacks,"") ->  | E82: =IF(B82="","",IFERROR(_xlfn.XLOOKUP(B82,ImperialIncrementalData[System Increment],_xlfn.XLOOKUP(Imperial_Incremental_Data_Target_Column,ImperialIncrementalData[#Headers],ImperialIncrementalData[]),,1),0)) ->  | F82: =IF(B82="","",IF(B83="",((((1)/12)*Imperial_Module_Square_Foot_Area)-'Cumulative Volumes Imperial'!E82)*Imperial_Stone_Void_Percentage,((((B82-B83)/12)*Imperial_Module_Square_Foot_Area)-'Cumulative Volumes Imperial'!E82)*Imperial_Stone_Void_Percentage)) ->  | G82: =IFERROR(F82*Imperial_Number_Of_Stacks,"") ->  | H82: =IF(B82="","",((Imperial_System_Area_Input-Imperial_Number_Of_Stacks*_xlfn.XLOOKUP(Imperial_Layers,CrateData[Layer],CrateData[Surface Area (sf)]))/12)*Imperial_Stone_Void_Percentage) ->  | I82: =IFERROR(IF($AW$17, H82+G82, G82), "") ->  | J82: =IFERROR(I82+D82,"") ->  | K82: =IF(B82="","",SUM(J82:$J$233)) ->  | L82: =IFERROR($I$11+B82/12,"") ->  | U82: =IF(L83="",IF(L82="","",$I$11),L82) ->  | W82: -1.71 | AC82: =IF($AU$21="INVERT",X82,IF(AC81>=$Y$12,"",IF(X81="","",INDEX($X$18:$X$227,$AA$17-ROWS($X$18:$X81))))) ->  | AF82: =IF($AU$17=TRUE, BJ82, IF($AU$23=TRUE, "", "")) ->  | BG82: =IF($AU$21="INVERT",X82,IF(AC81>=$Y$12,"",IF(X81="","",INDEX($X$18:$X$227,$AA$17-ROWS($X$18:$X81))))) ->  | BH82: =IF(AC82="","",$I$11+AC82) ->  | BI82: =IF(AE81="","", IF($AU$21="TYP", IF(Y81="","", INDEX($Y$18:$Y$227, $AA$17-ROWS($Y$18:$Y81))), IF($AU$21="INVERT",Y82, "") ) ) ->  | BJ82: =IF(AE82="","",AE82/43560) ->  | BL82: =IF(BL81>=$Y$12,"",IF(X81="","",INDEX($X$18:$X$227,$AA$17-ROWS($X$18:$X81)))) ->  | BN82: 0 | BS82: =IF(Y81="","",INDEX($Y$17:$Y$227,$AA$17-ROWS($Y$17:$Y81))) -> 
C83: =IF(B83="","",IFERROR(_xlfn.XLOOKUP(B83,ImperialIncrementalData[System Increment],_xlfn.XLOOKUP('Imperial Incremental Crate'!$R$3,ImperialIncrementalData[#Headers],ImperialIncrementalData[]),,1),0)) ->  | E83: =IF(B83="","",IFERROR(_xlfn.XLOOKUP(B83,ImperialIncrementalData[System Increment],_xlfn.XLOOKUP(Imperial_Incremental_Data_Target_Column,ImperialIncrementalData[#Headers],ImperialIncrementalData[]),,1),0)) ->  | F83: =IF(B83="","",IF(B84="",((((1)/12)*Imperial_Module_Square_Foot_Area)-'Cumulative Volumes Imperial'!E83)*Imperial_Stone_Void_Percentage,((((B83-B84)/12)*Imperial_Module_Square_Foot_Area)-'Cumulative Volumes Imperial'!E83)*Imperial_Stone_Void_Percentage)) ->  | H83: =IF(B83="","",((Imperial_System_Area_Input-Imperial_Number_Of_Stacks*_xlfn.XLOOKUP(Imperial_Layers,CrateData[Layer],CrateData[Surface Area (sf)]))/12)*Imperial_Stone_Void_Percentage) ->  | K83: =IF(B83="","",SUM(J83:$J$233)) ->  | W83: -1.79 | X83: =IF(AND(B83="",B82=1),0,IF(B83="","",IF(OR(W83=0,W83>0),W83,""))) ->  | Y83: =IF(X83="","",IF(X83=0,K82/$AA$11,IF(ISNUMBER(U84),(K83-K84)/(L83-L84),Y82))) ->  | AA83: =IF(X83="","",1) ->  | AC83: =IF($AU$21="INVERT",X83,IF(AC82>=$Y$12,"",IF(X82="","",INDEX($X$18:$X$227,$AA$17-ROWS($X$18:$X82))))) ->  | AD83: =IF($AN$17=TRUE, BH83, IF($AN$23=TRUE, BM83, "")) ->  | AE83: =IF($AU$17=TRUE, BI83, IF($AU$23=TRUE, BN83, "")) ->  | BG83: =IF($AU$21="INVERT",X83,IF(AC82>=$Y$12,"",IF(X82="","",INDEX($X$18:$X$227,$AA$17-ROWS($X$18:$X82))))) ->  | BI83: =IF(AE82="","", IF($AU$21="TYP", IF(Y82="","", INDEX($Y$18:$Y$227, $AA$17-ROWS($Y$18:$Y82))), IF($AU$21="INVERT",Y83, "") ) ) ->  | BL83: =IF(BL82>=$Y$12,"",IF(X82="","",INDEX($X$18:$X$227,$AA$17-ROWS($X$18:$X82)))) ->  | BN83: 0 | BS83: =IF(Y82="","",INDEX($Y$17:$Y$227,$AA$17-ROWS($Y$17:$Y82))) -> 
B84: =IFERROR(IF(B83-1<1,"",B83-1),"") ->  | C84: =IF(B84="","",IFERROR(_xlfn.XLOOKUP(B84,ImperialIncrementalData[System Increment],_xlfn.XLOOKUP('Imperial Incremental Crate'!$R$3,ImperialIncrementalData[#Headers],ImperialIncrementalData[]),,1),0)) ->  | E84: =IF(B84="","",IFERROR(_xlfn.XLOOKUP(B84,ImperialIncrementalData[System Increment],_xlfn.XLOOKUP(Imperial_Incremental_Data_Target_Column,ImperialIncrementalData[#Headers],ImperialIncrementalData[]),,1),0)) ->  | F84: =IF(B84="","",IF(B85="",((((1)/12)*Imperial_Module_Square_Foot_Area)-'Cumulative Volumes Imperial'!E84)*Imperial_Stone_Void_Percentage,((((B84-B85)/12)*Imperial_Module_Square_Foot_Area)-'Cumulative Volumes Imperial'!E84)*Imperial_Stone_Void_Percentage)) ->  | H84: =IF(B84="","",((Imperial_System_Area_Input-Imperial_Number_Of_Stacks*_xlfn.XLOOKUP(Imperial_Layers,CrateData[Layer],CrateData[Surface Area (sf)]))/12)*Imperial_Stone_Void_Percentage) ->  | K84: =IF(B84="","",SUM(J84:$J$233)) ->  | W84: =W83-($AA$11) -> -1.88 | AC84: =IF($AU$21="INVERT",X84,IF(AC83>=$Y$12,"",IF(X83="","",INDEX($X$18:$X$227,$AA$17-ROWS($X$18:$X83))))) ->  | BG84: =IF($AU$21="INVERT",X84,IF(AC83>=$Y$12,"",IF(X83="","",INDEX($X$18:$X$227,$AA$17-ROWS($X$18:$X83))))) ->  | BI84: =IF(AE83="","", IF($AU$21="TYP", IF(Y83="","", INDEX($Y$18:$Y$227, $AA$17-ROWS($Y$18:$Y83))), IF($AU$21="INVERT",Y84, "") ) ) ->  | BL84: =IF(BL83>=$Y$12,"",IF(X83="","",INDEX($X$18:$X$227,$AA$17-ROWS($X$18:$X83)))) ->  | BM84: =IF(BS84="","",BS84/43560) ->  | BN84: =BQ84 -> 0 | BS84: =IF(Y83="","",INDEX($Y$17:$Y$227,$AA$17-ROWS($Y$17:$Y83))) -> 
C85: =IF(B85="","",IFERROR(_xlfn.XLOOKUP(B85,ImperialIncrementalData[System Increment],_xlfn.XLOOKUP('Imperial Incremental Crate'!$R$3,ImperialIncrementalData[#Headers],ImperialIncrementalData[]),,1),0)) ->  | E85: =IF(B85="","",IFERROR(_xlfn.XLOOKUP(B85,ImperialIncrementalData[System Increment],_xlfn.XLOOKUP(Imperial_Incremental_Data_Target_Column,ImperialIncrementalData[#Headers],ImperialIncrementalData[]),,1),0)) ->  | F85: =IF(B85="","",IF(B86="",((((1)/12)*Imperial_Module_Square_Foot_Area)-'Cumulative Volumes Imperial'!E85)*Imperial_Stone_Void_Percentage,((((B85-B86)/12)*Imperial_Module_Square_Foot_Area)-'Cumulative Volumes Imperial'!E85)*Imperial_Stone_Void_Percentage)) ->  | H85: =IF(B85="","",((Imperial_System_Area_Input-Imperial_Number_Of_Stacks*_xlfn.XLOOKUP(Imperial_Layers,CrateData[Layer],CrateData[Surface Area (sf)]))/12)*Imperial_Stone_Void_Percentage) ->  | K85: =IF(B85="","",SUM(J85:$J$233)) ->  | W85: -1.96 | AC85: =IF($AU$21="INVERT",X85,IF(AC84>=$Y$12,"",IF(X84="","",INDEX($X$18:$X$227,$AA$17-ROWS($X$18:$X84))))) ->  | BG85: =IF($AU$21="INVERT",X85,IF(AC84>=$Y$12,"",IF(X84="","",INDEX($X$18:$X$227,$AA$17-ROWS($X$18:$X84))))) ->  | BI85: =IF(AE84="","", IF($AU$21="TYP", IF(Y84="","", INDEX($Y$18:$Y$227, $AA$17-ROWS($Y$18:$Y84))), IF($AU$21="INVERT",Y85, "") ) ) ->  | BL85: =IF(BL84>=$Y$12,"",IF(X84="","",INDEX($X$18:$X$227,$AA$17-ROWS($X$18:$X84)))) ->  | BN85: 0 | BS85: =IF(Y84="","",INDEX($Y$17:$Y$227,$AA$17-ROWS($Y$17:$Y84))) -> 
C86: =IF(B86="","",IFERROR(_xlfn.XLOOKUP(B86,ImperialIncrementalData[System Increment],_xlfn.XLOOKUP('Imperial Incremental Crate'!$R$3,ImperialIncrementalData[#Headers],ImperialIncrementalData[]),,1),0)) ->  | E86: =IF(B86="","",IFERROR(_xlfn.XLOOKUP(B86,ImperialIncrementalData[System Increment],_xlfn.XLOOKUP(Imperial_Incremental_Data_Target_Column,ImperialIncrementalData[#Headers],ImperialIncrementalData[]),,1),0)) ->  | F86: =IF(B86="","",IF(B87="",((((1)/12)*Imperial_Module_Square_Foot_Area)-'Cumulative Volumes Imperial'!E86)*Imperial_Stone_Void_Percentage,((((B86-B87)/12)*Imperial_Module_Square_Foot_Area)-'Cumulative Volumes Imperial'!E86)*Imperial_Stone_Void_Percentage)) ->  | H86: =IF(B86="","",((Imperial_System_Area_Input-Imperial_Number_Of_Stacks*_xlfn.XLOOKUP(Imperial_Layers,CrateData[Layer],CrateData[Surface Area (sf)]))/12)*Imperial_Stone_Void_Percentage) ->  | K86: =IF(B86="","",SUM(J86:$J$233)) ->  | W86: -2.04 | AC86: =IF($AU$21="INVERT",X86,IF(AC85>=$Y$12,"",IF(X85="","",INDEX($X$18:$X$227,$AA$17-ROWS($X$18:$X85))))) ->  | BG86: =IF($AU$21="INVERT",X86,IF(AC85>=$Y$12,"",IF(X85="","",INDEX($X$18:$X$227,$AA$17-ROWS($X$18:$X85))))) ->  | BI86: =IF(AE85="","", IF($AU$21="TYP", IF(Y85="","", INDEX($Y$18:$Y$227, $AA$17-ROWS($Y$18:$Y85))), IF($AU$21="INVERT",Y86, "") ) ) ->  | BL86: =IF(BL85>=$Y$12,"",IF(X85="","",INDEX($X$18:$X$227,$AA$17-ROWS($X$18:$X85)))) ->  | BN86: 0 | BS86: =IF(Y85="","",INDEX($Y$17:$Y$227,$AA$17-ROWS($Y$17:$Y85))) -> 
C87: =IF(B87="","",IFERROR(_xlfn.XLOOKUP(B87,ImperialIncrementalData[System Increment],_xlfn.XLOOKUP('Imperial Incremental Crate'!$R$3,ImperialIncrementalData[#Headers],ImperialIncrementalData[]),,1),0)) ->  | E87: =IF(B87="","",IFERROR(_xlfn.XLOOKUP(B87,ImperialIncrementalData[System Increment],_xlfn.XLOOKUP(Imperial_Incremental_Data_Target_Column,ImperialIncrementalData[#Headers],ImperialIncrementalData[]),,1),0)) ->  | F87: =IF(B87="","",IF(B88="",((((1)/12)*Imperial_Module_Square_Foot_Area)-'Cumulative Volumes Imperial'!E87)*Imperial_Stone_Void_Percentage,((((B87-B88)/12)*Imperial_Module_Square_Foot_Area)-'Cumulative Volumes Imperial'!E87)*Imperial_Stone_Void_Percentage)) ->  | H87: =IF(B87="","",((Imperial_System_Area_Input-Imperial_Number_Of_Stacks*_xlfn.XLOOKUP(Imperial_Layers,CrateData[Layer],CrateData[Surface Area (sf)]))/12)*Imperial_Stone_Void_Percentage) ->  | K87: =IF(B87="","",SUM(J87:$J$233)) ->  | W87: -2.13 | AC87: =IF($AU$21="INVERT",X87,IF(AC86>=$Y$12,"",IF(X86="","",INDEX($X$18:$X$227,$AA$17-ROWS($X$18:$X86))))) ->  | BG87: =IF($AU$21="INVERT",X87,IF(AC86>=$Y$12,"",IF(X86="","",INDEX($X$18:$X$227,$AA$17-ROWS($X$18:$X86))))) ->  | BI87: =IF(AE86="","", IF($AU$21="TYP", IF(Y86="","", INDEX($Y$18:$Y$227, $AA$17-ROWS($Y$18:$Y86))), IF($AU$21="INVERT",Y87, "") ) ) ->  | BL87: =IF(BL86>=$Y$12,"",IF(X86="","",INDEX($X$18:$X$227,$AA$17-ROWS($X$18:$X86)))) ->  | BN87: 0 | BS87: =IF(Y86="","",INDEX($Y$17:$Y$227,$AA$17-ROWS($Y$17:$Y86))) -> 
C88: =IF(B88="","",IFERROR(_xlfn.XLOOKUP(B88,ImperialIncrementalData[System Increment],_xlfn.XLOOKUP('Imperial Incremental Crate'!$R$3,ImperialIncrementalData[#Headers],ImperialIncrementalData[]),,1),0)) ->  | E88: =IF(B88="","",IFERROR(_xlfn.XLOOKUP(B88,ImperialIncrementalData[System Increment],_xlfn.XLOOKUP(Imperial_Incremental_Data_Target_Column,ImperialIncrementalData[#Headers],ImperialIncrementalData[]),,1),0)) ->  | F88: =IF(B88="","",IF(B89="",((((1)/12)*Imperial_Module_Square_Foot_Area)-'Cumulative Volumes Imperial'!E88)*Imperial_Stone_Void_Percentage,((((B88-B89)/12)*Imperial_Module_Square_Foot_Area)-'Cumulative Volumes Imperial'!E88)*Imperial_Stone_Void_Percentage)) ->  | H88: =IF(B88="","",((Imperial_System_Area_Input-Imperial_Number_Of_Stacks*_xlfn.XLOOKUP(Imperial_Layers,CrateData[Layer],CrateData[Surface Area (sf)]))/12)*Imperial_Stone_Void_Percentage) ->  | K88: =IF(B88="","",SUM(J88:$J$233)) ->  | W88: -2.21 | AC88: =IF($AU$21="INVERT",X88,IF(AC87>=$Y$12,"",IF(X87="","",INDEX($X$18:$X$227,$AA$17-ROWS($X$18:$X87))))) ->  | BG88: =IF($AU$21="INVERT",X88,IF(AC87>=$Y$12,"",IF(X87="","",INDEX($X$18:$X$227,$AA$17-ROWS($X$18:$X87))))) ->  | BI88: =IF(AE87="","", IF($AU$21="TYP", IF(Y87="","", INDEX($Y$18:$Y$227, $AA$17-ROWS($Y$18:$Y87))), IF($AU$21="INVERT",Y88, "") ) ) ->  | BL88: =IF(BL87>=$Y$12,"",IF(X87="","",INDEX($X$18:$X$227,$AA$17-ROWS($X$18:$X87)))) ->  | BN88: 0 | BS88: =IF(Y87="","",INDEX($Y$17:$Y$227,$AA$17-ROWS($Y$17:$Y87))) -> 
C89: =IF(B89="","",IFERROR(_xlfn.XLOOKUP(B89,ImperialIncrementalData[System Increment],_xlfn.XLOOKUP('Imperial Incremental Crate'!$R$3,ImperialIncrementalData[#Headers],ImperialIncrementalData[]),,1),0)) ->  | E89: =IF(B89="","",IFERROR(_xlfn.XLOOKUP(B89,ImperialIncrementalData[System Increment],_xlfn.XLOOKUP(Imperial_Incremental_Data_Target_Column,ImperialIncrementalData[#Headers],ImperialIncrementalData[]),,1),0)) ->  | F89: =IF(B89="","",IF(B90="",((((1)/12)*Imperial_Module_Square_Foot_Area)-'Cumulative Volumes Imperial'!E89)*Imperial_Stone_Void_Percentage,((((B89-B90)/12)*Imperial_Module_Square_Foot_Area)-'Cumulative Volumes Imperial'!E89)*Imperial_Stone_Void_Percentage)) ->  | H89: =IF(B89="","",((Imperial_System_Area_Input-Imperial_Number_Of_Stacks*_xlfn.XLOOKUP(Imperial_Layers,CrateData[Layer],CrateData[Surface Area (sf)]))/12)*Imperial_Stone_Void_Percentage) ->  | K89: =IF(B89="","",SUM(J89:$J$233)) ->  | W89: -2.29 | AC89: =IF($AU$21="INVERT",X89,IF(AC88>=$Y$12,"",IF(X88="","",INDEX($X$18:$X$227,$AA$17-ROWS($X$18:$X88))))) ->  | BG89: =IF($AU$21="INVERT",X89,IF(AC88>=$Y$12,"",IF(X88="","",INDEX($X$18:$X$227,$AA$17-ROWS($X$18:$X88))))) ->  | BI89: =IF(AE88="","", IF($AU$21="TYP", IF(Y88="","", INDEX($Y$18:$Y$227, $AA$17-ROWS($Y$18:$Y88))), IF($AU$21="INVERT",Y89, "") ) ) ->  | BL89: =IF(BL88>=$Y$12,"",IF(X88="","",INDEX($X$18:$X$227,$AA$17-ROWS($X$18:$X88)))) ->  | BN89: 0 | BS89: =IF(Y88="","",INDEX($Y$17:$Y$227,$AA$17-ROWS($Y$17:$Y88))) -> 
C90: =IF(B90="","",IFERROR(_xlfn.XLOOKUP(B90,ImperialIncrementalData[System Increment],_xlfn.XLOOKUP('Imperial Incremental Crate'!$R$3,ImperialIncrementalData[#Headers],ImperialIncrementalData[]),,1),0)) ->  | E90: =IF(B90="","",IFERROR(_xlfn.XLOOKUP(B90,ImperialIncrementalData[System Increment],_xlfn.XLOOKUP(Imperial_Incremental_Data_Target_Column,ImperialIncrementalData[#Headers],ImperialIncrementalData[]),,1),0)) ->  | F90: =IF(B90="","",IF(B91="",((((1)/12)*Imperial_Module_Square_Foot_Area)-'Cumulative Volumes Imperial'!E90)*Imperial_Stone_Void_Percentage,((((B90-B91)/12)*Imperial_Module_Square_Foot_Area)-'Cumulative Volumes Imperial'!E90)*Imperial_Stone_Void_Percentage)) ->  | H90: =IF(B90="","",((Imperial_System_Area_Input-Imperial_Number_Of_Stacks*_xlfn.XLOOKUP(Imperial_Layers,CrateData[Layer],CrateData[Surface Area (sf)]))/12)*Imperial_Stone_Void_Percentage) ->  | K90: =IF(B90="","",SUM(J90:$J$233)) ->  | W90: -2.38 | AC90: =IF($AU$21="INVERT",X90,IF(AC89>=$Y$12,"",IF(X89="","",INDEX($X$18:$X$227,$AA$17-ROWS($X$18:$X89))))) ->  | BG90: =IF($AU$21="INVERT",X90,IF(AC89>=$Y$12,"",IF(X89="","",INDEX($X$18:$X$227,$AA$17-ROWS($X$18:$X89))))) ->  | BI90: =IF(AE89="","", IF($AU$21="TYP", IF(Y89="","", INDEX($Y$18:$Y$227, $AA$17-ROWS($Y$18:$Y89))), IF($AU$21="INVERT",Y90, "") ) ) ->  | BL90: =IF(BL89>=$Y$12,"",IF(X89="","",INDEX($X$18:$X$227,$AA$17-ROWS($X$18:$X89)))) ->  | BN90: 0 | BS90: =IF(Y89="","",INDEX($Y$17:$Y$227,$AA$17-ROWS($Y$17:$Y89))) -> 
C91: =IF(B91="","",IFERROR(_xlfn.XLOOKUP(B91,ImperialIncrementalData[System Increment],_xlfn.XLOOKUP('Imperial Incremental Crate'!$R$3,ImperialIncrementalData[#Headers],ImperialIncrementalData[]),,1),0)) ->  | E91: =IF(B91="","",IFERROR(_xlfn.XLOOKUP(B91,ImperialIncrementalData[System Increment],_xlfn.XLOOKUP(Imperial_Incremental_Data_Target_Column,ImperialIncrementalData[#Headers],ImperialIncrementalData[]),,1),0)) ->  | F91: =IF(B91="","",IF(B92="",((((1)/12)*Imperial_Module_Square_Foot_Area)-'Cumulative Volumes Imperial'!E91)*Imperial_Stone_Void_Percentage,((((B91-B92)/12)*Imperial_Module_Square_Foot_Area)-'Cumulative Volumes Imperial'!E91)*Imperial_Stone_Void_Percentage)) ->  | H91: =IF(B91="","",((Imperial_System_Area_Input-Imperial_Number_Of_Stacks*_xlfn.XLOOKUP(Imperial_Layers,CrateData[Layer],CrateData[Surface Area (sf)]))/12)*Imperial_Stone_Void_Percentage) ->  | K91: =IF(B91="","",SUM(J91:$J$233)) ->  | W91: -2.46 | AC91: =IF($AU$21="INVERT",X91,IF(AC90>=$Y$12,"",IF(X90="","",INDEX($X$18:$X$227,$AA$17-ROWS($X$18:$X90))))) ->  | BG91: =IF($AU$21="INVERT",X91,IF(AC90>=$Y$12,"",IF(X90="","",INDEX($X$18:$X$227,$AA$17-ROWS($X$18:$X90))))) ->  | BI91: =IF(AE90="","", IF($AU$21="TYP", IF(Y90="","", INDEX($Y$18:$Y$227, $AA$17-ROWS($Y$18:$Y90))), IF($AU$21="INVERT",Y91, "") ) ) ->  | BL91: =IF(BL90>=$Y$12,"",IF(X90="","",INDEX($X$18:$X$227,$AA$17-ROWS($X$18:$X90)))) ->  | BN91: 0 | BS91: =IF(Y90="","",INDEX($Y$17:$Y$227,$AA$17-ROWS($Y$17:$Y90))) -> 
C92: =IF(B92="","",IFERROR(_xlfn.XLOOKUP(B92,ImperialIncrementalData[System Increment],_xlfn.XLOOKUP('Imperial Incremental Crate'!$R$3,ImperialIncrementalData[#Headers],ImperialIncrementalData[]),,1),0)) ->  | E92: =IF(B92="","",IFERROR(_xlfn.XLOOKUP(B92,ImperialIncrementalData[System Increment],_xlfn.XLOOKUP(Imperial_Incremental_Data_Target_Column,ImperialIncrementalData[#Headers],ImperialIncrementalData[]),,1),0)) ->  | F92: =IF(B92="","",IF(B93="",((((1)/12)*Imperial_Module_Square_Foot_Area)-'Cumulative Volumes Imperial'!E92)*Imperial_Stone_Void_Percentage,((((B92-B93)/12)*Imperial_Module_Square_Foot_Area)-'Cumulative Volumes Imperial'!E92)*Imperial_Stone_Void_Percentage)) ->  | H92: =IF(B92="","",((Imperial_System_Area_Input-Imperial_Number_Of_Stacks*_xlfn.XLOOKUP(Imperial_Layers,CrateData[Layer],CrateData[Surface Area (sf)]))/12)*Imperial_Stone_Void_Percentage) ->  | K92: =IF(B92="","",SUM(J92:$J$233)) ->  | W92: -2.54 | AC92: =IF($AU$21="INVERT",X92,IF(AC91>=$Y$12,"",IF(X91="","",INDEX($X$18:$X$227,$AA$17-ROWS($X$18:$X91))))) ->  | BG92: =IF($AU$21="INVERT",X92,IF(AC91>=$Y$12,"",IF(X91="","",INDEX($X$18:$X$227,$AA$17-ROWS($X$18:$X91))))) ->  | BI92: =IF(AE91="","", IF($AU$21="TYP", IF(Y91="","", INDEX($Y$18:$Y$227, $AA$17-ROWS($Y$18:$Y91))), IF($AU$21="INVERT",Y92, "") ) ) ->  | BL92: =IF(BL91>=$Y$12,"",IF(X91="","",INDEX($X$18:$X$227,$AA$17-ROWS($X$18:$X91)))) ->  | BN92: 0 | BS92: =IF(Y91="","",INDEX($Y$17:$Y$227,$AA$17-ROWS($Y$17:$Y91))) -> 
C93: =IF(B93="","",IFERROR(_xlfn.XLOOKUP(B93,ImperialIncrementalData[System Increment],_xlfn.XLOOKUP('Imperial Incremental Crate'!$R$3,ImperialIncrementalData[#Headers],ImperialIncrementalData[]),,1),0)) ->  | E93: =IF(B93="","",IFERROR(_xlfn.XLOOKUP(B93,ImperialIncrementalData[System Increment],_xlfn.XLOOKUP(Imperial_Incremental_Data_Target_Column,ImperialIncrementalData[#Headers],ImperialIncrementalData[]),,1),0)) ->  | F93: =IF(B93="","",IF(B94="",((((1)/12)*Imperial_Module_Square_Foot_Area)-'Cumulative Volumes Imperial'!E93)*Imperial_Stone_Void_Percentage,((((B93-B94)/12)*Imperial_Module_Square_Foot_Area)-'Cumulative Volumes Imperial'!E93)*Imperial_Stone_Void_Percentage)) ->  | H93: =IF(B93="","",((Imperial_System_Area_Input-Imperial_Number_Of_Stacks*_xlfn.XLOOKUP(Imperial_Layers,CrateData[Layer],CrateData[Surface Area (sf)]))/12)*Imperial_Stone_Void_Percentage) ->  | K93: =IF(B93="","",SUM(J93:$J$233)) ->  | W93: -2.63 | AC93: =IF($AU$21="INVERT",X93,IF(AC92>=$Y$12,"",IF(X92="","",INDEX($X$18:$X$227,$AA$17-ROWS($X$18:$X92))))) ->  | BG93: =IF($AU$21="INVERT",X93,IF(AC92>=$Y$12,"",IF(X92="","",INDEX($X$18:$X$227,$AA$17-ROWS($X$18:$X92))))) ->  | BI93: =IF(AE92="","", IF($AU$21="TYP", IF(Y92="","", INDEX($Y$18:$Y$227, $AA$17-ROWS($Y$18:$Y92))), IF($AU$21="INVERT",Y93, "") ) ) ->  | BL93: =IF(BL92>=$Y$12,"",IF(X92="","",INDEX($X$18:$X$227,$AA$17-ROWS($X$18:$X92)))) ->  | BN93: 0 | BS93: =IF(Y92="","",INDEX($Y$17:$Y$227,$AA$17-ROWS($Y$17:$Y92))) -> 
C94: =IF(B94="","",IFERROR(_xlfn.XLOOKUP(B94,ImperialIncrementalData[System Increment],_xlfn.XLOOKUP('Imperial Incremental Crate'!$R$3,ImperialIncrementalData[#Headers],ImperialIncrementalData[]),,1),0)) ->  | E94: =IF(B94="","",IFERROR(_xlfn.XLOOKUP(B94,ImperialIncrementalData[System Increment],_xlfn.XLOOKUP(Imperial_Incremental_Data_Target_Column,ImperialIncrementalData[#Headers],ImperialIncrementalData[]),,1),0)) ->  | F94: =IF(B94="","",IF(B95="",((((1)/12)*Imperial_Module_Square_Foot_Area)-'Cumulative Volumes Imperial'!E94)*Imperial_Stone_Void_Percentage,((((B94-B95)/12)*Imperial_Module_Square_Foot_Area)-'Cumulative Volumes Imperial'!E94)*Imperial_Stone_Void_Percentage)) ->  | H94: =IF(B94="","",((Imperial_System_Area_Input-Imperial_Number_Of_Stacks*_xlfn.XLOOKUP(Imperial_Layers,CrateData[Layer],CrateData[Surface Area (sf)]))/12)*Imperial_Stone_Void_Percentage) ->  | K94: =IF(B94="","",SUM(J94:$J$233)) ->  | W94: -2.71 | AC94: =IF($AU$21="INVERT",X94,IF(AC93>=$Y$12,"",IF(X93="","",INDEX($X$18:$X$227,$AA$17-ROWS($X$18:$X93))))) ->  | BG94: =IF($AU$21="INVERT",X94,IF(AC93>=$Y$12,"",IF(X93="","",INDEX($X$18:$X$227,$AA$17-ROWS($X$18:$X93))))) ->  | BI94: =IF(AE93="","", IF($AU$21="TYP", IF(Y93="","", INDEX($Y$18:$Y$227, $AA$17-ROWS($Y$18:$Y93))), IF($AU$21="INVERT",Y94, "") ) ) ->  | BL94: =IF(BL93>=$Y$12,"",IF(X93="","",INDEX($X$18:$X$227,$AA$17-ROWS($X$18:$X93)))) ->  | BN94: 0 | BS94: =IF(Y93="","",INDEX($Y$17:$Y$227,$AA$17-ROWS($Y$17:$Y93))) -> 
C95: =IF(B95="","",IFERROR(_xlfn.XLOOKUP(B95,ImperialIncrementalData[System Increment],_xlfn.XLOOKUP('Imperial Incremental Crate'!$R$3,ImperialIncrementalData[#Headers],ImperialIncrementalData[]),,1),0)) ->  | E95: =IF(B95="","",IFERROR(_xlfn.XLOOKUP(B95,ImperialIncrementalData[System Increment],_xlfn.XLOOKUP(Imperial_Incremental_Data_Target_Column,ImperialIncrementalData[#Headers],ImperialIncrementalData[]),,1),0)) ->  | F95: =IF(B95="","",IF(B96="",((((1)/12)*Imperial_Module_Square_Foot_Area)-'Cumulative Volumes Imperial'!E95)*Imperial_Stone_Void_Percentage,((((B95-B96)/12)*Imperial_Module_Square_Foot_Area)-'Cumulative Volumes Imperial'!E95)*Imperial_Stone_Void_Percentage)) ->  | H95: =IF(B95="","",((Imperial_System_Area_Input-Imperial_Number_Of_Stacks*_xlfn.XLOOKUP(Imperial_Layers,CrateData[Layer],CrateData[Surface Area (sf)]))/12)*Imperial_Stone_Void_Percentage) ->  | K95: =IF(B95="","",SUM(J95:$J$233)) ->  | W95: -2.79 | AC95: =IF($AU$21="INVERT",X95,IF(AC94>=$Y$12,"",IF(X94="","",INDEX($X$18:$X$227,$AA$17-ROWS($X$18:$X94))))) ->  | BG95: =IF($AU$21="INVERT",X95,IF(AC94>=$Y$12,"",IF(X94="","",INDEX($X$18:$X$227,$AA$17-ROWS($X$18:$X94))))) ->  | BI95: =IF(AE94="","", IF($AU$21="TYP", IF(Y94="","", INDEX($Y$18:$Y$227, $AA$17-ROWS($Y$18:$Y94))), IF($AU$21="INVERT",Y95, "") ) ) ->  | BL95: =IF(BL94>=$Y$12,"",IF(X94="","",INDEX($X$18:$X$227,$AA$17-ROWS($X$18:$X94)))) ->  | BN95: 0 | BS95: =IF(Y94="","",INDEX($Y$17:$Y$227,$AA$17-ROWS($Y$17:$Y94))) -> 
C96: =IF(B96="","",IFERROR(_xlfn.XLOOKUP(B96,ImperialIncrementalData[System Increment],_xlfn.XLOOKUP('Imperial Incremental Crate'!$R$3,ImperialIncrementalData[#Headers],ImperialIncrementalData[]),,1),0)) ->  | E96: =IF(B96="","",IFERROR(_xlfn.XLOOKUP(B96,ImperialIncrementalData[System Increment],_xlfn.XLOOKUP(Imperial_Incremental_Data_Target_Column,ImperialIncrementalData[#Headers],ImperialIncrementalData[]),,1),0)) ->  | F96: =IF(B96="","",IF(B97="",((((1)/12)*Imperial_Module_Square_Foot_Area)-'Cumulative Volumes Imperial'!E96)*Imperial_Stone_Void_Percentage,((((B96-B97)/12)*Imperial_Module_Square_Foot_Area)-'Cumulative Volumes Imperial'!E96)*Imperial_Stone_Void_Percentage)) ->  | H96: =IF(B96="","",((Imperial_System_Area_Input-Imperial_Number_Of_Stacks*_xlfn.XLOOKUP(Imperial_Layers,CrateData[Layer],CrateData[Surface Area (sf)]))/12)*Imperial_Stone_Void_Percentage) ->  | K96: =IF(B96="","",SUM(J96:$J$233)) ->  | W96: -2.88 | AC96: =IF($AU$21="INVERT",X96,IF(AC95>=$Y$12,"",IF(X95="","",INDEX($X$18:$X$227,$AA$17-ROWS($X$18:$X95))))) ->  | BG96: =IF($AU$21="INVERT",X96,IF(AC95>=$Y$12,"",IF(X95="","",INDEX($X$18:$X$227,$AA$17-ROWS($X$18:$X95))))) ->  | BI96: =IF(AE95="","", IF($AU$21="TYP", IF(Y95="","", INDEX($Y$18:$Y$227, $AA$17-ROWS($Y$18:$Y95))), IF($AU$21="INVERT",Y96, "") ) ) ->  | BL96: =IF(BL95>=$Y$12,"",IF(X95="","",INDEX($X$18:$X$227,$AA$17-ROWS($X$18:$X95)))) ->  | BN96: 0 | BS96: =IF(Y95="","",INDEX($Y$17:$Y$227,$AA$17-ROWS($Y$17:$Y95))) -> 
C97: =IF(B97="","",IFERROR(_xlfn.XLOOKUP(B97,ImperialIncrementalData[System Increment],_xlfn.XLOOKUP('Imperial Incremental Crate'!$R$3,ImperialIncrementalData[#Headers],ImperialIncrementalData[]),,1),0)) ->  | E97: =IF(B97="","",IFERROR(_xlfn.XLOOKUP(B97,ImperialIncrementalData[System Increment],_xlfn.XLOOKUP(Imperial_Incremental_Data_Target_Column,ImperialIncrementalData[#Headers],ImperialIncrementalData[]),,1),0)) ->  | F97: =IF(B97="","",IF(B98="",((((1)/12)*Imperial_Module_Square_Foot_Area)-'Cumulative Volumes Imperial'!E97)*Imperial_Stone_Void_Percentage,((((B97-B98)/12)*Imperial_Module_Square_Foot_Area)-'Cumulative Volumes Imperial'!E97)*Imperial_Stone_Void_Percentage)) ->  | H97: =IF(B97="","",((Imperial_System_Area_Input-Imperial_Number_Of_Stacks*_xlfn.XLOOKUP(Imperial_Layers,CrateData[Layer],CrateData[Surface Area (sf)]))/12)*Imperial_Stone_Void_Percentage) ->  | K97: =IF(B97="","",SUM(J97:$J$233)) ->  | W97: -2.96 | AC97: =IF($AU$21="INVERT",X97,IF(AC96>=$Y$12,"",IF(X96="","",INDEX($X$18:$X$227,$AA$17-ROWS($X$18:$X96))))) ->  | BG97: =IF($AU$21="INVERT",X97,IF(AC96>=$Y$12,"",IF(X96="","",INDEX($X$18:$X$227,$AA$17-ROWS($X$18:$X96))))) ->  | BI97: =IF(AE96="","", IF($AU$21="TYP", IF(Y96="","", INDEX($Y$18:$Y$227, $AA$17-ROWS($Y$18:$Y96))), IF($AU$21="INVERT",Y97, "") ) ) ->  | BL97: =IF(BL96>=$Y$12,"",IF(X96="","",INDEX($X$18:$X$227,$AA$17-ROWS($X$18:$X96)))) ->  | BN97: 0 | BS97: =IF(Y96="","",INDEX($Y$17:$Y$227,$AA$17-ROWS($Y$17:$Y96))) -> 
C98: =IF(B98="","",IFERROR(_xlfn.XLOOKUP(B98,ImperialIncrementalData[System Increment],_xlfn.XLOOKUP('Imperial Incremental Crate'!$R$3,ImperialIncrementalData[#Headers],ImperialIncrementalData[]),,1),0)) ->  | E98: =IF(B98="","",IFERROR(_xlfn.XLOOKUP(B98,ImperialIncrementalData[System Increment],_xlfn.XLOOKUP(Imperial_Incremental_Data_Target_Column,ImperialIncrementalData[#Headers],ImperialIncrementalData[]),,1),0)) ->  | F98: =IF(B98="","",IF(B99="",((((1)/12)*Imperial_Module_Square_Foot_Area)-'Cumulative Volumes Imperial'!E98)*Imperial_Stone_Void_Percentage,((((B98-B99)/12)*Imperial_Module_Square_Foot_Area)-'Cumulative Volumes Imperial'!E98)*Imperial_Stone_Void_Percentage)) ->  | H98: =IF(B98="","",((Imperial_System_Area_Input-Imperial_Number_Of_Stacks*_xlfn.XLOOKUP(Imperial_Layers,CrateData[Layer],CrateData[Surface Area (sf)]))/12)*Imperial_Stone_Void_Percentage) ->  | K98: =IF(B98="","",SUM(J98:$J$233)) ->  | W98: -3.04 | AC98: =IF($AU$21="INVERT",X98,IF(AC97>=$Y$12,"",IF(X97="","",INDEX($X$18:$X$227,$AA$17-ROWS($X$18:$X97))))) ->  | BG98: =IF($AU$21="INVERT",X98,IF(AC97>=$Y$12,"",IF(X97="","",INDEX($X$18:$X$227,$AA$17-ROWS($X$18:$X97))))) ->  | BI98: =IF(AE97="","", IF($AU$21="TYP", IF(Y97="","", INDEX($Y$18:$Y$227, $AA$17-ROWS($Y$18:$Y97))), IF($AU$21="INVERT",Y98, "") ) ) ->  | BL98: =IF(BL97>=$Y$12,"",IF(X97="","",INDEX($X$18:$X$227,$AA$17-ROWS($X$18:$X97)))) ->  | BN98: 0 | BS98: =IF(Y97="","",INDEX($Y$17:$Y$227,$AA$17-ROWS($Y$17:$Y97))) -> 
C99: =IF(B99="","",IFERROR(_xlfn.XLOOKUP(B99,ImperialIncrementalData[System Increment],_xlfn.XLOOKUP('Imperial Incremental Crate'!$R$3,ImperialIncrementalData[#Headers],ImperialIncrementalData[]),,1),0)) ->  | E99: =IF(B99="","",IFERROR(_xlfn.XLOOKUP(B99,ImperialIncrementalData[System Increment],_xlfn.XLOOKUP(Imperial_Incremental_Data_Target_Column,ImperialIncrementalData[#Headers],ImperialIncrementalData[]),,1),0)) ->  | F99: =IF(B99="","",IF(B100="",((((1)/12)*Imperial_Module_Square_Foot_Area)-'Cumulative Volumes Imperial'!E99)*Imperial_Stone_Void_Percentage,((((B99-B100)/12)*Imperial_Module_Square_Foot_Area)-'Cumulative Volumes Imperial'!E99)*Imperial_Stone_Void_Percentage)) ->  | H99: =IF(B99="","",((Imperial_System_Area_Input-Imperial_Number_Of_Stacks*_xlfn.XLOOKUP(Imperial_Layers,CrateData[Layer],CrateData[Surface Area (sf)]))/12)*Imperial_Stone_Void_Percentage) ->  | K99: =IF(B99="","",SUM(J99:$J$233)) ->  | W99: -3.13 | AC99: =IF($AU$21="INVERT",X99,IF(AC98>=$Y$12,"",IF(X98="","",INDEX($X$18:$X$227,$AA$17-ROWS($X$18:$X98))))) ->  | BG99: =IF($AU$21="INVERT",X99,IF(AC98>=$Y$12,"",IF(X98="","",INDEX($X$18:$X$227,$AA$17-ROWS($X$18:$X98))))) ->  | BI99: =IF(AE98="","", IF($AU$21="TYP", IF(Y98="","", INDEX($Y$18:$Y$227, $AA$17-ROWS($Y$18:$Y98))), IF($AU$21="INVERT",Y99, "") ) ) ->  | BL99: =IF(BL98>=$Y$12,"",IF(X98="","",INDEX($X$18:$X$227,$AA$17-ROWS($X$18:$X98)))) ->  | BN99: 0 | BS99: =IF(Y98="","",INDEX($Y$17:$Y$227,$AA$17-ROWS($Y$17:$Y98))) -> 
C100: =IF(B100="","",IFERROR(_xlfn.XLOOKUP(B100,ImperialIncrementalData[System Increment],_xlfn.XLOOKUP('Imperial Incremental Crate'!$R$3,ImperialIncrementalData[#Headers],ImperialIncrementalData[]),,1),0)) ->  | E100: =IF(B100="","",IFERROR(_xlfn.XLOOKUP(B100,ImperialIncrementalData[System Increment],_xlfn.XLOOKUP(Imperial_Incremental_Data_Target_Column,ImperialIncrementalData[#Headers],ImperialIncrementalData[]),,1),0)) ->  | F100: =IF(B100="","",IF(B101="",((((1)/12)*Imperial_Module_Square_Foot_Area)-'Cumulative Volumes Imperial'!E100)*Imperial_Stone_Void_Percentage,((((B100-B101)/12)*Imperial_Module_Square_Foot_Area)-'Cumulative Volumes Imperial'!E100)*Imperial_Stone_Void_Percentage)) ->  | H100: =IF(B100="","",((Imperial_System_Area_Input-Imperial_Number_Of_Stacks*_xlfn.XLOOKUP(Imperial_Layers,CrateData[Layer],CrateData[Surface Area (sf)]))/12)*Imperial_Stone_Void_Percentage) ->  | K100: =IF(B100="","",SUM(J100:$J$233)) ->  | W100: -3.21 | AC100: =IF($AU$21="INVERT",X100,IF(AC99>=$Y$12,"",IF(X99="","",INDEX($X$18:$X$227,$AA$17-ROWS($X$18:$X99))))) ->  | BG100: =IF($AU$21="INVERT",X100,IF(AC99>=$Y$12,"",IF(X99="","",INDEX($X$18:$X$227,$AA$17-ROWS($X$18:$X99))))) ->  | BI100: =IF(AE99="","", IF($AU$21="TYP", IF(Y99="","", INDEX($Y$18:$Y$227, $AA$17-ROWS($Y$18:$Y99))), IF($AU$21="INVERT",Y100, "") ) ) ->  | BL100: =IF(BL99>=$Y$12,"",IF(X99="","",INDEX($X$18:$X$227,$AA$17-ROWS($X$18:$X99)))) ->  | BN100: 0 | BS100: =IF(Y99="","",INDEX($Y$17:$Y$227,$AA$17-ROWS($Y$17:$Y99))) -> 
C101: =IF(B101="","",IFERROR(_xlfn.XLOOKUP(B101,ImperialIncrementalData[System Increment],_xlfn.XLOOKUP('Imperial Incremental Crate'!$R$3,ImperialIncrementalData[#Headers],ImperialIncrementalData[]),,1),0)) ->  | E101: =IF(B101="","",IFERROR(_xlfn.XLOOKUP(B101,ImperialIncrementalData[System Increment],_xlfn.XLOOKUP(Imperial_Incremental_Data_Target_Column,ImperialIncrementalData[#Headers],ImperialIncrementalData[]),,1),0)) ->  | F101: =IF(B101="","",IF(B102="",((((1)/12)*Imperial_Module_Square_Foot_Area)-'Cumulative Volumes Imperial'!E101)*Imperial_Stone_Void_Percentage,((((B101-B102)/12)*Imperial_Module_Square_Foot_Area)-'Cumulative Volumes Imperial'!E101)*Imperial_Stone_Void_Percentage)) ->  | H101: =IF(B101="","",((Imperial_System_Area_Input-Imperial_Number_Of_Stacks*_xlfn.XLOOKUP(Imperial_Layers,CrateData[Layer],CrateData[Surface Area (sf)]))/12)*Imperial_Stone_Void_Percentage) ->  | K101: =IF(B101="","",SUM(J101:$J$233)) ->  | W101: -3.29 | AC101: =IF($AU$21="INVERT",X101,IF(AC100>=$Y$12,"",IF(X100="","",INDEX($X$18:$X$227,$AA$17-ROWS($X$18:$X100))))) ->  | BG101: =IF($AU$21="INVERT",X101,IF(AC100>=$Y$12,"",IF(X100="","",INDEX($X$18:$X$227,$AA$17-ROWS($X$18:$X100))))) ->  | BI101: =IF(AE100="","", IF($AU$21="TYP", IF(Y100="","", INDEX($Y$18:$Y$227, $AA$17-ROWS($Y$18:$Y100))), IF($AU$21="INVERT",Y101, "") ) ) ->  | BL101: =IF(BL100>=$Y$12,"",IF(X100="","",INDEX($X$18:$X$227,$AA$17-ROWS($X$18:$X100)))) ->  | BN101: 0 | BS101: =IF(Y100="","",INDEX($Y$17:$Y$227,$AA$17-ROWS($Y$17:$Y100))) -> 
C102: =IF(B102="","",IFERROR(_xlfn.XLOOKUP(B102,ImperialIncrementalData[System Increment],_xlfn.XLOOKUP('Imperial Incremental Crate'!$R$3,ImperialIncrementalData[#Headers],ImperialIncrementalData[]),,1),0)) ->  | E102: =IF(B102="","",IFERROR(_xlfn.XLOOKUP(B102,ImperialIncrementalData[System Increment],_xlfn.XLOOKUP(Imperial_Incremental_Data_Target_Column,ImperialIncrementalData[#Headers],ImperialIncrementalData[]),,1),0)) ->  | F102: =IF(B102="","",IF(B103="",((((1)/12)*Imperial_Module_Square_Foot_Area)-'Cumulative Volumes Imperial'!E102)*Imperial_Stone_Void_Percentage,((((B102-B103)/12)*Imperial_Module_Square_Foot_Area)-'Cumulative Volumes Imperial'!E102)*Imperial_Stone_Void_Percentage)) ->  | H102: =IF(B102="","",((Imperial_System_Area_Input-Imperial_Number_Of_Stacks*_xlfn.XLOOKUP(Imperial_Layers,CrateData[Layer],CrateData[Surface Area (sf)]))/12)*Imperial_Stone_Void_Percentage) ->  | K102: =IF(B102="","",SUM(J102:$J$233)) ->  | W102: -3.38 | AC102: =IF($AU$21="INVERT",X102,IF(AC101>=$Y$12,"",IF(X101="","",INDEX($X$18:$X$227,$AA$17-ROWS($X$18:$X101))))) ->  | BG102: =IF($AU$21="INVERT",X102,IF(AC101>=$Y$12,"",IF(X101="","",INDEX($X$18:$X$227,$AA$17-ROWS($X$18:$X101))))) ->  | BI102: =IF(AE101="","", IF($AU$21="TYP", IF(Y101="","", INDEX($Y$18:$Y$227, $AA$17-ROWS($Y$18:$Y101))), IF($AU$21="INVERT",Y102, "") ) ) ->  | BL102: =IF(BL101>=$Y$12,"",IF(X101="","",INDEX($X$18:$X$227,$AA$17-ROWS($X$18:$X101)))) ->  | BN102: 0 | BS102: =IF(Y101="","",INDEX($Y$17:$Y$227,$AA$17-ROWS($Y$17:$Y101))) -> 
C103: =IF(B103="","",IFERROR(_xlfn.XLOOKUP(B103,ImperialIncrementalData[System Increment],_xlfn.XLOOKUP('Imperial Incremental Crate'!$R$3,ImperialIncrementalData[#Headers],ImperialIncrementalData[]),,1),0)) ->  | E103: =IF(B103="","",IFERROR(_xlfn.XLOOKUP(B103,ImperialIncrementalData[System Increment],_xlfn.XLOOKUP(Imperial_Incremental_Data_Target_Column,ImperialIncrementalData[#Headers],ImperialIncrementalData[]),,1),0)) ->  | F103: =IF(B103="","",IF(B104="",((((1)/12)*Imperial_Module_Square_Foot_Area)-'Cumulative Volumes Imperial'!E103)*Imperial_Stone_Void_Percentage,((((B103-B104)/12)*Imperial_Module_Square_Foot_Area)-'Cumulative Volumes Imperial'!E103)*Imperial_Stone_Void_Percentage)) ->  | H103: =IF(B103="","",((Imperial_System_Area_Input-Imperial_Number_Of_Stacks*_xlfn.XLOOKUP(Imperial_Layers,CrateData[Layer],CrateData[Surface Area (sf)]))/12)*Imperial_Stone_Void_Percentage) ->  | K103: =IF(B103="","",SUM(J103:$J$233)) ->  | W103: -3.46 | AC103: =IF($AU$21="INVERT",X103,IF(AC102>=$Y$12,"",IF(X102="","",INDEX($X$18:$X$227,$AA$17-ROWS($X$18:$X102))))) ->  | BG103: =IF($AU$21="INVERT",X103,IF(AC102>=$Y$12,"",IF(X102="","",INDEX($X$18:$X$227,$AA$17-ROWS($X$18:$X102))))) ->  | BI103: =IF(AE102="","", IF($AU$21="TYP", IF(Y102="","", INDEX($Y$18:$Y$227, $AA$17-ROWS($Y$18:$Y102))), IF($AU$21="INVERT",Y103, "") ) ) ->  | BL103: =IF(BL102>=$Y$12,"",IF(X102="","",INDEX($X$18:$X$227,$AA$17-ROWS($X$18:$X102)))) ->  | BN103: 0 | BS103: =IF(Y102="","",INDEX($Y$17:$Y$227,$AA$17-ROWS($Y$17:$Y102))) -> 
C104: =IF(B104="","",IFERROR(_xlfn.XLOOKUP(B104,ImperialIncrementalData[System Increment],_xlfn.XLOOKUP('Imperial Incremental Crate'!$R$3,ImperialIncrementalData[#Headers],ImperialIncrementalData[]),,1),0)) ->  | E104: =IF(B104="","",IFERROR(_xlfn.XLOOKUP(B104,ImperialIncrementalData[System Increment],_xlfn.XLOOKUP(Imperial_Incremental_Data_Target_Column,ImperialIncrementalData[#Headers],ImperialIncrementalData[]),,1),0)) ->  | F104: =IF(B104="","",IF(B105="",((((1)/12)*Imperial_Module_Square_Foot_Area)-'Cumulative Volumes Imperial'!E104)*Imperial_Stone_Void_Percentage,((((B104-B105)/12)*Imperial_Module_Square_Foot_Area)-'Cumulative Volumes Imperial'!E104)*Imperial_Stone_Void_Percentage)) ->  | H104: =IF(B104="","",((Imperial_System_Area_Input-Imperial_Number_Of_Stacks*_xlfn.XLOOKUP(Imperial_Layers,CrateData[Layer],CrateData[Surface Area (sf)]))/12)*Imperial_Stone_Void_Percentage) ->  | K104: =IF(B104="","",SUM(J104:$J$233)) ->  | W104: -3.54 | AC104: =IF($AU$21="INVERT",X104,IF(AC103>=$Y$12,"",IF(X103="","",INDEX($X$18:$X$227,$AA$17-ROWS($X$18:$X103))))) ->  | BG104: =IF($AU$21="INVERT",X104,IF(AC103>=$Y$12,"",IF(X103="","",INDEX($X$18:$X$227,$AA$17-ROWS($X$18:$X103))))) ->  | BI104: =IF(AE103="","", IF($AU$21="TYP", IF(Y103="","", INDEX($Y$18:$Y$227, $AA$17-ROWS($Y$18:$Y103))), IF($AU$21="INVERT",Y104, "") ) ) ->  | BL104: =IF(BL103>=$Y$12,"",IF(X103="","",INDEX($X$18:$X$227,$AA$17-ROWS($X$18:$X103)))) ->  | BN104: 0 | BS104: =IF(Y103="","",INDEX($Y$17:$Y$227,$AA$17-ROWS($Y$17:$Y103))) -> 
C105: =IF(B105="","",IFERROR(_xlfn.XLOOKUP(B105,ImperialIncrementalData[System Increment],_xlfn.XLOOKUP('Imperial Incremental Crate'!$R$3,ImperialIncrementalData[#Headers],ImperialIncrementalData[]),,1),0)) ->  | E105: =IF(B105="","",IFERROR(_xlfn.XLOOKUP(B105,ImperialIncrementalData[System Increment],_xlfn.XLOOKUP(Imperial_Incremental_Data_Target_Column,ImperialIncrementalData[#Headers],ImperialIncrementalData[]),,1),0)) ->  | F105: =IF(B105="","",IF(B106="",((((1)/12)*Imperial_Module_Square_Foot_Area)-'Cumulative Volumes Imperial'!E105)*Imperial_Stone_Void_Percentage,((((B105-B106)/12)*Imperial_Module_Square_Foot_Area)-'Cumulative Volumes Imperial'!E105)*Imperial_Stone_Void_Percentage)) ->  | H105: =IF(B105="","",((Imperial_System_Area_Input-Imperial_Number_Of_Stacks*_xlfn.XLOOKUP(Imperial_Layers,CrateData[Layer],CrateData[Surface Area (sf)]))/12)*Imperial_Stone_Void_Percentage) ->  | K105: =IF(B105="","",SUM(J105:$J$233)) ->  | W105: -3.63 | AC105: =IF($AU$21="INVERT",X105,IF(AC104>=$Y$12,"",IF(X104="","",INDEX($X$18:$X$227,$AA$17-ROWS($X$18:$X104))))) ->  | BG105: =IF($AU$21="INVERT",X105,IF(AC104>=$Y$12,"",IF(X104="","",INDEX($X$18:$X$227,$AA$17-ROWS($X$18:$X104))))) ->  | BI105: =IF(AE104="","", IF($AU$21="TYP", IF(Y104="","", INDEX($Y$18:$Y$227, $AA$17-ROWS($Y$18:$Y104))), IF($AU$21="INVERT",Y105, "") ) ) ->  | BL105: =IF(BL104>=$Y$12,"",IF(X104="","",INDEX($X$18:$X$227,$AA$17-ROWS($X$18:$X104)))) ->  | BN105: 0 | BS105: =IF(Y104="","",INDEX($Y$17:$Y$227,$AA$17-ROWS($Y$17:$Y104))) -> 
C106: =IF(B106="","",IFERROR(_xlfn.XLOOKUP(B106,ImperialIncrementalData[System Increment],_xlfn.XLOOKUP('Imperial Incremental Crate'!$R$3,ImperialIncrementalData[#Headers],ImperialIncrementalData[]),,1),0)) ->  | E106: =IF(B106="","",IFERROR(_xlfn.XLOOKUP(B106,ImperialIncrementalData[System Increment],_xlfn.XLOOKUP(Imperial_Incremental_Data_Target_Column,ImperialIncrementalData[#Headers],ImperialIncrementalData[]),,1),0)) ->  | F106: =IF(B106="","",IF(B107="",((((1)/12)*Imperial_Module_Square_Foot_Area)-'Cumulative Volumes Imperial'!E106)*Imperial_Stone_Void_Percentage,((((B106-B107)/12)*Imperial_Module_Square_Foot_Area)-'Cumulative Volumes Imperial'!E106)*Imperial_Stone_Void_Percentage)) ->  | H106: =IF(B106="","",((Imperial_System_Area_Input-Imperial_Number_Of_Stacks*_xlfn.XLOOKUP(Imperial_Layers,CrateData[Layer],CrateData[Surface Area (sf)]))/12)*Imperial_Stone_Void_Percentage) ->  | K106: =IF(B106="","",SUM(J106:$J$233)) ->  | W106: -3.71 | AC106: =IF($AU$21="INVERT",X106,IF(AC105>=$Y$12,"",IF(X105="","",INDEX($X$18:$X$227,$AA$17-ROWS($X$18:$X105))))) ->  | BG106: =IF($AU$21="INVERT",X106,IF(AC105>=$Y$12,"",IF(X105="","",INDEX($X$18:$X$227,$AA$17-ROWS($X$18:$X105))))) ->  | BI106: =IF(AE105="","", IF($AU$21="TYP", IF(Y105="","", INDEX($Y$18:$Y$227, $AA$17-ROWS($Y$18:$Y105))), IF($AU$21="INVERT",Y106, "") ) ) ->  | BL106: =IF(BL105>=$Y$12,"",IF(X105="","",INDEX($X$18:$X$227,$AA$17-ROWS($X$18:$X105)))) ->  | BN106: 0 | BS106: =IF(Y105="","",INDEX($Y$17:$Y$227,$AA$17-ROWS($Y$17:$Y105))) -> 
C107: =IF(B107="","",IFERROR(_xlfn.XLOOKUP(B107,ImperialIncrementalData[System Increment],_xlfn.XLOOKUP('Imperial Incremental Crate'!$R$3,ImperialIncrementalData[#Headers],ImperialIncrementalData[]),,1),0)) ->  | E107: =IF(B107="","",IFERROR(_xlfn.XLOOKUP(B107,ImperialIncrementalData[System Increment],_xlfn.XLOOKUP(Imperial_Incremental_Data_Target_Column,ImperialIncrementalData[#Headers],ImperialIncrementalData[]),,1),0)) ->  | F107: =IF(B107="","",IF(B108="",((((1)/12)*Imperial_Module_Square_Foot_Area)-'Cumulative Volumes Imperial'!E107)*Imperial_Stone_Void_Percentage,((((B107-B108)/12)*Imperial_Module_Square_Foot_Area)-'Cumulative Volumes Imperial'!E107)*Imperial_Stone_Void_Percentage)) ->  | H107: =IF(B107="","",((Imperial_System_Area_Input-Imperial_Number_Of_Stacks*_xlfn.XLOOKUP(Imperial_Layers,CrateData[Layer],CrateData[Surface Area (sf)]))/12)*Imperial_Stone_Void_Percentage) ->  | K107: =IF(B107="","",SUM(J107:$J$233)) ->  | W107: -3.79 | AC107: =IF($AU$21="INVERT",X107,IF(AC106>=$Y$12,"",IF(X106="","",INDEX($X$18:$X$227,$AA$17-ROWS($X$18:$X106))))) ->  | BG107: =IF($AU$21="INVERT",X107,IF(AC106>=$Y$12,"",IF(X106="","",INDEX($X$18:$X$227,$AA$17-ROWS($X$18:$X106))))) ->  | BI107: =IF(AE106="","", IF($AU$21="TYP", IF(Y106="","", INDEX($Y$18:$Y$227, $AA$17-ROWS($Y$18:$Y106))), IF($AU$21="INVERT",Y107, "") ) ) ->  | BL107: =IF(BL106>=$Y$12,"",IF(X106="","",INDEX($X$18:$X$227,$AA$17-ROWS($X$18:$X106)))) ->  | BN107: 0 | BS107: =IF(Y106="","",INDEX($Y$17:$Y$227,$AA$17-ROWS($Y$17:$Y106))) -> 
C108: =IF(B108="","",IFERROR(_xlfn.XLOOKUP(B108,ImperialIncrementalData[System Increment],_xlfn.XLOOKUP('Imperial Incremental Crate'!$R$3,ImperialIncrementalData[#Headers],ImperialIncrementalData[]),,1),0)) ->  | E108: =IF(B108="","",IFERROR(_xlfn.XLOOKUP(B108,ImperialIncrementalData[System Increment],_xlfn.XLOOKUP(Imperial_Incremental_Data_Target_Column,ImperialIncrementalData[#Headers],ImperialIncrementalData[]),,1),0)) ->  | F108: =IF(B108="","",IF(B109="",((((1)/12)*Imperial_Module_Square_Foot_Area)-'Cumulative Volumes Imperial'!E108)*Imperial_Stone_Void_Percentage,((((B108-B109)/12)*Imperial_Module_Square_Foot_Area)-'Cumulative Volumes Imperial'!E108)*Imperial_Stone_Void_Percentage)) ->  | H108: =IF(B108="","",((Imperial_System_Area_Input-Imperial_Number_Of_Stacks*_xlfn.XLOOKUP(Imperial_Layers,CrateData[Layer],CrateData[Surface Area (sf)]))/12)*Imperial_Stone_Void_Percentage) ->  | K108: =IF(B108="","",SUM(J108:$J$233)) ->  | W108: -3.88 | AC108: =IF($AU$21="INVERT",X108,IF(AC107>=$Y$12,"",IF(X107="","",INDEX($X$18:$X$227,$AA$17-ROWS($X$18:$X107))))) ->  | BG108: =IF($AU$21="INVERT",X108,IF(AC107>=$Y$12,"",IF(X107="","",INDEX($X$18:$X$227,$AA$17-ROWS($X$18:$X107))))) ->  | BI108: =IF(AE107="","", IF($AU$21="TYP", IF(Y107="","", INDEX($Y$18:$Y$227, $AA$17-ROWS($Y$18:$Y107))), IF($AU$21="INVERT",Y108, "") ) ) ->  | BL108: =IF(BL107>=$Y$12,"",IF(X107="","",INDEX($X$18:$X$227,$AA$17-ROWS($X$18:$X107)))) ->  | BN108: 0 | BS108: =IF(Y107="","",INDEX($Y$17:$Y$227,$AA$17-ROWS($Y$17:$Y107))) -> 
C109: =IF(B109="","",IFERROR(_xlfn.XLOOKUP(B109,ImperialIncrementalData[System Increment],_xlfn.XLOOKUP('Imperial Incremental Crate'!$R$3,ImperialIncrementalData[#Headers],ImperialIncrementalData[]),,1),0)) ->  | E109: =IF(B109="","",IFERROR(_xlfn.XLOOKUP(B109,ImperialIncrementalData[System Increment],_xlfn.XLOOKUP(Imperial_Incremental_Data_Target_Column,ImperialIncrementalData[#Headers],ImperialIncrementalData[]),,1),0)) ->  | F109: =IF(B109="","",IF(B110="",((((1)/12)*Imperial_Module_Square_Foot_Area)-'Cumulative Volumes Imperial'!E109)*Imperial_Stone_Void_Percentage,((((B109-B110)/12)*Imperial_Module_Square_Foot_Area)-'Cumulative Volumes Imperial'!E109)*Imperial_Stone_Void_Percentage)) ->  | H109: =IF(B109="","",((Imperial_System_Area_Input-Imperial_Number_Of_Stacks*_xlfn.XLOOKUP(Imperial_Layers,CrateData[Layer],CrateData[Surface Area (sf)]))/12)*Imperial_Stone_Void_Percentage) ->  | K109: =IF(B109="","",SUM(J109:$J$233)) ->  | W109: -3.96 | AC109: =IF($AU$21="INVERT",X109,IF(AC108>=$Y$12,"",IF(X108="","",INDEX($X$18:$X$227,$AA$17-ROWS($X$18:$X108))))) ->  | BG109: =IF($AU$21="INVERT",X109,IF(AC108>=$Y$12,"",IF(X108="","",INDEX($X$18:$X$227,$AA$17-ROWS($X$18:$X108))))) ->  | BI109: =IF(AE108="","", IF($AU$21="TYP", IF(Y108="","", INDEX($Y$18:$Y$227, $AA$17-ROWS($Y$18:$Y108))), IF($AU$21="INVERT",Y109, "") ) ) ->  | BL109: =IF(BL108>=$Y$12,"",IF(X108="","",INDEX($X$18:$X$227,$AA$17-ROWS($X$18:$X108)))) ->  | BN109: 0 | BS109: =IF(Y108="","",INDEX($Y$17:$Y$227,$AA$17-ROWS($Y$17:$Y108))) -> 
C110: =IF(B110="","",IFERROR(_xlfn.XLOOKUP(B110,ImperialIncrementalData[System Increment],_xlfn.XLOOKUP('Imperial Incremental Crate'!$R$3,ImperialIncrementalData[#Headers],ImperialIncrementalData[]),,1),0)) ->  | E110: =IF(B110="","",IFERROR(_xlfn.XLOOKUP(B110,ImperialIncrementalData[System Increment],_xlfn.XLOOKUP(Imperial_Incremental_Data_Target_Column,ImperialIncrementalData[#Headers],ImperialIncrementalData[]),,1),0)) ->  | F110: =IF(B110="","",IF(B111="",((((1)/12)*Imperial_Module_Square_Foot_Area)-'Cumulative Volumes Imperial'!E110)*Imperial_Stone_Void_Percentage,((((B110-B111)/12)*Imperial_Module_Square_Foot_Area)-'Cumulative Volumes Imperial'!E110)*Imperial_Stone_Void_Percentage)) ->  | H110: =IF(B110="","",((Imperial_System_Area_Input-Imperial_Number_Of_Stacks*_xlfn.XLOOKUP(Imperial_Layers,CrateData[Layer],CrateData[Surface Area (sf)]))/12)*Imperial_Stone_Void_Percentage) ->  | K110: =IF(B110="","",SUM(J110:$J$233)) ->  | W110: -4.04 | AC110: =IF($AU$21="INVERT",X110,IF(AC109>=$Y$12,"",IF(X109="","",INDEX($X$18:$X$227,$AA$17-ROWS($X$18:$X109))))) ->  | BG110: =IF($AU$21="INVERT",X110,IF(AC109>=$Y$12,"",IF(X109="","",INDEX($X$18:$X$227,$AA$17-ROWS($X$18:$X109))))) ->  | BI110: =IF(AE109="","", IF($AU$21="TYP", IF(Y109="","", INDEX($Y$18:$Y$227, $AA$17-ROWS($Y$18:$Y109))), IF($AU$21="INVERT",Y110, "") ) ) ->  | BL110: =IF(BL109>=$Y$12,"",IF(X109="","",INDEX($X$18:$X$227,$AA$17-ROWS($X$18:$X109)))) ->  | BN110: 0 | BS110: =IF(Y109="","",INDEX($Y$17:$Y$227,$AA$17-ROWS($Y$17:$Y109))) -> 
C111: =IF(B111="","",IFERROR(_xlfn.XLOOKUP(B111,ImperialIncrementalData[System Increment],_xlfn.XLOOKUP('Imperial Incremental Crate'!$R$3,ImperialIncrementalData[#Headers],ImperialIncrementalData[]),,1),0)) ->  | E111: =IF(B111="","",IFERROR(_xlfn.XLOOKUP(B111,ImperialIncrementalData[System Increment],_xlfn.XLOOKUP(Imperial_Incremental_Data_Target_Column,ImperialIncrementalData[#Headers],ImperialIncrementalData[]),,1),0)) ->  | F111: =IF(B111="","",IF(B112="",((((1)/12)*Imperial_Module_Square_Foot_Area)-'Cumulative Volumes Imperial'!E111)*Imperial_Stone_Void_Percentage,((((B111-B112)/12)*Imperial_Module_Square_Foot_Area)-'Cumulative Volumes Imperial'!E111)*Imperial_Stone_Void_Percentage)) ->  | H111: =IF(B111="","",((Imperial_System_Area_Input-Imperial_Number_Of_Stacks*_xlfn.XLOOKUP(Imperial_Layers,CrateData[Layer],CrateData[Surface Area (sf)]))/12)*Imperial_Stone_Void_Percentage) ->  | K111: =IF(B111="","",SUM(J111:$J$233)) ->  | W111: -4.13 | AC111: =IF($AU$21="INVERT",X111,IF(AC110>=$Y$12,"",IF(X110="","",INDEX($X$18:$X$227,$AA$17-ROWS($X$18:$X110))))) ->  | BG111: =IF($AU$21="INVERT",X111,IF(AC110>=$Y$12,"",IF(X110="","",INDEX($X$18:$X$227,$AA$17-ROWS($X$18:$X110))))) ->  | BI111: =IF(AE110="","", IF($AU$21="TYP", IF(Y110="","", INDEX($Y$18:$Y$227, $AA$17-ROWS($Y$18:$Y110))), IF($AU$21="INVERT",Y111, "") ) ) ->  | BL111: =IF(BL110>=$Y$12,"",IF(X110="","",INDEX($X$18:$X$227,$AA$17-ROWS($X$18:$X110)))) ->  | BN111: 0 | BS111: =IF(Y110="","",INDEX($Y$17:$Y$227,$AA$17-ROWS($Y$17:$Y110))) -> 
C112: =IF(B112="","",IFERROR(_xlfn.XLOOKUP(B112,ImperialIncrementalData[System Increment],_xlfn.XLOOKUP('Imperial Incremental Crate'!$R$3,ImperialIncrementalData[#Headers],ImperialIncrementalData[]),,1),0)) ->  | E112: =IF(B112="","",IFERROR(_xlfn.XLOOKUP(B112,ImperialIncrementalData[System Increment],_xlfn.XLOOKUP(Imperial_Incremental_Data_Target_Column,ImperialIncrementalData[#Headers],ImperialIncrementalData[]),,1),0)) ->  | F112: =IF(B112="","",IF(B113="",((((1)/12)*Imperial_Module_Square_Foot_Area)-'Cumulative Volumes Imperial'!E112)*Imperial_Stone_Void_Percentage,((((B112-B113)/12)*Imperial_Module_Square_Foot_Area)-'Cumulative Volumes Imperial'!E112)*Imperial_Stone_Void_Percentage)) ->  | H112: =IF(B112="","",((Imperial_System_Area_Input-Imperial_Number_Of_Stacks*_xlfn.XLOOKUP(Imperial_Layers,CrateData[Layer],CrateData[Surface Area (sf)]))/12)*Imperial_Stone_Void_Percentage) ->  | K112: =IF(B112="","",SUM(J112:$J$233)) ->  | W112: -4.21 | AC112: =IF($AU$21="INVERT",X112,IF(AC111>=$Y$12,"",IF(X111="","",INDEX($X$18:$X$227,$AA$17-ROWS($X$18:$X111))))) ->  | BG112: =IF($AU$21="INVERT",X112,IF(AC111>=$Y$12,"",IF(X111="","",INDEX($X$18:$X$227,$AA$17-ROWS($X$18:$X111))))) ->  | BI112: =IF(AE111="","", IF($AU$21="TYP", IF(Y111="","", INDEX($Y$18:$Y$227, $AA$17-ROWS($Y$18:$Y111))), IF($AU$21="INVERT",Y112, "") ) ) ->  | BL112: =IF(BL111>=$Y$12,"",IF(X111="","",INDEX($X$18:$X$227,$AA$17-ROWS($X$18:$X111)))) ->  | BN112: 0 | BS112: =IF(Y111="","",INDEX($Y$17:$Y$227,$AA$17-ROWS($Y$17:$Y111))) -> 
C113: =IF(B113="","",IFERROR(_xlfn.XLOOKUP(B113,ImperialIncrementalData[System Increment],_xlfn.XLOOKUP('Imperial Incremental Crate'!$R$3,ImperialIncrementalData[#Headers],ImperialIncrementalData[]),,1),0)) ->  | E113: =IF(B113="","",IFERROR(_xlfn.XLOOKUP(B113,ImperialIncrementalData[System Increment],_xlfn.XLOOKUP(Imperial_Incremental_Data_Target_Column,ImperialIncrementalData[#Headers],ImperialIncrementalData[]),,1),0)) ->  | F113: =IF(B113="","",IF(B114="",((((1)/12)*Imperial_Module_Square_Foot_Area)-'Cumulative Volumes Imperial'!E113)*Imperial_Stone_Void_Percentage,((((B113-B114)/12)*Imperial_Module_Square_Foot_Area)-'Cumulative Volumes Imperial'!E113)*Imperial_Stone_Void_Percentage)) ->  | H113: =IF(B113="","",((Imperial_System_Area_Input-Imperial_Number_Of_Stacks*_xlfn.XLOOKUP(Imperial_Layers,CrateData[Layer],CrateData[Surface Area (sf)]))/12)*Imperial_Stone_Void_Percentage) ->  | K113: =IF(B113="","",SUM(J113:$J$233)) ->  | W113: -4.29 | AC113: =IF($AU$21="INVERT",X113,IF(AC112>=$Y$12,"",IF(X112="","",INDEX($X$18:$X$227,$AA$17-ROWS($X$18:$X112))))) ->  | BG113: =IF($AU$21="INVERT",X113,IF(AC112>=$Y$12,"",IF(X112="","",INDEX($X$18:$X$227,$AA$17-ROWS($X$18:$X112))))) ->  | BI113: =IF(AE112="","", IF($AU$21="TYP", IF(Y112="","", INDEX($Y$18:$Y$227, $AA$17-ROWS($Y$18:$Y112))), IF($AU$21="INVERT",Y113, "") ) ) ->  | BL113: =IF(BL112>=$Y$12,"",IF(X112="","",INDEX($X$18:$X$227,$AA$17-ROWS($X$18:$X112)))) ->  | BN113: 0 | BS113: =IF(Y112="","",INDEX($Y$17:$Y$227,$AA$17-ROWS($Y$17:$Y112))) -> 
C114: =IF(B114="","",IFERROR(_xlfn.XLOOKUP(B114,ImperialIncrementalData[System Increment],_xlfn.XLOOKUP('Imperial Incremental Crate'!$R$3,ImperialIncrementalData[#Headers],ImperialIncrementalData[]),,1),0)) ->  | E114: =IF(B114="","",IFERROR(_xlfn.XLOOKUP(B114,ImperialIncrementalData[System Increment],_xlfn.XLOOKUP(Imperial_Incremental_Data_Target_Column,ImperialIncrementalData[#Headers],ImperialIncrementalData[]),,1),0)) ->  | F114: =IF(B114="","",IF(B115="",((((1)/12)*Imperial_Module_Square_Foot_Area)-'Cumulative Volumes Imperial'!E114)*Imperial_Stone_Void_Percentage,((((B114-B115)/12)*Imperial_Module_Square_Foot_Area)-'Cumulative Volumes Imperial'!E114)*Imperial_Stone_Void_Percentage)) ->  | H114: =IF(B114="","",((Imperial_System_Area_Input-Imperial_Number_Of_Stacks*_xlfn.XLOOKUP(Imperial_Layers,CrateData[Layer],CrateData[Surface Area (sf)]))/12)*Imperial_Stone_Void_Percentage) ->  | K114: =IF(B114="","",SUM(J114:$J$233)) ->  | W114: -4.38 | AC114: =IF($AU$21="INVERT",X114,IF(AC113>=$Y$12,"",IF(X113="","",INDEX($X$18:$X$227,$AA$17-ROWS($X$18:$X113))))) ->  | BG114: =IF($AU$21="INVERT",X114,IF(AC113>=$Y$12,"",IF(X113="","",INDEX($X$18:$X$227,$AA$17-ROWS($X$18:$X113))))) ->  | BI114: =IF(AE113="","", IF($AU$21="TYP", IF(Y113="","", INDEX($Y$18:$Y$227, $AA$17-ROWS($Y$18:$Y113))), IF($AU$21="INVERT",Y114, "") ) ) ->  | BL114: =IF(BL113>=$Y$12,"",IF(X113="","",INDEX($X$18:$X$227,$AA$17-ROWS($X$18:$X113)))) ->  | BN114: 0 | BS114: =IF(Y113="","",INDEX($Y$17:$Y$227,$AA$17-ROWS($Y$17:$Y113))) -> 
C115: =IF(B115="","",IFERROR(_xlfn.XLOOKUP(B115,ImperialIncrementalData[System Increment],_xlfn.XLOOKUP('Imperial Incremental Crate'!$R$3,ImperialIncrementalData[#Headers],ImperialIncrementalData[]),,1),0)) ->  | E115: =IF(B115="","",IFERROR(_xlfn.XLOOKUP(B115,ImperialIncrementalData[System Increment],_xlfn.XLOOKUP(Imperial_Incremental_Data_Target_Column,ImperialIncrementalData[#Headers],ImperialIncrementalData[]),,1),0)) ->  | F115: =IF(B115="","",IF(B116="",((((1)/12)*Imperial_Module_Square_Foot_Area)-'Cumulative Volumes Imperial'!E115)*Imperial_Stone_Void_Percentage,((((B115-B116)/12)*Imperial_Module_Square_Foot_Area)-'Cumulative Volumes Imperial'!E115)*Imperial_Stone_Void_Percentage)) ->  | H115: =IF(B115="","",((Imperial_System_Area_Input-Imperial_Number_Of_Stacks*_xlfn.XLOOKUP(Imperial_Layers,CrateData[Layer],CrateData[Surface Area (sf)]))/12)*Imperial_Stone_Void_Percentage) ->  | K115: =IF(B115="","",SUM(J115:$J$233)) ->  | W115: -4.46 | AC115: =IF($AU$21="INVERT",X115,IF(AC114>=$Y$12,"",IF(X114="","",INDEX($X$18:$X$227,$AA$17-ROWS($X$18:$X114))))) ->  | BG115: =IF($AU$21="INVERT",X115,IF(AC114>=$Y$12,"",IF(X114="","",INDEX($X$18:$X$227,$AA$17-ROWS($X$18:$X114))))) ->  | BI115: =IF(AE114="","", IF($AU$21="TYP", IF(Y114="","", INDEX($Y$18:$Y$227, $AA$17-ROWS($Y$18:$Y114))), IF($AU$21="INVERT",Y115, "") ) ) ->  | BL115: =IF(BL114>=$Y$12,"",IF(X114="","",INDEX($X$18:$X$227,$AA$17-ROWS($X$18:$X114)))) ->  | BN115: 0 | BS115: =IF(Y114="","",INDEX($Y$17:$Y$227,$AA$17-ROWS($Y$17:$Y114))) -> 
C116: =IF(B116="","",IFERROR(_xlfn.XLOOKUP(B116,ImperialIncrementalData[System Increment],_xlfn.XLOOKUP('Imperial Incremental Crate'!$R$3,ImperialIncrementalData[#Headers],ImperialIncrementalData[]),,1),0)) ->  | E116: =IF(B116="","",IFERROR(_xlfn.XLOOKUP(B116,ImperialIncrementalData[System Increment],_xlfn.XLOOKUP(Imperial_Incremental_Data_Target_Column,ImperialIncrementalData[#Headers],ImperialIncrementalData[]),,1),0)) ->  | F116: =IF(B116="","",IF(B117="",((((1)/12)*Imperial_Module_Square_Foot_Area)-'Cumulative Volumes Imperial'!E116)*Imperial_Stone_Void_Percentage,((((B116-B117)/12)*Imperial_Module_Square_Foot_Area)-'Cumulative Volumes Imperial'!E116)*Imperial_Stone_Void_Percentage)) ->  | H116: =IF(B116="","",((Imperial_System_Area_Input-Imperial_Number_Of_Stacks*_xlfn.XLOOKUP(Imperial_Layers,CrateData[Layer],CrateData[Surface Area (sf)]))/12)*Imperial_Stone_Void_Percentage) ->  | K116: =IF(B116="","",SUM(J116:$J$233)) ->  | W116: -4.54 | AC116: =IF($AU$21="INVERT",X116,IF(AC115>=$Y$12,"",IF(X115="","",INDEX($X$18:$X$227,$AA$17-ROWS($X$18:$X115))))) ->  | BG116: =IF($AU$21="INVERT",X116,IF(AC115>=$Y$12,"",IF(X115="","",INDEX($X$18:$X$227,$AA$17-ROWS($X$18:$X115))))) ->  | BI116: =IF(AE115="","", IF($AU$21="TYP", IF(Y115="","", INDEX($Y$18:$Y$227, $AA$17-ROWS($Y$18:$Y115))), IF($AU$21="INVERT",Y116, "") ) ) ->  | BL116: =IF(BL115>=$Y$12,"",IF(X115="","",INDEX($X$18:$X$227,$AA$17-ROWS($X$18:$X115)))) ->  | BN116: 0 | BS116: =IF(Y115="","",INDEX($Y$17:$Y$227,$AA$17-ROWS($Y$17:$Y115))) -> 
C117: =IF(B117="","",IFERROR(_xlfn.XLOOKUP(B117,ImperialIncrementalData[System Increment],_xlfn.XLOOKUP('Imperial Incremental Crate'!$R$3,ImperialIncrementalData[#Headers],ImperialIncrementalData[]),,1),0)) ->  | E117: =IF(B117="","",IFERROR(_xlfn.XLOOKUP(B117,ImperialIncrementalData[System Increment],_xlfn.XLOOKUP(Imperial_Incremental_Data_Target_Column,ImperialIncrementalData[#Headers],ImperialIncrementalData[]),,1),0)) ->  | F117: =IF(B117="","",IF(B118="",((((1)/12)*Imperial_Module_Square_Foot_Area)-'Cumulative Volumes Imperial'!E117)*Imperial_Stone_Void_Percentage,((((B117-B118)/12)*Imperial_Module_Square_Foot_Area)-'Cumulative Volumes Imperial'!E117)*Imperial_Stone_Void_Percentage)) ->  | H117: =IF(B117="","",((Imperial_System_Area_Input-Imperial_Number_Of_Stacks*_xlfn.XLOOKUP(Imperial_Layers,CrateData[Layer],CrateData[Surface Area (sf)]))/12)*Imperial_Stone_Void_Percentage) ->  | K117: =IF(B117="","",SUM(J117:$J$233)) ->  | W117: -4.63 | AC117: =IF($AU$21="INVERT",X117,IF(AC116>=$Y$12,"",IF(X116="","",INDEX($X$18:$X$227,$AA$17-ROWS($X$18:$X116))))) ->  | BG117: =IF($AU$21="INVERT",X117,IF(AC116>=$Y$12,"",IF(X116="","",INDEX($X$18:$X$227,$AA$17-ROWS($X$18:$X116))))) ->  | BI117: =IF(AE116="","", IF($AU$21="TYP", IF(Y116="","", INDEX($Y$18:$Y$227, $AA$17-ROWS($Y$18:$Y116))), IF($AU$21="INVERT",Y117, "") ) ) ->  | BL117: =IF(BL116>=$Y$12,"",IF(X116="","",INDEX($X$18:$X$227,$AA$17-ROWS($X$18:$X116)))) ->  | BN117: 0 | BS117: =IF(Y116="","",INDEX($Y$17:$Y$227,$AA$17-ROWS($Y$17:$Y116))) -> 
C118: =IF(B118="","",IFERROR(_xlfn.XLOOKUP(B118,ImperialIncrementalData[System Increment],_xlfn.XLOOKUP('Imperial Incremental Crate'!$R$3,ImperialIncrementalData[#Headers],ImperialIncrementalData[]),,1),0)) ->  | E118: =IF(B118="","",IFERROR(_xlfn.XLOOKUP(B118,ImperialIncrementalData[System Increment],_xlfn.XLOOKUP(Imperial_Incremental_Data_Target_Column,ImperialIncrementalData[#Headers],ImperialIncrementalData[]),,1),0)) ->  | F118: =IF(B118="","",IF(B119="",((((1)/12)*Imperial_Module_Square_Foot_Area)-'Cumulative Volumes Imperial'!E118)*Imperial_Stone_Void_Percentage,((((B118-B119)/12)*Imperial_Module_Square_Foot_Area)-'Cumulative Volumes Imperial'!E118)*Imperial_Stone_Void_Percentage)) ->  | H118: =IF(B118="","",((Imperial_System_Area_Input-Imperial_Number_Of_Stacks*_xlfn.XLOOKUP(Imperial_Layers,CrateData[Layer],CrateData[Surface Area (sf)]))/12)*Imperial_Stone_Void_Percentage) ->  | K118: =IF(B118="","",SUM(J118:$J$233)) ->  | W118: -4.71 | AC118: =IF($AU$21="INVERT",X118,IF(AC117>=$Y$12,"",IF(X117="","",INDEX($X$18:$X$227,$AA$17-ROWS($X$18:$X117))))) ->  | BG118: =IF($AU$21="INVERT",X118,IF(AC117>=$Y$12,"",IF(X117="","",INDEX($X$18:$X$227,$AA$17-ROWS($X$18:$X117))))) ->  | BI118: =IF(AE117="","", IF($AU$21="TYP", IF(Y117="","", INDEX($Y$18:$Y$227, $AA$17-ROWS($Y$18:$Y117))), IF($AU$21="INVERT",Y118, "") ) ) ->  | BL118: =IF(BL117>=$Y$12,"",IF(X117="","",INDEX($X$18:$X$227,$AA$17-ROWS($X$18:$X117)))) ->  | BN118: 0 | BS118: =IF(Y117="","",INDEX($Y$17:$Y$227,$AA$17-ROWS($Y$17:$Y117))) -> 
C119: =IF(B119="","",IFERROR(_xlfn.XLOOKUP(B119,ImperialIncrementalData[System Increment],_xlfn.XLOOKUP('Imperial Incremental Crate'!$R$3,ImperialIncrementalData[#Headers],ImperialIncrementalData[]),,1),0)) ->  | E119: =IF(B119="","",IFERROR(_xlfn.XLOOKUP(B119,ImperialIncrementalData[System Increment],_xlfn.XLOOKUP(Imperial_Incremental_Data_Target_Column,ImperialIncrementalData[#Headers],ImperialIncrementalData[]),,1),0)) ->  | F119: =IF(B119="","",IF(B120="",((((1)/12)*Imperial_Module_Square_Foot_Area)-'Cumulative Volumes Imperial'!E119)*Imperial_Stone_Void_Percentage,((((B119-B120)/12)*Imperial_Module_Square_Foot_Area)-'Cumulative Volumes Imperial'!E119)*Imperial_Stone_Void_Percentage)) ->  | H119: =IF(B119="","",((Imperial_System_Area_Input-Imperial_Number_Of_Stacks*_xlfn.XLOOKUP(Imperial_Layers,CrateData[Layer],CrateData[Surface Area (sf)]))/12)*Imperial_Stone_Void_Percentage) ->  | K119: =IF(B119="","",SUM(J119:$J$233)) ->  | W119: -4.79 | AC119: =IF($AU$21="INVERT",X119,IF(AC118>=$Y$12,"",IF(X118="","",INDEX($X$18:$X$227,$AA$17-ROWS($X$18:$X118))))) ->  | BG119: =IF($AU$21="INVERT",X119,IF(AC118>=$Y$12,"",IF(X118="","",INDEX($X$18:$X$227,$AA$17-ROWS($X$18:$X118))))) ->  | BI119: =IF(AE118="","", IF($AU$21="TYP", IF(Y118="","", INDEX($Y$18:$Y$227, $AA$17-ROWS($Y$18:$Y118))), IF($AU$21="INVERT",Y119, "") ) ) ->  | BL119: =IF(BL118>=$Y$12,"",IF(X118="","",INDEX($X$18:$X$227,$AA$17-ROWS($X$18:$X118)))) ->  | BN119: 0 | BS119: =IF(Y118="","",INDEX($Y$17:$Y$227,$AA$17-ROWS($Y$17:$Y118))) -> 
C120: =IF(B120="","",IFERROR(_xlfn.XLOOKUP(B120,ImperialIncrementalData[System Increment],_xlfn.XLOOKUP('Imperial Incremental Crate'!$R$3,ImperialIncrementalData[#Headers],ImperialIncrementalData[]),,1),0)) ->  | E120: =IF(B120="","",IFERROR(_xlfn.XLOOKUP(B120,ImperialIncrementalData[System Increment],_xlfn.XLOOKUP(Imperial_Incremental_Data_Target_Column,ImperialIncrementalData[#Headers],ImperialIncrementalData[]),,1),0)) ->  | F120: =IF(B120="","",IF(B121="",((((1)/12)*Imperial_Module_Square_Foot_Area)-'Cumulative Volumes Imperial'!E120)*Imperial_Stone_Void_Percentage,((((B120-B121)/12)*Imperial_Module_Square_Foot_Area)-'Cumulative Volumes Imperial'!E120)*Imperial_Stone_Void_Percentage)) ->  | H120: =IF(B120="","",((Imperial_System_Area_Input-Imperial_Number_Of_Stacks*_xlfn.XLOOKUP(Imperial_Layers,CrateData[Layer],CrateData[Surface Area (sf)]))/12)*Imperial_Stone_Void_Percentage) ->  | K120: =IF(B120="","",SUM(J120:$J$233)) ->  | W120: -4.88 | AC120: =IF($AU$21="INVERT",X120,IF(AC119>=$Y$12,"",IF(X119="","",INDEX($X$18:$X$227,$AA$17-ROWS($X$18:$X119))))) ->  | BG120: =IF($AU$21="INVERT",X120,IF(AC119>=$Y$12,"",IF(X119="","",INDEX($X$18:$X$227,$AA$17-ROWS($X$18:$X119))))) ->  | BI120: =IF(AE119="","", IF($AU$21="TYP", IF(Y119="","", INDEX($Y$18:$Y$227, $AA$17-ROWS($Y$18:$Y119))), IF($AU$21="INVERT",Y120, "") ) ) ->  | BL120: =IF(BL119>=$Y$12,"",IF(X119="","",INDEX($X$18:$X$227,$AA$17-ROWS($X$18:$X119)))) ->  | BN120: 0 | BS120: =IF(Y119="","",INDEX($Y$17:$Y$227,$AA$17-ROWS($Y$17:$Y119))) -> 
C121: =IF(B121="","",IFERROR(_xlfn.XLOOKUP(B121,ImperialIncrementalData[System Increment],_xlfn.XLOOKUP('Imperial Incremental Crate'!$R$3,ImperialIncrementalData[#Headers],ImperialIncrementalData[]),,1),0)) ->  | E121: =IF(B121="","",IFERROR(_xlfn.XLOOKUP(B121,ImperialIncrementalData[System Increment],_xlfn.XLOOKUP(Imperial_Incremental_Data_Target_Column,ImperialIncrementalData[#Headers],ImperialIncrementalData[]),,1),0)) ->  | F121: =IF(B121="","",IF(B122="",((((1)/12)*Imperial_Module_Square_Foot_Area)-'Cumulative Volumes Imperial'!E121)*Imperial_Stone_Void_Percentage,((((B121-B122)/12)*Imperial_Module_Square_Foot_Area)-'Cumulative Volumes Imperial'!E121)*Imperial_Stone_Void_Percentage)) ->  | H121: =IF(B121="","",((Imperial_System_Area_Input-Imperial_Number_Of_Stacks*_xlfn.XLOOKUP(Imperial_Layers,CrateData[Layer],CrateData[Surface Area (sf)]))/12)*Imperial_Stone_Void_Percentage) ->  | K121: =IF(B121="","",SUM(J121:$J$233)) ->  | W121: -4.96 | AC121: =IF($AU$21="INVERT",X121,IF(AC120>=$Y$12,"",IF(X120="","",INDEX($X$18:$X$227,$AA$17-ROWS($X$18:$X120))))) ->  | BG121: =IF($AU$21="INVERT",X121,IF(AC120>=$Y$12,"",IF(X120="","",INDEX($X$18:$X$227,$AA$17-ROWS($X$18:$X120))))) ->  | BI121: =IF(AE120="","", IF($AU$21="TYP", IF(Y120="","", INDEX($Y$18:$Y$227, $AA$17-ROWS($Y$18:$Y120))), IF($AU$21="INVERT",Y121, "") ) ) ->  | BL121: =IF(BL120>=$Y$12,"",IF(X120="","",INDEX($X$18:$X$227,$AA$17-ROWS($X$18:$X120)))) ->  | BN121: 0 | BS121: =IF(Y120="","",INDEX($Y$17:$Y$227,$AA$17-ROWS($Y$17:$Y120))) -> 
C122: =IF(B122="","",IFERROR(_xlfn.XLOOKUP(B122,ImperialIncrementalData[System Increment],_xlfn.XLOOKUP('Imperial Incremental Crate'!$R$3,ImperialIncrementalData[#Headers],ImperialIncrementalData[]),,1),0)) ->  | E122: =IF(B122="","",IFERROR(_xlfn.XLOOKUP(B122,ImperialIncrementalData[System Increment],_xlfn.XLOOKUP(Imperial_Incremental_Data_Target_Column,ImperialIncrementalData[#Headers],ImperialIncrementalData[]),,1),0)) ->  | F122: =IF(B122="","",IF(B123="",((((1)/12)*Imperial_Module_Square_Foot_Area)-'Cumulative Volumes Imperial'!E122)*Imperial_Stone_Void_Percentage,((((B122-B123)/12)*Imperial_Module_Square_Foot_Area)-'Cumulative Volumes Imperial'!E122)*Imperial_Stone_Void_Percentage)) ->  | H122: =IF(B122="","",((Imperial_System_Area_Input-Imperial_Number_Of_Stacks*_xlfn.XLOOKUP(Imperial_Layers,CrateData[Layer],CrateData[Surface Area (sf)]))/12)*Imperial_Stone_Void_Percentage) ->  | K122: =IF(B122="","",SUM(J122:$J$233)) ->  | W122: -5.04 | AC122: =IF($AU$21="INVERT",X122,IF(AC121>=$Y$12,"",IF(X121="","",INDEX($X$18:$X$227,$AA$17-ROWS($X$18:$X121))))) ->  | BG122: =IF($AU$21="INVERT",X122,IF(AC121>=$Y$12,"",IF(X121="","",INDEX($X$18:$X$227,$AA$17-ROWS($X$18:$X121))))) ->  | BI122: =IF(AE121="","", IF($AU$21="TYP", IF(Y121="","", INDEX($Y$18:$Y$227, $AA$17-ROWS($Y$18:$Y121))), IF($AU$21="INVERT",Y122, "") ) ) ->  | BL122: =IF(BL121>=$Y$12,"",IF(X121="","",INDEX($X$18:$X$227,$AA$17-ROWS($X$18:$X121)))) ->  | BN122: 0 | BS122: =IF(Y121="","",INDEX($Y$17:$Y$227,$AA$17-ROWS($Y$17:$Y121))) -> 
C123: =IF(B123="","",IFERROR(_xlfn.XLOOKUP(B123,ImperialIncrementalData[System Increment],_xlfn.XLOOKUP('Imperial Incremental Crate'!$R$3,ImperialIncrementalData[#Headers],ImperialIncrementalData[]),,1),0)) ->  | E123: =IF(B123="","",IFERROR(_xlfn.XLOOKUP(B123,ImperialIncrementalData[System Increment],_xlfn.XLOOKUP(Imperial_Incremental_Data_Target_Column,ImperialIncrementalData[#Headers],ImperialIncrementalData[]),,1),0)) ->  | F123: =IF(B123="","",IF(B124="",((((1)/12)*Imperial_Module_Square_Foot_Area)-'Cumulative Volumes Imperial'!E123)*Imperial_Stone_Void_Percentage,((((B123-B124)/12)*Imperial_Module_Square_Foot_Area)-'Cumulative Volumes Imperial'!E123)*Imperial_Stone_Void_Percentage)) ->  | H123: =IF(B123="","",((Imperial_System_Area_Input-Imperial_Number_Of_Stacks*_xlfn.XLOOKUP(Imperial_Layers,CrateData[Layer],CrateData[Surface Area (sf)]))/12)*Imperial_Stone_Void_Percentage) ->  | K123: =IF(B123="","",SUM(J123:$J$233)) ->  | W123: -5.13 | AC123: =IF($AU$21="INVERT",X123,IF(AC122>=$Y$12,"",IF(X122="","",INDEX($X$18:$X$227,$AA$17-ROWS($X$18:$X122))))) ->  | BG123: =IF($AU$21="INVERT",X123,IF(AC122>=$Y$12,"",IF(X122="","",INDEX($X$18:$X$227,$AA$17-ROWS($X$18:$X122))))) ->  | BI123: =IF(AE122="","", IF($AU$21="TYP", IF(Y122="","", INDEX($Y$18:$Y$227, $AA$17-ROWS($Y$18:$Y122))), IF($AU$21="INVERT",Y123, "") ) ) ->  | BL123: =IF(BL122>=$Y$12,"",IF(X122="","",INDEX($X$18:$X$227,$AA$17-ROWS($X$18:$X122)))) ->  | BN123: 0 | BS123: =IF(Y122="","",INDEX($Y$17:$Y$227,$AA$17-ROWS($Y$17:$Y122))) -> 
C124: =IF(B124="","",IFERROR(_xlfn.XLOOKUP(B124,ImperialIncrementalData[System Increment],_xlfn.XLOOKUP('Imperial Incremental Crate'!$R$3,ImperialIncrementalData[#Headers],ImperialIncrementalData[]),,1),0)) ->  | E124: =IF(B124="","",IFERROR(_xlfn.XLOOKUP(B124,ImperialIncrementalData[System Increment],_xlfn.XLOOKUP(Imperial_Incremental_Data_Target_Column,ImperialIncrementalData[#Headers],ImperialIncrementalData[]),,1),0)) ->  | F124: =IF(B124="","",IF(B125="",((((1)/12)*Imperial_Module_Square_Foot_Area)-'Cumulative Volumes Imperial'!E124)*Imperial_Stone_Void_Percentage,((((B124-B125)/12)*Imperial_Module_Square_Foot_Area)-'Cumulative Volumes Imperial'!E124)*Imperial_Stone_Void_Percentage)) ->  | H124: =IF(B124="","",((Imperial_System_Area_Input-Imperial_Number_Of_Stacks*_xlfn.XLOOKUP(Imperial_Layers,CrateData[Layer],CrateData[Surface Area (sf)]))/12)*Imperial_Stone_Void_Percentage) ->  | K124: =IF(B124="","",SUM(J124:$J$233)) ->  | W124: -5.21 | AC124: =IF($AU$21="INVERT",X124,IF(AC123>=$Y$12,"",IF(X123="","",INDEX($X$18:$X$227,$AA$17-ROWS($X$18:$X123))))) ->  | BG124: =IF($AU$21="INVERT",X124,IF(AC123>=$Y$12,"",IF(X123="","",INDEX($X$18:$X$227,$AA$17-ROWS($X$18:$X123))))) ->  | BI124: =IF(AE123="","", IF($AU$21="TYP", IF(Y123="","", INDEX($Y$18:$Y$227, $AA$17-ROWS($Y$18:$Y123))), IF($AU$21="INVERT",Y124, "") ) ) ->  | BL124: =IF(BL123>=$Y$12,"",IF(X123="","",INDEX($X$18:$X$227,$AA$17-ROWS($X$18:$X123)))) ->  | BN124: 0 | BS124: =IF(Y123="","",INDEX($Y$17:$Y$227,$AA$17-ROWS($Y$17:$Y123))) -> 
C125: =IF(B125="","",IFERROR(_xlfn.XLOOKUP(B125,ImperialIncrementalData[System Increment],_xlfn.XLOOKUP('Imperial Incremental Crate'!$R$3,ImperialIncrementalData[#Headers],ImperialIncrementalData[]),,1),0)) ->  | E125: =IF(B125="","",IFERROR(_xlfn.XLOOKUP(B125,ImperialIncrementalData[System Increment],_xlfn.XLOOKUP(Imperial_Incremental_Data_Target_Column,ImperialIncrementalData[#Headers],ImperialIncrementalData[]),,1),0)) ->  | F125: =IF(B125="","",IF(B126="",((((1)/12)*Imperial_Module_Square_Foot_Area)-'Cumulative Volumes Imperial'!E125)*Imperial_Stone_Void_Percentage,((((B125-B126)/12)*Imperial_Module_Square_Foot_Area)-'Cumulative Volumes Imperial'!E125)*Imperial_Stone_Void_Percentage)) ->  | H125: =IF(B125="","",((Imperial_System_Area_Input-Imperial_Number_Of_Stacks*_xlfn.XLOOKUP(Imperial_Layers,CrateData[Layer],CrateData[Surface Area (sf)]))/12)*Imperial_Stone_Void_Percentage) ->  | K125: =IF(B125="","",SUM(J125:$J$233)) ->  | W125: -5.29 | AC125: =IF($AU$21="INVERT",X125,IF(AC124>=$Y$12,"",IF(X124="","",INDEX($X$18:$X$227,$AA$17-ROWS($X$18:$X124))))) ->  | BG125: =IF($AU$21="INVERT",X125,IF(AC124>=$Y$12,"",IF(X124="","",INDEX($X$18:$X$227,$AA$17-ROWS($X$18:$X124))))) ->  | BI125: =IF(AE124="","", IF($AU$21="TYP", IF(Y124="","", INDEX($Y$18:$Y$227, $AA$17-ROWS($Y$18:$Y124))), IF($AU$21="INVERT",Y125, "") ) ) ->  | BL125: =IF(BL124>=$Y$12,"",IF(X124="","",INDEX($X$18:$X$227,$AA$17-ROWS($X$18:$X124)))) ->  | BN125: 0 | BS125: =IF(Y124="","",INDEX($Y$17:$Y$227,$AA$17-ROWS($Y$17:$Y124))) -> 
C126: =IF(B126="","",IFERROR(_xlfn.XLOOKUP(B126,ImperialIncrementalData[System Increment],_xlfn.XLOOKUP('Imperial Incremental Crate'!$R$3,ImperialIncrementalData[#Headers],ImperialIncrementalData[]),,1),0)) ->  | E126: =IF(B126="","",IFERROR(_xlfn.XLOOKUP(B126,ImperialIncrementalData[System Increment],_xlfn.XLOOKUP(Imperial_Incremental_Data_Target_Column,ImperialIncrementalData[#Headers],ImperialIncrementalData[]),,1),0)) ->  | F126: =IF(B126="","",IF(B127="",((((1)/12)*Imperial_Module_Square_Foot_Area)-'Cumulative Volumes Imperial'!E126)*Imperial_Stone_Void_Percentage,((((B126-B127)/12)*Imperial_Module_Square_Foot_Area)-'Cumulative Volumes Imperial'!E126)*Imperial_Stone_Void_Percentage)) ->  | H126: =IF(B126="","",((Imperial_System_Area_Input-Imperial_Number_Of_Stacks*_xlfn.XLOOKUP(Imperial_Layers,CrateData[Layer],CrateData[Surface Area (sf)]))/12)*Imperial_Stone_Void_Percentage) ->  | K126: =IF(B126="","",SUM(J126:$J$233)) ->  | W126: -5.38 | AC126: =IF($AU$21="INVERT",X126,IF(AC125>=$Y$12,"",IF(X125="","",INDEX($X$18:$X$227,$AA$17-ROWS($X$18:$X125))))) ->  | BG126: =IF($AU$21="INVERT",X126,IF(AC125>=$Y$12,"",IF(X125="","",INDEX($X$18:$X$227,$AA$17-ROWS($X$18:$X125))))) ->  | BI126: =IF(AE125="","", IF($AU$21="TYP", IF(Y125="","", INDEX($Y$18:$Y$227, $AA$17-ROWS($Y$18:$Y125))), IF($AU$21="INVERT",Y126, "") ) ) ->  | BL126: =IF(BL125>=$Y$12,"",IF(X125="","",INDEX($X$18:$X$227,$AA$17-ROWS($X$18:$X125)))) ->  | BN126: 0 | BS126: =IF(Y125="","",INDEX($Y$17:$Y$227,$AA$17-ROWS($Y$17:$Y125))) -> 
C127: =IF(B127="","",IFERROR(_xlfn.XLOOKUP(B127,ImperialIncrementalData[System Increment],_xlfn.XLOOKUP('Imperial Incremental Crate'!$R$3,ImperialIncrementalData[#Headers],ImperialIncrementalData[]),,1),0)) ->  | E127: =IF(B127="","",IFERROR(_xlfn.XLOOKUP(B127,ImperialIncrementalData[System Increment],_xlfn.XLOOKUP(Imperial_Incremental_Data_Target_Column,ImperialIncrementalData[#Headers],ImperialIncrementalData[]),,1),0)) ->  | F127: =IF(B127="","",IF(B128="",((((1)/12)*Imperial_Module_Square_Foot_Area)-'Cumulative Volumes Imperial'!E127)*Imperial_Stone_Void_Percentage,((((B127-B128)/12)*Imperial_Module_Square_Foot_Area)-'Cumulative Volumes Imperial'!E127)*Imperial_Stone_Void_Percentage)) ->  | H127: =IF(B127="","",((Imperial_System_Area_Input-Imperial_Number_Of_Stacks*_xlfn.XLOOKUP(Imperial_Layers,CrateData[Layer],CrateData[Surface Area (sf)]))/12)*Imperial_Stone_Void_Percentage) ->  | K127: =IF(B127="","",SUM(J127:$J$233)) ->  | W127: -5.46 | AC127: =IF($AU$21="INVERT",X127,IF(AC126>=$Y$12,"",IF(X126="","",INDEX($X$18:$X$227,$AA$17-ROWS($X$18:$X126))))) ->  | BG127: =IF($AU$21="INVERT",X127,IF(AC126>=$Y$12,"",IF(X126="","",INDEX($X$18:$X$227,$AA$17-ROWS($X$18:$X126))))) ->  | BI127: =IF(AE126="","", IF($AU$21="TYP", IF(Y126="","", INDEX($Y$18:$Y$227, $AA$17-ROWS($Y$18:$Y126))), IF($AU$21="INVERT",Y127, "") ) ) ->  | BL127: =IF(BL126>=$Y$12,"",IF(X126="","",INDEX($X$18:$X$227,$AA$17-ROWS($X$18:$X126)))) ->  | BN127: 0 | BS127: =IF(Y126="","",INDEX($Y$17:$Y$227,$AA$17-ROWS($Y$17:$Y126))) -> 
C128: =IF(B128="","",IFERROR(_xlfn.XLOOKUP(B128,ImperialIncrementalData[System Increment],_xlfn.XLOOKUP('Imperial Incremental Crate'!$R$3,ImperialIncrementalData[#Headers],ImperialIncrementalData[]),,1),0)) ->  | E128: =IF(B128="","",IFERROR(_xlfn.XLOOKUP(B128,ImperialIncrementalData[System Increment],_xlfn.XLOOKUP(Imperial_Incremental_Data_Target_Column,ImperialIncrementalData[#Headers],ImperialIncrementalData[]),,1),0)) ->  | F128: =IF(B128="","",IF(B129="",((((1)/12)*Imperial_Module_Square_Foot_Area)-'Cumulative Volumes Imperial'!E128)*Imperial_Stone_Void_Percentage,((((B128-B129)/12)*Imperial_Module_Square_Foot_Area)-'Cumulative Volumes Imperial'!E128)*Imperial_Stone_Void_Percentage)) ->  | H128: =IF(B128="","",((Imperial_System_Area_Input-Imperial_Number_Of_Stacks*_xlfn.XLOOKUP(Imperial_Layers,CrateData[Layer],CrateData[Surface Area (sf)]))/12)*Imperial_Stone_Void_Percentage) ->  | K128: =IF(B128="","",SUM(J128:$J$233)) ->  | W128: -5.54 | AC128: =IF($AU$21="INVERT",X128,IF(AC127>=$Y$12,"",IF(X127="","",INDEX($X$18:$X$227,$AA$17-ROWS($X$18:$X127))))) ->  | BG128: =IF($AU$21="INVERT",X128,IF(AC127>=$Y$12,"",IF(X127="","",INDEX($X$18:$X$227,$AA$17-ROWS($X$18:$X127))))) ->  | BI128: =IF(AE127="","", IF($AU$21="TYP", IF(Y127="","", INDEX($Y$18:$Y$227, $AA$17-ROWS($Y$18:$Y127))), IF($AU$21="INVERT",Y128, "") ) ) ->  | BL128: =IF(BL127>=$Y$12,"",IF(X127="","",INDEX($X$18:$X$227,$AA$17-ROWS($X$18:$X127)))) ->  | BN128: 0 | BS128: =IF(Y127="","",INDEX($Y$17:$Y$227,$AA$17-ROWS($Y$17:$Y127))) -> 
C129: =IF(B129="","",IFERROR(_xlfn.XLOOKUP(B129,ImperialIncrementalData[System Increment],_xlfn.XLOOKUP('Imperial Incremental Crate'!$R$3,ImperialIncrementalData[#Headers],ImperialIncrementalData[]),,1),0)) ->  | E129: =IF(B129="","",IFERROR(_xlfn.XLOOKUP(B129,ImperialIncrementalData[System Increment],_xlfn.XLOOKUP(Imperial_Incremental_Data_Target_Column,ImperialIncrementalData[#Headers],ImperialIncrementalData[]),,1),0)) ->  | F129: =IF(B129="","",IF(B130="",((((1)/12)*Imperial_Module_Square_Foot_Area)-'Cumulative Volumes Imperial'!E129)*Imperial_Stone_Void_Percentage,((((B129-B130)/12)*Imperial_Module_Square_Foot_Area)-'Cumulative Volumes Imperial'!E129)*Imperial_Stone_Void_Percentage)) ->  | H129: =IF(B129="","",((Imperial_System_Area_Input-Imperial_Number_Of_Stacks*_xlfn.XLOOKUP(Imperial_Layers,CrateData[Layer],CrateData[Surface Area (sf)]))/12)*Imperial_Stone_Void_Percentage) ->  | K129: =IF(B129="","",SUM(J129:$J$233)) ->  | W129: -5.63 | AC129: =IF($AU$21="INVERT",X129,IF(AC128>=$Y$12,"",IF(X128="","",INDEX($X$18:$X$227,$AA$17-ROWS($X$18:$X128))))) ->  | BG129: =IF($AU$21="INVERT",X129,IF(AC128>=$Y$12,"",IF(X128="","",INDEX($X$18:$X$227,$AA$17-ROWS($X$18:$X128))))) ->  | BI129: =IF(AE128="","", IF($AU$21="TYP", IF(Y128="","", INDEX($Y$18:$Y$227, $AA$17-ROWS($Y$18:$Y128))), IF($AU$21="INVERT",Y129, "") ) ) ->  | BL129: =IF(BL128>=$Y$12,"",IF(X128="","",INDEX($X$18:$X$227,$AA$17-ROWS($X$18:$X128)))) ->  | BN129: 0 | BS129: =IF(Y128="","",INDEX($Y$17:$Y$227,$AA$17-ROWS($Y$17:$Y128))) -> 
C130: =IF(B130="","",IFERROR(_xlfn.XLOOKUP(B130,ImperialIncrementalData[System Increment],_xlfn.XLOOKUP('Imperial Incremental Crate'!$R$3,ImperialIncrementalData[#Headers],ImperialIncrementalData[]),,1),0)) ->  | E130: =IF(B130="","",IFERROR(_xlfn.XLOOKUP(B130,ImperialIncrementalData[System Increment],_xlfn.XLOOKUP(Imperial_Incremental_Data_Target_Column,ImperialIncrementalData[#Headers],ImperialIncrementalData[]),,1),0)) ->  | F130: =IF(B130="","",IF(B131="",((((1)/12)*Imperial_Module_Square_Foot_Area)-'Cumulative Volumes Imperial'!E130)*Imperial_Stone_Void_Percentage,((((B130-B131)/12)*Imperial_Module_Square_Foot_Area)-'Cumulative Volumes Imperial'!E130)*Imperial_Stone_Void_Percentage)) ->  | H130: =IF(B130="","",((Imperial_System_Area_Input-Imperial_Number_Of_Stacks*_xlfn.XLOOKUP(Imperial_Layers,CrateData[Layer],CrateData[Surface Area (sf)]))/12)*Imperial_Stone_Void_Percentage) ->  | K130: =IF(B130="","",SUM(J130:$J$233)) ->  | W130: -5.71 | AC130: =IF($AU$21="INVERT",X130,IF(AC129>=$Y$12,"",IF(X129="","",INDEX($X$18:$X$227,$AA$17-ROWS($X$18:$X129))))) ->  | BG130: =IF($AU$21="INVERT",X130,IF(AC129>=$Y$12,"",IF(X129="","",INDEX($X$18:$X$227,$AA$17-ROWS($X$18:$X129))))) ->  | BI130: =IF(AE129="","", IF($AU$21="TYP", IF(Y129="","", INDEX($Y$18:$Y$227, $AA$17-ROWS($Y$18:$Y129))), IF($AU$21="INVERT",Y130, "") ) ) ->  | BL130: =IF(BL129>=$Y$12,"",IF(X129="","",INDEX($X$18:$X$227,$AA$17-ROWS($X$18:$X129)))) ->  | BN130: 0 | BS130: =IF(Y129="","",INDEX($Y$17:$Y$227,$AA$17-ROWS($Y$17:$Y129))) -> 
C131: =IF(B131="","",IFERROR(_xlfn.XLOOKUP(B131,ImperialIncrementalData[System Increment],_xlfn.XLOOKUP('Imperial Incremental Crate'!$R$3,ImperialIncrementalData[#Headers],ImperialIncrementalData[]),,1),0)) ->  | E131: =IF(B131="","",IFERROR(_xlfn.XLOOKUP(B131,ImperialIncrementalData[System Increment],_xlfn.XLOOKUP(Imperial_Incremental_Data_Target_Column,ImperialIncrementalData[#Headers],ImperialIncrementalData[]),,1),0)) ->  | F131: =IF(B131="","",IF(B132="",((((1)/12)*Imperial_Module_Square_Foot_Area)-'Cumulative Volumes Imperial'!E131)*Imperial_Stone_Void_Percentage,((((B131-B132)/12)*Imperial_Module_Square_Foot_Area)-'Cumulative Volumes Imperial'!E131)*Imperial_Stone_Void_Percentage)) ->  | H131: =IF(B131="","",((Imperial_System_Area_Input-Imperial_Number_Of_Stacks*_xlfn.XLOOKUP(Imperial_Layers,CrateData[Layer],CrateData[Surface Area (sf)]))/12)*Imperial_Stone_Void_Percentage) ->  | K131: =IF(B131="","",SUM(J131:$J$233)) ->  | W131: -5.79 | AC131: =IF($AU$21="INVERT",X131,IF(AC130>=$Y$12,"",IF(X130="","",INDEX($X$18:$X$227,$AA$17-ROWS($X$18:$X130))))) ->  | BG131: =IF($AU$21="INVERT",X131,IF(AC130>=$Y$12,"",IF(X130="","",INDEX($X$18:$X$227,$AA$17-ROWS($X$18:$X130))))) ->  | BI131: =IF(AE130="","", IF($AU$21="TYP", IF(Y130="","", INDEX($Y$18:$Y$227, $AA$17-ROWS($Y$18:$Y130))), IF($AU$21="INVERT",Y131, "") ) ) ->  | BL131: =IF(BL130>=$Y$12,"",IF(X130="","",INDEX($X$18:$X$227,$AA$17-ROWS($X$18:$X130)))) ->  | BN131: 0 | BS131: =IF(Y130="","",INDEX($Y$17:$Y$227,$AA$17-ROWS($Y$17:$Y130))) -> 
C132: =IF(B132="","",IFERROR(_xlfn.XLOOKUP(B132,ImperialIncrementalData[System Increment],_xlfn.XLOOKUP('Imperial Incremental Crate'!$R$3,ImperialIncrementalData[#Headers],ImperialIncrementalData[]),,1),0)) ->  | E132: =IF(B132="","",IFERROR(_xlfn.XLOOKUP(B132,ImperialIncrementalData[System Increment],_xlfn.XLOOKUP(Imperial_Incremental_Data_Target_Column,ImperialIncrementalData[#Headers],ImperialIncrementalData[]),,1),0)) ->  | F132: =IF(B132="","",IF(B133="",((((1)/12)*Imperial_Module_Square_Foot_Area)-'Cumulative Volumes Imperial'!E132)*Imperial_Stone_Void_Percentage,((((B132-B133)/12)*Imperial_Module_Square_Foot_Area)-'Cumulative Volumes Imperial'!E132)*Imperial_Stone_Void_Percentage)) ->  | H132: =IF(B132="","",((Imperial_System_Area_Input-Imperial_Number_Of_Stacks*_xlfn.XLOOKUP(Imperial_Layers,CrateData[Layer],CrateData[Surface Area (sf)]))/12)*Imperial_Stone_Void_Percentage) ->  | K132: =IF(B132="","",SUM(J132:$J$233)) ->  | W132: -5.88 | AC132: =IF($AU$21="INVERT",X132,IF(AC131>=$Y$12,"",IF(X131="","",INDEX($X$18:$X$227,$AA$17-ROWS($X$18:$X131))))) ->  | BG132: =IF($AU$21="INVERT",X132,IF(AC131>=$Y$12,"",IF(X131="","",INDEX($X$18:$X$227,$AA$17-ROWS($X$18:$X131))))) ->  | BI132: =IF(AE131="","", IF($AU$21="TYP", IF(Y131="","", INDEX($Y$18:$Y$227, $AA$17-ROWS($Y$18:$Y131))), IF($AU$21="INVERT",Y132, "") ) ) ->  | BL132: =IF(BL131>=$Y$12,"",IF(X131="","",INDEX($X$18:$X$227,$AA$17-ROWS($X$18:$X131)))) ->  | BN132: 0 | BS132: =IF(Y131="","",INDEX($Y$17:$Y$227,$AA$17-ROWS($Y$17:$Y131))) -> 
C133: =IF(B133="","",IFERROR(_xlfn.XLOOKUP(B133,ImperialIncrementalData[System Increment],_xlfn.XLOOKUP('Imperial Incremental Crate'!$R$3,ImperialIncrementalData[#Headers],ImperialIncrementalData[]),,1),0)) ->  | E133: =IF(B133="","",IFERROR(_xlfn.XLOOKUP(B133,ImperialIncrementalData[System Increment],_xlfn.XLOOKUP(Imperial_Incremental_Data_Target_Column,ImperialIncrementalData[#Headers],ImperialIncrementalData[]),,1),0)) ->  | F133: =IF(B133="","",IF(B134="",((((1)/12)*Imperial_Module_Square_Foot_Area)-'Cumulative Volumes Imperial'!E133)*Imperial_Stone_Void_Percentage,((((B133-B134)/12)*Imperial_Module_Square_Foot_Area)-'Cumulative Volumes Imperial'!E133)*Imperial_Stone_Void_Percentage)) ->  | H133: =IF(B133="","",((Imperial_System_Area_Input-Imperial_Number_Of_Stacks*_xlfn.XLOOKUP(Imperial_Layers,CrateData[Layer],CrateData[Surface Area (sf)]))/12)*Imperial_Stone_Void_Percentage) ->  | K133: =IF(B133="","",SUM(J133:$J$233)) ->  | W133: -5.96 | AC133: =IF($AU$21="INVERT",X133,IF(AC132>=$Y$12,"",IF(X132="","",INDEX($X$18:$X$227,$AA$17-ROWS($X$18:$X132))))) ->  | BG133: =IF($AU$21="INVERT",X133,IF(AC132>=$Y$12,"",IF(X132="","",INDEX($X$18:$X$227,$AA$17-ROWS($X$18:$X132))))) ->  | BI133: =IF(AE132="","", IF($AU$21="TYP", IF(Y132="","", INDEX($Y$18:$Y$227, $AA$17-ROWS($Y$18:$Y132))), IF($AU$21="INVERT",Y133, "") ) ) ->  | BL133: =IF(BL132>=$Y$12,"",IF(X132="","",INDEX($X$18:$X$227,$AA$17-ROWS($X$18:$X132)))) ->  | BN133: 0 | BS133: =IF(Y132="","",INDEX($Y$17:$Y$227,$AA$17-ROWS($Y$17:$Y132))) -> 
C134: =IF(B134="","",IFERROR(_xlfn.XLOOKUP(B134,ImperialIncrementalData[System Increment],_xlfn.XLOOKUP('Imperial Incremental Crate'!$R$3,ImperialIncrementalData[#Headers],ImperialIncrementalData[]),,1),0)) ->  | E134: =IF(B134="","",IFERROR(_xlfn.XLOOKUP(B134,ImperialIncrementalData[System Increment],_xlfn.XLOOKUP(Imperial_Incremental_Data_Target_Column,ImperialIncrementalData[#Headers],ImperialIncrementalData[]),,1),0)) ->  | F134: =IF(B134="","",IF(B135="",((((1)/12)*Imperial_Module_Square_Foot_Area)-'Cumulative Volumes Imperial'!E134)*Imperial_Stone_Void_Percentage,((((B134-B135)/12)*Imperial_Module_Square_Foot_Area)-'Cumulative Volumes Imperial'!E134)*Imperial_Stone_Void_Percentage)) ->  | H134: =IF(B134="","",((Imperial_System_Area_Input-Imperial_Number_Of_Stacks*_xlfn.XLOOKUP(Imperial_Layers,CrateData[Layer],CrateData[Surface Area (sf)]))/12)*Imperial_Stone_Void_Percentage) ->  | K134: =IF(B134="","",SUM(J134:$J$233)) ->  | W134: -6.04 | AC134: =IF($AU$21="INVERT",X134,IF(AC133>=$Y$12,"",IF(X133="","",INDEX($X$18:$X$227,$AA$17-ROWS($X$18:$X133))))) ->  | BG134: =IF($AU$21="INVERT",X134,IF(AC133>=$Y$12,"",IF(X133="","",INDEX($X$18:$X$227,$AA$17-ROWS($X$18:$X133))))) ->  | BI134: =IF(AE133="","", IF($AU$21="TYP", IF(Y133="","", INDEX($Y$18:$Y$227, $AA$17-ROWS($Y$18:$Y133))), IF($AU$21="INVERT",Y134, "") ) ) ->  | BL134: =IF(BL133>=$Y$12,"",IF(X133="","",INDEX($X$18:$X$227,$AA$17-ROWS($X$18:$X133)))) ->  | BN134: 0 | BS134: =IF(Y133="","",INDEX($Y$17:$Y$227,$AA$17-ROWS($Y$17:$Y133))) -> 
C135: =IF(B135="","",IFERROR(_xlfn.XLOOKUP(B135,ImperialIncrementalData[System Increment],_xlfn.XLOOKUP('Imperial Incremental Crate'!$R$3,ImperialIncrementalData[#Headers],ImperialIncrementalData[]),,1),0)) ->  | E135: =IF(B135="","",IFERROR(_xlfn.XLOOKUP(B135,ImperialIncrementalData[System Increment],_xlfn.XLOOKUP(Imperial_Incremental_Data_Target_Column,ImperialIncrementalData[#Headers],ImperialIncrementalData[]),,1),0)) ->  | F135: =IF(B135="","",IF(B136="",((((1)/12)*Imperial_Module_Square_Foot_Area)-'Cumulative Volumes Imperial'!E135)*Imperial_Stone_Void_Percentage,((((B135-B136)/12)*Imperial_Module_Square_Foot_Area)-'Cumulative Volumes Imperial'!E135)*Imperial_Stone_Void_Percentage)) ->  | H135: =IF(B135="","",((Imperial_System_Area_Input-Imperial_Number_Of_Stacks*_xlfn.XLOOKUP(Imperial_Layers,CrateData[Layer],CrateData[Surface Area (sf)]))/12)*Imperial_Stone_Void_Percentage) ->  | K135: =IF(B135="","",SUM(J135:$J$233)) ->  | W135: -6.13 | AC135: =IF($AU$21="INVERT",X135,IF(AC134>=$Y$12,"",IF(X134="","",INDEX($X$18:$X$227,$AA$17-ROWS($X$18:$X134))))) ->  | BG135: =IF($AU$21="INVERT",X135,IF(AC134>=$Y$12,"",IF(X134="","",INDEX($X$18:$X$227,$AA$17-ROWS($X$18:$X134))))) ->  | BI135: =IF(AE134="","", IF($AU$21="TYP", IF(Y134="","", INDEX($Y$18:$Y$227, $AA$17-ROWS($Y$18:$Y134))), IF($AU$21="INVERT",Y135, "") ) ) ->  | BL135: =IF(BL134>=$Y$12,"",IF(X134="","",INDEX($X$18:$X$227,$AA$17-ROWS($X$18:$X134)))) ->  | BN135: 0 | BS135: =IF(Y134="","",INDEX($Y$17:$Y$227,$AA$17-ROWS($Y$17:$Y134))) -> 
C136: =IF(B136="","",IFERROR(_xlfn.XLOOKUP(B136,ImperialIncrementalData[System Increment],_xlfn.XLOOKUP('Imperial Incremental Crate'!$R$3,ImperialIncrementalData[#Headers],ImperialIncrementalData[]),,1),0)) ->  | E136: =IF(B136="","",IFERROR(_xlfn.XLOOKUP(B136,ImperialIncrementalData[System Increment],_xlfn.XLOOKUP(Imperial_Incremental_Data_Target_Column,ImperialIncrementalData[#Headers],ImperialIncrementalData[]),,1),0)) ->  | F136: =IF(B136="","",IF(B137="",((((1)/12)*Imperial_Module_Square_Foot_Area)-'Cumulative Volumes Imperial'!E136)*Imperial_Stone_Void_Percentage,((((B136-B137)/12)*Imperial_Module_Square_Foot_Area)-'Cumulative Volumes Imperial'!E136)*Imperial_Stone_Void_Percentage)) ->  | H136: =IF(B136="","",((Imperial_System_Area_Input-Imperial_Number_Of_Stacks*_xlfn.XLOOKUP(Imperial_Layers,CrateData[Layer],CrateData[Surface Area (sf)]))/12)*Imperial_Stone_Void_Percentage) ->  | K136: =IF(B136="","",SUM(J136:$J$233)) ->  | W136: -6.21 | AC136: =IF($AU$21="INVERT",X136,IF(AC135>=$Y$12,"",IF(X135="","",INDEX($X$18:$X$227,$AA$17-ROWS($X$18:$X135))))) ->  | BG136: =IF($AU$21="INVERT",X136,IF(AC135>=$Y$12,"",IF(X135="","",INDEX($X$18:$X$227,$AA$17-ROWS($X$18:$X135))))) ->  | BI136: =IF(AE135="","", IF($AU$21="TYP", IF(Y135="","", INDEX($Y$18:$Y$227, $AA$17-ROWS($Y$18:$Y135))), IF($AU$21="INVERT",Y136, "") ) ) ->  | BL136: =IF(BL135>=$Y$12,"",IF(X135="","",INDEX($X$18:$X$227,$AA$17-ROWS($X$18:$X135)))) ->  | BN136: 0 | BS136: =IF(Y135="","",INDEX($Y$17:$Y$227,$AA$17-ROWS($Y$17:$Y135))) -> 
C137: =IF(B137="","",IFERROR(_xlfn.XLOOKUP(B137,ImperialIncrementalData[System Increment],_xlfn.XLOOKUP('Imperial Incremental Crate'!$R$3,ImperialIncrementalData[#Headers],ImperialIncrementalData[]),,1),0)) ->  | E137: =IF(B137="","",IFERROR(_xlfn.XLOOKUP(B137,ImperialIncrementalData[System Increment],_xlfn.XLOOKUP(Imperial_Incremental_Data_Target_Column,ImperialIncrementalData[#Headers],ImperialIncrementalData[]),,1),0)) ->  | F137: =IF(B137="","",IF(B138="",((((1)/12)*Imperial_Module_Square_Foot_Area)-'Cumulative Volumes Imperial'!E137)*Imperial_Stone_Void_Percentage,((((B137-B138)/12)*Imperial_Module_Square_Foot_Area)-'Cumulative Volumes Imperial'!E137)*Imperial_Stone_Void_Percentage)) ->  | H137: =IF(B137="","",((Imperial_System_Area_Input-Imperial_Number_Of_Stacks*_xlfn.XLOOKUP(Imperial_Layers,CrateData[Layer],CrateData[Surface Area (sf)]))/12)*Imperial_Stone_Void_Percentage) ->  | K137: =IF(B137="","",SUM(J137:$J$233)) ->  | W137: -6.29 | AC137: =IF($AU$21="INVERT",X137,IF(AC136>=$Y$12,"",IF(X136="","",INDEX($X$18:$X$227,$AA$17-ROWS($X$18:$X136))))) ->  | BG137: =IF($AU$21="INVERT",X137,IF(AC136>=$Y$12,"",IF(X136="","",INDEX($X$18:$X$227,$AA$17-ROWS($X$18:$X136))))) ->  | BI137: =IF(AE136="","", IF($AU$21="TYP", IF(Y136="","", INDEX($Y$18:$Y$227, $AA$17-ROWS($Y$18:$Y136))), IF($AU$21="INVERT",Y137, "") ) ) ->  | BL137: =IF(BL136>=$Y$12,"",IF(X136="","",INDEX($X$18:$X$227,$AA$17-ROWS($X$18:$X136)))) ->  | BN137: 0 | BS137: =IF(Y136="","",INDEX($Y$17:$Y$227,$AA$17-ROWS($Y$17:$Y136))) -> 
C138: =IF(B138="","",IFERROR(_xlfn.XLOOKUP(B138,ImperialIncrementalData[System Increment],_xlfn.XLOOKUP('Imperial Incremental Crate'!$R$3,ImperialIncrementalData[#Headers],ImperialIncrementalData[]),,1),0)) ->  | E138: =IF(B138="","",IFERROR(_xlfn.XLOOKUP(B138,ImperialIncrementalData[System Increment],_xlfn.XLOOKUP(Imperial_Incremental_Data_Target_Column,ImperialIncrementalData[#Headers],ImperialIncrementalData[]),,1),0)) ->  | F138: =IF(B138="","",IF(B139="",((((1)/12)*Imperial_Module_Square_Foot_Area)-'Cumulative Volumes Imperial'!E138)*Imperial_Stone_Void_Percentage,((((B138-B139)/12)*Imperial_Module_Square_Foot_Area)-'Cumulative Volumes Imperial'!E138)*Imperial_Stone_Void_Percentage)) ->  | H138: =IF(B138="","",((Imperial_System_Area_Input-Imperial_Number_Of_Stacks*_xlfn.XLOOKUP(Imperial_Layers,CrateData[Layer],CrateData[Surface Area (sf)]))/12)*Imperial_Stone_Void_Percentage) ->  | K138: =IF(B138="","",SUM(J138:$J$233)) ->  | W138: -6.38 | AC138: =IF($AU$21="INVERT",X138,IF(AC137>=$Y$12,"",IF(X137="","",INDEX($X$18:$X$227,$AA$17-ROWS($X$18:$X137))))) ->  | BG138: =IF($AU$21="INVERT",X138,IF(AC137>=$Y$12,"",IF(X137="","",INDEX($X$18:$X$227,$AA$17-ROWS($X$18:$X137))))) ->  | BI138: =IF(AE137="","", IF($AU$21="TYP", IF(Y137="","", INDEX($Y$18:$Y$227, $AA$17-ROWS($Y$18:$Y137))), IF($AU$21="INVERT",Y138, "") ) ) ->  | BL138: =IF(BL137>=$Y$12,"",IF(X137="","",INDEX($X$18:$X$227,$AA$17-ROWS($X$18:$X137)))) ->  | BN138: 0 | BS138: =IF(Y137="","",INDEX($Y$17:$Y$227,$AA$17-ROWS($Y$17:$Y137))) -> 
C139: =IF(B139="","",IFERROR(_xlfn.XLOOKUP(B139,ImperialIncrementalData[System Increment],_xlfn.XLOOKUP('Imperial Incremental Crate'!$R$3,ImperialIncrementalData[#Headers],ImperialIncrementalData[]),,1),0)) ->  | E139: =IF(B139="","",IFERROR(_xlfn.XLOOKUP(B139,ImperialIncrementalData[System Increment],_xlfn.XLOOKUP(Imperial_Incremental_Data_Target_Column,ImperialIncrementalData[#Headers],ImperialIncrementalData[]),,1),0)) ->  | F139: =IF(B139="","",IF(B140="",((((1)/12)*Imperial_Module_Square_Foot_Area)-'Cumulative Volumes Imperial'!E139)*Imperial_Stone_Void_Percentage,((((B139-B140)/12)*Imperial_Module_Square_Foot_Area)-'Cumulative Volumes Imperial'!E139)*Imperial_Stone_Void_Percentage)) ->  | H139: =IF(B139="","",((Imperial_System_Area_Input-Imperial_Number_Of_Stacks*_xlfn.XLOOKUP(Imperial_Layers,CrateData[Layer],CrateData[Surface Area (sf)]))/12)*Imperial_Stone_Void_Percentage) ->  | K139: =IF(B139="","",SUM(J139:$J$233)) ->  | W139: -6.46 | AC139: =IF($AU$21="INVERT",X139,IF(AC138>=$Y$12,"",IF(X138="","",INDEX($X$18:$X$227,$AA$17-ROWS($X$18:$X138))))) ->  | BG139: =IF($AU$21="INVERT",X139,IF(AC138>=$Y$12,"",IF(X138="","",INDEX($X$18:$X$227,$AA$17-ROWS($X$18:$X138))))) ->  | BI139: =IF(AE138="","", IF($AU$21="TYP", IF(Y138="","", INDEX($Y$18:$Y$227, $AA$17-ROWS($Y$18:$Y138))), IF($AU$21="INVERT",Y139, "") ) ) ->  | BL139: =IF(BL138>=$Y$12,"",IF(X138="","",INDEX($X$18:$X$227,$AA$17-ROWS($X$18:$X138)))) ->  | BN139: 0 | BS139: =IF(Y138="","",INDEX($Y$17:$Y$227,$AA$17-ROWS($Y$17:$Y138))) -> 
C140: =IF(B140="","",IFERROR(_xlfn.XLOOKUP(B140,ImperialIncrementalData[System Increment],_xlfn.XLOOKUP('Imperial Incremental Crate'!$R$3,ImperialIncrementalData[#Headers],ImperialIncrementalData[]),,1),0)) ->  | E140: =IF(B140="","",IFERROR(_xlfn.XLOOKUP(B140,ImperialIncrementalData[System Increment],_xlfn.XLOOKUP(Imperial_Incremental_Data_Target_Column,ImperialIncrementalData[#Headers],ImperialIncrementalData[]),,1),0)) ->  | F140: =IF(B140="","",IF(B141="",((((1)/12)*Imperial_Module_Square_Foot_Area)-'Cumulative Volumes Imperial'!E140)*Imperial_Stone_Void_Percentage,((((B140-B141)/12)*Imperial_Module_Square_Foot_Area)-'Cumulative Volumes Imperial'!E140)*Imperial_Stone_Void_Percentage)) ->  | H140: =IF(B140="","",((Imperial_System_Area_Input-Imperial_Number_Of_Stacks*_xlfn.XLOOKUP(Imperial_Layers,CrateData[Layer],CrateData[Surface Area (sf)]))/12)*Imperial_Stone_Void_Percentage) ->  | K140: =IF(B140="","",SUM(J140:$J$233)) ->  | W140: -6.54 | AC140: =IF($AU$21="INVERT",X140,IF(AC139>=$Y$12,"",IF(X139="","",INDEX($X$18:$X$227,$AA$17-ROWS($X$18:$X139))))) ->  | BG140: =IF($AU$21="INVERT",X140,IF(AC139>=$Y$12,"",IF(X139="","",INDEX($X$18:$X$227,$AA$17-ROWS($X$18:$X139))))) ->  | BI140: =IF(AE139="","", IF($AU$21="TYP", IF(Y139="","", INDEX($Y$18:$Y$227, $AA$17-ROWS($Y$18:$Y139))), IF($AU$21="INVERT",Y140, "") ) ) ->  | BL140: =IF(BL139>=$Y$12,"",IF(X139="","",INDEX($X$18:$X$227,$AA$17-ROWS($X$18:$X139)))) ->  | BN140: 0 | BS140: =IF(Y139="","",INDEX($Y$17:$Y$227,$AA$17-ROWS($Y$17:$Y139))) -> 
C141: =IF(B141="","",IFERROR(_xlfn.XLOOKUP(B141,ImperialIncrementalData[System Increment],_xlfn.XLOOKUP('Imperial Incremental Crate'!$R$3,ImperialIncrementalData[#Headers],ImperialIncrementalData[]),,1),0)) ->  | E141: =IF(B141="","",IFERROR(_xlfn.XLOOKUP(B141,ImperialIncrementalData[System Increment],_xlfn.XLOOKUP(Imperial_Incremental_Data_Target_Column,ImperialIncrementalData[#Headers],ImperialIncrementalData[]),,1),0)) ->  | F141: =IF(B141="","",IF(B142="",((((1)/12)*Imperial_Module_Square_Foot_Area)-'Cumulative Volumes Imperial'!E141)*Imperial_Stone_Void_Percentage,((((B141-B142)/12)*Imperial_Module_Square_Foot_Area)-'Cumulative Volumes Imperial'!E141)*Imperial_Stone_Void_Percentage)) ->  | H141: =IF(B141="","",((Imperial_System_Area_Input-Imperial_Number_Of_Stacks*_xlfn.XLOOKUP(Imperial_Layers,CrateData[Layer],CrateData[Surface Area (sf)]))/12)*Imperial_Stone_Void_Percentage) ->  | K141: =IF(B141="","",SUM(J141:$J$233)) ->  | W141: -6.63 | AC141: =IF($AU$21="INVERT",X141,IF(AC140>=$Y$12,"",IF(X140="","",INDEX($X$18:$X$227,$AA$17-ROWS($X$18:$X140))))) ->  | BG141: =IF($AU$21="INVERT",X141,IF(AC140>=$Y$12,"",IF(X140="","",INDEX($X$18:$X$227,$AA$17-ROWS($X$18:$X140))))) ->  | BI141: =IF(AE140="","", IF($AU$21="TYP", IF(Y140="","", INDEX($Y$18:$Y$227, $AA$17-ROWS($Y$18:$Y140))), IF($AU$21="INVERT",Y141, "") ) ) ->  | BL141: =IF(BL140>=$Y$12,"",IF(X140="","",INDEX($X$18:$X$227,$AA$17-ROWS($X$18:$X140)))) ->  | BN141: 0 | BS141: =IF(Y140="","",INDEX($Y$17:$Y$227,$AA$17-ROWS($Y$17:$Y140))) -> 
C142: =IF(B142="","",IFERROR(_xlfn.XLOOKUP(B142,ImperialIncrementalData[System Increment],_xlfn.XLOOKUP('Imperial Incremental Crate'!$R$3,ImperialIncrementalData[#Headers],ImperialIncrementalData[]),,1),0)) ->  | E142: =IF(B142="","",IFERROR(_xlfn.XLOOKUP(B142,ImperialIncrementalData[System Increment],_xlfn.XLOOKUP(Imperial_Incremental_Data_Target_Column,ImperialIncrementalData[#Headers],ImperialIncrementalData[]),,1),0)) ->  | F142: =IF(B142="","",IF(B143="",((((1)/12)*Imperial_Module_Square_Foot_Area)-'Cumulative Volumes Imperial'!E142)*Imperial_Stone_Void_Percentage,((((B142-B143)/12)*Imperial_Module_Square_Foot_Area)-'Cumulative Volumes Imperial'!E142)*Imperial_Stone_Void_Percentage)) ->  | H142: =IF(B142="","",((Imperial_System_Area_Input-Imperial_Number_Of_Stacks*_xlfn.XLOOKUP(Imperial_Layers,CrateData[Layer],CrateData[Surface Area (sf)]))/12)*Imperial_Stone_Void_Percentage) ->  | K142: =IF(B142="","",SUM(J142:$J$233)) ->  | W142: -6.71 | AC142: =IF($AU$21="INVERT",X142,IF(AC141>=$Y$12,"",IF(X141="","",INDEX($X$18:$X$227,$AA$17-ROWS($X$18:$X141))))) ->  | BG142: =IF($AU$21="INVERT",X142,IF(AC141>=$Y$12,"",IF(X141="","",INDEX($X$18:$X$227,$AA$17-ROWS($X$18:$X141))))) ->  | BI142: =IF(AE141="","", IF($AU$21="TYP", IF(Y141="","", INDEX($Y$18:$Y$227, $AA$17-ROWS($Y$18:$Y141))), IF($AU$21="INVERT",Y142, "") ) ) ->  | BL142: =IF(BL141>=$Y$12,"",IF(X141="","",INDEX($X$18:$X$227,$AA$17-ROWS($X$18:$X141)))) ->  | BN142: 0 | BS142: =IF(Y141="","",INDEX($Y$17:$Y$227,$AA$17-ROWS($Y$17:$Y141))) -> 
C143: =IF(B143="","",IFERROR(_xlfn.XLOOKUP(B143,ImperialIncrementalData[System Increment],_xlfn.XLOOKUP('Imperial Incremental Crate'!$R$3,ImperialIncrementalData[#Headers],ImperialIncrementalData[]),,1),0)) ->  | E143: =IF(B143="","",IFERROR(_xlfn.XLOOKUP(B143,ImperialIncrementalData[System Increment],_xlfn.XLOOKUP(Imperial_Incremental_Data_Target_Column,ImperialIncrementalData[#Headers],ImperialIncrementalData[]),,1),0)) ->  | F143: =IF(B143="","",IF(B144="",((((1)/12)*Imperial_Module_Square_Foot_Area)-'Cumulative Volumes Imperial'!E143)*Imperial_Stone_Void_Percentage,((((B143-B144)/12)*Imperial_Module_Square_Foot_Area)-'Cumulative Volumes Imperial'!E143)*Imperial_Stone_Void_Percentage)) ->  | H143: =IF(B143="","",((Imperial_System_Area_Input-Imperial_Number_Of_Stacks*_xlfn.XLOOKUP(Imperial_Layers,CrateData[Layer],CrateData[Surface Area (sf)]))/12)*Imperial_Stone_Void_Percentage) ->  | K143: =IF(B143="","",SUM(J143:$J$233)) ->  | W143: -6.79 | AC143: =IF($AU$21="INVERT",X143,IF(AC142>=$Y$12,"",IF(X142="","",INDEX($X$18:$X$227,$AA$17-ROWS($X$18:$X142))))) ->  | BG143: =IF($AU$21="INVERT",X143,IF(AC142>=$Y$12,"",IF(X142="","",INDEX($X$18:$X$227,$AA$17-ROWS($X$18:$X142))))) ->  | BI143: =IF(AE142="","", IF($AU$21="TYP", IF(Y142="","", INDEX($Y$18:$Y$227, $AA$17-ROWS($Y$18:$Y142))), IF($AU$21="INVERT",Y143, "") ) ) ->  | BL143: =IF(BL142>=$Y$12,"",IF(X142="","",INDEX($X$18:$X$227,$AA$17-ROWS($X$18:$X142)))) ->  | BN143: 0 | BS143: =IF(Y142="","",INDEX($Y$17:$Y$227,$AA$17-ROWS($Y$17:$Y142))) -> 
A144: =IF(B146<>"",A143+1,"") ->  | C144: =IF(B144="","",IFERROR(_xlfn.XLOOKUP(B144,ImperialIncrementalData[System Increment],_xlfn.XLOOKUP('Imperial Incremental Crate'!$R$3,ImperialIncrementalData[#Headers],ImperialIncrementalData[]),,1),0)) ->  | E144: =IF(B144="","",IFERROR(_xlfn.XLOOKUP(B144,ImperialIncrementalData[System Increment],_xlfn.XLOOKUP(Imperial_Incremental_Data_Target_Column,ImperialIncrementalData[#Headers],ImperialIncrementalData[]),,1),0)) ->  | F144: =IF(B144="","",IF(B145="",((((1)/12)*Imperial_Module_Square_Foot_Area)-'Cumulative Volumes Imperial'!E144)*Imperial_Stone_Void_Percentage,((((B144-B145)/12)*Imperial_Module_Square_Foot_Area)-'Cumulative Volumes Imperial'!E144)*Imperial_Stone_Void_Percentage)) ->  | H144: =IF(B144="","",((Imperial_System_Area_Input-Imperial_Number_Of_Stacks*_xlfn.XLOOKUP(Imperial_Layers,CrateData[Layer],CrateData[Surface Area (sf)]))/12)*Imperial_Stone_Void_Percentage) ->  | K144: =IF(B144="","",SUM(J144:$J$233)) ->  | W144: -6.87 | AC144: =IF($AU$21="INVERT",X144,IF(AC143>=$Y$12,"",IF(X143="","",INDEX($X$18:$X$227,$AA$17-ROWS($X$18:$X143))))) ->  | BG144: =IF($AU$21="INVERT",X144,IF(AC143>=$Y$12,"",IF(X143="","",INDEX($X$18:$X$227,$AA$17-ROWS($X$18:$X143))))) ->  | BI144: =IF(AE143="","", IF($AU$21="TYP", IF(Y143="","", INDEX($Y$18:$Y$227, $AA$17-ROWS($Y$18:$Y143))), IF($AU$21="INVERT",Y144, "") ) ) ->  | BL144: =IF(BL143>=$Y$12,"",IF(X143="","",INDEX($X$18:$X$227,$AA$17-ROWS($X$18:$X143)))) ->  | BN144: 0 | BS144: =IF(Y143="","",INDEX($Y$17:$Y$227,$AA$17-ROWS($Y$17:$Y143))) -> 
C145: =IF(B145="","",IFERROR(_xlfn.XLOOKUP(B145,ImperialIncrementalData[System Increment],_xlfn.XLOOKUP('Imperial Incremental Crate'!$R$3,ImperialIncrementalData[#Headers],ImperialIncrementalData[]),,1),0)) ->  | E145: =IF(B145="","",IFERROR(_xlfn.XLOOKUP(B145,ImperialIncrementalData[System Increment],_xlfn.XLOOKUP(Imperial_Incremental_Data_Target_Column,ImperialIncrementalData[#Headers],ImperialIncrementalData[]),,1),0)) ->  | F145: =IF(B145="","",IF(B146="",((((1)/12)*Imperial_Module_Square_Foot_Area)-'Cumulative Volumes Imperial'!E145)*Imperial_Stone_Void_Percentage,((((B145-B146)/12)*Imperial_Module_Square_Foot_Area)-'Cumulative Volumes Imperial'!E145)*Imperial_Stone_Void_Percentage)) ->  | H145: =IF(B145="","",((Imperial_System_Area_Input-Imperial_Number_Of_Stacks*_xlfn.XLOOKUP(Imperial_Layers,CrateData[Layer],CrateData[Surface Area (sf)]))/12)*Imperial_Stone_Void_Percentage) ->  | K145: =IF(B145="","",SUM(J145:$J$233)) ->  | W145: -6.96 | AC145: =IF($AU$21="INVERT",X145,IF(AC144>=$Y$12,"",IF(X144="","",INDEX($X$18:$X$227,$AA$17-ROWS($X$18:$X144))))) ->  | BG145: =IF($AU$21="INVERT",X145,IF(AC144>=$Y$12,"",IF(X144="","",INDEX($X$18:$X$227,$AA$17-ROWS($X$18:$X144))))) ->  | BI145: =IF(AE144="","", IF($AU$21="TYP", IF(Y144="","", INDEX($Y$18:$Y$227, $AA$17-ROWS($Y$18:$Y144))), IF($AU$21="INVERT",Y145, "") ) ) ->  | BL145: =IF(BL144>=$Y$12,"",IF(X144="","",INDEX($X$18:$X$227,$AA$17-ROWS($X$18:$X144)))) ->  | BN145: 0 | BS145: =IF(Y144="","",INDEX($Y$17:$Y$227,$AA$17-ROWS($Y$17:$Y144))) -> 
C146: =IF(B146="","",IFERROR(_xlfn.XLOOKUP(B146,ImperialIncrementalData[System Increment],_xlfn.XLOOKUP('Imperial Incremental Crate'!$R$3,ImperialIncrementalData[#Headers],ImperialIncrementalData[]),,1),0)) ->  | D146: =IFERROR(C146*Imperial_Number_Of_Stacks,"") ->  | E146: =IF(B146="","",IFERROR(_xlfn.XLOOKUP(B146,ImperialIncrementalData[System Increment],_xlfn.XLOOKUP(Imperial_Incremental_Data_Target_Column,ImperialIncrementalData[#Headers],ImperialIncrementalData[]),,1),0)) ->  | F146: =IF(B146="","",IF(B147="",((((1)/12)*Imperial_Module_Square_Foot_Area)-'Cumulative Volumes Imperial'!E146)*Imperial_Stone_Void_Percentage,((((B146-B147)/12)*Imperial_Module_Square_Foot_Area)-'Cumulative Volumes Imperial'!E146)*Imperial_Stone_Void_Percentage)) ->  | G146: =IFERROR(F146*Imperial_Number_Of_Stacks,"") ->  | H146: =IF(B146="","",((Imperial_System_Area_Input-Imperial_Number_Of_Stacks*_xlfn.XLOOKUP(Imperial_Layers,CrateData[Layer],CrateData[Surface Area (sf)]))/12)*Imperial_Stone_Void_Percentage) ->  | I146: =IFERROR(IF($AW$17, H146+G146, G146), "") ->  | J146: =IFERROR(I146+D146,"") ->  | K146: =IF(B146="","",SUM(J146:$J$233)) ->  | L146: =IFERROR($I$11+B146/12,"") ->  | U146: =IF(L147="",IF(L146="","",$I$11),L146) ->  | W146: -7.04 | AC146: =IF($AU$21="INVERT",X146,IF(AC145>=$Y$12,"",IF(X145="","",INDEX($X$18:$X$227,$AA$17-ROWS($X$18:$X145))))) ->  | AF146: =IF($AU$17=TRUE, BJ146, IF($AU$23=TRUE, "", "")) ->  | BG146: =IF($AU$21="INVERT",X146,IF(AC145>=$Y$12,"",IF(X145="","",INDEX($X$18:$X$227,$AA$17-ROWS($X$18:$X145))))) ->  | BH146: =IF(AC146="","",$I$11+AC146) ->  | BI146: =IF(AE145="","", IF($AU$21="TYP", IF(Y145="","", INDEX($Y$18:$Y$227, $AA$17-ROWS($Y$18:$Y145))), IF($AU$21="INVERT",Y146, "") ) ) ->  | BJ146: =IF(AE146="","",AE146/43560) ->  | BL146: =IF(BL145>=$Y$12,"",IF(X145="","",INDEX($X$18:$X$227,$AA$17-ROWS($X$18:$X145)))) ->  | BN146: 0 | BS146: =IF(Y145="","",INDEX($Y$17:$Y$227,$AA$17-ROWS($Y$17:$Y145))) -> 
C147: =IF(B147="","",IFERROR(_xlfn.XLOOKUP(B147,ImperialIncrementalData[System Increment],_xlfn.XLOOKUP('Imperial Incremental Crate'!$R$3,ImperialIncrementalData[#Headers],ImperialIncrementalData[]),,1),0)) ->  | E147: =IF(B147="","",IFERROR(_xlfn.XLOOKUP(B147,ImperialIncrementalData[System Increment],_xlfn.XLOOKUP(Imperial_Incremental_Data_Target_Column,ImperialIncrementalData[#Headers],ImperialIncrementalData[]),,1),0)) ->  | F147: =IF(B147="","",IF(B148="",((((1)/12)*Imperial_Module_Square_Foot_Area)-'Cumulative Volumes Imperial'!E147)*Imperial_Stone_Void_Percentage,((((B147-B148)/12)*Imperial_Module_Square_Foot_Area)-'Cumulative Volumes Imperial'!E147)*Imperial_Stone_Void_Percentage)) ->  | H147: =IF(B147="","",((Imperial_System_Area_Input-Imperial_Number_Of_Stacks*_xlfn.XLOOKUP(Imperial_Layers,CrateData[Layer],CrateData[Surface Area (sf)]))/12)*Imperial_Stone_Void_Percentage) ->  | K147: =IF(B147="","",SUM(J147:$J$233)) ->  | W147: -7.12 | X147: =IF(AND(B147="",B146=1),0,IF(B147="","",IF(OR(W147=0,W147>0),W147,""))) ->  | Y147: =IF(X147="","",IF(X147=0,K146/$AA$11,IF(ISNUMBER(U148),(K147-K148)/(L147-L148),Y146))) ->  | AA147: =IF(X147="","",1) ->  | AC147: =IF($AU$21="INVERT",X147,IF(AC146>=$Y$12,"",IF(X146="","",INDEX($X$18:$X$227,$AA$17-ROWS($X$18:$X146))))) ->  | AD147: =IF($AN$17=TRUE, BH147, IF($AN$23=TRUE, BM147, "")) ->  | AE147: =IF($AU$17=TRUE, BI147, IF($AU$23=TRUE, BN147, "")) ->  | BG147: =IF($AU$21="INVERT",X147,IF(AC146>=$Y$12,"",IF(X146="","",INDEX($X$18:$X$227,$AA$17-ROWS($X$18:$X146))))) ->  | BI147: =IF(AE146="","", IF($AU$21="TYP", IF(Y146="","", INDEX($Y$18:$Y$227, $AA$17-ROWS($Y$18:$Y146))), IF($AU$21="INVERT",Y147, "") ) ) ->  | BL147: =IF(BL146>=$Y$12,"",IF(X146="","",INDEX($X$18:$X$227,$AA$17-ROWS($X$18:$X146)))) ->  | BN147: 0 | BS147: =IF(Y146="","",INDEX($Y$17:$Y$227,$AA$17-ROWS($Y$17:$Y146))) -> 
B148: =IFERROR(IF(B147-1<1,"",B147-1),"") ->  | C148: =IF(B148="","",IFERROR(_xlfn.XLOOKUP(B148,ImperialIncrementalData[System Increment],_xlfn.XLOOKUP('Imperial Incremental Crate'!$R$3,ImperialIncrementalData[#Headers],ImperialIncrementalData[]),,1),0)) ->  | E148: =IF(B148="","",IFERROR(_xlfn.XLOOKUP(B148,ImperialIncrementalData[System Increment],_xlfn.XLOOKUP(Imperial_Incremental_Data_Target_Column,ImperialIncrementalData[#Headers],ImperialIncrementalData[]),,1),0)) ->  | F148: =IF(B148="","",IF(B149="",((((1)/12)*Imperial_Module_Square_Foot_Area)-'Cumulative Volumes Imperial'!E148)*Imperial_Stone_Void_Percentage,((((B148-B149)/12)*Imperial_Module_Square_Foot_Area)-'Cumulative Volumes Imperial'!E148)*Imperial_Stone_Void_Percentage)) ->  | H148: =IF(B148="","",((Imperial_System_Area_Input-Imperial_Number_Of_Stacks*_xlfn.XLOOKUP(Imperial_Layers,CrateData[Layer],CrateData[Surface Area (sf)]))/12)*Imperial_Stone_Void_Percentage) ->  | K148: =IF(B148="","",SUM(J148:$J$233)) ->  | W148: =W147-($AA$11) -> -7.21 | AC148: =IF($AU$21="INVERT",X148,IF(AC147>=$Y$12,"",IF(X147="","",INDEX($X$18:$X$227,$AA$17-ROWS($X$18:$X147))))) ->  | BG148: =IF($AU$21="INVERT",X148,IF(AC147>=$Y$12,"",IF(X147="","",INDEX($X$18:$X$227,$AA$17-ROWS($X$18:$X147))))) ->  | BI148: =IF(AE147="","", IF($AU$21="TYP", IF(Y147="","", INDEX($Y$18:$Y$227, $AA$17-ROWS($Y$18:$Y147))), IF($AU$21="INVERT",Y148, "") ) ) ->  | BL148: =IF(BL147>=$Y$12,"",IF(X147="","",INDEX($X$18:$X$227,$AA$17-ROWS($X$18:$X147)))) ->  | BM148: =IF(BS148="","",BS148/43560) ->  | BN148: =BQ148 -> 0 | BS148: =IF(Y147="","",INDEX($Y$17:$Y$227,$AA$17-ROWS($Y$17:$Y147))) -> 
C149: =IF(B149="","",IFERROR(_xlfn.XLOOKUP(B149,ImperialIncrementalData[System Increment],_xlfn.XLOOKUP('Imperial Incremental Crate'!$R$3,ImperialIncrementalData[#Headers],ImperialIncrementalData[]),,1),0)) ->  | E149: =IF(B149="","",IFERROR(_xlfn.XLOOKUP(B149,ImperialIncrementalData[System Increment],_xlfn.XLOOKUP(Imperial_Incremental_Data_Target_Column,ImperialIncrementalData[#Headers],ImperialIncrementalData[]),,1),0)) ->  | F149: =IF(B149="","",IF(B150="",((((1)/12)*Imperial_Module_Square_Foot_Area)-'Cumulative Volumes Imperial'!E149)*Imperial_Stone_Void_Percentage,((((B149-B150)/12)*Imperial_Module_Square_Foot_Area)-'Cumulative Volumes Imperial'!E149)*Imperial_Stone_Void_Percentage)) ->  | H149: =IF(B149="","",((Imperial_System_Area_Input-Imperial_Number_Of_Stacks*_xlfn.XLOOKUP(Imperial_Layers,CrateData[Layer],CrateData[Surface Area (sf)]))/12)*Imperial_Stone_Void_Percentage) ->  | K149: =IF(B149="","",SUM(J149:$J$233)) ->  | W149: -7.29 | AC149: =IF($AU$21="INVERT",X149,IF(AC148>=$Y$12,"",IF(X148="","",INDEX($X$18:$X$227,$AA$17-ROWS($X$18:$X148))))) ->  | BG149: =IF($AU$21="INVERT",X149,IF(AC148>=$Y$12,"",IF(X148="","",INDEX($X$18:$X$227,$AA$17-ROWS($X$18:$X148))))) ->  | BI149: =IF(AE148="","", IF($AU$21="TYP", IF(Y148="","", INDEX($Y$18:$Y$227, $AA$17-ROWS($Y$18:$Y148))), IF($AU$21="INVERT",Y149, "") ) ) ->  | BL149: =IF(BL148>=$Y$12,"",IF(X148="","",INDEX($X$18:$X$227,$AA$17-ROWS($X$18:$X148)))) ->  | BN149: 0 | BS149: =IF(Y148="","",INDEX($Y$17:$Y$227,$AA$17-ROWS($Y$17:$Y148))) -> 
C150: =IF(B150="","",IFERROR(_xlfn.XLOOKUP(B150,ImperialIncrementalData[System Increment],_xlfn.XLOOKUP('Imperial Incremental Crate'!$R$3,ImperialIncrementalData[#Headers],ImperialIncrementalData[]),,1),0)) ->  | E150: =IF(B150="","",IFERROR(_xlfn.XLOOKUP(B150,ImperialIncrementalData[System Increment],_xlfn.XLOOKUP(Imperial_Incremental_Data_Target_Column,ImperialIncrementalData[#Headers],ImperialIncrementalData[]),,1),0)) ->  | F150: =IF(B150="","",IF(B151="",((((1)/12)*Imperial_Module_Square_Foot_Area)-'Cumulative Volumes Imperial'!E150)*Imperial_Stone_Void_Percentage,((((B150-B151)/12)*Imperial_Module_Square_Foot_Area)-'Cumulative Volumes Imperial'!E150)*Imperial_Stone_Void_Percentage)) ->  | H150: =IF(B150="","",((Imperial_System_Area_Input-Imperial_Number_Of_Stacks*_xlfn.XLOOKUP(Imperial_Layers,CrateData[Layer],CrateData[Surface Area (sf)]))/12)*Imperial_Stone_Void_Percentage) ->  | K150: =IF(B150="","",SUM(J150:$J$233)) ->  | W150: -7.37 | AC150: =IF($AU$21="INVERT",X150,IF(AC149>=$Y$12,"",IF(X149="","",INDEX($X$18:$X$227,$AA$17-ROWS($X$18:$X149))))) ->  | BG150: =IF($AU$21="INVERT",X150,IF(AC149>=$Y$12,"",IF(X149="","",INDEX($X$18:$X$227,$AA$17-ROWS($X$18:$X149))))) ->  | BI150: =IF(AE149="","", IF($AU$21="TYP", IF(Y149="","", INDEX($Y$18:$Y$227, $AA$17-ROWS($Y$18:$Y149))), IF($AU$21="INVERT",Y150, "") ) ) ->  | BL150: =IF(BL149>=$Y$12,"",IF(X149="","",INDEX($X$18:$X$227,$AA$17-ROWS($X$18:$X149)))) ->  | BN150: 0 | BS150: =IF(Y149="","",INDEX($Y$17:$Y$227,$AA$17-ROWS($Y$17:$Y149))) -> 
C151: =IF(B151="","",IFERROR(_xlfn.XLOOKUP(B151,ImperialIncrementalData[System Increment],_xlfn.XLOOKUP('Imperial Incremental Crate'!$R$3,ImperialIncrementalData[#Headers],ImperialIncrementalData[]),,1),0)) ->  | E151: =IF(B151="","",IFERROR(_xlfn.XLOOKUP(B151,ImperialIncrementalData[System Increment],_xlfn.XLOOKUP(Imperial_Incremental_Data_Target_Column,ImperialIncrementalData[#Headers],ImperialIncrementalData[]),,1),0)) ->  | F151: =IF(B151="","",IF(B152="",((((1)/12)*Imperial_Module_Square_Foot_Area)-'Cumulative Volumes Imperial'!E151)*Imperial_Stone_Void_Percentage,((((B151-B152)/12)*Imperial_Module_Square_Foot_Area)-'Cumulative Volumes Imperial'!E151)*Imperial_Stone_Void_Percentage)) ->  | H151: =IF(B151="","",((Imperial_System_Area_Input-Imperial_Number_Of_Stacks*_xlfn.XLOOKUP(Imperial_Layers,CrateData[Layer],CrateData[Surface Area (sf)]))/12)*Imperial_Stone_Void_Percentage) ->  | K151: =IF(B151="","",SUM(J151:$J$233)) ->  | W151: -7.46 | AC151: =IF($AU$21="INVERT",X151,IF(AC150>=$Y$12,"",IF(X150="","",INDEX($X$18:$X$227,$AA$17-ROWS($X$18:$X150))))) ->  | BG151: =IF($AU$21="INVERT",X151,IF(AC150>=$Y$12,"",IF(X150="","",INDEX($X$18:$X$227,$AA$17-ROWS($X$18:$X150))))) ->  | BI151: =IF(AE150="","", IF($AU$21="TYP", IF(Y150="","", INDEX($Y$18:$Y$227, $AA$17-ROWS($Y$18:$Y150))), IF($AU$21="INVERT",Y151, "") ) ) ->  | BL151: =IF(BL150>=$Y$12,"",IF(X150="","",INDEX($X$18:$X$227,$AA$17-ROWS($X$18:$X150)))) ->  | BN151: 0 | BS151: =IF(Y150="","",INDEX($Y$17:$Y$227,$AA$17-ROWS($Y$17:$Y150))) -> 
C152: =IF(B152="","",IFERROR(_xlfn.XLOOKUP(B152,ImperialIncrementalData[System Increment],_xlfn.XLOOKUP('Imperial Incremental Crate'!$R$3,ImperialIncrementalData[#Headers],ImperialIncrementalData[]),,1),0)) ->  | E152: =IF(B152="","",IFERROR(_xlfn.XLOOKUP(B152,ImperialIncrementalData[System Increment],_xlfn.XLOOKUP(Imperial_Incremental_Data_Target_Column,ImperialIncrementalData[#Headers],ImperialIncrementalData[]),,1),0)) ->  | F152: =IF(B152="","",IF(B153="",((((1)/12)*Imperial_Module_Square_Foot_Area)-'Cumulative Volumes Imperial'!E152)*Imperial_Stone_Void_Percentage,((((B152-B153)/12)*Imperial_Module_Square_Foot_Area)-'Cumulative Volumes Imperial'!E152)*Imperial_Stone_Void_Percentage)) ->  | H152: =IF(B152="","",((Imperial_System_Area_Input-Imperial_Number_Of_Stacks*_xlfn.XLOOKUP(Imperial_Layers,CrateData[Layer],CrateData[Surface Area (sf)]))/12)*Imperial_Stone_Void_Percentage) ->  | K152: =IF(B152="","",SUM(J152:$J$233)) ->  | W152: -7.54 | AC152: =IF($AU$21="INVERT",X152,IF(AC151>=$Y$12,"",IF(X151="","",INDEX($X$18:$X$227,$AA$17-ROWS($X$18:$X151))))) ->  | BG152: =IF($AU$21="INVERT",X152,IF(AC151>=$Y$12,"",IF(X151="","",INDEX($X$18:$X$227,$AA$17-ROWS($X$18:$X151))))) ->  | BI152: =IF(AE151="","", IF($AU$21="TYP", IF(Y151="","", INDEX($Y$18:$Y$227, $AA$17-ROWS($Y$18:$Y151))), IF($AU$21="INVERT",Y152, "") ) ) ->  | BL152: =IF(BL151>=$Y$12,"",IF(X151="","",INDEX($X$18:$X$227,$AA$17-ROWS($X$18:$X151)))) ->  | BN152: 0 | BS152: =IF(Y151="","",INDEX($Y$17:$Y$227,$AA$17-ROWS($Y$17:$Y151))) -> 
C153: =IF(B153="","",IFERROR(_xlfn.XLOOKUP(B153,ImperialIncrementalData[System Increment],_xlfn.XLOOKUP('Imperial Incremental Crate'!$R$3,ImperialIncrementalData[#Headers],ImperialIncrementalData[]),,1),0)) ->  | E153: =IF(B153="","",IFERROR(_xlfn.XLOOKUP(B153,ImperialIncrementalData[System Increment],_xlfn.XLOOKUP(Imperial_Incremental_Data_Target_Column,ImperialIncrementalData[#Headers],ImperialIncrementalData[]),,1),0)) ->  | F153: =IF(B153="","",IF(B154="",((((1)/12)*Imperial_Module_Square_Foot_Area)-'Cumulative Volumes Imperial'!E153)*Imperial_Stone_Void_Percentage,((((B153-B154)/12)*Imperial_Module_Square_Foot_Area)-'Cumulative Volumes Imperial'!E153)*Imperial_Stone_Void_Percentage)) ->  | H153: =IF(B153="","",((Imperial_System_Area_Input-Imperial_Number_Of_Stacks*_xlfn.XLOOKUP(Imperial_Layers,CrateData[Layer],CrateData[Surface Area (sf)]))/12)*Imperial_Stone_Void_Percentage) ->  | K153: =IF(B153="","",SUM(J153:$J$233)) ->  | W153: -7.62 | AC153: =IF($AU$21="INVERT",X153,IF(AC152>=$Y$12,"",IF(X152="","",INDEX($X$18:$X$227,$AA$17-ROWS($X$18:$X152))))) ->  | BG153: =IF($AU$21="INVERT",X153,IF(AC152>=$Y$12,"",IF(X152="","",INDEX($X$18:$X$227,$AA$17-ROWS($X$18:$X152))))) ->  | BI153: =IF(AE152="","", IF($AU$21="TYP", IF(Y152="","", INDEX($Y$18:$Y$227, $AA$17-ROWS($Y$18:$Y152))), IF($AU$21="INVERT",Y153, "") ) ) ->  | BL153: =IF(BL152>=$Y$12,"",IF(X152="","",INDEX($X$18:$X$227,$AA$17-ROWS($X$18:$X152)))) ->  | BN153: 0 | BS153: =IF(Y152="","",INDEX($Y$17:$Y$227,$AA$17-ROWS($Y$17:$Y152))) -> 
C154: =IF(B154="","",IFERROR(_xlfn.XLOOKUP(B154,ImperialIncrementalData[System Increment],_xlfn.XLOOKUP('Imperial Incremental Crate'!$R$3,ImperialIncrementalData[#Headers],ImperialIncrementalData[]),,1),0)) ->  | E154: =IF(B154="","",IFERROR(_xlfn.XLOOKUP(B154,ImperialIncrementalData[System Increment],_xlfn.XLOOKUP(Imperial_Incremental_Data_Target_Column,ImperialIncrementalData[#Headers],ImperialIncrementalData[]),,1),0)) ->  | F154: =IF(B154="","",IF(B155="",((((1)/12)*Imperial_Module_Square_Foot_Area)-'Cumulative Volumes Imperial'!E154)*Imperial_Stone_Void_Percentage,((((B154-B155)/12)*Imperial_Module_Square_Foot_Area)-'Cumulative Volumes Imperial'!E154)*Imperial_Stone_Void_Percentage)) ->  | H154: =IF(B154="","",((Imperial_System_Area_Input-Imperial_Number_Of_Stacks*_xlfn.XLOOKUP(Imperial_Layers,CrateData[Layer],CrateData[Surface Area (sf)]))/12)*Imperial_Stone_Void_Percentage) ->  | K154: =IF(B154="","",SUM(J154:$J$233)) ->  | W154: -7.71 | AC154: =IF($AU$21="INVERT",X154,IF(AC153>=$Y$12,"",IF(X153="","",INDEX($X$18:$X$227,$AA$17-ROWS($X$18:$X153))))) ->  | BG154: =IF($AU$21="INVERT",X154,IF(AC153>=$Y$12,"",IF(X153="","",INDEX($X$18:$X$227,$AA$17-ROWS($X$18:$X153))))) ->  | BI154: =IF(AE153="","", IF($AU$21="TYP", IF(Y153="","", INDEX($Y$18:$Y$227, $AA$17-ROWS($Y$18:$Y153))), IF($AU$21="INVERT",Y154, "") ) ) ->  | BL154: =IF(BL153>=$Y$12,"",IF(X153="","",INDEX($X$18:$X$227,$AA$17-ROWS($X$18:$X153)))) ->  | BN154: 0 | BS154: =IF(Y153="","",INDEX($Y$17:$Y$227,$AA$17-ROWS($Y$17:$Y153))) -> 
C155: =IF(B155="","",IFERROR(_xlfn.XLOOKUP(B155,ImperialIncrementalData[System Increment],_xlfn.XLOOKUP('Imperial Incremental Crate'!$R$3,ImperialIncrementalData[#Headers],ImperialIncrementalData[]),,1),0)) ->  | E155: =IF(B155="","",IFERROR(_xlfn.XLOOKUP(B155,ImperialIncrementalData[System Increment],_xlfn.XLOOKUP(Imperial_Incremental_Data_Target_Column,ImperialIncrementalData[#Headers],ImperialIncrementalData[]),,1),0)) ->  | F155: =IF(B155="","",IF(B156="",((((1)/12)*Imperial_Module_Square_Foot_Area)-'Cumulative Volumes Imperial'!E155)*Imperial_Stone_Void_Percentage,((((B155-B156)/12)*Imperial_Module_Square_Foot_Area)-'Cumulative Volumes Imperial'!E155)*Imperial_Stone_Void_Percentage)) ->  | H155: =IF(B155="","",((Imperial_System_Area_Input-Imperial_Number_Of_Stacks*_xlfn.XLOOKUP(Imperial_Layers,CrateData[Layer],CrateData[Surface Area (sf)]))/12)*Imperial_Stone_Void_Percentage) ->  | K155: =IF(B155="","",SUM(J155:$J$233)) ->  | W155: -7.79 | AC155: =IF($AU$21="INVERT",X155,IF(AC154>=$Y$12,"",IF(X154="","",INDEX($X$18:$X$227,$AA$17-ROWS($X$18:$X154))))) ->  | BG155: =IF($AU$21="INVERT",X155,IF(AC154>=$Y$12,"",IF(X154="","",INDEX($X$18:$X$227,$AA$17-ROWS($X$18:$X154))))) ->  | BI155: =IF(AE154="","", IF($AU$21="TYP", IF(Y154="","", INDEX($Y$18:$Y$227, $AA$17-ROWS($Y$18:$Y154))), IF($AU$21="INVERT",Y155, "") ) ) ->  | BL155: =IF(BL154>=$Y$12,"",IF(X154="","",INDEX($X$18:$X$227,$AA$17-ROWS($X$18:$X154)))) ->  | BN155: 0 | BS155: =IF(Y154="","",INDEX($Y$17:$Y$227,$AA$17-ROWS($Y$17:$Y154))) -> 
C156: =IF(B156="","",IFERROR(_xlfn.XLOOKUP(B156,ImperialIncrementalData[System Increment],_xlfn.XLOOKUP('Imperial Incremental Crate'!$R$3,ImperialIncrementalData[#Headers],ImperialIncrementalData[]),,1),0)) ->  | E156: =IF(B156="","",IFERROR(_xlfn.XLOOKUP(B156,ImperialIncrementalData[System Increment],_xlfn.XLOOKUP(Imperial_Incremental_Data_Target_Column,ImperialIncrementalData[#Headers],ImperialIncrementalData[]),,1),0)) ->  | F156: =IF(B156="","",IF(B157="",((((1)/12)*Imperial_Module_Square_Foot_Area)-'Cumulative Volumes Imperial'!E156)*Imperial_Stone_Void_Percentage,((((B156-B157)/12)*Imperial_Module_Square_Foot_Area)-'Cumulative Volumes Imperial'!E156)*Imperial_Stone_Void_Percentage)) ->  | H156: =IF(B156="","",((Imperial_System_Area_Input-Imperial_Number_Of_Stacks*_xlfn.XLOOKUP(Imperial_Layers,CrateData[Layer],CrateData[Surface Area (sf)]))/12)*Imperial_Stone_Void_Percentage) ->  | K156: =IF(B156="","",SUM(J156:$J$233)) ->  | W156: -7.87 | AC156: =IF($AU$21="INVERT",X156,IF(AC155>=$Y$12,"",IF(X155="","",INDEX($X$18:$X$227,$AA$17-ROWS($X$18:$X155))))) ->  | BG156: =IF($AU$21="INVERT",X156,IF(AC155>=$Y$12,"",IF(X155="","",INDEX($X$18:$X$227,$AA$17-ROWS($X$18:$X155))))) ->  | BI156: =IF(AE155="","", IF($AU$21="TYP", IF(Y155="","", INDEX($Y$18:$Y$227, $AA$17-ROWS($Y$18:$Y155))), IF($AU$21="INVERT",Y156, "") ) ) ->  | BL156: =IF(BL155>=$Y$12,"",IF(X155="","",INDEX($X$18:$X$227,$AA$17-ROWS($X$18:$X155)))) ->  | BN156: 0 | BS156: =IF(Y155="","",INDEX($Y$17:$Y$227,$AA$17-ROWS($Y$17:$Y155))) -> 
C157: =IF(B157="","",IFERROR(_xlfn.XLOOKUP(B157,ImperialIncrementalData[System Increment],_xlfn.XLOOKUP('Imperial Incremental Crate'!$R$3,ImperialIncrementalData[#Headers],ImperialIncrementalData[]),,1),0)) ->  | E157: =IF(B157="","",IFERROR(_xlfn.XLOOKUP(B157,ImperialIncrementalData[System Increment],_xlfn.XLOOKUP(Imperial_Incremental_Data_Target_Column,ImperialIncrementalData[#Headers],ImperialIncrementalData[]),,1),0)) ->  | F157: =IF(B157="","",IF(B158="",((((1)/12)*Imperial_Module_Square_Foot_Area)-'Cumulative Volumes Imperial'!E157)*Imperial_Stone_Void_Percentage,((((B157-B158)/12)*Imperial_Module_Square_Foot_Area)-'Cumulative Volumes Imperial'!E157)*Imperial_Stone_Void_Percentage)) ->  | H157: =IF(B157="","",((Imperial_System_Area_Input-Imperial_Number_Of_Stacks*_xlfn.XLOOKUP(Imperial_Layers,CrateData[Layer],CrateData[Surface Area (sf)]))/12)*Imperial_Stone_Void_Percentage) ->  | K157: =IF(B157="","",SUM(J157:$J$233)) ->  | W157: -7.96 | AC157: =IF($AU$21="INVERT",X157,IF(AC156>=$Y$12,"",IF(X156="","",INDEX($X$18:$X$227,$AA$17-ROWS($X$18:$X156))))) ->  | BG157: =IF($AU$21="INVERT",X157,IF(AC156>=$Y$12,"",IF(X156="","",INDEX($X$18:$X$227,$AA$17-ROWS($X$18:$X156))))) ->  | BI157: =IF(AE156="","", IF($AU$21="TYP", IF(Y156="","", INDEX($Y$18:$Y$227, $AA$17-ROWS($Y$18:$Y156))), IF($AU$21="INVERT",Y157, "") ) ) ->  | BL157: =IF(BL156>=$Y$12,"",IF(X156="","",INDEX($X$18:$X$227,$AA$17-ROWS($X$18:$X156)))) ->  | BN157: 0 | BS157: =IF(Y156="","",INDEX($Y$17:$Y$227,$AA$17-ROWS($Y$17:$Y156))) -> 
C158: =IF(B158="","",IFERROR(_xlfn.XLOOKUP(B158,ImperialIncrementalData[System Increment],_xlfn.XLOOKUP('Imperial Incremental Crate'!$R$3,ImperialIncrementalData[#Headers],ImperialIncrementalData[]),,1),0)) ->  | E158: =IF(B158="","",IFERROR(_xlfn.XLOOKUP(B158,ImperialIncrementalData[System Increment],_xlfn.XLOOKUP(Imperial_Incremental_Data_Target_Column,ImperialIncrementalData[#Headers],ImperialIncrementalData[]),,1),0)) ->  | F158: =IF(B158="","",IF(B159="",((((1)/12)*Imperial_Module_Square_Foot_Area)-'Cumulative Volumes Imperial'!E158)*Imperial_Stone_Void_Percentage,((((B158-B159)/12)*Imperial_Module_Square_Foot_Area)-'Cumulative Volumes Imperial'!E158)*Imperial_Stone_Void_Percentage)) ->  | H158: =IF(B158="","",((Imperial_System_Area_Input-Imperial_Number_Of_Stacks*_xlfn.XLOOKUP(Imperial_Layers,CrateData[Layer],CrateData[Surface Area (sf)]))/12)*Imperial_Stone_Void_Percentage) ->  | K158: =IF(B158="","",SUM(J158:$J$233)) ->  | W158: -8.04 | AC158: =IF($AU$21="INVERT",X158,IF(AC157>=$Y$12,"",IF(X157="","",INDEX($X$18:$X$227,$AA$17-ROWS($X$18:$X157))))) ->  | BG158: =IF($AU$21="INVERT",X158,IF(AC157>=$Y$12,"",IF(X157="","",INDEX($X$18:$X$227,$AA$17-ROWS($X$18:$X157))))) ->  | BI158: =IF(AE157="","", IF($AU$21="TYP", IF(Y157="","", INDEX($Y$18:$Y$227, $AA$17-ROWS($Y$18:$Y157))), IF($AU$21="INVERT",Y158, "") ) ) ->  | BL158: =IF(BL157>=$Y$12,"",IF(X157="","",INDEX($X$18:$X$227,$AA$17-ROWS($X$18:$X157)))) ->  | BN158: 0 | BS158: =IF(Y157="","",INDEX($Y$17:$Y$227,$AA$17-ROWS($Y$17:$Y157))) -> 
C159: =IF(B159="","",IFERROR(_xlfn.XLOOKUP(B159,ImperialIncrementalData[System Increment],_xlfn.XLOOKUP('Imperial Incremental Crate'!$R$3,ImperialIncrementalData[#Headers],ImperialIncrementalData[]),,1),0)) ->  | E159: =IF(B159="","",IFERROR(_xlfn.XLOOKUP(B159,ImperialIncrementalData[System Increment],_xlfn.XLOOKUP(Imperial_Incremental_Data_Target_Column,ImperialIncrementalData[#Headers],ImperialIncrementalData[]),,1),0)) ->  | F159: =IF(B159="","",IF(B160="",((((1)/12)*Imperial_Module_Square_Foot_Area)-'Cumulative Volumes Imperial'!E159)*Imperial_Stone_Void_Percentage,((((B159-B160)/12)*Imperial_Module_Square_Foot_Area)-'Cumulative Volumes Imperial'!E159)*Imperial_Stone_Void_Percentage)) ->  | H159: =IF(B159="","",((Imperial_System_Area_Input-Imperial_Number_Of_Stacks*_xlfn.XLOOKUP(Imperial_Layers,CrateData[Layer],CrateData[Surface Area (sf)]))/12)*Imperial_Stone_Void_Percentage) ->  | K159: =IF(B159="","",SUM(J159:$J$233)) ->  | W159: -8.12 | AC159: =IF($AU$21="INVERT",X159,IF(AC158>=$Y$12,"",IF(X158="","",INDEX($X$18:$X$227,$AA$17-ROWS($X$18:$X158))))) ->  | BG159: =IF($AU$21="INVERT",X159,IF(AC158>=$Y$12,"",IF(X158="","",INDEX($X$18:$X$227,$AA$17-ROWS($X$18:$X158))))) ->  | BI159: =IF(AE158="","", IF($AU$21="TYP", IF(Y158="","", INDEX($Y$18:$Y$227, $AA$17-ROWS($Y$18:$Y158))), IF($AU$21="INVERT",Y159, "") ) ) ->  | BL159: =IF(BL158>=$Y$12,"",IF(X158="","",INDEX($X$18:$X$227,$AA$17-ROWS($X$18:$X158)))) ->  | BN159: 0 | BS159: =IF(Y158="","",INDEX($Y$17:$Y$227,$AA$17-ROWS($Y$17:$Y158))) -> 
C160: =IF(B160="","",IFERROR(_xlfn.XLOOKUP(B160,ImperialIncrementalData[System Increment],_xlfn.XLOOKUP('Imperial Incremental Crate'!$R$3,ImperialIncrementalData[#Headers],ImperialIncrementalData[]),,1),0)) ->  | E160: =IF(B160="","",IFERROR(_xlfn.XLOOKUP(B160,ImperialIncrementalData[System Increment],_xlfn.XLOOKUP(Imperial_Incremental_Data_Target_Column,ImperialIncrementalData[#Headers],ImperialIncrementalData[]),,1),0)) ->  | F160: =IF(B160="","",IF(B161="",((((1)/12)*Imperial_Module_Square_Foot_Area)-'Cumulative Volumes Imperial'!E160)*Imperial_Stone_Void_Percentage,((((B160-B161)/12)*Imperial_Module_Square_Foot_Area)-'Cumulative Volumes Imperial'!E160)*Imperial_Stone_Void_Percentage)) ->  | H160: =IF(B160="","",((Imperial_System_Area_Input-Imperial_Number_Of_Stacks*_xlfn.XLOOKUP(Imperial_Layers,CrateData[Layer],CrateData[Surface Area (sf)]))/12)*Imperial_Stone_Void_Percentage) ->  | K160: =IF(B160="","",SUM(J160:$J$233)) ->  | W160: -8.21 | AC160: =IF($AU$21="INVERT",X160,IF(AC159>=$Y$12,"",IF(X159="","",INDEX($X$18:$X$227,$AA$17-ROWS($X$18:$X159))))) ->  | BG160: =IF($AU$21="INVERT",X160,IF(AC159>=$Y$12,"",IF(X159="","",INDEX($X$18:$X$227,$AA$17-ROWS($X$18:$X159))))) ->  | BI160: =IF(AE159="","", IF($AU$21="TYP", IF(Y159="","", INDEX($Y$18:$Y$227, $AA$17-ROWS($Y$18:$Y159))), IF($AU$21="INVERT",Y160, "") ) ) ->  | BL160: =IF(BL159>=$Y$12,"",IF(X159="","",INDEX($X$18:$X$227,$AA$17-ROWS($X$18:$X159)))) ->  | BN160: 0 | BS160: =IF(Y159="","",INDEX($Y$17:$Y$227,$AA$17-ROWS($Y$17:$Y159))) -> 
C161: =IF(B161="","",IFERROR(_xlfn.XLOOKUP(B161,ImperialIncrementalData[System Increment],_xlfn.XLOOKUP('Imperial Incremental Crate'!$R$3,ImperialIncrementalData[#Headers],ImperialIncrementalData[]),,1),0)) ->  | E161: =IF(B161="","",IFERROR(_xlfn.XLOOKUP(B161,ImperialIncrementalData[System Increment],_xlfn.XLOOKUP(Imperial_Incremental_Data_Target_Column,ImperialIncrementalData[#Headers],ImperialIncrementalData[]),,1),0)) ->  | F161: =IF(B161="","",IF(B162="",((((1)/12)*Imperial_Module_Square_Foot_Area)-'Cumulative Volumes Imperial'!E161)*Imperial_Stone_Void_Percentage,((((B161-B162)/12)*Imperial_Module_Square_Foot_Area)-'Cumulative Volumes Imperial'!E161)*Imperial_Stone_Void_Percentage)) ->  | H161: =IF(B161="","",((Imperial_System_Area_Input-Imperial_Number_Of_Stacks*_xlfn.XLOOKUP(Imperial_Layers,CrateData[Layer],CrateData[Surface Area (sf)]))/12)*Imperial_Stone_Void_Percentage) ->  | K161: =IF(B161="","",SUM(J161:$J$233)) ->  | W161: -8.29 | AC161: =IF($AU$21="INVERT",X161,IF(AC160>=$Y$12,"",IF(X160="","",INDEX($X$18:$X$227,$AA$17-ROWS($X$18:$X160))))) ->  | BG161: =IF($AU$21="INVERT",X161,IF(AC160>=$Y$12,"",IF(X160="","",INDEX($X$18:$X$227,$AA$17-ROWS($X$18:$X160))))) ->  | BI161: =IF(AE160="","", IF($AU$21="TYP", IF(Y160="","", INDEX($Y$18:$Y$227, $AA$17-ROWS($Y$18:$Y160))), IF($AU$21="INVERT",Y161, "") ) ) ->  | BL161: =IF(BL160>=$Y$12,"",IF(X160="","",INDEX($X$18:$X$227,$AA$17-ROWS($X$18:$X160)))) ->  | BN161: 0 | BS161: =IF(Y160="","",INDEX($Y$17:$Y$227,$AA$17-ROWS($Y$17:$Y160))) -> 
C162: =IF(B162="","",IFERROR(_xlfn.XLOOKUP(B162,ImperialIncrementalData[System Increment],_xlfn.XLOOKUP('Imperial Incremental Crate'!$R$3,ImperialIncrementalData[#Headers],ImperialIncrementalData[]),,1),0)) ->  | E162: =IF(B162="","",IFERROR(_xlfn.XLOOKUP(B162,ImperialIncrementalData[System Increment],_xlfn.XLOOKUP(Imperial_Incremental_Data_Target_Column,ImperialIncrementalData[#Headers],ImperialIncrementalData[]),,1),0)) ->  | F162: =IF(B162="","",IF(B163="",((((1)/12)*Imperial_Module_Square_Foot_Area)-'Cumulative Volumes Imperial'!E162)*Imperial_Stone_Void_Percentage,((((B162-B163)/12)*Imperial_Module_Square_Foot_Area)-'Cumulative Volumes Imperial'!E162)*Imperial_Stone_Void_Percentage)) ->  | H162: =IF(B162="","",((Imperial_System_Area_Input-Imperial_Number_Of_Stacks*_xlfn.XLOOKUP(Imperial_Layers,CrateData[Layer],CrateData[Surface Area (sf)]))/12)*Imperial_Stone_Void_Percentage) ->  | K162: =IF(B162="","",SUM(J162:$J$233)) ->  | W162: -8.37 | AC162: =IF($AU$21="INVERT",X162,IF(AC161>=$Y$12,"",IF(X161="","",INDEX($X$18:$X$227,$AA$17-ROWS($X$18:$X161))))) ->  | BG162: =IF($AU$21="INVERT",X162,IF(AC161>=$Y$12,"",IF(X161="","",INDEX($X$18:$X$227,$AA$17-ROWS($X$18:$X161))))) ->  | BI162: =IF(AE161="","", IF($AU$21="TYP", IF(Y161="","", INDEX($Y$18:$Y$227, $AA$17-ROWS($Y$18:$Y161))), IF($AU$21="INVERT",Y162, "") ) ) ->  | BL162: =IF(BL161>=$Y$12,"",IF(X161="","",INDEX($X$18:$X$227,$AA$17-ROWS($X$18:$X161)))) ->  | BN162: 0 | BS162: =IF(Y161="","",INDEX($Y$17:$Y$227,$AA$17-ROWS($Y$17:$Y161))) -> 
C163: =IF(B163="","",IFERROR(_xlfn.XLOOKUP(B163,ImperialIncrementalData[System Increment],_xlfn.XLOOKUP('Imperial Incremental Crate'!$R$3,ImperialIncrementalData[#Headers],ImperialIncrementalData[]),,1),0)) ->  | E163: =IF(B163="","",IFERROR(_xlfn.XLOOKUP(B163,ImperialIncrementalData[System Increment],_xlfn.XLOOKUP(Imperial_Incremental_Data_Target_Column,ImperialIncrementalData[#Headers],ImperialIncrementalData[]),,1),0)) ->  | F163: =IF(B163="","",IF(B164="",((((1)/12)*Imperial_Module_Square_Foot_Area)-'Cumulative Volumes Imperial'!E163)*Imperial_Stone_Void_Percentage,((((B163-B164)/12)*Imperial_Module_Square_Foot_Area)-'Cumulative Volumes Imperial'!E163)*Imperial_Stone_Void_Percentage)) ->  | H163: =IF(B163="","",((Imperial_System_Area_Input-Imperial_Number_Of_Stacks*_xlfn.XLOOKUP(Imperial_Layers,CrateData[Layer],CrateData[Surface Area (sf)]))/12)*Imperial_Stone_Void_Percentage) ->  | K163: =IF(B163="","",SUM(J163:$J$233)) ->  | W163: -8.46 | AC163: =IF($AU$21="INVERT",X163,IF(AC162>=$Y$12,"",IF(X162="","",INDEX($X$18:$X$227,$AA$17-ROWS($X$18:$X162))))) ->  | BG163: =IF($AU$21="INVERT",X163,IF(AC162>=$Y$12,"",IF(X162="","",INDEX($X$18:$X$227,$AA$17-ROWS($X$18:$X162))))) ->  | BI163: =IF(AE162="","", IF($AU$21="TYP", IF(Y162="","", INDEX($Y$18:$Y$227, $AA$17-ROWS($Y$18:$Y162))), IF($AU$21="INVERT",Y163, "") ) ) ->  | BL163: =IF(BL162>=$Y$12,"",IF(X162="","",INDEX($X$18:$X$227,$AA$17-ROWS($X$18:$X162)))) ->  | BN163: 0 | BS163: =IF(Y162="","",INDEX($Y$17:$Y$227,$AA$17-ROWS($Y$17:$Y162))) -> 
C164: =IF(B164="","",IFERROR(_xlfn.XLOOKUP(B164,ImperialIncrementalData[System Increment],_xlfn.XLOOKUP('Imperial Incremental Crate'!$R$3,ImperialIncrementalData[#Headers],ImperialIncrementalData[]),,1),0)) ->  | E164: =IF(B164="","",IFERROR(_xlfn.XLOOKUP(B164,ImperialIncrementalData[System Increment],_xlfn.XLOOKUP(Imperial_Incremental_Data_Target_Column,ImperialIncrementalData[#Headers],ImperialIncrementalData[]),,1),0)) ->  | F164: =IF(B164="","",IF(B165="",((((1)/12)*Imperial_Module_Square_Foot_Area)-'Cumulative Volumes Imperial'!E164)*Imperial_Stone_Void_Percentage,((((B164-B165)/12)*Imperial_Module_Square_Foot_Area)-'Cumulative Volumes Imperial'!E164)*Imperial_Stone_Void_Percentage)) ->  | H164: =IF(B164="","",((Imperial_System_Area_Input-Imperial_Number_Of_Stacks*_xlfn.XLOOKUP(Imperial_Layers,CrateData[Layer],CrateData[Surface Area (sf)]))/12)*Imperial_Stone_Void_Percentage) ->  | K164: =IF(B164="","",SUM(J164:$J$233)) ->  | W164: -8.54 | AC164: =IF($AU$21="INVERT",X164,IF(AC163>=$Y$12,"",IF(X163="","",INDEX($X$18:$X$227,$AA$17-ROWS($X$18:$X163))))) ->  | BG164: =IF($AU$21="INVERT",X164,IF(AC163>=$Y$12,"",IF(X163="","",INDEX($X$18:$X$227,$AA$17-ROWS($X$18:$X163))))) ->  | BI164: =IF(AE163="","", IF($AU$21="TYP", IF(Y163="","", INDEX($Y$18:$Y$227, $AA$17-ROWS($Y$18:$Y163))), IF($AU$21="INVERT",Y164, "") ) ) ->  | BL164: =IF(BL163>=$Y$12,"",IF(X163="","",INDEX($X$18:$X$227,$AA$17-ROWS($X$18:$X163)))) ->  | BN164: 0 | BS164: =IF(Y163="","",INDEX($Y$17:$Y$227,$AA$17-ROWS($Y$17:$Y163))) -> 
C165: =IF(B165="","",IFERROR(_xlfn.XLOOKUP(B165,ImperialIncrementalData[System Increment],_xlfn.XLOOKUP('Imperial Incremental Crate'!$R$3,ImperialIncrementalData[#Headers],ImperialIncrementalData[]),,1),0)) ->  | E165: =IF(B165="","",IFERROR(_xlfn.XLOOKUP(B165,ImperialIncrementalData[System Increment],_xlfn.XLOOKUP(Imperial_Incremental_Data_Target_Column,ImperialIncrementalData[#Headers],ImperialIncrementalData[]),,1),0)) ->  | F165: =IF(B165="","",IF(B166="",((((1)/12)*Imperial_Module_Square_Foot_Area)-'Cumulative Volumes Imperial'!E165)*Imperial_Stone_Void_Percentage,((((B165-B166)/12)*Imperial_Module_Square_Foot_Area)-'Cumulative Volumes Imperial'!E165)*Imperial_Stone_Void_Percentage)) ->  | H165: =IF(B165="","",((Imperial_System_Area_Input-Imperial_Number_Of_Stacks*_xlfn.XLOOKUP(Imperial_Layers,CrateData[Layer],CrateData[Surface Area (sf)]))/12)*Imperial_Stone_Void_Percentage) ->  | K165: =IF(B165="","",SUM(J165:$J$233)) ->  | W165: -8.62 | AC165: =IF($AU$21="INVERT",X165,IF(AC164>=$Y$12,"",IF(X164="","",INDEX($X$18:$X$227,$AA$17-ROWS($X$18:$X164))))) ->  | BG165: =IF($AU$21="INVERT",X165,IF(AC164>=$Y$12,"",IF(X164="","",INDEX($X$18:$X$227,$AA$17-ROWS($X$18:$X164))))) ->  | BI165: =IF(AE164="","", IF($AU$21="TYP", IF(Y164="","", INDEX($Y$18:$Y$227, $AA$17-ROWS($Y$18:$Y164))), IF($AU$21="INVERT",Y165, "") ) ) ->  | BL165: =IF(BL164>=$Y$12,"",IF(X164="","",INDEX($X$18:$X$227,$AA$17-ROWS($X$18:$X164)))) ->  | BN165: 0 | BS165: =IF(Y164="","",INDEX($Y$17:$Y$227,$AA$17-ROWS($Y$17:$Y164))) -> 
C166: =IF(B166="","",IFERROR(_xlfn.XLOOKUP(B166,ImperialIncrementalData[System Increment],_xlfn.XLOOKUP('Imperial Incremental Crate'!$R$3,ImperialIncrementalData[#Headers],ImperialIncrementalData[]),,1),0)) ->  | E166: =IF(B166="","",IFERROR(_xlfn.XLOOKUP(B166,ImperialIncrementalData[System Increment],_xlfn.XLOOKUP(Imperial_Incremental_Data_Target_Column,ImperialIncrementalData[#Headers],ImperialIncrementalData[]),,1),0)) ->  | F166: =IF(B166="","",IF(B167="",((((1)/12)*Imperial_Module_Square_Foot_Area)-'Cumulative Volumes Imperial'!E166)*Imperial_Stone_Void_Percentage,((((B166-B167)/12)*Imperial_Module_Square_Foot_Area)-'Cumulative Volumes Imperial'!E166)*Imperial_Stone_Void_Percentage)) ->  | H166: =IF(B166="","",((Imperial_System_Area_Input-Imperial_Number_Of_Stacks*_xlfn.XLOOKUP(Imperial_Layers,CrateData[Layer],CrateData[Surface Area (sf)]))/12)*Imperial_Stone_Void_Percentage) ->  | K166: =IF(B166="","",SUM(J166:$J$233)) ->  | W166: -8.71 | AC166: =IF($AU$21="INVERT",X166,IF(AC165>=$Y$12,"",IF(X165="","",INDEX($X$18:$X$227,$AA$17-ROWS($X$18:$X165))))) ->  | BG166: =IF($AU$21="INVERT",X166,IF(AC165>=$Y$12,"",IF(X165="","",INDEX($X$18:$X$227,$AA$17-ROWS($X$18:$X165))))) ->  | BI166: =IF(AE165="","", IF($AU$21="TYP", IF(Y165="","", INDEX($Y$18:$Y$227, $AA$17-ROWS($Y$18:$Y165))), IF($AU$21="INVERT",Y166, "") ) ) ->  | BL166: =IF(BL165>=$Y$12,"",IF(X165="","",INDEX($X$18:$X$227,$AA$17-ROWS($X$18:$X165)))) ->  | BN166: 0 | BS166: =IF(Y165="","",INDEX($Y$17:$Y$227,$AA$17-ROWS($Y$17:$Y165))) -> 
C167: =IF(B167="","",IFERROR(_xlfn.XLOOKUP(B167,ImperialIncrementalData[System Increment],_xlfn.XLOOKUP('Imperial Incremental Crate'!$R$3,ImperialIncrementalData[#Headers],ImperialIncrementalData[]),,1),0)) ->  | E167: =IF(B167="","",IFERROR(_xlfn.XLOOKUP(B167,ImperialIncrementalData[System Increment],_xlfn.XLOOKUP(Imperial_Incremental_Data_Target_Column,ImperialIncrementalData[#Headers],ImperialIncrementalData[]),,1),0)) ->  | F167: =IF(B167="","",IF(B168="",((((1)/12)*Imperial_Module_Square_Foot_Area)-'Cumulative Volumes Imperial'!E167)*Imperial_Stone_Void_Percentage,((((B167-B168)/12)*Imperial_Module_Square_Foot_Area)-'Cumulative Volumes Imperial'!E167)*Imperial_Stone_Void_Percentage)) ->  | H167: =IF(B167="","",((Imperial_System_Area_Input-Imperial_Number_Of_Stacks*_xlfn.XLOOKUP(Imperial_Layers,CrateData[Layer],CrateData[Surface Area (sf)]))/12)*Imperial_Stone_Void_Percentage) ->  | K167: =IF(B167="","",SUM(J167:$J$233)) ->  | W167: -8.79 | AC167: =IF($AU$21="INVERT",X167,IF(AC166>=$Y$12,"",IF(X166="","",INDEX($X$18:$X$227,$AA$17-ROWS($X$18:$X166))))) ->  | BG167: =IF($AU$21="INVERT",X167,IF(AC166>=$Y$12,"",IF(X166="","",INDEX($X$18:$X$227,$AA$17-ROWS($X$18:$X166))))) ->  | BI167: =IF(AE166="","", IF($AU$21="TYP", IF(Y166="","", INDEX($Y$18:$Y$227, $AA$17-ROWS($Y$18:$Y166))), IF($AU$21="INVERT",Y167, "") ) ) ->  | BL167: =IF(BL166>=$Y$12,"",IF(X166="","",INDEX($X$18:$X$227,$AA$17-ROWS($X$18:$X166)))) ->  | BN167: 0 | BS167: =IF(Y166="","",INDEX($Y$17:$Y$227,$AA$17-ROWS($Y$17:$Y166))) -> 
C168: =IF(B168="","",IFERROR(_xlfn.XLOOKUP(B168,ImperialIncrementalData[System Increment],_xlfn.XLOOKUP('Imperial Incremental Crate'!$R$3,ImperialIncrementalData[#Headers],ImperialIncrementalData[]),,1),0)) ->  | E168: =IF(B168="","",IFERROR(_xlfn.XLOOKUP(B168,ImperialIncrementalData[System Increment],_xlfn.XLOOKUP(Imperial_Incremental_Data_Target_Column,ImperialIncrementalData[#Headers],ImperialIncrementalData[]),,1),0)) ->  | F168: =IF(B168="","",IF(B169="",((((1)/12)*Imperial_Module_Square_Foot_Area)-'Cumulative Volumes Imperial'!E168)*Imperial_Stone_Void_Percentage,((((B168-B169)/12)*Imperial_Module_Square_Foot_Area)-'Cumulative Volumes Imperial'!E168)*Imperial_Stone_Void_Percentage)) ->  | H168: =IF(B168="","",((Imperial_System_Area_Input-Imperial_Number_Of_Stacks*_xlfn.XLOOKUP(Imperial_Layers,CrateData[Layer],CrateData[Surface Area (sf)]))/12)*Imperial_Stone_Void_Percentage) ->  | K168: =IF(B168="","",SUM(J168:$J$233)) ->  | W168: -8.88 | AC168: =IF($AU$21="INVERT",X168,IF(AC167>=$Y$12,"",IF(X167="","",INDEX($X$18:$X$227,$AA$17-ROWS($X$18:$X167))))) ->  | BG168: =IF($AU$21="INVERT",X168,IF(AC167>=$Y$12,"",IF(X167="","",INDEX($X$18:$X$227,$AA$17-ROWS($X$18:$X167))))) ->  | BI168: =IF(AE167="","", IF($AU$21="TYP", IF(Y167="","", INDEX($Y$18:$Y$227, $AA$17-ROWS($Y$18:$Y167))), IF($AU$21="INVERT",Y168, "") ) ) ->  | BL168: =IF(BL167>=$Y$12,"",IF(X167="","",INDEX($X$18:$X$227,$AA$17-ROWS($X$18:$X167)))) ->  | BN168: 0 | BS168: =IF(Y167="","",INDEX($Y$17:$Y$227,$AA$17-ROWS($Y$17:$Y167))) -> 
C169: =IF(B169="","",IFERROR(_xlfn.XLOOKUP(B169,ImperialIncrementalData[System Increment],_xlfn.XLOOKUP('Imperial Incremental Crate'!$R$3,ImperialIncrementalData[#Headers],ImperialIncrementalData[]),,1),0)) ->  | E169: =IF(B169="","",IFERROR(_xlfn.XLOOKUP(B169,ImperialIncrementalData[System Increment],_xlfn.XLOOKUP(Imperial_Incremental_Data_Target_Column,ImperialIncrementalData[#Headers],ImperialIncrementalData[]),,1),0)) ->  | F169: =IF(B169="","",IF(B170="",((((1)/12)*Imperial_Module_Square_Foot_Area)-'Cumulative Volumes Imperial'!E169)*Imperial_Stone_Void_Percentage,((((B169-B170)/12)*Imperial_Module_Square_Foot_Area)-'Cumulative Volumes Imperial'!E169)*Imperial_Stone_Void_Percentage)) ->  | H169: =IF(B169="","",((Imperial_System_Area_Input-Imperial_Number_Of_Stacks*_xlfn.XLOOKUP(Imperial_Layers,CrateData[Layer],CrateData[Surface Area (sf)]))/12)*Imperial_Stone_Void_Percentage) ->  | K169: =IF(B169="","",SUM(J169:$J$233)) ->  | W169: -8.96 | AC169: =IF($AU$21="INVERT",X169,IF(AC168>=$Y$12,"",IF(X168="","",INDEX($X$18:$X$227,$AA$17-ROWS($X$18:$X168))))) ->  | BG169: =IF($AU$21="INVERT",X169,IF(AC168>=$Y$12,"",IF(X168="","",INDEX($X$18:$X$227,$AA$17-ROWS($X$18:$X168))))) ->  | BI169: =IF(AE168="","", IF($AU$21="TYP", IF(Y168="","", INDEX($Y$18:$Y$227, $AA$17-ROWS($Y$18:$Y168))), IF($AU$21="INVERT",Y169, "") ) ) ->  | BL169: =IF(BL168>=$Y$12,"",IF(X168="","",INDEX($X$18:$X$227,$AA$17-ROWS($X$18:$X168)))) ->  | BN169: 0 | BS169: =IF(Y168="","",INDEX($Y$17:$Y$227,$AA$17-ROWS($Y$17:$Y168))) -> 
C170: =IF(B170="","",IFERROR(_xlfn.XLOOKUP(B170,ImperialIncrementalData[System Increment],_xlfn.XLOOKUP('Imperial Incremental Crate'!$R$3,ImperialIncrementalData[#Headers],ImperialIncrementalData[]),,1),0)) ->  | E170: =IF(B170="","",IFERROR(_xlfn.XLOOKUP(B170,ImperialIncrementalData[System Increment],_xlfn.XLOOKUP(Imperial_Incremental_Data_Target_Column,ImperialIncrementalData[#Headers],ImperialIncrementalData[]),,1),0)) ->  | F170: =IF(B170="","",IF(B171="",((((1)/12)*Imperial_Module_Square_Foot_Area)-'Cumulative Volumes Imperial'!E170)*Imperial_Stone_Void_Percentage,((((B170-B171)/12)*Imperial_Module_Square_Foot_Area)-'Cumulative Volumes Imperial'!E170)*Imperial_Stone_Void_Percentage)) ->  | H170: =IF(B170="","",((Imperial_System_Area_Input-Imperial_Number_Of_Stacks*_xlfn.XLOOKUP(Imperial_Layers,CrateData[Layer],CrateData[Surface Area (sf)]))/12)*Imperial_Stone_Void_Percentage) ->  | K170: =IF(B170="","",SUM(J170:$J$233)) ->  | W170: -9.04 | AC170: =IF($AU$21="INVERT",X170,IF(AC169>=$Y$12,"",IF(X169="","",INDEX($X$18:$X$227,$AA$17-ROWS($X$18:$X169))))) ->  | BG170: =IF($AU$21="INVERT",X170,IF(AC169>=$Y$12,"",IF(X169="","",INDEX($X$18:$X$227,$AA$17-ROWS($X$18:$X169))))) ->  | BI170: =IF(AE169="","", IF($AU$21="TYP", IF(Y169="","", INDEX($Y$18:$Y$227, $AA$17-ROWS($Y$18:$Y169))), IF($AU$21="INVERT",Y170, "") ) ) ->  | BL170: =IF(BL169>=$Y$12,"",IF(X169="","",INDEX($X$18:$X$227,$AA$17-ROWS($X$18:$X169)))) ->  | BN170: 0 | BS170: =IF(Y169="","",INDEX($Y$17:$Y$227,$AA$17-ROWS($Y$17:$Y169))) -> 
C171: =IF(B171="","",IFERROR(_xlfn.XLOOKUP(B171,ImperialIncrementalData[System Increment],_xlfn.XLOOKUP('Imperial Incremental Crate'!$R$3,ImperialIncrementalData[#Headers],ImperialIncrementalData[]),,1),0)) ->  | E171: =IF(B171="","",IFERROR(_xlfn.XLOOKUP(B171,ImperialIncrementalData[System Increment],_xlfn.XLOOKUP(Imperial_Incremental_Data_Target_Column,ImperialIncrementalData[#Headers],ImperialIncrementalData[]),,1),0)) ->  | F171: =IF(B171="","",IF(B172="",((((1)/12)*Imperial_Module_Square_Foot_Area)-'Cumulative Volumes Imperial'!E171)*Imperial_Stone_Void_Percentage,((((B171-B172)/12)*Imperial_Module_Square_Foot_Area)-'Cumulative Volumes Imperial'!E171)*Imperial_Stone_Void_Percentage)) ->  | H171: =IF(B171="","",((Imperial_System_Area_Input-Imperial_Number_Of_Stacks*_xlfn.XLOOKUP(Imperial_Layers,CrateData[Layer],CrateData[Surface Area (sf)]))/12)*Imperial_Stone_Void_Percentage) ->  | K171: =IF(B171="","",SUM(J171:$J$233)) ->  | W171: -9.13 | AC171: =IF($AU$21="INVERT",X171,IF(AC170>=$Y$12,"",IF(X170="","",INDEX($X$18:$X$227,$AA$17-ROWS($X$18:$X170))))) ->  | BG171: =IF($AU$21="INVERT",X171,IF(AC170>=$Y$12,"",IF(X170="","",INDEX($X$18:$X$227,$AA$17-ROWS($X$18:$X170))))) ->  | BI171: =IF(AE170="","", IF($AU$21="TYP", IF(Y170="","", INDEX($Y$18:$Y$227, $AA$17-ROWS($Y$18:$Y170))), IF($AU$21="INVERT",Y171, "") ) ) ->  | BL171: =IF(BL170>=$Y$12,"",IF(X170="","",INDEX($X$18:$X$227,$AA$17-ROWS($X$18:$X170)))) ->  | BN171: 0 | BS171: =IF(Y170="","",INDEX($Y$17:$Y$227,$AA$17-ROWS($Y$17:$Y170))) -> 
C172: =IF(B172="","",IFERROR(_xlfn.XLOOKUP(B172,ImperialIncrementalData[System Increment],_xlfn.XLOOKUP('Imperial Incremental Crate'!$R$3,ImperialIncrementalData[#Headers],ImperialIncrementalData[]),,1),0)) ->  | E172: =IF(B172="","",IFERROR(_xlfn.XLOOKUP(B172,ImperialIncrementalData[System Increment],_xlfn.XLOOKUP(Imperial_Incremental_Data_Target_Column,ImperialIncrementalData[#Headers],ImperialIncrementalData[]),,1),0)) ->  | F172: =IF(B172="","",IF(B173="",((((1)/12)*Imperial_Module_Square_Foot_Area)-'Cumulative Volumes Imperial'!E172)*Imperial_Stone_Void_Percentage,((((B172-B173)/12)*Imperial_Module_Square_Foot_Area)-'Cumulative Volumes Imperial'!E172)*Imperial_Stone_Void_Percentage)) ->  | H172: =IF(B172="","",((Imperial_System_Area_Input-Imperial_Number_Of_Stacks*_xlfn.XLOOKUP(Imperial_Layers,CrateData[Layer],CrateData[Surface Area (sf)]))/12)*Imperial_Stone_Void_Percentage) ->  | K172: =IF(B172="","",SUM(J172:$J$233)) ->  | W172: -9.21 | AC172: =IF($AU$21="INVERT",X172,IF(AC171>=$Y$12,"",IF(X171="","",INDEX($X$18:$X$227,$AA$17-ROWS($X$18:$X171))))) ->  | BG172: =IF($AU$21="INVERT",X172,IF(AC171>=$Y$12,"",IF(X171="","",INDEX($X$18:$X$227,$AA$17-ROWS($X$18:$X171))))) ->  | BI172: =IF(AE171="","", IF($AU$21="TYP", IF(Y171="","", INDEX($Y$18:$Y$227, $AA$17-ROWS($Y$18:$Y171))), IF($AU$21="INVERT",Y172, "") ) ) ->  | BL172: =IF(BL171>=$Y$12,"",IF(X171="","",INDEX($X$18:$X$227,$AA$17-ROWS($X$18:$X171)))) ->  | BN172: 0 | BS172: =IF(Y171="","",INDEX($Y$17:$Y$227,$AA$17-ROWS($Y$17:$Y171))) -> 
C173: =IF(B173="","",IFERROR(_xlfn.XLOOKUP(B173,ImperialIncrementalData[System Increment],_xlfn.XLOOKUP('Imperial Incremental Crate'!$R$3,ImperialIncrementalData[#Headers],ImperialIncrementalData[]),,1),0)) ->  | E173: =IF(B173="","",IFERROR(_xlfn.XLOOKUP(B173,ImperialIncrementalData[System Increment],_xlfn.XLOOKUP(Imperial_Incremental_Data_Target_Column,ImperialIncrementalData[#Headers],ImperialIncrementalData[]),,1),0)) ->  | F173: =IF(B173="","",IF(B174="",((((1)/12)*Imperial_Module_Square_Foot_Area)-'Cumulative Volumes Imperial'!E173)*Imperial_Stone_Void_Percentage,((((B173-B174)/12)*Imperial_Module_Square_Foot_Area)-'Cumulative Volumes Imperial'!E173)*Imperial_Stone_Void_Percentage)) ->  | H173: =IF(B173="","",((Imperial_System_Area_Input-Imperial_Number_Of_Stacks*_xlfn.XLOOKUP(Imperial_Layers,CrateData[Layer],CrateData[Surface Area (sf)]))/12)*Imperial_Stone_Void_Percentage) ->  | K173: =IF(B173="","",SUM(J173:$J$233)) ->  | W173: -9.29 | AC173: =IF($AU$21="INVERT",X173,IF(AC172>=$Y$12,"",IF(X172="","",INDEX($X$18:$X$227,$AA$17-ROWS($X$18:$X172))))) ->  | BG173: =IF($AU$21="INVERT",X173,IF(AC172>=$Y$12,"",IF(X172="","",INDEX($X$18:$X$227,$AA$17-ROWS($X$18:$X172))))) ->  | BI173: =IF(AE172="","", IF($AU$21="TYP", IF(Y172="","", INDEX($Y$18:$Y$227, $AA$17-ROWS($Y$18:$Y172))), IF($AU$21="INVERT",Y173, "") ) ) ->  | BL173: =IF(BL172>=$Y$12,"",IF(X172="","",INDEX($X$18:$X$227,$AA$17-ROWS($X$18:$X172)))) ->  | BN173: 0 | BS173: =IF(Y172="","",INDEX($Y$17:$Y$227,$AA$17-ROWS($Y$17:$Y172))) -> 
C174: =IF(B174="","",IFERROR(_xlfn.XLOOKUP(B174,ImperialIncrementalData[System Increment],_xlfn.XLOOKUP('Imperial Incremental Crate'!$R$3,ImperialIncrementalData[#Headers],ImperialIncrementalData[]),,1),0)) ->  | E174: =IF(B174="","",IFERROR(_xlfn.XLOOKUP(B174,ImperialIncrementalData[System Increment],_xlfn.XLOOKUP(Imperial_Incremental_Data_Target_Column,ImperialIncrementalData[#Headers],ImperialIncrementalData[]),,1),0)) ->  | F174: =IF(B174="","",IF(B175="",((((1)/12)*Imperial_Module_Square_Foot_Area)-'Cumulative Volumes Imperial'!E174)*Imperial_Stone_Void_Percentage,((((B174-B175)/12)*Imperial_Module_Square_Foot_Area)-'Cumulative Volumes Imperial'!E174)*Imperial_Stone_Void_Percentage)) ->  | H174: =IF(B174="","",((Imperial_System_Area_Input-Imperial_Number_Of_Stacks*_xlfn.XLOOKUP(Imperial_Layers,CrateData[Layer],CrateData[Surface Area (sf)]))/12)*Imperial_Stone_Void_Percentage) ->  | K174: =IF(B174="","",SUM(J174:$J$233)) ->  | W174: -9.38 | AC174: =IF($AU$21="INVERT",X174,IF(AC173>=$Y$12,"",IF(X173="","",INDEX($X$18:$X$227,$AA$17-ROWS($X$18:$X173))))) ->  | BG174: =IF($AU$21="INVERT",X174,IF(AC173>=$Y$12,"",IF(X173="","",INDEX($X$18:$X$227,$AA$17-ROWS($X$18:$X173))))) ->  | BI174: =IF(AE173="","", IF($AU$21="TYP", IF(Y173="","", INDEX($Y$18:$Y$227, $AA$17-ROWS($Y$18:$Y173))), IF($AU$21="INVERT",Y174, "") ) ) ->  | BL174: =IF(BL173>=$Y$12,"",IF(X173="","",INDEX($X$18:$X$227,$AA$17-ROWS($X$18:$X173)))) ->  | BN174: 0 | BS174: =IF(Y173="","",INDEX($Y$17:$Y$227,$AA$17-ROWS($Y$17:$Y173))) -> 
C175: =IF(B175="","",IFERROR(_xlfn.XLOOKUP(B175,ImperialIncrementalData[System Increment],_xlfn.XLOOKUP('Imperial Incremental Crate'!$R$3,ImperialIncrementalData[#Headers],ImperialIncrementalData[]),,1),0)) ->  | E175: =IF(B175="","",IFERROR(_xlfn.XLOOKUP(B175,ImperialIncrementalData[System Increment],_xlfn.XLOOKUP(Imperial_Incremental_Data_Target_Column,ImperialIncrementalData[#Headers],ImperialIncrementalData[]),,1),0)) ->  | F175: =IF(B175="","",IF(B176="",((((1)/12)*Imperial_Module_Square_Foot_Area)-'Cumulative Volumes Imperial'!E175)*Imperial_Stone_Void_Percentage,((((B175-B176)/12)*Imperial_Module_Square_Foot_Area)-'Cumulative Volumes Imperial'!E175)*Imperial_Stone_Void_Percentage)) ->  | H175: =IF(B175="","",((Imperial_System_Area_Input-Imperial_Number_Of_Stacks*_xlfn.XLOOKUP(Imperial_Layers,CrateData[Layer],CrateData[Surface Area (sf)]))/12)*Imperial_Stone_Void_Percentage) ->  | K175: =IF(B175="","",SUM(J175:$J$233)) ->  | W175: -9.46 | AC175: =IF($AU$21="INVERT",X175,IF(AC174>=$Y$12,"",IF(X174="","",INDEX($X$18:$X$227,$AA$17-ROWS($X$18:$X174))))) ->  | BG175: =IF($AU$21="INVERT",X175,IF(AC174>=$Y$12,"",IF(X174="","",INDEX($X$18:$X$227,$AA$17-ROWS($X$18:$X174))))) ->  | BI175: =IF(AE174="","", IF($AU$21="TYP", IF(Y174="","", INDEX($Y$18:$Y$227, $AA$17-ROWS($Y$18:$Y174))), IF($AU$21="INVERT",Y175, "") ) ) ->  | BL175: =IF(BL174>=$Y$12,"",IF(X174="","",INDEX($X$18:$X$227,$AA$17-ROWS($X$18:$X174)))) ->  | BN175: 0 | BS175: =IF(Y174="","",INDEX($Y$17:$Y$227,$AA$17-ROWS($Y$17:$Y174))) -> 
C176: =IF(B176="","",IFERROR(_xlfn.XLOOKUP(B176,ImperialIncrementalData[System Increment],_xlfn.XLOOKUP('Imperial Incremental Crate'!$R$3,ImperialIncrementalData[#Headers],ImperialIncrementalData[]),,1),0)) ->  | E176: =IF(B176="","",IFERROR(_xlfn.XLOOKUP(B176,ImperialIncrementalData[System Increment],_xlfn.XLOOKUP(Imperial_Incremental_Data_Target_Column,ImperialIncrementalData[#Headers],ImperialIncrementalData[]),,1),0)) ->  | F176: =IF(B176="","",IF(B177="",((((1)/12)*Imperial_Module_Square_Foot_Area)-'Cumulative Volumes Imperial'!E176)*Imperial_Stone_Void_Percentage,((((B176-B177)/12)*Imperial_Module_Square_Foot_Area)-'Cumulative Volumes Imperial'!E176)*Imperial_Stone_Void_Percentage)) ->  | H176: =IF(B176="","",((Imperial_System_Area_Input-Imperial_Number_Of_Stacks*_xlfn.XLOOKUP(Imperial_Layers,CrateData[Layer],CrateData[Surface Area (sf)]))/12)*Imperial_Stone_Void_Percentage) ->  | K176: =IF(B176="","",SUM(J176:$J$233)) ->  | W176: -9.54 | AC176: =IF($AU$21="INVERT",X176,IF(AC175>=$Y$12,"",IF(X175="","",INDEX($X$18:$X$227,$AA$17-ROWS($X$18:$X175))))) ->  | BG176: =IF($AU$21="INVERT",X176,IF(AC175>=$Y$12,"",IF(X175="","",INDEX($X$18:$X$227,$AA$17-ROWS($X$18:$X175))))) ->  | BI176: =IF(AE175="","", IF($AU$21="TYP", IF(Y175="","", INDEX($Y$18:$Y$227, $AA$17-ROWS($Y$18:$Y175))), IF($AU$21="INVERT",Y176, "") ) ) ->  | BL176: =IF(BL175>=$Y$12,"",IF(X175="","",INDEX($X$18:$X$227,$AA$17-ROWS($X$18:$X175)))) ->  | BN176: 0 | BS176: =IF(Y175="","",INDEX($Y$17:$Y$227,$AA$17-ROWS($Y$17:$Y175))) -> 
C177: =IF(B177="","",IFERROR(_xlfn.XLOOKUP(B177,ImperialIncrementalData[System Increment],_xlfn.XLOOKUP('Imperial Incremental Crate'!$R$3,ImperialIncrementalData[#Headers],ImperialIncrementalData[]),,1),0)) ->  | E177: =IF(B177="","",IFERROR(_xlfn.XLOOKUP(B177,ImperialIncrementalData[System Increment],_xlfn.XLOOKUP(Imperial_Incremental_Data_Target_Column,ImperialIncrementalData[#Headers],ImperialIncrementalData[]),,1),0)) ->  | F177: =IF(B177="","",IF(B178="",((((1)/12)*Imperial_Module_Square_Foot_Area)-'Cumulative Volumes Imperial'!E177)*Imperial_Stone_Void_Percentage,((((B177-B178)/12)*Imperial_Module_Square_Foot_Area)-'Cumulative Volumes Imperial'!E177)*Imperial_Stone_Void_Percentage)) ->  | H177: =IF(B177="","",((Imperial_System_Area_Input-Imperial_Number_Of_Stacks*_xlfn.XLOOKUP(Imperial_Layers,CrateData[Layer],CrateData[Surface Area (sf)]))/12)*Imperial_Stone_Void_Percentage) ->  | K177: =IF(B177="","",SUM(J177:$J$233)) ->  | W177: -9.63 | AC177: =IF($AU$21="INVERT",X177,IF(AC176>=$Y$12,"",IF(X176="","",INDEX($X$18:$X$227,$AA$17-ROWS($X$18:$X176))))) ->  | BG177: =IF($AU$21="INVERT",X177,IF(AC176>=$Y$12,"",IF(X176="","",INDEX($X$18:$X$227,$AA$17-ROWS($X$18:$X176))))) ->  | BI177: =IF(AE176="","", IF($AU$21="TYP", IF(Y176="","", INDEX($Y$18:$Y$227, $AA$17-ROWS($Y$18:$Y176))), IF($AU$21="INVERT",Y177, "") ) ) ->  | BL177: =IF(BL176>=$Y$12,"",IF(X176="","",INDEX($X$18:$X$227,$AA$17-ROWS($X$18:$X176)))) ->  | BN177: 0 | BS177: =IF(Y176="","",INDEX($Y$17:$Y$227,$AA$17-ROWS($Y$17:$Y176))) -> 
C178: =IF(B178="","",IFERROR(_xlfn.XLOOKUP(B178,ImperialIncrementalData[System Increment],_xlfn.XLOOKUP('Imperial Incremental Crate'!$R$3,ImperialIncrementalData[#Headers],ImperialIncrementalData[]),,1),0)) ->  | E178: =IF(B178="","",IFERROR(_xlfn.XLOOKUP(B178,ImperialIncrementalData[System Increment],_xlfn.XLOOKUP(Imperial_Incremental_Data_Target_Column,ImperialIncrementalData[#Headers],ImperialIncrementalData[]),,1),0)) ->  | F178: =IF(B178="","",IF(B179="",((((1)/12)*Imperial_Module_Square_Foot_Area)-'Cumulative Volumes Imperial'!E178)*Imperial_Stone_Void_Percentage,((((B178-B179)/12)*Imperial_Module_Square_Foot_Area)-'Cumulative Volumes Imperial'!E178)*Imperial_Stone_Void_Percentage)) ->  | H178: =IF(B178="","",((Imperial_System_Area_Input-Imperial_Number_Of_Stacks*_xlfn.XLOOKUP(Imperial_Layers,CrateData[Layer],CrateData[Surface Area (sf)]))/12)*Imperial_Stone_Void_Percentage) ->  | K178: =IF(B178="","",SUM(J178:$J$233)) ->  | W178: -9.71 | AC178: =IF($AU$21="INVERT",X178,IF(AC177>=$Y$12,"",IF(X177="","",INDEX($X$18:$X$227,$AA$17-ROWS($X$18:$X177))))) ->  | BG178: =IF($AU$21="INVERT",X178,IF(AC177>=$Y$12,"",IF(X177="","",INDEX($X$18:$X$227,$AA$17-ROWS($X$18:$X177))))) ->  | BI178: =IF(AE177="","", IF($AU$21="TYP", IF(Y177="","", INDEX($Y$18:$Y$227, $AA$17-ROWS($Y$18:$Y177))), IF($AU$21="INVERT",Y178, "") ) ) ->  | BL178: =IF(BL177>=$Y$12,"",IF(X177="","",INDEX($X$18:$X$227,$AA$17-ROWS($X$18:$X177)))) ->  | BN178: 0 | BS178: =IF(Y177="","",INDEX($Y$17:$Y$227,$AA$17-ROWS($Y$17:$Y177))) -> 
C179: =IF(B179="","",IFERROR(_xlfn.XLOOKUP(B179,ImperialIncrementalData[System Increment],_xlfn.XLOOKUP('Imperial Incremental Crate'!$R$3,ImperialIncrementalData[#Headers],ImperialIncrementalData[]),,1),0)) ->  | E179: =IF(B179="","",IFERROR(_xlfn.XLOOKUP(B179,ImperialIncrementalData[System Increment],_xlfn.XLOOKUP(Imperial_Incremental_Data_Target_Column,ImperialIncrementalData[#Headers],ImperialIncrementalData[]),,1),0)) ->  | F179: =IF(B179="","",IF(B180="",((((1)/12)*Imperial_Module_Square_Foot_Area)-'Cumulative Volumes Imperial'!E179)*Imperial_Stone_Void_Percentage,((((B179-B180)/12)*Imperial_Module_Square_Foot_Area)-'Cumulative Volumes Imperial'!E179)*Imperial_Stone_Void_Percentage)) ->  | H179: =IF(B179="","",((Imperial_System_Area_Input-Imperial_Number_Of_Stacks*_xlfn.XLOOKUP(Imperial_Layers,CrateData[Layer],CrateData[Surface Area (sf)]))/12)*Imperial_Stone_Void_Percentage) ->  | K179: =IF(B179="","",SUM(J179:$J$233)) ->  | W179: -9.79 | AC179: =IF($AU$21="INVERT",X179,IF(AC178>=$Y$12,"",IF(X178="","",INDEX($X$18:$X$227,$AA$17-ROWS($X$18:$X178))))) ->  | BG179: =IF($AU$21="INVERT",X179,IF(AC178>=$Y$12,"",IF(X178="","",INDEX($X$18:$X$227,$AA$17-ROWS($X$18:$X178))))) ->  | BI179: =IF(AE178="","", IF($AU$21="TYP", IF(Y178="","", INDEX($Y$18:$Y$227, $AA$17-ROWS($Y$18:$Y178))), IF($AU$21="INVERT",Y179, "") ) ) ->  | BL179: =IF(BL178>=$Y$12,"",IF(X178="","",INDEX($X$18:$X$227,$AA$17-ROWS($X$18:$X178)))) ->  | BN179: 0 | BS179: =IF(Y178="","",INDEX($Y$17:$Y$227,$AA$17-ROWS($Y$17:$Y178))) -> 
C180: =IF(B180="","",IFERROR(_xlfn.XLOOKUP(B180,ImperialIncrementalData[System Increment],_xlfn.XLOOKUP('Imperial Incremental Crate'!$R$3,ImperialIncrementalData[#Headers],ImperialIncrementalData[]),,1),0)) ->  | E180: =IF(B180="","",IFERROR(_xlfn.XLOOKUP(B180,ImperialIncrementalData[System Increment],_xlfn.XLOOKUP(Imperial_Incremental_Data_Target_Column,ImperialIncrementalData[#Headers],ImperialIncrementalData[]),,1),0)) ->  | F180: =IF(B180="","",IF(B181="",((((1)/12)*Imperial_Module_Square_Foot_Area)-'Cumulative Volumes Imperial'!E180)*Imperial_Stone_Void_Percentage,((((B180-B181)/12)*Imperial_Module_Square_Foot_Area)-'Cumulative Volumes Imperial'!E180)*Imperial_Stone_Void_Percentage)) ->  | H180: =IF(B180="","",((Imperial_System_Area_Input-Imperial_Number_Of_Stacks*_xlfn.XLOOKUP(Imperial_Layers,CrateData[Layer],CrateData[Surface Area (sf)]))/12)*Imperial_Stone_Void_Percentage) ->  | K180: =IF(B180="","",SUM(J180:$J$233)) ->  | W180: -9.88 | AC180: =IF($AU$21="INVERT",X180,IF(AC179>=$Y$12,"",IF(X179="","",INDEX($X$18:$X$227,$AA$17-ROWS($X$18:$X179))))) ->  | BG180: =IF($AU$21="INVERT",X180,IF(AC179>=$Y$12,"",IF(X179="","",INDEX($X$18:$X$227,$AA$17-ROWS($X$18:$X179))))) ->  | BI180: =IF(AE179="","", IF($AU$21="TYP", IF(Y179="","", INDEX($Y$18:$Y$227, $AA$17-ROWS($Y$18:$Y179))), IF($AU$21="INVERT",Y180, "") ) ) ->  | BL180: =IF(BL179>=$Y$12,"",IF(X179="","",INDEX($X$18:$X$227,$AA$17-ROWS($X$18:$X179)))) ->  | BN180: 0 | BS180: =IF(Y179="","",INDEX($Y$17:$Y$227,$AA$17-ROWS($Y$17:$Y179))) -> 
C181: =IF(B181="","",IFERROR(_xlfn.XLOOKUP(B181,ImperialIncrementalData[System Increment],_xlfn.XLOOKUP('Imperial Incremental Crate'!$R$3,ImperialIncrementalData[#Headers],ImperialIncrementalData[]),,1),0)) ->  | E181: =IF(B181="","",IFERROR(_xlfn.XLOOKUP(B181,ImperialIncrementalData[System Increment],_xlfn.XLOOKUP(Imperial_Incremental_Data_Target_Column,ImperialIncrementalData[#Headers],ImperialIncrementalData[]),,1),0)) ->  | F181: =IF(B181="","",IF(B182="",((((1)/12)*Imperial_Module_Square_Foot_Area)-'Cumulative Volumes Imperial'!E181)*Imperial_Stone_Void_Percentage,((((B181-B182)/12)*Imperial_Module_Square_Foot_Area)-'Cumulative Volumes Imperial'!E181)*Imperial_Stone_Void_Percentage)) ->  | H181: =IF(B181="","",((Imperial_System_Area_Input-Imperial_Number_Of_Stacks*_xlfn.XLOOKUP(Imperial_Layers,CrateData[Layer],CrateData[Surface Area (sf)]))/12)*Imperial_Stone_Void_Percentage) ->  | K181: =IF(B181="","",SUM(J181:$J$233)) ->  | W181: -9.96 | AC181: =IF($AU$21="INVERT",X181,IF(AC180>=$Y$12,"",IF(X180="","",INDEX($X$18:$X$227,$AA$17-ROWS($X$18:$X180))))) ->  | BG181: =IF($AU$21="INVERT",X181,IF(AC180>=$Y$12,"",IF(X180="","",INDEX($X$18:$X$227,$AA$17-ROWS($X$18:$X180))))) ->  | BI181: =IF(AE180="","", IF($AU$21="TYP", IF(Y180="","", INDEX($Y$18:$Y$227, $AA$17-ROWS($Y$18:$Y180))), IF($AU$21="INVERT",Y181, "") ) ) ->  | BL181: =IF(BL180>=$Y$12,"",IF(X180="","",INDEX($X$18:$X$227,$AA$17-ROWS($X$18:$X180)))) ->  | BN181: 0 | BS181: =IF(Y180="","",INDEX($Y$17:$Y$227,$AA$17-ROWS($Y$17:$Y180))) -> 
C182: =IF(B182="","",IFERROR(_xlfn.XLOOKUP(B182,ImperialIncrementalData[System Increment],_xlfn.XLOOKUP('Imperial Incremental Crate'!$R$3,ImperialIncrementalData[#Headers],ImperialIncrementalData[]),,1),0)) ->  | E182: =IF(B182="","",IFERROR(_xlfn.XLOOKUP(B182,ImperialIncrementalData[System Increment],_xlfn.XLOOKUP(Imperial_Incremental_Data_Target_Column,ImperialIncrementalData[#Headers],ImperialIncrementalData[]),,1),0)) ->  | F182: =IF(B182="","",IF(B183="",((((1)/12)*Imperial_Module_Square_Foot_Area)-'Cumulative Volumes Imperial'!E182)*Imperial_Stone_Void_Percentage,((((B182-B183)/12)*Imperial_Module_Square_Foot_Area)-'Cumulative Volumes Imperial'!E182)*Imperial_Stone_Void_Percentage)) ->  | H182: =IF(B182="","",((Imperial_System_Area_Input-Imperial_Number_Of_Stacks*_xlfn.XLOOKUP(Imperial_Layers,CrateData[Layer],CrateData[Surface Area (sf)]))/12)*Imperial_Stone_Void_Percentage) ->  | K182: =IF(B182="","",SUM(J182:$J$233)) ->  | W182: -10.04 | AC182: =IF($AU$21="INVERT",X182,IF(AC181>=$Y$12,"",IF(X181="","",INDEX($X$18:$X$227,$AA$17-ROWS($X$18:$X181))))) ->  | BG182: =IF($AU$21="INVERT",X182,IF(AC181>=$Y$12,"",IF(X181="","",INDEX($X$18:$X$227,$AA$17-ROWS($X$18:$X181))))) ->  | BI182: =IF(AE181="","", IF($AU$21="TYP", IF(Y181="","", INDEX($Y$18:$Y$227, $AA$17-ROWS($Y$18:$Y181))), IF($AU$21="INVERT",Y182, "") ) ) ->  | BL182: =IF(BL181>=$Y$12,"",IF(X181="","",INDEX($X$18:$X$227,$AA$17-ROWS($X$18:$X181)))) ->  | BN182: 0 | BS182: =IF(Y181="","",INDEX($Y$17:$Y$227,$AA$17-ROWS($Y$17:$Y181))) -> 
C183: =IF(B183="","",IFERROR(_xlfn.XLOOKUP(B183,ImperialIncrementalData[System Increment],_xlfn.XLOOKUP('Imperial Incremental Crate'!$R$3,ImperialIncrementalData[#Headers],ImperialIncrementalData[]),,1),0)) ->  | E183: =IF(B183="","",IFERROR(_xlfn.XLOOKUP(B183,ImperialIncrementalData[System Increment],_xlfn.XLOOKUP(Imperial_Incremental_Data_Target_Column,ImperialIncrementalData[#Headers],ImperialIncrementalData[]),,1),0)) ->  | F183: =IF(B183="","",IF(B184="",((((1)/12)*Imperial_Module_Square_Foot_Area)-'Cumulative Volumes Imperial'!E183)*Imperial_Stone_Void_Percentage,((((B183-B184)/12)*Imperial_Module_Square_Foot_Area)-'Cumulative Volumes Imperial'!E183)*Imperial_Stone_Void_Percentage)) ->  | H183: =IF(B183="","",((Imperial_System_Area_Input-Imperial_Number_Of_Stacks*_xlfn.XLOOKUP(Imperial_Layers,CrateData[Layer],CrateData[Surface Area (sf)]))/12)*Imperial_Stone_Void_Percentage) ->  | K183: =IF(B183="","",SUM(J183:$J$233)) ->  | W183: -10.13 | AC183: =IF($AU$21="INVERT",X183,IF(AC182>=$Y$12,"",IF(X182="","",INDEX($X$18:$X$227,$AA$17-ROWS($X$18:$X182))))) ->  | BG183: =IF($AU$21="INVERT",X183,IF(AC182>=$Y$12,"",IF(X182="","",INDEX($X$18:$X$227,$AA$17-ROWS($X$18:$X182))))) ->  | BI183: =IF(AE182="","", IF($AU$21="TYP", IF(Y182="","", INDEX($Y$18:$Y$227, $AA$17-ROWS($Y$18:$Y182))), IF($AU$21="INVERT",Y183, "") ) ) ->  | BL183: =IF(BL182>=$Y$12,"",IF(X182="","",INDEX($X$18:$X$227,$AA$17-ROWS($X$18:$X182)))) ->  | BN183: 0 | BS183: =IF(Y182="","",INDEX($Y$17:$Y$227,$AA$17-ROWS($Y$17:$Y182))) -> 
C184: =IF(B184="","",IFERROR(_xlfn.XLOOKUP(B184,ImperialIncrementalData[System Increment],_xlfn.XLOOKUP('Imperial Incremental Crate'!$R$3,ImperialIncrementalData[#Headers],ImperialIncrementalData[]),,1),0)) ->  | E184: =IF(B184="","",IFERROR(_xlfn.XLOOKUP(B184,ImperialIncrementalData[System Increment],_xlfn.XLOOKUP(Imperial_Incremental_Data_Target_Column,ImperialIncrementalData[#Headers],ImperialIncrementalData[]),,1),0)) ->  | F184: =IF(B184="","",IF(B185="",((((1)/12)*Imperial_Module_Square_Foot_Area)-'Cumulative Volumes Imperial'!E184)*Imperial_Stone_Void_Percentage,((((B184-B185)/12)*Imperial_Module_Square_Foot_Area)-'Cumulative Volumes Imperial'!E184)*Imperial_Stone_Void_Percentage)) ->  | H184: =IF(B184="","",((Imperial_System_Area_Input-Imperial_Number_Of_Stacks*_xlfn.XLOOKUP(Imperial_Layers,CrateData[Layer],CrateData[Surface Area (sf)]))/12)*Imperial_Stone_Void_Percentage) ->  | K184: =IF(B184="","",SUM(J184:$J$233)) ->  | W184: -10.21 | AC184: =IF($AU$21="INVERT",X184,IF(AC183>=$Y$12,"",IF(X183="","",INDEX($X$18:$X$227,$AA$17-ROWS($X$18:$X183))))) ->  | BG184: =IF($AU$21="INVERT",X184,IF(AC183>=$Y$12,"",IF(X183="","",INDEX($X$18:$X$227,$AA$17-ROWS($X$18:$X183))))) ->  | BI184: =IF(AE183="","", IF($AU$21="TYP", IF(Y183="","", INDEX($Y$18:$Y$227, $AA$17-ROWS($Y$18:$Y183))), IF($AU$21="INVERT",Y184, "") ) ) ->  | BL184: =IF(BL183>=$Y$12,"",IF(X183="","",INDEX($X$18:$X$227,$AA$17-ROWS($X$18:$X183)))) ->  | BN184: 0 | BS184: =IF(Y183="","",INDEX($Y$17:$Y$227,$AA$17-ROWS($Y$17:$Y183))) -> 
C185: =IF(B185="","",IFERROR(_xlfn.XLOOKUP(B185,ImperialIncrementalData[System Increment],_xlfn.XLOOKUP('Imperial Incremental Crate'!$R$3,ImperialIncrementalData[#Headers],ImperialIncrementalData[]),,1),0)) ->  | E185: =IF(B185="","",IFERROR(_xlfn.XLOOKUP(B185,ImperialIncrementalData[System Increment],_xlfn.XLOOKUP(Imperial_Incremental_Data_Target_Column,ImperialIncrementalData[#Headers],ImperialIncrementalData[]),,1),0)) ->  | F185: =IF(B185="","",IF(B186="",((((1)/12)*Imperial_Module_Square_Foot_Area)-'Cumulative Volumes Imperial'!E185)*Imperial_Stone_Void_Percentage,((((B185-B186)/12)*Imperial_Module_Square_Foot_Area)-'Cumulative Volumes Imperial'!E185)*Imperial_Stone_Void_Percentage)) ->  | H185: =IF(B185="","",((Imperial_System_Area_Input-Imperial_Number_Of_Stacks*_xlfn.XLOOKUP(Imperial_Layers,CrateData[Layer],CrateData[Surface Area (sf)]))/12)*Imperial_Stone_Void_Percentage) ->  | K185: =IF(B185="","",SUM(J185:$J$233)) ->  | W185: -10.29 | AC185: =IF($AU$21="INVERT",X185,IF(AC184>=$Y$12,"",IF(X184="","",INDEX($X$18:$X$227,$AA$17-ROWS($X$18:$X184))))) ->  | BG185: =IF($AU$21="INVERT",X185,IF(AC184>=$Y$12,"",IF(X184="","",INDEX($X$18:$X$227,$AA$17-ROWS($X$18:$X184))))) ->  | BI185: =IF(AE184="","", IF($AU$21="TYP", IF(Y184="","", INDEX($Y$18:$Y$227, $AA$17-ROWS($Y$18:$Y184))), IF($AU$21="INVERT",Y185, "") ) ) ->  | BL185: =IF(BL184>=$Y$12,"",IF(X184="","",INDEX($X$18:$X$227,$AA$17-ROWS($X$18:$X184)))) ->  | BN185: 0 | BS185: =IF(Y184="","",INDEX($Y$17:$Y$227,$AA$17-ROWS($Y$17:$Y184))) -> 
C186: =IF(B186="","",IFERROR(_xlfn.XLOOKUP(B186,ImperialIncrementalData[System Increment],_xlfn.XLOOKUP('Imperial Incremental Crate'!$R$3,ImperialIncrementalData[#Headers],ImperialIncrementalData[]),,1),0)) ->  | E186: =IF(B186="","",IFERROR(_xlfn.XLOOKUP(B186,ImperialIncrementalData[System Increment],_xlfn.XLOOKUP(Imperial_Incremental_Data_Target_Column,ImperialIncrementalData[#Headers],ImperialIncrementalData[]),,1),0)) ->  | F186: =IF(B186="","",IF(B187="",((((1)/12)*Imperial_Module_Square_Foot_Area)-'Cumulative Volumes Imperial'!E186)*Imperial_Stone_Void_Percentage,((((B186-B187)/12)*Imperial_Module_Square_Foot_Area)-'Cumulative Volumes Imperial'!E186)*Imperial_Stone_Void_Percentage)) ->  | H186: =IF(B186="","",((Imperial_System_Area_Input-Imperial_Number_Of_Stacks*_xlfn.XLOOKUP(Imperial_Layers,CrateData[Layer],CrateData[Surface Area (sf)]))/12)*Imperial_Stone_Void_Percentage) ->  | K186: =IF(B186="","",SUM(J186:$J$233)) ->  | W186: -10.38 | AC186: =IF($AU$21="INVERT",X186,IF(AC185>=$Y$12,"",IF(X185="","",INDEX($X$18:$X$227,$AA$17-ROWS($X$18:$X185))))) ->  | BG186: =IF($AU$21="INVERT",X186,IF(AC185>=$Y$12,"",IF(X185="","",INDEX($X$18:$X$227,$AA$17-ROWS($X$18:$X185))))) ->  | BI186: =IF(AE185="","", IF($AU$21="TYP", IF(Y185="","", INDEX($Y$18:$Y$227, $AA$17-ROWS($Y$18:$Y185))), IF($AU$21="INVERT",Y186, "") ) ) ->  | BL186: =IF(BL185>=$Y$12,"",IF(X185="","",INDEX($X$18:$X$227,$AA$17-ROWS($X$18:$X185)))) ->  | BN186: 0 | BS186: =IF(Y185="","",INDEX($Y$17:$Y$227,$AA$17-ROWS($Y$17:$Y185))) -> 
C187: =IF(B187="","",IFERROR(_xlfn.XLOOKUP(B187,ImperialIncrementalData[System Increment],_xlfn.XLOOKUP('Imperial Incremental Crate'!$R$3,ImperialIncrementalData[#Headers],ImperialIncrementalData[]),,1),0)) ->  | E187: =IF(B187="","",IFERROR(_xlfn.XLOOKUP(B187,ImperialIncrementalData[System Increment],_xlfn.XLOOKUP(Imperial_Incremental_Data_Target_Column,ImperialIncrementalData[#Headers],ImperialIncrementalData[]),,1),0)) ->  | F187: =IF(B187="","",IF(B188="",((((1)/12)*Imperial_Module_Square_Foot_Area)-'Cumulative Volumes Imperial'!E187)*Imperial_Stone_Void_Percentage,((((B187-B188)/12)*Imperial_Module_Square_Foot_Area)-'Cumulative Volumes Imperial'!E187)*Imperial_Stone_Void_Percentage)) ->  | H187: =IF(B187="","",((Imperial_System_Area_Input-Imperial_Number_Of_Stacks*_xlfn.XLOOKUP(Imperial_Layers,CrateData[Layer],CrateData[Surface Area (sf)]))/12)*Imperial_Stone_Void_Percentage) ->  | K187: =IF(B187="","",SUM(J187:$J$233)) ->  | W187: -10.46 | AC187: =IF($AU$21="INVERT",X187,IF(AC186>=$Y$12,"",IF(X186="","",INDEX($X$18:$X$227,$AA$17-ROWS($X$18:$X186))))) ->  | BG187: =IF($AU$21="INVERT",X187,IF(AC186>=$Y$12,"",IF(X186="","",INDEX($X$18:$X$227,$AA$17-ROWS($X$18:$X186))))) ->  | BI187: =IF(AE186="","", IF($AU$21="TYP", IF(Y186="","", INDEX($Y$18:$Y$227, $AA$17-ROWS($Y$18:$Y186))), IF($AU$21="INVERT",Y187, "") ) ) ->  | BL187: =IF(BL186>=$Y$12,"",IF(X186="","",INDEX($X$18:$X$227,$AA$17-ROWS($X$18:$X186)))) ->  | BN187: 0 | BS187: =IF(Y186="","",INDEX($Y$17:$Y$227,$AA$17-ROWS($Y$17:$Y186))) -> 
C188: =IF(B188="","",IFERROR(_xlfn.XLOOKUP(B188,ImperialIncrementalData[System Increment],_xlfn.XLOOKUP('Imperial Incremental Crate'!$R$3,ImperialIncrementalData[#Headers],ImperialIncrementalData[]),,1),0)) ->  | E188: =IF(B188="","",IFERROR(_xlfn.XLOOKUP(B188,ImperialIncrementalData[System Increment],_xlfn.XLOOKUP(Imperial_Incremental_Data_Target_Column,ImperialIncrementalData[#Headers],ImperialIncrementalData[]),,1),0)) ->  | F188: =IF(B188="","",IF(B189="",((((1)/12)*Imperial_Module_Square_Foot_Area)-'Cumulative Volumes Imperial'!E188)*Imperial_Stone_Void_Percentage,((((B188-B189)/12)*Imperial_Module_Square_Foot_Area)-'Cumulative Volumes Imperial'!E188)*Imperial_Stone_Void_Percentage)) ->  | H188: =IF(B188="","",((Imperial_System_Area_Input-Imperial_Number_Of_Stacks*_xlfn.XLOOKUP(Imperial_Layers,CrateData[Layer],CrateData[Surface Area (sf)]))/12)*Imperial_Stone_Void_Percentage) ->  | K188: =IF(B188="","",SUM(J188:$J$233)) ->  | W188: -10.54 | AC188: =IF($AU$21="INVERT",X188,IF(AC187>=$Y$12,"",IF(X187="","",INDEX($X$18:$X$227,$AA$17-ROWS($X$18:$X187))))) ->  | BG188: =IF($AU$21="INVERT",X188,IF(AC187>=$Y$12,"",IF(X187="","",INDEX($X$18:$X$227,$AA$17-ROWS($X$18:$X187))))) ->  | BI188: =IF(AE187="","", IF($AU$21="TYP", IF(Y187="","", INDEX($Y$18:$Y$227, $AA$17-ROWS($Y$18:$Y187))), IF($AU$21="INVERT",Y188, "") ) ) ->  | BL188: =IF(BL187>=$Y$12,"",IF(X187="","",INDEX($X$18:$X$227,$AA$17-ROWS($X$18:$X187)))) ->  | BN188: 0 | BS188: =IF(Y187="","",INDEX($Y$17:$Y$227,$AA$17-ROWS($Y$17:$Y187))) -> 
C189: =IF(B189="","",IFERROR(_xlfn.XLOOKUP(B189,ImperialIncrementalData[System Increment],_xlfn.XLOOKUP('Imperial Incremental Crate'!$R$3,ImperialIncrementalData[#Headers],ImperialIncrementalData[]),,1),0)) ->  | E189: =IF(B189="","",IFERROR(_xlfn.XLOOKUP(B189,ImperialIncrementalData[System Increment],_xlfn.XLOOKUP(Imperial_Incremental_Data_Target_Column,ImperialIncrementalData[#Headers],ImperialIncrementalData[]),,1),0)) ->  | F189: =IF(B189="","",IF(B190="",((((1)/12)*Imperial_Module_Square_Foot_Area)-'Cumulative Volumes Imperial'!E189)*Imperial_Stone_Void_Percentage,((((B189-B190)/12)*Imperial_Module_Square_Foot_Area)-'Cumulative Volumes Imperial'!E189)*Imperial_Stone_Void_Percentage)) ->  | H189: =IF(B189="","",((Imperial_System_Area_Input-Imperial_Number_Of_Stacks*_xlfn.XLOOKUP(Imperial_Layers,CrateData[Layer],CrateData[Surface Area (sf)]))/12)*Imperial_Stone_Void_Percentage) ->  | K189: =IF(B189="","",SUM(J189:$J$233)) ->  | W189: -10.63 | AC189: =IF($AU$21="INVERT",X189,IF(AC188>=$Y$12,"",IF(X188="","",INDEX($X$18:$X$227,$AA$17-ROWS($X$18:$X188))))) ->  | BG189: =IF($AU$21="INVERT",X189,IF(AC188>=$Y$12,"",IF(X188="","",INDEX($X$18:$X$227,$AA$17-ROWS($X$18:$X188))))) ->  | BI189: =IF(AE188="","", IF($AU$21="TYP", IF(Y188="","", INDEX($Y$18:$Y$227, $AA$17-ROWS($Y$18:$Y188))), IF($AU$21="INVERT",Y189, "") ) ) ->  | BL189: =IF(BL188>=$Y$12,"",IF(X188="","",INDEX($X$18:$X$227,$AA$17-ROWS($X$18:$X188)))) ->  | BN189: 0 | BS189: =IF(Y188="","",INDEX($Y$17:$Y$227,$AA$17-ROWS($Y$17:$Y188))) -> 
C190: =IF(B190="","",IFERROR(_xlfn.XLOOKUP(B190,ImperialIncrementalData[System Increment],_xlfn.XLOOKUP('Imperial Incremental Crate'!$R$3,ImperialIncrementalData[#Headers],ImperialIncrementalData[]),,1),0)) ->  | E190: =IF(B190="","",IFERROR(_xlfn.XLOOKUP(B190,ImperialIncrementalData[System Increment],_xlfn.XLOOKUP(Imperial_Incremental_Data_Target_Column,ImperialIncrementalData[#Headers],ImperialIncrementalData[]),,1),0)) ->  | F190: =IF(B190="","",IF(B191="",((((1)/12)*Imperial_Module_Square_Foot_Area)-'Cumulative Volumes Imperial'!E190)*Imperial_Stone_Void_Percentage,((((B190-B191)/12)*Imperial_Module_Square_Foot_Area)-'Cumulative Volumes Imperial'!E190)*Imperial_Stone_Void_Percentage)) ->  | H190: =IF(B190="","",((Imperial_System_Area_Input-Imperial_Number_Of_Stacks*_xlfn.XLOOKUP(Imperial_Layers,CrateData[Layer],CrateData[Surface Area (sf)]))/12)*Imperial_Stone_Void_Percentage) ->  | K190: =IF(B190="","",SUM(J190:$J$233)) ->  | W190: -10.71 | AC190: =IF($AU$21="INVERT",X190,IF(AC189>=$Y$12,"",IF(X189="","",INDEX($X$18:$X$227,$AA$17-ROWS($X$18:$X189))))) ->  | BG190: =IF($AU$21="INVERT",X190,IF(AC189>=$Y$12,"",IF(X189="","",INDEX($X$18:$X$227,$AA$17-ROWS($X$18:$X189))))) ->  | BI190: =IF(AE189="","", IF($AU$21="TYP", IF(Y189="","", INDEX($Y$18:$Y$227, $AA$17-ROWS($Y$18:$Y189))), IF($AU$21="INVERT",Y190, "") ) ) ->  | BL190: =IF(BL189>=$Y$12,"",IF(X189="","",INDEX($X$18:$X$227,$AA$17-ROWS($X$18:$X189)))) ->  | BN190: 0 | BS190: =IF(Y189="","",INDEX($Y$17:$Y$227,$AA$17-ROWS($Y$17:$Y189))) -> 
C191: =IF(B191="","",IFERROR(_xlfn.XLOOKUP(B191,ImperialIncrementalData[System Increment],_xlfn.XLOOKUP('Imperial Incremental Crate'!$R$3,ImperialIncrementalData[#Headers],ImperialIncrementalData[]),,1),0)) ->  | E191: =IF(B191="","",IFERROR(_xlfn.XLOOKUP(B191,ImperialIncrementalData[System Increment],_xlfn.XLOOKUP(Imperial_Incremental_Data_Target_Column,ImperialIncrementalData[#Headers],ImperialIncrementalData[]),,1),0)) ->  | F191: =IF(B191="","",IF(B192="",((((1)/12)*Imperial_Module_Square_Foot_Area)-'Cumulative Volumes Imperial'!E191)*Imperial_Stone_Void_Percentage,((((B191-B192)/12)*Imperial_Module_Square_Foot_Area)-'Cumulative Volumes Imperial'!E191)*Imperial_Stone_Void_Percentage)) ->  | H191: =IF(B191="","",((Imperial_System_Area_Input-Imperial_Number_Of_Stacks*_xlfn.XLOOKUP(Imperial_Layers,CrateData[Layer],CrateData[Surface Area (sf)]))/12)*Imperial_Stone_Void_Percentage) ->  | K191: =IF(B191="","",SUM(J191:$J$233)) ->  | W191: -10.79 | AC191: =IF($AU$21="INVERT",X191,IF(AC190>=$Y$12,"",IF(X190="","",INDEX($X$18:$X$227,$AA$17-ROWS($X$18:$X190))))) ->  | BG191: =IF($AU$21="INVERT",X191,IF(AC190>=$Y$12,"",IF(X190="","",INDEX($X$18:$X$227,$AA$17-ROWS($X$18:$X190))))) ->  | BI191: =IF(AE190="","", IF($AU$21="TYP", IF(Y190="","", INDEX($Y$18:$Y$227, $AA$17-ROWS($Y$18:$Y190))), IF($AU$21="INVERT",Y191, "") ) ) ->  | BL191: =IF(BL190>=$Y$12,"",IF(X190="","",INDEX($X$18:$X$227,$AA$17-ROWS($X$18:$X190)))) ->  | BN191: 0 | BS191: =IF(Y190="","",INDEX($Y$17:$Y$227,$AA$17-ROWS($Y$17:$Y190))) -> 
C192: =IF(B192="","",IFERROR(_xlfn.XLOOKUP(B192,ImperialIncrementalData[System Increment],_xlfn.XLOOKUP('Imperial Incremental Crate'!$R$3,ImperialIncrementalData[#Headers],ImperialIncrementalData[]),,1),0)) ->  | E192: =IF(B192="","",IFERROR(_xlfn.XLOOKUP(B192,ImperialIncrementalData[System Increment],_xlfn.XLOOKUP(Imperial_Incremental_Data_Target_Column,ImperialIncrementalData[#Headers],ImperialIncrementalData[]),,1),0)) ->  | F192: =IF(B192="","",IF(B193="",((((1)/12)*Imperial_Module_Square_Foot_Area)-'Cumulative Volumes Imperial'!E192)*Imperial_Stone_Void_Percentage,((((B192-B193)/12)*Imperial_Module_Square_Foot_Area)-'Cumulative Volumes Imperial'!E192)*Imperial_Stone_Void_Percentage)) ->  | H192: =IF(B192="","",((Imperial_System_Area_Input-Imperial_Number_Of_Stacks*_xlfn.XLOOKUP(Imperial_Layers,CrateData[Layer],CrateData[Surface Area (sf)]))/12)*Imperial_Stone_Void_Percentage) ->  | K192: =IF(B192="","",SUM(J192:$J$233)) ->  | W192: -10.88 | AC192: =IF($AU$21="INVERT",X192,IF(AC191>=$Y$12,"",IF(X191="","",INDEX($X$18:$X$227,$AA$17-ROWS($X$18:$X191))))) ->  | BG192: =IF($AU$21="INVERT",X192,IF(AC191>=$Y$12,"",IF(X191="","",INDEX($X$18:$X$227,$AA$17-ROWS($X$18:$X191))))) ->  | BI192: =IF(AE191="","", IF($AU$21="TYP", IF(Y191="","", INDEX($Y$18:$Y$227, $AA$17-ROWS($Y$18:$Y191))), IF($AU$21="INVERT",Y192, "") ) ) ->  | BL192: =IF(BL191>=$Y$12,"",IF(X191="","",INDEX($X$18:$X$227,$AA$17-ROWS($X$18:$X191)))) ->  | BN192: 0 | BS192: =IF(Y191="","",INDEX($Y$17:$Y$227,$AA$17-ROWS($Y$17:$Y191))) -> 
C193: =IF(B193="","",IFERROR(_xlfn.XLOOKUP(B193,ImperialIncrementalData[System Increment],_xlfn.XLOOKUP('Imperial Incremental Crate'!$R$3,ImperialIncrementalData[#Headers],ImperialIncrementalData[]),,1),0)) ->  | E193: =IF(B193="","",IFERROR(_xlfn.XLOOKUP(B193,ImperialIncrementalData[System Increment],_xlfn.XLOOKUP(Imperial_Incremental_Data_Target_Column,ImperialIncrementalData[#Headers],ImperialIncrementalData[]),,1),0)) ->  | F193: =IF(B193="","",IF(B194="",((((1)/12)*Imperial_Module_Square_Foot_Area)-'Cumulative Volumes Imperial'!E193)*Imperial_Stone_Void_Percentage,((((B193-B194)/12)*Imperial_Module_Square_Foot_Area)-'Cumulative Volumes Imperial'!E193)*Imperial_Stone_Void_Percentage)) ->  | H193: =IF(B193="","",((Imperial_System_Area_Input-Imperial_Number_Of_Stacks*_xlfn.XLOOKUP(Imperial_Layers,CrateData[Layer],CrateData[Surface Area (sf)]))/12)*Imperial_Stone_Void_Percentage) ->  | K193: =IF(B193="","",SUM(J193:$J$233)) ->  | W193: -10.96 | AC193: =IF($AU$21="INVERT",X193,IF(AC192>=$Y$12,"",IF(X192="","",INDEX($X$18:$X$227,$AA$17-ROWS($X$18:$X192))))) ->  | BG193: =IF($AU$21="INVERT",X193,IF(AC192>=$Y$12,"",IF(X192="","",INDEX($X$18:$X$227,$AA$17-ROWS($X$18:$X192))))) ->  | BI193: =IF(AE192="","", IF($AU$21="TYP", IF(Y192="","", INDEX($Y$18:$Y$227, $AA$17-ROWS($Y$18:$Y192))), IF($AU$21="INVERT",Y193, "") ) ) ->  | BL193: =IF(BL192>=$Y$12,"",IF(X192="","",INDEX($X$18:$X$227,$AA$17-ROWS($X$18:$X192)))) ->  | BN193: 0 | BS193: =IF(Y192="","",INDEX($Y$17:$Y$227,$AA$17-ROWS($Y$17:$Y192))) -> 
C194: =IF(B194="","",IFERROR(_xlfn.XLOOKUP(B194,ImperialIncrementalData[System Increment],_xlfn.XLOOKUP('Imperial Incremental Crate'!$R$3,ImperialIncrementalData[#Headers],ImperialIncrementalData[]),,1),0)) ->  | E194: =IF(B194="","",IFERROR(_xlfn.XLOOKUP(B194,ImperialIncrementalData[System Increment],_xlfn.XLOOKUP(Imperial_Incremental_Data_Target_Column,ImperialIncrementalData[#Headers],ImperialIncrementalData[]),,1),0)) ->  | F194: =IF(B194="","",IF(B195="",((((1)/12)*Imperial_Module_Square_Foot_Area)-'Cumulative Volumes Imperial'!E194)*Imperial_Stone_Void_Percentage,((((B194-B195)/12)*Imperial_Module_Square_Foot_Area)-'Cumulative Volumes Imperial'!E194)*Imperial_Stone_Void_Percentage)) ->  | H194: =IF(B194="","",((Imperial_System_Area_Input-Imperial_Number_Of_Stacks*_xlfn.XLOOKUP(Imperial_Layers,CrateData[Layer],CrateData[Surface Area (sf)]))/12)*Imperial_Stone_Void_Percentage) ->  | K194: =IF(B194="","",SUM(J194:$J$233)) ->  | W194: -11.04 | AC194: =IF($AU$21="INVERT",X194,IF(AC193>=$Y$12,"",IF(X193="","",INDEX($X$18:$X$227,$AA$17-ROWS($X$18:$X193))))) ->  | BG194: =IF($AU$21="INVERT",X194,IF(AC193>=$Y$12,"",IF(X193="","",INDEX($X$18:$X$227,$AA$17-ROWS($X$18:$X193))))) ->  | BI194: =IF(AE193="","", IF($AU$21="TYP", IF(Y193="","", INDEX($Y$18:$Y$227, $AA$17-ROWS($Y$18:$Y193))), IF($AU$21="INVERT",Y194, "") ) ) ->  | BL194: =IF(BL193>=$Y$12,"",IF(X193="","",INDEX($X$18:$X$227,$AA$17-ROWS($X$18:$X193)))) ->  | BN194: 0 | BS194: =IF(Y193="","",INDEX($Y$17:$Y$227,$AA$17-ROWS($Y$17:$Y193))) -> 
C195: =IF(B195="","",IFERROR(_xlfn.XLOOKUP(B195,ImperialIncrementalData[System Increment],_xlfn.XLOOKUP('Imperial Incremental Crate'!$R$3,ImperialIncrementalData[#Headers],ImperialIncrementalData[]),,1),0)) ->  | E195: =IF(B195="","",IFERROR(_xlfn.XLOOKUP(B195,ImperialIncrementalData[System Increment],_xlfn.XLOOKUP(Imperial_Incremental_Data_Target_Column,ImperialIncrementalData[#Headers],ImperialIncrementalData[]),,1),0)) ->  | F195: =IF(B195="","",IF(B196="",((((1)/12)*Imperial_Module_Square_Foot_Area)-'Cumulative Volumes Imperial'!E195)*Imperial_Stone_Void_Percentage,((((B195-B196)/12)*Imperial_Module_Square_Foot_Area)-'Cumulative Volumes Imperial'!E195)*Imperial_Stone_Void_Percentage)) ->  | H195: =IF(B195="","",((Imperial_System_Area_Input-Imperial_Number_Of_Stacks*_xlfn.XLOOKUP(Imperial_Layers,CrateData[Layer],CrateData[Surface Area (sf)]))/12)*Imperial_Stone_Void_Percentage) ->  | K195: =IF(B195="","",SUM(J195:$J$233)) ->  | W195: -11.13 | AC195: =IF($AU$21="INVERT",X195,IF(AC194>=$Y$12,"",IF(X194="","",INDEX($X$18:$X$227,$AA$17-ROWS($X$18:$X194))))) ->  | BG195: =IF($AU$21="INVERT",X195,IF(AC194>=$Y$12,"",IF(X194="","",INDEX($X$18:$X$227,$AA$17-ROWS($X$18:$X194))))) ->  | BI195: =IF(AE194="","", IF($AU$21="TYP", IF(Y194="","", INDEX($Y$18:$Y$227, $AA$17-ROWS($Y$18:$Y194))), IF($AU$21="INVERT",Y195, "") ) ) ->  | BL195: =IF(BL194>=$Y$12,"",IF(X194="","",INDEX($X$18:$X$227,$AA$17-ROWS($X$18:$X194)))) ->  | BN195: 0 | BS195: =IF(Y194="","",INDEX($Y$17:$Y$227,$AA$17-ROWS($Y$17:$Y194))) -> 
C196: =IF(B196="","",IFERROR(_xlfn.XLOOKUP(B196,ImperialIncrementalData[System Increment],_xlfn.XLOOKUP('Imperial Incremental Crate'!$R$3,ImperialIncrementalData[#Headers],ImperialIncrementalData[]),,1),0)) ->  | E196: =IF(B196="","",IFERROR(_xlfn.XLOOKUP(B196,ImperialIncrementalData[System Increment],_xlfn.XLOOKUP(Imperial_Incremental_Data_Target_Column,ImperialIncrementalData[#Headers],ImperialIncrementalData[]),,1),0)) ->  | F196: =IF(B196="","",IF(B197="",((((1)/12)*Imperial_Module_Square_Foot_Area)-'Cumulative Volumes Imperial'!E196)*Imperial_Stone_Void_Percentage,((((B196-B197)/12)*Imperial_Module_Square_Foot_Area)-'Cumulative Volumes Imperial'!E196)*Imperial_Stone_Void_Percentage)) ->  | H196: =IF(B196="","",((Imperial_System_Area_Input-Imperial_Number_Of_Stacks*_xlfn.XLOOKUP(Imperial_Layers,CrateData[Layer],CrateData[Surface Area (sf)]))/12)*Imperial_Stone_Void_Percentage) ->  | K196: =IF(B196="","",SUM(J196:$J$233)) ->  | W196: -11.21 | AC196: =IF($AU$21="INVERT",X196,IF(AC195>=$Y$12,"",IF(X195="","",INDEX($X$18:$X$227,$AA$17-ROWS($X$18:$X195))))) ->  | BG196: =IF($AU$21="INVERT",X196,IF(AC195>=$Y$12,"",IF(X195="","",INDEX($X$18:$X$227,$AA$17-ROWS($X$18:$X195))))) ->  | BI196: =IF(AE195="","", IF($AU$21="TYP", IF(Y195="","", INDEX($Y$18:$Y$227, $AA$17-ROWS($Y$18:$Y195))), IF($AU$21="INVERT",Y196, "") ) ) ->  | BL196: =IF(BL195>=$Y$12,"",IF(X195="","",INDEX($X$18:$X$227,$AA$17-ROWS($X$18:$X195)))) ->  | BN196: 0 | BS196: =IF(Y195="","",INDEX($Y$17:$Y$227,$AA$17-ROWS($Y$17:$Y195))) -> 
C197: =IF(B197="","",IFERROR(_xlfn.XLOOKUP(B197,ImperialIncrementalData[System Increment],_xlfn.XLOOKUP('Imperial Incremental Crate'!$R$3,ImperialIncrementalData[#Headers],ImperialIncrementalData[]),,1),0)) ->  | E197: =IF(B197="","",IFERROR(_xlfn.XLOOKUP(B197,ImperialIncrementalData[System Increment],_xlfn.XLOOKUP(Imperial_Incremental_Data_Target_Column,ImperialIncrementalData[#Headers],ImperialIncrementalData[]),,1),0)) ->  | F197: =IF(B197="","",IF(B198="",((((1)/12)*Imperial_Module_Square_Foot_Area)-'Cumulative Volumes Imperial'!E197)*Imperial_Stone_Void_Percentage,((((B197-B198)/12)*Imperial_Module_Square_Foot_Area)-'Cumulative Volumes Imperial'!E197)*Imperial_Stone_Void_Percentage)) ->  | H197: =IF(B197="","",((Imperial_System_Area_Input-Imperial_Number_Of_Stacks*_xlfn.XLOOKUP(Imperial_Layers,CrateData[Layer],CrateData[Surface Area (sf)]))/12)*Imperial_Stone_Void_Percentage) ->  | K197: =IF(B197="","",SUM(J197:$J$233)) ->  | W197: -11.29 | AC197: =IF($AU$21="INVERT",X197,IF(AC196>=$Y$12,"",IF(X196="","",INDEX($X$18:$X$227,$AA$17-ROWS($X$18:$X196))))) ->  | BG197: =IF($AU$21="INVERT",X197,IF(AC196>=$Y$12,"",IF(X196="","",INDEX($X$18:$X$227,$AA$17-ROWS($X$18:$X196))))) ->  | BI197: =IF(AE196="","", IF($AU$21="TYP", IF(Y196="","", INDEX($Y$18:$Y$227, $AA$17-ROWS($Y$18:$Y196))), IF($AU$21="INVERT",Y197, "") ) ) ->  | BL197: =IF(BL196>=$Y$12,"",IF(X196="","",INDEX($X$18:$X$227,$AA$17-ROWS($X$18:$X196)))) ->  | BN197: 0 | BS197: =IF(Y196="","",INDEX($Y$17:$Y$227,$AA$17-ROWS($Y$17:$Y196))) -> 
C198: =IF(B198="","",IFERROR(_xlfn.XLOOKUP(B198,ImperialIncrementalData[System Increment],_xlfn.XLOOKUP('Imperial Incremental Crate'!$R$3,ImperialIncrementalData[#Headers],ImperialIncrementalData[]),,1),0)) ->  | E198: =IF(B198="","",IFERROR(_xlfn.XLOOKUP(B198,ImperialIncrementalData[System Increment],_xlfn.XLOOKUP(Imperial_Incremental_Data_Target_Column,ImperialIncrementalData[#Headers],ImperialIncrementalData[]),,1),0)) ->  | F198: =IF(B198="","",IF(B199="",((((1)/12)*Imperial_Module_Square_Foot_Area)-'Cumulative Volumes Imperial'!E198)*Imperial_Stone_Void_Percentage,((((B198-B199)/12)*Imperial_Module_Square_Foot_Area)-'Cumulative Volumes Imperial'!E198)*Imperial_Stone_Void_Percentage)) ->  | H198: =IF(B198="","",((Imperial_System_Area_Input-Imperial_Number_Of_Stacks*_xlfn.XLOOKUP(Imperial_Layers,CrateData[Layer],CrateData[Surface Area (sf)]))/12)*Imperial_Stone_Void_Percentage) ->  | K198: =IF(B198="","",SUM(J198:$J$233)) ->  | W198: -11.38 | AC198: =IF($AU$21="INVERT",X198,IF(AC197>=$Y$12,"",IF(X197="","",INDEX($X$18:$X$227,$AA$17-ROWS($X$18:$X197))))) ->  | BG198: =IF($AU$21="INVERT",X198,IF(AC197>=$Y$12,"",IF(X197="","",INDEX($X$18:$X$227,$AA$17-ROWS($X$18:$X197))))) ->  | BI198: =IF(AE197="","", IF($AU$21="TYP", IF(Y197="","", INDEX($Y$18:$Y$227, $AA$17-ROWS($Y$18:$Y197))), IF($AU$21="INVERT",Y198, "") ) ) ->  | BL198: =IF(BL197>=$Y$12,"",IF(X197="","",INDEX($X$18:$X$227,$AA$17-ROWS($X$18:$X197)))) ->  | BN198: 0 | BS198: =IF(Y197="","",INDEX($Y$17:$Y$227,$AA$17-ROWS($Y$17:$Y197))) -> 
C199: =IF(B199="","",IFERROR(_xlfn.XLOOKUP(B199,ImperialIncrementalData[System Increment],_xlfn.XLOOKUP('Imperial Incremental Crate'!$R$3,ImperialIncrementalData[#Headers],ImperialIncrementalData[]),,1),0)) ->  | E199: =IF(B199="","",IFERROR(_xlfn.XLOOKUP(B199,ImperialIncrementalData[System Increment],_xlfn.XLOOKUP(Imperial_Incremental_Data_Target_Column,ImperialIncrementalData[#Headers],ImperialIncrementalData[]),,1),0)) ->  | F199: =IF(B199="","",IF(B200="",((((1)/12)*Imperial_Module_Square_Foot_Area)-'Cumulative Volumes Imperial'!E199)*Imperial_Stone_Void_Percentage,((((B199-B200)/12)*Imperial_Module_Square_Foot_Area)-'Cumulative Volumes Imperial'!E199)*Imperial_Stone_Void_Percentage)) ->  | H199: =IF(B199="","",((Imperial_System_Area_Input-Imperial_Number_Of_Stacks*_xlfn.XLOOKUP(Imperial_Layers,CrateData[Layer],CrateData[Surface Area (sf)]))/12)*Imperial_Stone_Void_Percentage) ->  | K199: =IF(B199="","",SUM(J199:$J$233)) ->  | W199: -11.46 | AC199: =IF($AU$21="INVERT",X199,IF(AC198>=$Y$12,"",IF(X198="","",INDEX($X$18:$X$227,$AA$17-ROWS($X$18:$X198))))) ->  | BG199: =IF($AU$21="INVERT",X199,IF(AC198>=$Y$12,"",IF(X198="","",INDEX($X$18:$X$227,$AA$17-ROWS($X$18:$X198))))) ->  | BI199: =IF(AE198="","", IF($AU$21="TYP", IF(Y198="","", INDEX($Y$18:$Y$227, $AA$17-ROWS($Y$18:$Y198))), IF($AU$21="INVERT",Y199, "") ) ) ->  | BL199: =IF(BL198>=$Y$12,"",IF(X198="","",INDEX($X$18:$X$227,$AA$17-ROWS($X$18:$X198)))) ->  | BN199: 0 | BS199: =IF(Y198="","",INDEX($Y$17:$Y$227,$AA$17-ROWS($Y$17:$Y198))) -> 
C200: =IF(B200="","",IFERROR(_xlfn.XLOOKUP(B200,ImperialIncrementalData[System Increment],_xlfn.XLOOKUP('Imperial Incremental Crate'!$R$3,ImperialIncrementalData[#Headers],ImperialIncrementalData[]),,1),0)) ->  | E200: =IF(B200="","",IFERROR(_xlfn.XLOOKUP(B200,ImperialIncrementalData[System Increment],_xlfn.XLOOKUP(Imperial_Incremental_Data_Target_Column,ImperialIncrementalData[#Headers],ImperialIncrementalData[]),,1),0)) ->  | F200: =IF(B200="","",IF(B201="",((((1)/12)*Imperial_Module_Square_Foot_Area)-'Cumulative Volumes Imperial'!E200)*Imperial_Stone_Void_Percentage,((((B200-B201)/12)*Imperial_Module_Square_Foot_Area)-'Cumulative Volumes Imperial'!E200)*Imperial_Stone_Void_Percentage)) ->  | H200: =IF(B200="","",((Imperial_System_Area_Input-Imperial_Number_Of_Stacks*_xlfn.XLOOKUP(Imperial_Layers,CrateData[Layer],CrateData[Surface Area (sf)]))/12)*Imperial_Stone_Void_Percentage) ->  | K200: =IF(B200="","",SUM(J200:$J$233)) ->  | W200: -11.54 | AA200: =IF(X200="","",1) ->  | AC200: =IF($AU$21="INVERT",X200,IF(AC199>=$Y$12,"",IF(X199="","",INDEX($X$18:$X$227,$AA$17-ROWS($X$18:$X199))))) ->  | BG200: =IF($AU$21="INVERT",X200,IF(AC199>=$Y$12,"",IF(X199="","",INDEX($X$18:$X$227,$AA$17-ROWS($X$18:$X199))))) ->  | BI200: =IF(AE199="","", IF($AU$21="TYP", IF(Y199="","", INDEX($Y$18:$Y$227, $AA$17-ROWS($Y$18:$Y199))), IF($AU$21="INVERT",Y200, "") ) ) ->  | BL200: =IF(BL199>=$Y$12,"",IF(X199="","",INDEX($X$18:$X$227,$AA$17-ROWS($X$18:$X199)))) ->  | BN200: 0 | BS200: =IF(Y199="","",INDEX($Y$17:$Y$227,$AA$17-ROWS($Y$17:$Y199))) -> 
... 68 more rows

Sheet Cumulative Volumes Metric
A1: 1 | B1: ='Version History'!D2 -> Version 1.1 | BN1: =COUNTA(Q20:Q100) -> 5
A2: 2 | B2: Project:
A3: 3
A4: 4 | D4: Layers - | I4: 1 | J4: Layers
A5: 5 | D5: =IF(Metric_Layers=0.5,"Number of Half Modules -","Number of Full Modules -") -> Number of Full Modules - | I5: 100 | J5: Modules
A6: 6 | D6: Number of Cube Modules - | I6: 10 | J6: Modules
A7: 7 | D7: Number of Stacks - | I7: =(I5+I6/IF(Metric_Layers=0.5,1,2))/IF(Metric_Layers=0.5,1,I4) -> 105 | J7: Stacks
A8: 8 | D8: Amount of Stone Above Modules - | H8: =MOD(I8,10)/10 -> 0.2 | I8: 152 | J8: mm | BC8: NOTE: If the software program being used allows for Stage Volume data, it is recommended to use the stage volume data from this spreadsheet. Software programs typically use linear interpolation to take stage area data and estimate stage volume data. Due to rounding differences over the total number of stages provided in this spreadsheet, the accuracy of the estimated volume could be off as much as 1%. It is recommended that the user check the software estimated volume and compare it to the volume listed in this spreadsheet to ensure the accuracy is within acceptable levels.
A9: 9 | D9: Amount of Stone Below Modules - | I9: 152 | J9: mm
A10: 10 | D10: Voids in stone (porosity) - | I10: 40%
A11: 11 | D11: Base of Stone Elevation - | I11: 100 | AA11: =1/AA12 -> 0.01 | AB11: =AA11 -> 0.01
A12: 12 | D12: Area of system - | I12: 60 | J12: ="m2 - Minimum Area "&ROUNDUP(_xlfn.XLOOKUP(I4,CrateData[Layer],CrateData[Surface Area (m2)])*'Cumulative Volumes Metric'!I7,1)&"m2" -> m2 - Minimum Area 59.1m2 | X12: System Depth | Z12: =B18/AA12 -> 1.104 | AA12: 100
A13: 13
A14: 14 | AC14: =IF(AND(AU17=TRUE, AU23=TRUE), "Stage Area Data and WWHM Stage Data should NOT be selected at the same time", "") -> 
A15: 15 | AC15: =IF($AU$17,"Stage Area Data",IF($AU$23,"WWHM Stage Data","")) ->  | AH15: =IF($AU$17,BC8,"") ->  | BG15: =IF($AN$17,"Stage Area Data","") -> Stage Area Data | BL15: WWMH Stage Data
A16: =IF(B18<>"",A15+1,"") -> 16 | B16: Height of System | C16: Incremental Single Module | D16: Incremental Module Total | E16: Total volume of module | F16: Incremental Stone per Module | G16: Incremental Stone within module perimeter | H16: Perimeter Stone Volume | I16: Incremental Stone | J16: Incremental Module & Stone | K16: Cumulative Volume | L16: Elevation | V16: Elevation | X16: Depth | Y16: Depth | Z16: Area | AB16: Sum | AC16: =IF($AU$17,"Depth",IF($AU$23,"Stage","")) ->  | AD16: =IF($AU$17,"Elevation",IF($AU$23,"Area","")) ->  | AE16: =IF($AU$17,"Area",IF($AU$23,"Storage","")) ->  | AF16: =IF($AU$17,"Area","") ->  | AU16: Stage Area | AW16: Perimeter Stone | BG16: =IF($AN$17,"Depth","") -> Depth | BH16: =IF($AN$17,"Elevation","") -> Elevation | BI16: =IF($AN$17,"Area","") -> Area | BJ16: =IF($AN$17,"Area","") -> Area | BL16: =IF($AN$23,"Stage","") ->  | BM16: =IF($AN$23,"Area","") ->  | BN16: =IF($AN$23,"Storage","") -> 
A17: 17 | B17: (cm) | C17: (cubic meters) | D17: (cubic meters) | I17: (cubic meters) | J17: (cubic meters) | K17: (cubic meters) | L17: (meters) | V17: (feet) | X17: (feet) | Y17: (feet) | Z17: (ft2) | AB17: =SUM(AB18:AB227) -> 111 | AC17: =IF($AU$17,"(meter)",IF($AU$23,("(meter)"),"")) ->  | AD17: =IF($AU$17,"(meter)",IF($AU$23,"(acres)","")) ->  | AE17: =IF($AU$17,"(m²)",IF($AU$23,"(acre-ft)","")) ->  | AF17: =IF($AU$17,"(hectare)","") ->  | AM17: Toggle Printout | AN17: TRUE | AP17: TRUE | AU17: FALSE | AW17: TRUE | BG17: =IF($AN$17,"(meter)","") -> (meter) | BH17: =IF($AN$17,"(meter)","") -> (meter) | BI17: =IF($AN$17,"(m²)","") -> (m²) | BJ17: =IF($AN$17,"(hectare)","") -> (hectare) | BL17: =IF($AN$23,"(feet)","") ->  | BM17: =IF($AN$23,"(acres)","") ->  | BN17: =IF($AN$23,"(acre-ft)","") -> 
A18: 18 | B18: =I8/10+I9/10+_xlfn.XLOOKUP(Metric_Layers,CrateData[Layer],CrateData[Height (cm)]) -> 110.4 | C18: =IF(B18="","",IFERROR(_xlfn.XLOOKUP(ROUND(B18,1),MetricIncrementalData[System Increment],_xlfn.XLOOKUP('Metric Incremental Crate'!$R$3,MetricIncrementalData[#Headers],MetricIncrementalData[]),,1),0)) -> 0.0000 | D18: =IFERROR(C18*Metric_Number_Of_Stacks,"") -> 0.0000 | E18: =IF(B18="","",IFERROR(_xlfn.XLOOKUP(ROUND(B18,1),MetricIncrementalData[System Increment],_xlfn.XLOOKUP(Metric_Incremental_Data_Target_Column,MetricIncrementalData[#Headers],MetricIncrementalData[]),,1),0)) -> 0.0000 | F18: =IF(B18="","",IF(B19="",((((B18-0)/100)*Metric_Module_Square_Foot_Area)-'Cumulative Volumes Metric'!E18)*Metric_Stone_Void_Percentage,((((B18-B19)/100)*Metric_Module_Square_Foot_Area)-'Cumulative Volumes Metric'!E18)*Metric_Stone_Void_Percentage)) -> 0.0005 | G18: =IFERROR(F18*Metric_Number_Of_Stacks,"") -> 0.05 | H18: =IF(B18="","",((Metric_System_Area_Input-Metric_Number_Of_Stacks*_xlfn.XLOOKUP(Metric_Layers,CrateData[Layer],CrateData[Surface Area (m2)]))*((B18-IF(B19="",0,B19))/100))*Metric_Stone_Void_Percentage) -> 0.00 | I18: =IFERROR(IF($AW$17, H18+G18, G18), "") -> 0.05 | J18: =IFERROR(I18+D18,"") -> 0.05 | K18: =IF(B18="","",SUM(J18:$J$563)) -> 52.96 | L18: =IFERROR($I$11+B18/100,"") -> 101.104 | P18: Volume above | Q18: =InterpolationMetric!C2 ->  | R18: m3 | V18: =IF(L19="",IF(L18="","",$I$11),L18) -> 101.104 | X18: =Z12 -> 1.10 | Y18: =IF(AND(B18="",B16=1),0,IF(B18="","",IF(OR(X18=0,X18>0),X18,""))) -> 1.104 | Z18: =IF(Y18="","",IF(Y18=0,K16/$AB$11,IF(ISNUMBER(V19),(K18-K19)/(L18-L19),Z17))) -> 24.000 | AB18: =IF(Y18="","",1) -> 1 | AC18: =IF(AU17=TRUE, BG18, IF(AU23=TRUE, BL18, "")) ->  | AD18: =IF($AU$17=TRUE, BH18, IF($AU$23=TRUE, BM18, "")) ->  | AE18: =IF(AU17=TRUE, BI18, IF(AU23=TRUE, BN18, "")) ->  | AF18: =IF($AU$17=TRUE, BJ18, IF($AU$23=TRUE, "", "")) ->  | AN18: Top of Storage Elevation | AU18: Invet Stage Area | BG18: =IF(AU21="TYP",0,IF(AU21="INVERT",Y18,"")) ->  | BH18: =IF(AC18="","",$I$11+AC18) ->  | BI18: =IF(AU21="TYP",IF(Z17="","",INDEX($Z$18:$Z$227,$AB$17-ROWS(Z17:$Z$18))),IF(AU21="INVERT",Z18,"")) ->  | BJ18: =IF(AE18="","",AE18/10000) ->  | BL18: =IF(AU23=TRUE,0,IF(AU23=FALSE,0)) -> 0.00 | BM18: =IF(#REF!="","",#REF!/43560) ->  | BN18: 0
